Workbook

Sheet Introduction
B2: Assignment_2,2011-2012
B3: Module : Learning and Computational Intelligence in Economics and Finance (CF963-7-AU), CCFEA
B4: Course: MSc Computational Finance
B5: Professor: Edward Tsang
B6: Student: Riccardo Valerio Lattanzi
B7: PRID: LATTA96007
G9: STRUCTURE OF THE WORKBOOK
D14: Step1 | E14: → | F14: Sheet "Data" contains all the data have been used for the calculations;
D16: Step2 | E16: → | F16: Sheet "Sharpe_Ratios" contains all the Sharpe Ratios computed by using equally weighted portfolio Returns and Standard Deviations;
D20: Step 3 | E20: → | F20: Sheet "Portfolio_Weights" contains the values of the optimal weights and the corrispondent value of the portfolio Sharpe Ratio;

Sheet Data(Step1)
B3: ORIGINAL SET OF STOCKS
B4: VOD | C4: BT | D4: INVP | E4: BLT | F4: BATS | G4: IMT | H4: OML | I4: PRU | J4: KGF | K4: GSK | M4: MORE DATA
B6: RETURNS OVER 500 DAYS
B7: VOD | C7: BT | D7: INVP | E7: BLT | F7: BATS | G7: IMT | H7: OML | I7: PRU | J7: KGF | K7: GSK | P7: STOCK PRICES | AA7: DAILY STOCK RETURNS
B8: =(P509-P10)/P10 -> 0.2936507937 | C8: =(Q509-Q10)/Q10 -> 0.2686567164 | D8: 0.01460957179 | E8: 0.1886670959 | F8: 0.3627760252 | G8: 0.1750881316 | H8: 0.2 | I8: 0.1569767442 | J8: 0.01877934272 | K8: 0.05785837651
O9: TRADING DAYS | P9: VOD | Q9: BT | R9: INVP | S9: BLT | T9: BATS | U9: IMT | V9: OML | W9: PRU | X9: KGF | Y9: GSK | AA9: VOD | AB9: BT | AC9: INVP | AD9: BLT | AE9: BATS | AF9: IMT | AG9: OML | AH9: PRU | AI9: KGF | AJ9: GSK
B10: Number of portfolios | D10: Combinations of 5 different stocks | I10: Combinations of Portfolio Returns | O10: 1 | P10: 1.26 | Q10: 1.34 | R10: 3.97 | S10: 15.53 | T10: 19.02 | U10: 17.02 | V10: 0.9 | W10: 5.16 | X10: 2.13 | Y10: 11.58 | AA10: 0 | AB10: 0 | AC10: 0 | AD10: 0 | AE10: 0 | AF10: 0 | AG10: 0 | AH10: 0 | AI10: 0 | AJ10: 0
B11: 1 | D11: IMT | E11: OML | F11: PRU | G11: KGF | H11: GSK | I11: 0.1750881316 | J11: 0.2 | K11: 0.1569767442 | L11: 0.01877934272 | M11: 0.05785837651 | O11: 2 | P11: 1.27 | Q11: 1.33 | R11: 3.837 | S11: 15.04 | T11: 18.74 | U11: 16.8 | V11: 0.88 | W11: 4.99 | X11: 2.07 | Y11: 11.68 | AA11: 0.003433175838 | AB11: -0.003253157398 | AC11: -0.01479870756 | AD11: -0.01392361947 | AE11: -0.00644092605 | AF11: -0.005650274023 | AG11: -0.009759837289 | AH11: -0.014549156 | AI11: -0.01240925798 | AJ11: 0.003734283385
B12: 2 | D12: BATS | E12: OML | F12: PRU | G12: KGF | H12: GSK | I12: 0.3627760252 | J12: 0.2 | K12: 0.1569767442 | L12: 0.01877934272 | M12: 0.05785837651 | O12: 3 | P12: 1.28 | Q12: 1.34 | R12: 3.895 | S12: 15.105 | T12: 19 | U12: 16.84 | V12: 0.88 | W12: 5 | X12: 2.07 | Y12: 11.71 | AA12: 0.003406248692 | AB12: 0.003253157398 | AC12: 0.00651566281 | AD12: 0.001872893354 | AE12: 0.005984014401 | AF12: 0.001032805438 | AG12: 0 | AH12: 0.0008694587126 | AI12: 0 | AJ12: 0.001114052296
B13: 3 | D13: BATS | E13: IMT | F13: PRU | G13: KGF | H13: GSK | I13: 0.3627760252 | J13: 0.1750881316 | K13: 0.1569767442 | L13: 0.01877934272 | M13: 0.05785837651 | O13: 4 | P13: 1.28 | Q13: 1.32 | R13: 3.835 | S13: 15.34 | T13: 18.67 | U13: 16.98 | V13: 0.87 | W13: 4.99 | X13: 2.07 | Y13: 11.77 | AA13: 0 | AB13: -0.006530867159 | AC13: -0.006742093724 | AD13: 0.006704630004 | AE13: -0.007609283004 | AF13: 0.003595598744 | AG13: -0.004963419532 | AH13: -0.0008694587126 | AI13: 0 | AJ13: 0.002219567771
B14: 4 | D14: BATS | E14: IMT | F14: OML | G14: KGF | H14: GSK | I14: 0.3627760252 | J14: 0.1750881316 | K14: 0.2 | L14: 0.01877934272 | M14: 0.05785837651 | O14: 5 | P14: 1.31 | Q14: 1.35 | R14: 3.996 | S14: 15.625 | T14: 18.59 | U14: 17.14 | V14: 0.89 | W14: 5.22 | X14: 2.12 | Y14: 2.12 | AA14: 0.01006132601 | AB14: 0.009759837289 | AC14: 0.01786011127 | AD14: 0.007994666403 | AE14: -0.001864928177 | AF14: 0.004073131679 | AG14: 0.009870754026 | AH14: 0.01956995738 | AI14: 0.01036551547 | AJ14: 0.004770498549
B15: 5 | D15: BATS | E15: IMT | F15: OML | G15: PRU | H15: GSK | I15: 0.3627760252 | J15: 0.1750881316 | K15: 0.2 | L15: 0.1569767442 | M15: 0.05785837651 | O15: 6 | P15: 1.31 | Q15: 1.39 | R15: 4.06 | S15: 15.91 | T15: 18.9 | U15: 17.48 | V15: 0.92 | W15: 5.33 | X15: 2.14 | Y15: 2.12 | AA15: 0 | AB15: 0.01268103176 | AC15: 0.006900554023 | AD15: 0.00785015363 | AE15: 0.007182414401 | AF15: 0.008530610711 | AG15: 0.0143978207 | AH15: 0.009056706024 | AI15: 0.00407791242 | AJ15: 0.0101003269
B16: 6 | D16: BATS | E16: IMT | F16: OML | G16: PRU | H16: KGF | I16: 0.3627760252 | J16: 0.1750881316 | K16: 0.2 | L16: 0.1569767442 | M16: 0.01877934272 | O16: 7 | P16: 1.31 | Q16: 1.39 | R16: 4.211 | S16: 16.485 | T16: 18.97 | U16: 17.34 | V16: 0.94 | W16: 5.36 | X16: 2.11 | Y16: 2.12 | AA16: 0 | AB16: 0 | AC16: 0.01585920784 | AD16: 0.01541877183 | AE16: 0.001605526715 | AF16: -0.003492335158 | AG16: 0.009340026254 | AH16: 0.002437580666 | AI16: -0.006131318051 | AJ16: -0.005381660957
B17: 7 | D17: BLT | E17: OML | F17: PRU | G17: KGF | H17: GSK | I17: 0.1886670959 | J17: 0.2 | K17: 0.1569767442 | L17: 0.01877934272 | M17: 0.05785837651 | O17: 8 | P17: 1.34 | Q17: 1.41 | R17: 4.26 | S17: 16.28 | T17: 18.8 | U17: 17.31 | V17: 0.93 | W17: 5.42 | X17: 2.13 | Y17: 2.12 | AA17: 0.009833502709 | AB17: 0.006204312401 | AC17: 0.005024357682 | AD17: -0.005434550926 | AE17: -0.003909481625 | AF17: -0.0007520252648 | AG17: -0.004644905046 | AH17: 0.004834496846 | AI17: 0.004097148141 | AJ17: -0.001808809287
B18: 8 | D18: BLT | E18: IMT | F18: PRU | G18: KGF | H18: GSK | I18: 0.1886670959 | J18: 0.1750881316 | K18: 0.1569767442 | L18: 0.01877934272 | M18: 0.05785837651 | O18: 9 | P18: 1.33 | Q18: 1.38 | R18: 4.198 | S18: 16.05 | T18: 18.89 | U18: 17.39 | V18: 0.94 | W18: 5.32 | X18: 2.13 | Y18: 2.12 | AA18: -0.003253157398 | AB18: -0.009340026254 | AC18: -0.006367164856 | AD18: -0.006179363812 | AE18: 0.002074108658 | AF18: 0.002002514127 | AG18: 0.004644905046 | AH18: -0.008087654243 | AI18: 0 | AJ18: 0.00108618935
B19: 9 | D19: BLT | E19: IMT | F19: OML | G19: KGF | H19: GSK | I19: 0.1886670959 | J19: 0.1750881316 | K19: 0.2 | L19: 0.01877934272 | M19: 0.05785837651 | O19: 10 | P19: 1.33 | Q19: 1.37 | R19: 4.161 | S19: 16.015 | T19: 18.82 | U19: 17.24 | V19: 0.93 | W19: 5.25 | X19: 2.12 | Y19: 2.12 | AA19: 0 | AB19: -0.003158519245 | AC19: -0.003844718453 | AD19: -0.0009480937411 | AE19: -0.001612338831 | AF19: -0.003762320514 | AG19: -0.004644905046 | AH19: -0.005752328889 | AI19: -0.00204374251 | AJ19: 0.004317793464
B20: 10 | D20: BLT | E20: IMT | F20: OML | G20: PRU | H20: GSK | I20: 0.1886670959 | J20: 0.1750881316 | K20: 0.2 | L20: 0.1569767442 | M20: 0.05785837651 | O20: 11 | P20: 1.33 | Q20: 1.38 | R20: 4.338 | S20: 16.28 | T20: 18.74 | U20: 17.3 | V20: 0.94 | W20: 5.37 | X20: 2.12 | Y20: 2.12 | AA20: 0 | AB20: 0.003158519245 | AC20: 0.01809183189 | AD20: 0.007127457553 | AE20: -0.001850032539 | AF20: 0.00150884164 | AG20: 0.004644905046 | AH20: 0.009814982294 | AI20: 0 | AJ20: -0.003595173527
B21: 11 | D21: BLT | E21: IMT | F21: OML | G21: PRU | H21: KGF | I21: 0.1886670959 | J21: 0.1750881316 | K21: 0.2 | L21: 0.1569767442 | M21: 0.01877934272 | O21: 12 | P21: 1.32 | Q21: 1.36 | R21: 4.281 | S21: 15.855 | T21: 18.88 | U21: 17.23 | V21: 0.91 | W21: 5.25 | X21: 2.06 | Y21: 2.12 | AA21: -0.003277709761 | AB21: -0.006340178031 | AC21: -0.005744319844 | AD21: -0.01148815419 | AE21: 0.00323240341 | AF21: -0.001760825681 | AG21: -0.01408646128 | AH21: -0.009814982294 | AI21: -0.01246864056 | AJ21: 0
B22: 12 | D22: BLT | E22: BATS | F22: PRU | G22: KGF | H22: GSK | I22: 0.1886670959 | J22: 0.3627760252 | K22: 0.1569767442 | L22: 0.01877934272 | M22: 0.05785837651 | O22: 13 | P22: 1.3 | Q22: 1.3 | R22: 4.155 | S22: 15.575 | T22: 19.16 | U22: 17.49 | V22: 0.89 | W22: 5.14 | X22: 2.08 | Y22: 2.12 | AA22: -0.006630578899 | AB22: -0.01959555606 | AC22: -0.01297419971 | AD22: -0.007738191032 | AE22: 0.00639351478 | AF22: 0.006504532031 | AG22: -0.009651385676 | AH22: -0.009196184411 | AI22: 0.004196114594 | AJ22: 0.000360859582
B23: 13 | D23: BLT | E23: BATS | F23: OML | G23: KGF | H23: GSK | I23: 0.1886670959 | J23: 0.3627760252 | K23: 0.2 | L23: 0.01877934272 | M23: 0.05785837651 | O23: 14 | P23: 1.3 | Q23: 1.28 | R23: 4.217 | S23: 15.655 | T23: 18.76 | U23: 17.17 | V23: 0.89 | W23: 5.24 | X23: 2.07 | Y23: 2.12 | AA23: 0 | AB23: -0.006733382659 | AC23: 0.006432572895 | AD23: 0.002225016622 | AE23: -0.009162670699 | AF23: -0.008019514318 | AG23: 0 | AH23: 0.008368167988 | AI23: -0.002092989506 | AJ23: -0.009850024078
B24: 14 | D24: BLT | E24: BATS | F24: OML | G24: PRU | H24: GSK | I24: 0.1886670959 | J24: 0.3627760252 | K24: 0.2 | L24: 0.1569767442 | M24: 0.05785837651 | O24: 15 | P24: 1.33 | Q24: 1.29 | R24: 4.373 | S24: 15.855 | T24: 18.99 | U24: 17.1 | V24: 0.9 | W24: 5.45 | X24: 2.11 | Y24: 2.12 | AA24: 0.00990828866 | AB24: 0.003379740651 | AC24: 0.01577587633 | AD24: 0.00551317441 | AE24: 0.005292130694 | AF24: -0.001774184769 | AG24: 0.004852502794 | AH24: 0.01706521529 | AI24: 0.008312109841 | AJ24: 0.004039977802
B25: 15 | D25: BLT | E25: BATS | F25: OML | G25: PRU | H25: KGF | I25: 0.1886670959 | J25: 0.3627760252 | K25: 0.2 | L25: 0.1569767442 | M25: 0.01877934272 | O25: 16 | P25: 1.35 | Q25: 1.33 | R25: 4.306 | S25: 16.23 | T25: 19.34 | U25: 17.36 | V25: 0.93 | W25: 5.53 | X25: 2.17 | Y25: 2.12 | AA25: 0.006482127528 | AB25: 0.01326193067 | AC25: -0.006705451857 | AD25: 0.01015227346 | AE25: 0.00793150501 | AF25: 0.006553610448 | AG25: 0.01424043911 | AH25: 0.006328629028 | AI25: 0.01217727855 | AJ25: 0.002551464639
B26: 16 | D26: BLT | E26: BATS | F26: IMT | G26: KGF | H26: GSK | I26: 0.1886670959 | J26: 0.3627760252 | K26: 0.1750881316 | L26: 0.01877934272 | M26: 0.05785837651 | O26: 17 | P26: 1.37 | Q26: 1.32 | R26: 4.182 | S26: 16.655 | T26: 19.1 | U26: 17.23 | V26: 0.91 | W26: 5.45 | X26: 2.18 | Y26: 2.12 | AA26: 0.006386798661 | AB26: -0.003277709761 | AC26: -0.01268999701 | AD26: 0.0112261172 | AE26: -0.005423102499 | AF26: -0.003264443392 | AG26: -0.009441556233 | AH26: -0.006328629028 | AI26: 0.001996759756 | AJ26: -0.005485897978
B27: 17 | D27: BLT | E27: BATS | F27: IMT | G27: PRU | H27: GSK | I27: 0.1886670959 | J27: 0.3627760252 | K27: 0.1750881316 | L27: 0.1569767442 | M27: 0.05785837651 | O27: 18 | P27: 1.38 | Q27: 1.34 | R27: 4.285 | S27: 16.635 | T27: 19.42 | U27: 17.27 | V27: 0.93 | W27: 5.57 | X27: 2.16 | Y27: 2.12 | AA27: 0.003158519245 | AB27: 0.006530867159 | AC27: 0.01056679778 | AD27: -0.0005218318224 | AE27: 0.007215858324 | AF27: 0.001007060119 | AG27: 0.009441556233 | AH27: 0.009458692897 | AI27: -0.004002742454 | AJ27: 0.003664954086
B28: 18 | D28: BLT | E28: BATS | F28: IMT | G28: PRU | H28: KGF | I28: 0.1886670959 | J28: 0.3627760252 | K28: 0.1750881316 | L28: 0.1569767442 | M28: 0.01877934272 | O28: 19 | P28: 1.38 | Q28: 1.32 | R28: 4.207 | S28: 16.65 | T28: 19.56 | U28: 17.52 | V28: 0.93 | W28: 5.6 | X28: 2.07 | Y28: 2.12 | AA28: 0 | AB28: -0.006530867159 | AC28: -0.007978314242 | AD28: 0.0003914326375 | AE28: 0.00311962488 | AF28: 0.006241764265 | AG28: 0 | AH28: 0.002332831832 | AI28: -0.01848340569 | AJ28: -0.002195259006
B29: 19 | D29: BLT | E29: BATS | F29: IMT | G29: OML | H29: GSK | I29: 0.1886670959 | J29: 0.3627760252 | K29: 0.1750881316 | L29: 0.2 | M29: 0.05785837651 | O29: 20 | P29: 1.38 | Q29: 1.3 | R29: 4.325 | S29: 17.145 | T29: 19.64 | U29: 17.64 | V29: 0.93 | W29: 5.62 | X29: 2.07 | Y29: 2.12 | AA29: 0 | AB29: -0.006630578899 | AC29: 0.01201359978 | AD29: 0.01272325161 | AE29: 0.001772632999 | AF29: 0.002964478964 | AG29: 0 | AH29: 0.001548288563 | AI29: 0 | AJ29: -0.0007342258417
B30: 20 | D30: BLT | E30: BATS | F30: IMT | G30: OML | H30: KGF | I30: 0.1886670959 | J30: 0.3627760252 | K30: 0.1750881316 | L30: 0.2 | M30: 0.01877934272 | O30: 21 | P30: 1.39 | Q30: 1.3 | R30: 4.255 | S30: 16.98 | T30: 19.66 | U30: 17.7 | V30: 0.92 | W30: 5.59 | X30: 2.08 | Y30: 2.12 | AA30: 0.003135713853 | AB30: 0 | AC30: -0.00708654738 | AD30: -0.004199803543 | AE30: 0.0004420300452 | AF30: 0.001474685566 | AG30: -0.004695121208 | AH30: -0.002324507683 | AI30: 0.002092989506 | AJ30: 0.002929484847
B31: 21 | D31: BLT | E31: BATS | F31: IMT | G31: OML | H31: PRU | I31: 0.1886670959 | J31: 0.3627760252 | K31: 0.1750881316 | L31: 0.2 | M31: 0.1569767442 | O31: 22 | P31: 1.39 | Q31: 1.36 | R31: 4.193 | S31: 17.075 | T31: 19.6 | U31: 17.58 | V31: 0.93 | W31: 5.55 | X31: 2.02 | Y31: 2.12 | AA31: 0 | AB31: 0.01959555606 | AC31: -0.006374702017 | AD31: 0.002423026446 | AE31: -0.00132744214 | AF31: -0.002954395624 | AG31: 0.004695121208 | AH31: -0.003118824764 | AI31: -0.01271196552 | AJ31: -0.005139639652
B32: 22 | D32: INVP | E32: OML | F32: PRU | G32: KGF | H32: GSK | I32: 0.01460957179 | J32: 0.2 | K32: 0.1569767442 | L32: 0.01877934272 | M32: 0.05785837651 | O32: 23 | P32: 1.4 | Q32: 1.38 | R32: 4.292 | S32: 17.62 | T32: 19.6 | U32: 17.64 | V32: 0.95 | W32: 5.7 | X32: 2.06 | Y32: 2.12 | AA32: 0.003113235424 | AB32: 0.006340178031 | AC32: 0.01013485089 | AD32: 0.01364519172 | AE32: 0 | AF32: 0.001479710058 | AG32: 0.009240656735 | AH32: 0.01158187255 | AI32: 0.008515850923 | AJ32: 0
B33: 23 | D33: INVP | E33: IMT | F33: PRU | G33: KGF | H33: GSK | I33: 0.01460957179 | J33: 0.1750881316 | K33: 0.1569767442 | L33: 0.01877934272 | M33: 0.05785837651 | O33: 24 | P33: 1.4 | Q33: 1.39 | R33: 4.462 | S33: 17.66 | T33: 19.81 | U33: 17.75 | V33: 0.96 | W33: 5.72 | X33: 2.03 | Y33: 2.12 | AA33: 0 | AB33: 0.003135713853 | AC33: 0.01686985265 | AD33: 0.0009847951655 | AE33: 0.004628404182 | AF33: 0.002699776595 | AG33: 0.004547627751 | AH33: 0.001521173121 | AI33: -0.006371182456 | AJ33: 0.0003691411033
B34: 24 | D34: INVP | E34: IMT | F34: OML | G34: KGF | H34: GSK | I34: 0.01460957179 | J34: 0.1750881316 | K34: 0.2 | L34: 0.01877934272 | M34: 0.05785837651 | O34: 25 | P34: 1.4 | Q34: 1.39 | R34: 4.452 | S34: 17.5 | T34: 19.97 | U34: 17.7 | V34: 0.97 | W34: 5.75 | X34: 2.12 | Y34: 2.12 | AA34: 0 | AB34: 0 | AC34: -0.0009744102851 | AD34: -0.003952650555 | AE34: 0.003493589332 | AF34: -0.001225091029 | AG34: 0.004500501227 | AH34: 0.002271815897 | AI34: 0.01883982302 | AJ34: 0.008766544559
B35: 25 | D35: INVP | E35: IMT | F35: OML | G35: PRU | H35: GSK | I35: 0.01460957179 | J35: 0.1750881316 | K35: 0.2 | L35: 0.1569767442 | M35: 0.05785837651 | O35: 26 | P35: 1.4 | Q35: 1.39 | R35: 4.46 | S35: 17.02 | T35: 19.7 | U35: 17.52 | V35: 0.96 | W35: 5.67 | X35: 2.13 | Y35: 2.12 | AA35: 0 | AB35: 0 | AC35: 0.0007797030495 | AD35: -0.01207849294 | AE35: -0.005911838709 | AF35: -0.00443916453 | AG35: -0.004500501227 | AH35: -0.006084785797 | AI35: 0.00204374251 | AJ35: 0.003242362914
B36: 26 | D36: INVP | E36: IMT | F36: OML | G36: PRU | H36: KGF | I36: 0.01460957179 | J36: 0.1750881316 | K36: 0.2 | L36: 0.1569767442 | M36: 0.01877934272 | O36: 27 | P36: 1.41 | Q36: 1.39 | R36: 4.546 | S36: 17.19 | T36: 19.63 | U36: 17.58 | V36: 0.99 | W36: 5.64 | X36: 2.15 | Y36: 2.12 | AA36: 0.003091076977 | AB36: 0 | AC36: 0.008294572677 | AD36: 0.004316320938 | AE36: -0.001545926562 | AF36: 0.001484768906 | AG36: 0.01336396156 | AH36: -0.00230395491 | AI36: 0.004058856477 | AJ36: -0.001078100219
B37: 27 | D37: INVP | E37: BATS | F37: PRU | G37: KGF | H37: GSK | I37: 0.01460957179 | J37: 0.3627760252 | K37: 0.1569767442 | L37: 0.01877934272 | M37: 0.05785837651 | O37: 28 | P37: 1.43 | Q37: 1.35 | R37: 4.492 | S37: 17.015 | T37: 19.84 | U37: 17.8 | V37: 0.98 | W37: 5.87 | X37: 2.16 | Y37: 2.12 | AA37: 0.00611692481 | AB37: -0.01268103176 | AC37: -0.0051896838 | AD37: -0.004443923255 | AE37: 0.004621368218 | AF37: 0.005401131571 | AG37: -0.004409118905 | AH37: 0.01735899726 | AI37: 0.002015291235 | AJ37: 0.002511416642
B38: 28 | D38: INVP | E38: BATS | F38: OML | G38: KGF | H38: GSK | I38: 0.01460957179 | J38: 0.3627760252 | K38: 0.2 | L38: 0.01877934272 | M38: 0.05785837651 | O38: 29 | P38: 1.42 | Q38: 1.33 | R38: 4.474 | S38: 16.69 | T38: 19.58 | U38: 17.95 | V38: 1 | W38: 5.79 | X38: 2.1 | Y38: 2.12 | AA38: -0.003047693082 | AB38: -0.006482127528 | AC38: -0.001743767829 | AD38: -0.008375616753 | AE38: -0.005728980351 | AF38: 0.003644450605 | AG38: 0.008773924308 | AH38: -0.00595953752 | AI38: -0.01223445642 | AJ38: -0.002871378935
B39: 29 | D39: INVP | E39: BATS | F39: OML | G39: PRU | H39: GSK | I39: 0.01460957179 | J39: 0.3627760252 | K39: 0.2 | L39: 0.1569767442 | M39: 0.05785837651 | O39: 30 | P39: 1.42 | Q39: 1.32 | R39: 4.439 | S39: 16.925 | T39: 19.61 | U39: 17.99 | V39: 0.97 | W39: 5.82 | X39: 2.09 | Y39: 2.12 | AA39: 0 | AB39: -0.003277709761 | AC39: -0.003410834735 | AD39: 0.006072340678 | AE39: 0.0006649062007 | AF39: 0.0009667104312 | AG39: -0.01322826573 | AH39: 0.002244420922 | AI39: -0.002073008623 | AJ39: 0.007851059001
B40: 30 | D40: INVP | E40: BATS | F40: OML | G40: PRU | H40: KGF | I40: 0.01460957179 | J40: 0.3627760252 | K40: 0.2 | L40: 0.1569767442 | M40: 0.01877934272 | O40: 31 | P40: 1.44 | Q40: 1.31 | R40: 4.537 | S40: 17.38 | T40: 19.85 | U40: 18.05 | V40: 1 | W40: 5.86 | X40: 2.09 | Y40: 2.12 | AA40: 0.006074147712 | AB40: -0.00330263555 | AC40: 0.009483634241 | AD40: 0.01152109476 | AE40: 0.005282917431 | AF40: 0.001446042896 | AG40: 0.01322826573 | AH40: 0.002974631368 | AI40: 0 | AJ40: 0.008405962069
B41: 31 | D41: INVP | E41: BATS | F41: IMT | G41: KGF | H41: GSK | I41: 0.01460957179 | J41: 0.3627760252 | K41: 0.1750881316 | L41: 0.01877934272 | M41: 0.05785837651 | O41: 32 | P41: 1.42 | Q41: 1.31 | R41: 4.526 | S41: 17.28 | T41: 19.85 | U41: 17.97 | V41: 1 | W41: 5.99 | X41: 2.09 | Y41: 2.12 | AA41: -0.006074147712 | AB41: 0 | AC41: -0.001054229647 | AD41: -0.00250603397 | AE41: 0 | AF41: -0.001929129133 | AG41: 0 | AH41: 0.009529206371 | AI41: 0 | AJ41: -0.003133200233
B42: 32 | D42: INVP | E42: BATS | F42: IMT | G42: PRU | H42: GSK | I42: 0.01460957179 | J42: 0.3627760252 | K42: 0.1750881316 | L42: 0.1569767442 | M42: 0.05785837651 | O42: 33 | P42: 1.4 | Q42: 1.3 | R42: 4.58 | S42: 17.08 | T42: 19.63 | U42: 18.08 | V42: 1 | W42: 6.01 | X42: 2.13 | Y42: 2.12 | AA42: -0.006160308705 | AB42: -0.003327943349 | AC42: 0.005150928385 | AD42: -0.00505587179 | AE42: -0.004840211499 | AF42: 0.00265034903 | AG42: 0 | AH42: 0.001447649613 | AI42: 0.008233317328 | AJ42: -0.004566017202
B43: 33 | D43: INVP | E43: BATS | F43: IMT | G43: PRU | H43: KGF | I43: 0.01460957179 | J43: 0.3627760252 | K43: 0.1750881316 | L43: 0.1569767442 | M43: 0.01877934272 | O43: 34 | P43: 1.4 | Q43: 1.3 | R43: 4.486 | S43: 16.43 | T43: 19.51 | U43: 18.16 | V43: 0.98 | W43: 5.92 | X43: 2.09 | Y43: 2.12 | AA43: 0 | AB43: 0 | AC43: -0.009006208757 | AD43: -0.01685030292 | AE43: -0.002663030205 | AF43: 0.001917418046 | AG43: -0.008773924308 | AH43: -0.00655276528 | AI43: -0.008233317328 | AJ43: -0.002478654403
B44: 34 | D44: INVP | E44: BATS | F44: IMT | G44: OML | H44: GSK | I44: 0.01460957179 | J44: 0.3627760252 | K44: 0.1750881316 | L44: 0.2 | M44: 0.05785837651 | O44: 35 | P44: 1.38 | Q44: 1.28 | R44: 4.378 | S44: 16.27 | T44: 19.4 | U44: 18.09 | V44: 0.97 | W44: 5.72 | X44: 2.07 | Y44: 2.12 | AA44: -0.006248949277 | AB44: -0.006733382659 | AC44: -0.01058351202 | AD44: -0.004250010498 | AE44: -0.002455539464 | AF44: -0.001677277325 | AG44: -0.004454341426 | AH44: -0.01492567793 | AI44: -0.004175940654 | AJ44: -0.001422751418
B45: 35 | D45: INVP | E45: BATS | F45: IMT | G45: OML | H45: KGF | I45: 0.01460957179 | J45: 0.3627760252 | K45: 0.1750881316 | L45: 0.2 | M45: 0.01877934272 | O45: 36 | P45: 1.4 | Q45: 1.3 | R45: 4.425 | S45: 16.59 | T45: 19.37 | U45: 18.14 | V45: 0.99 | W45: 5.89 | X45: 2.11 | Y45: 2.12 | AA45: 0.006248949277 | AB45: 0.006733382659 | AC45: 0.004637517802 | AD45: 0.008458833088 | AE45: -0.0006721092111 | AF45: 0.001198715864 | AG45: 0.008863460331 | AH45: 0.01271926599 | AI45: 0.008312109841 | AJ45: 0
B46: 36 | D46: INVP | E46: BATS | F46: IMT | G46: OML | H46: PRU | I46: 0.01460957179 | J46: 0.3627760252 | K46: 0.1750881316 | L46: 0.2 | M46: 0.1569767442 | O46: 37 | P46: 1.4 | Q46: 1.31 | R46: 4.555 | S46: 17.355 | T46: 19.49 | U46: 18.06 | V46: 1 | W46: 6.09 | X46: 2.16 | Y46: 2.12 | AA46: 0 | AB46: 0.003327943349 | AC46: 0.01257510628 | AD46: 0.01957823198 | AE46: 0.002682218399 | AF46: -0.001919536747 | AG46: 0.004364805402 | AH46: 0.01450199785 | AI46: 0.01017129585 | AJ46: 0.006014765134
B47: 37 | D47: INVP | E47: BLT | F47: PRU | G47: KGF | H47: GSK | I47: 0.01460957179 | J47: 0.1886670959 | K47: 0.1569767442 | L47: 0.01877934272 | M47: 0.05785837651 | O47: 38 | P47: 1.37 | Q47: 1.31 | R47: 4.525 | S47: 17.4 | T47: 19.51 | U47: 17.85 | V47: 1.02 | W47: 6.18 | X47: 2.2 | Y47: 2.12 | AA47: -0.009407468522 | AB47: 0 | AC47: -0.002869797768 | AD47: 0.001124630275 | AE47: 0.0004454302769 | AF47: -0.005079525529 | AG47: 0.008600171762 | AH47: 0.006371182456 | AI47: 0.007968929671 | AJ47: -0.001760417821
B48: 38 | D48: INVP | E48: BLT | F48: OML | G48: KGF | H48: GSK | I48: 0.01460957179 | J48: 0.1886670959 | K48: 0.2 | L48: 0.01877934272 | M48: 0.05785837651 | O48: 39 | P48: 1.35 | Q48: 1.35 | R48: 4.651 | S48: 17.775 | T48: 19.7 | U48: 18 | V48: 1.04 | W48: 6.3 | X48: 2.27 | Y48: 2.12 | AA48: -0.006386798661 | AB48: 0.01306247284 | AC48: 0.01192775597 | AD48: 0.009260361119 | AE48: 0.004208956767 | AF48: 0.003634284655 | AG48: 0.008433167537 | AH48: 0.008352074365 | AI48: 0.01360317637 | AJ48: 0.001408904664
B49: 39 | D49: INVP | E49: BLT | F49: OML | G49: PRU | H49: GSK | I49: 0.01460957179 | J49: 0.1886670959 | K49: 0.2 | L49: 0.1569767442 | M49: 0.05785837651 | O49: 40 | P49: 1.32 | Q49: 1.36 | R49: 4.624 | S49: 17.7 | T49: 19.6 | U49: 18.1 | V49: 1.05 | W49: 6.33 | X49: 2.33 | Y49: 2.12 | AA49: -0.009759837289 | AB49: 0.003205139875 | AC49: -0.002528514099 | AD49: -0.00183634304 | AE49: -0.002210154805 | AF49: 0.002406069766 | AG49: 0.004155959771 | AH49: 0.002063160564 | AI49: 0.01133006383 | AJ49: 0.002804171046
B50: 40 | D50: INVP | E50: BLT | F50: OML | G50: PRU | H50: KGF | I50: 0.01460957179 | J50: 0.1886670959 | K50: 0.2 | L50: 0.1569767442 | M50: 0.01877934272 | O50: 41 | P50: 1.35 | Q50: 1.35 | R50: 4.706 | S50: 17.855 | T50: 19.55 | U50: 18.03 | V50: 1.1 | W50: 6.42 | X50: 2.33 | Y50: 2.12 | AA50: 0.009759837289 | AB50: -0.003205139875 | AC50: 0.007634097428 | AD50: 0.003786588167 | AE50: -0.001109309625 | AF50: -0.001682848147 | AG50: 0.02020338609 | AH50: 0.006131318051 | AI50: 0 | AJ50: 0.006243957931
B51: 41 | D51: INVP | E51: BLT | F51: IMT | G51: KGF | H51: GSK | I51: 0.01460957179 | J51: 0.1886670959 | K51: 0.1750881316 | L51: 0.01877934272 | M51: 0.05785837651 | O51: 42 | P51: 1.34 | Q51: 1.35 | R51: 4.645 | S51: 17.65 | T51: 19.79 | U51: 18.05 | V51: 1.11 | W51: 6.25 | X51: 2.32 | Y51: 2.12 | AA51: -0.00322897013 | AB51: 0 | AC51: -0.00566620451 | AD51: -0.005015144805 | AE51: 0.005299032475 | AF51: 0.0004814795193 | AG51: 0.003930293628 | AH51: -0.01165501072 | AI51: -0.001867936135 | AJ51: -0.004848633095
B52: 42 | D52: INVP | E52: BLT | F52: IMT | G52: PRU | H52: GSK | I52: 0.01460957179 | J52: 0.1886670959 | K52: 0.1750881316 | L52: 0.1569767442 | M52: 0.05785837651 | O52: 43 | P52: 1.35 | Q52: 1.34 | R52: 4.718 | S52: 18.415 | T52: 19.75 | U52: 18.26 | V52: 1.13 | W52: 6.32 | X52: 2.35 | Y52: 2.12 | AA52: 0.00322897013 | AB52: -0.00322897013 | AC52: 0.00677221822 | AD52: 0.01842701347 | AE52: -0.0008786942439 | AF52: 0.005023566957 | AG52: 0.007755464697 | AH52: 0.004837060938 | AI52: 0.005579877381 | AJ52: 0.004159276629
B53: 43 | D53: INVP | E53: BLT | F53: IMT | G53: PRU | H53: KGF | I53: 0.01460957179 | J53: 0.1886670959 | K53: 0.1750881316 | L53: 0.1569767442 | M53: 0.01877934272 | O53: 44 | P53: 1.36 | Q53: 1.35 | R53: 4.82 | S53: 18.115 | T53: 19.8 | U53: 18.11 | V53: 1.12 | W53: 6.39 | X53: 2.4 | Y53: 2.12 | AA53: 0.003205139875 | AB53: 0.00322897013 | AC53: 0.009289101689 | AD53: -0.00713338482 | AE53: 0.001098090299 | AF53: -0.003582322884 | AG53: -0.003860420813 | AH53: 0.004783779876 | AI53: 0.00914337944 | AJ53: 0.004802673546
B54: 44 | D54: INVP | E54: BLT | F54: IMT | G54: OML | H54: GSK | I54: 0.01460957179 | J54: 0.1886670959 | K54: 0.1750881316 | L54: 0.2 | M54: 0.05785837651 | O54: 45 | P54: 1.33 | Q54: 1.33 | R54: 4.739 | S54: 18.045 | T54: 19.89 | U54: 18.16 | V54: 1.13 | W54: 6.25 | X54: 2.38 | Y54: 2.12 | AA54: -0.009687267403 | AB54: -0.006482127528 | AC54: -0.007360329539 | AD54: -0.001681451975 | AE54: 0.001969592863 | AF54: 0.001197393871 | AG54: 0.003860420813 | AH54: -0.009620840814 | AI54: -0.003634284655 | AJ54: -0.005147762544
B55: 45 | D55: INVP | E55: BLT | F55: IMT | G55: OML | H55: KGF | I55: 0.01460957179 | J55: 0.1886670959 | K55: 0.1750881316 | L55: 0.2 | M55: 0.01877934272 | O55: 46 | P55: 1.34 | Q55: 1.34 | R55: 4.76 | S55: 18.475 | T55: 20.075 | U55: 18.46 | V55: 1.15 | W55: 6.28 | X55: 2.4 | Y55: 2.12 | AA55: 0.003253157398 | AB55: 0.003253157398 | AC55: 0.001920244021 | AD55: 0.01022756067 | AE55: 0.004020770826 | AF55: 0.007115852505 | AG55: 0.00761939687 | AH55: 0.002079626393 | AI55: 0.003634284655 | AJ55: 0.007868488635
B56: 46 | D56: INVP | E56: BLT | F56: IMT | G56: OML | H56: PRU | I56: 0.01460957179 | J56: 0.1886670959 | K56: 0.1750881316 | L56: 0.2 | M56: 0.1569767442 | O56: 47 | P56: 1.34 | Q56: 1.36 | R56: 4.683 | S56: 18.26 | T56: 19.915 | U56: 18.37 | V56: 1.13 | W56: 6.29 | X56: 2.39 | Y56: 2.12 | AA56: 0 | AB56: 0.006434110005 | AC56: -0.007082794938 | AD56: -0.005083673869 | AE56: -0.003475243205 | AF56: -0.002122540384 | AG56: -0.00761939687 | AH56: 0.0006910017081 | AI56: -0.001813340763 | AJ56: -0.002720726091
B57: 47 | D57: INVP | E57: BLT | F57: BATS | G57: KGF | H57: GSK | I57: 0.01460957179 | J57: 0.1886670959 | K57: 0.3627760252 | L57: 0.01877934272 | M57: 0.05785837651 | O57: 48 | P57: 1.35 | Q57: 1.38 | R57: 4.699 | S57: 18.25 | T57: 19.87 | U57: 18.38 | V57: 1.14 | W57: 6.23 | X57: 2.39 | Y57: 2.12 | AA57: 0.00322897013 | AB57: 0.006340178031 | AC57: 0.001481287241 | AD57: -0.0002379044058 | AE57: -0.0009824436355 | AF57: 0.0002363507443 | AG57: 0.003826407853 | AH57: -0.004162598786 | AI57: 0 | AJ57: -0.004113317081
B58: 48 | D58: INVP | E58: BLT | F58: BATS | G58: PRU | H58: GSK | I58: 0.01460957179 | J58: 0.1886670959 | K58: 0.3627760252 | L58: 0.1569767442 | M58: 0.05785837651 | O58: 49 | P58: 1.4 | Q58: 1.4 | R58: 4.666 | S58: 17.96 | T58: 19.695 | U58: 18.09 | V58: 1.1 | W58: 6.03 | X58: 2.34 | Y58: 2.12 | AA58: 0.01579426718 | AB58: 0.006248949277 | AC58: -0.003060710565 | AD58: -0.006956536461 | AE58: -0.003841881965 | AF58: -0.00690694019 | AG58: -0.01551216618 | AH58: -0.01417073452 | AI58: -0.009182043538 | AJ58: -0.00345777688
B59: 49 | D59: INVP | E59: BLT | F59: BATS | G59: PRU | H59: KGF | I59: 0.01460957179 | J59: 0.1886670959 | K59: 0.3627760252 | L59: 0.1569767442 | M59: 0.01877934272 | O59: 50 | P59: 1.38 | Q59: 1.35 | R59: 4.715 | S59: 18.32 | T59: 19.75 | U59: 18.17 | V59: 1.13 | W59: 6.34 | X59: 2.36 | Y59: 2.12 | AA59: -0.006248949277 | AB59: -0.01579426718 | AC59: 0.004536962616 | AD59: 0.008619137001 | AE59: 0.001211114817 | AF59: 0.001916360448 | AG59: 0.01168575833 | AH59: 0.02177194574 | AI59: 0.00369614556 | AJ59: -0.004887610064
B60: 50 | D60: INVP | E60: BLT | F60: BATS | G60: OML | H60: GSK | I60: 0.01460957179 | J60: 0.1886670959 | K60: 0.3627760252 | L60: 0.2 | M60: 0.05785837651 | O60: 51 | P60: 1.36 | Q60: 1.35 | R60: 4.593 | S60: 18.05 | T60: 19.795 | U60: 18.12 | V60: 1.1 | W60: 6.13 | X60: 2.31 | Y60: 2.12 | AA60: -0.006340178031 | AB60: 0 | AC60: -0.01138525166 | AD60: -0.00644826309 | AE60: 0.0009884061257 | AF60: -0.001196733967 | AG60: -0.01168575833 | AH60: -0.01462878336 | AI60: -0.009300023078 | AJ60: -0.00246458819
B61: 51 | D61: INVP | E61: BLT | F61: BATS | G61: OML | H61: KGF | I61: 0.01460957179 | J61: 0.1886670959 | K61: 0.3627760252 | L61: 0.2 | M61: 0.01877934272 | O61: 52 | P61: 1.38 | Q61: 1.34 | R61: 4.508 | S61: 17.82 | T61: 19.905 | U61: 18.27 | V61: 1.09 | W61: 6.11 | X61: 2.32 | Y61: 2.12 | AA61: 0.006340178031 | AB61: -0.00322897013 | AC61: -0.008112538044 | AD61: -0.005569506541 | AE61: 0.002406675832 | AF61: 0.003580354012 | AG61: -0.003966187218 | AH61: -0.001419264276 | AI61: 0.001876004999 | AJ61: 0.009430166247
B62: 52 | D62: INVP | E62: BLT | F62: BATS | G62: OML | H62: PRU | I62: 0.01460957179 | J62: 0.1886670959 | K62: 0.3627760252 | L62: 0.2 | M62: 0.1569767442 | O62: 53 | P62: 1.38 | Q62: 1.33 | R62: 4.328 | S62: 16.74 | T62: 19.57 | U62: 18.07 | V62: 1.05 | W62: 5.5 | X62: 2.23 | Y62: 2.12 | AA62: 0 | AB62: -0.003253157398 | AC62: -0.01769665528 | AD62: -0.02715224604 | AE62: -0.007371356262 | AF62: -0.004780394792 | AG62: -0.01623719887 | AH62: -0.04567852075 | AI62: -0.01718312184 | AJ62: -0.002077967993
B63: 53 | D63: INVP | E63: BLT | F63: BATS | G63: IMT | H63: GSK | I63: 0.01460957179 | J63: 0.1886670959 | K63: 0.3627760252 | L63: 0.1750881316 | M63: 0.05785837651 | O63: 54 | P63: 1.39 | Q63: 1.33 | R63: 4.392 | S63: 17.2 | T63: 19.39 | U63: 18.06 | V63: 1.1 | W63: 5.78 | X63: 2.24 | Y63: 2.12 | AA63: 0.003135713853 | AB63: 0 | AC63: 0.006375079344 | AD63: 0.01177299325 | AE63: -0.004013016579 | AF63: -0.0002404065834 | AG63: 0.02020338609 | AH63: 0.02156514893 | AI63: 0.001943155286 | AJ63: 0.001040226801
B64: 54 | D64: INVP | E64: BLT | F64: BATS | G64: IMT | H64: KGF | I64: 0.01460957179 | J64: 0.1886670959 | K64: 0.3627760252 | L64: 0.1750881316 | M64: 0.01877934272 | O64: 55 | P64: 1.35 | Q64: 1.31 | R64: 4.371 | S64: 16.435 | T64: 19.43 | U64: 18 | V64: 1.06 | W64: 5.57 | X64: 2.24 | Y64: 2.12 | AA64: -0.01268103176 | AB64: -0.006580345311 | AC64: -0.002081524952 | AD64: -0.01975873849 | AE64: 0.0008949915211 | AF64: -0.001445240874 | AG64: -0.01608681989 | AH64: -0.01607264325 | AI64: 0 | AJ64: -0.001387523487
B65: 55 | D65: INVP | E65: BLT | F65: BATS | G65: IMT | H65: PRU | I65: 0.01460957179 | J65: 0.1886670959 | K65: 0.3627760252 | L65: 0.1750881316 | M65: 0.1569767442 | O65: 56 | P65: 1.36 | Q65: 1.34 | R65: 4.341 | S65: 16.9 | T65: 19.365 | U65: 18 | V65: 1.1 | W65: 5.67 | X65: 2.23 | Y65: 2.12 | AA65: 0.003205139875 | AB65: 0.009833502709 | AC65: -0.002991020651 | AD65: 0.0121169962 | AE65: -0.001455299278 | AF65: 0 | AG65: 0.01608681989 | AH65: 0.007727863719 | AI65: -0.001943155286 | AJ65: -0.00104355953
B66: 56 | D66: INVP | E66: BLT | F66: BATS | G66: IMT | H66: OML | I66: 0.01460957179 | J66: 0.1886670959 | K66: 0.3627760252 | L66: 0.1750881316 | M66: 0.2 | O66: 57 | P66: 1.34 | Q66: 1.32 | R66: 4.229 | S66: 16.505 | T66: 19.135 | U66: 17.8 | V66: 1.06 | W66: 5.51 | X66: 2.24 | Y66: 2.12 | AA66: -0.006434110005 | AB66: -0.006530867159 | AC66: -0.01135210069 | AD66: -0.01027117595 | AE66: -0.005189034762 | AF66: -0.004852502794 | AG66: -0.01608681989 | AH66: -0.01243146004 | AI66: 0.001943155286 | AJ66: -0.006314570592
B67: 57 | D67: BT | E67: OML | F67: PRU | G67: KGF | H67: GSK | I67: 0.2686567164 | J67: 0.2 | K67: 0.1569767442 | L67: 0.01877934272 | M67: 0.05785837651 | O67: 58 | P67: 1.36 | Q67: 1.34 | R67: 4.327 | S67: 17.05 | T67: 19.17 | U67: 17.91 | V67: 1.11 | W67: 5.74 | X67: 2.32 | Y67: 2.12 | AA67: 0.006434110005 | AB67: 0.006530867159 | AC67: 0.009949210052 | AD67: 0.01410885466 | AE67: 0.0007936463175 | AF67: 0.00267558354 | AG67: 0.02001711352 | AH67: 0.01776029355 | AI67: 0.01523996656 | AJ67: -0.00248067698
B68: 58 | D68: BT | E68: IMT | F68: PRU | G68: KGF | H68: GSK | I68: 0.2686567164 | J68: 0.1750881316 | K68: 0.1569767442 | L68: 0.01877934272 | M68: 0.05785837651 | O68: 59 | P68: 1.37 | Q68: 1.37 | R68: 4.321 | S68: 17 | T68: 19.51 | U68: 18.14 | V68: 1.09 | W68: 5.73 | X68: 2.36 | Y68: 2.12 | AA68: 0.003181658786 | AB68: 0.009615768792 | AC68: -0.0006026288875 | AD68: -0.00127546195 | AE68: 0.007635156516 | AF68: 0.005541696875 | AG68: -0.007896480846 | AH68: -0.0007572704306 | AI68: 0.007424018079 | AJ68: -0.0007113752318
B69: 59 | D69: BT | E69: IMT | F69: OML | G69: KGF | H69: GSK | I69: 0.2686567164 | J69: 0.1750881316 | K69: 0.2 | L69: 0.01877934272 | M69: 0.05785837651 | O69: 60 | P69: 1.36 | Q69: 1.38 | R69: 4.379 | S69: 17.035 | T69: 19.59 | U69: 18.23 | V69: 1.06 | W69: 5.78 | X69: 2.35 | Y69: 2.12 | AA69: -0.003181658786 | AB69: 0.003158519245 | AC69: 0.005790678881 | AD69: 0.0008932165256 | AE69: 0.0017771666 | AF69: 0.002149385931 | AG69: -0.01212063268 | AH69: 0.003773216453 | AI69: -0.001844140698 | AJ69: -0.0003561250564
B70: 60 | D70: BT | E70: IMT | F70: OML | G70: PRU | H70: GSK | I70: 0.2686567164 | J70: 0.1750881316 | K70: 0.2 | L70: 0.1569767442 | M70: 0.05785837651 | O70: 61 | P70: 1.38 | Q70: 1.39 | R70: 4.464 | S70: 17.755 | T70: 19.63 | U70: 18.28 | V70: 1.1 | W70: 6.08 | X70: 2.4 | Y70: 2.12 | AA70: 0.006340178031 | AB70: 0.003135713853 | AC70: 0.008349240737 | AD70: 0.01797853873 | AE70: 0.0008858636053 | AF70: 0.001189522743 | AG70: 0.01608681989 | AH70: 0.02197574085 | AI70: 0.00914337944 | AJ70: 0.005311454079
B71: 61 | D71: BT | E71: IMT | F71: OML | G71: PRU | H71: KGF | I71: 0.2686567164 | J71: 0.1750881316 | K71: 0.2 | L71: 0.1569767442 | M71: 0.01877934272 | O71: 62 | P71: 1.36 | Q71: 1.39 | R71: 4.394 | S71: 17.7 | T71: 19.705 | U71: 18.7 | V71: 1.1 | W71: 5.94 | X71: 2.4 | Y71: 2.12 | AA71: -0.006340178031 | AB71: 0 | AC71: -0.006864133345 | AD71: -0.001347410276 | AE71: 0.001656139602 | AF71: 0.009865415139 | AG71: 0 | AH71: -0.01011713429 | AI71: 0 | AJ71: 0.001054539932
B72: 62 | D72: BT | E72: BATS | F72: PRU | G72: KGF | H72: GSK | I72: 0.2686567164 | J72: 0.3627760252 | K72: 0.1569767442 | L72: 0.01877934272 | M72: 0.05785837651 | O72: 63 | P72: 1.34 | Q72: 1.42 | R72: 4.559 | S72: 18.165 | T72: 19.855 | U72: 18.72 | V72: 1.13 | W72: 6.05 | X72: 2.4 | Y72: 2.12 | AA72: -0.006434110005 | AB72: 0.009273544129 | AC72: 0.01600953962 | AD72: 0.01126213584 | AE72: 0.003293452198 | AF72: 0.0004642378656 | AG72: 0.01168575833 | AH72: 0.007968929671 | AI72: 0 | AJ72: 0.003148342694
B73: 63 | D73: BT | E73: BATS | F73: OML | G73: KGF | H73: GSK | I73: 0.2686567164 | J73: 0.3627760252 | K73: 0.2 | L73: 0.01877934272 | M73: 0.05785837651 | O73: 64 | P73: 1.36 | Q73: 1.47 | R73: 4.549 | S73: 17.995 | T73: 19.995 | U73: 18.85 | V73: 1.13 | W73: 5.96 | X73: 2.47 | Y73: 2.12 | AA73: 0.006434110005 | AB73: 0.01502899037 | AC73: -0.000953655372 | AD73: -0.00408355121 | AE73: 0.00305151707 | AF73: 0.00300551014 | AG73: 0 | AH73: -0.006509114912 | AI73: 0.01248571155 | AJ73: 0.004507687785
B74: 64 | D74: BT | E74: BATS | F74: OML | G74: PRU | H74: GSK | I74: 0.2686567164 | J74: 0.3627760252 | K74: 0.2 | L74: 0.1569767442 | M74: 0.05785837651 | O74: 65 | P74: 1.37 | Q74: 1.47 | R74: 4.529 | S74: 18.18 | T74: 19.905 | U74: 18.98 | V74: 1.16 | W74: 6.09 | X74: 2.43 | Y74: 2.12 | AA74: 0.003181658786 | AB74: 0 | AC74: -0.001913616147 | AD74: 0.004442027897 | AE74: -0.001959226549 | AF74: 0.002984853549 | AG74: 0.01137954574 | AH74: 0.009371032893 | AI74: -0.007090679661 | AJ74: -0.002768420414
B75: 65 | D75: BT | E75: BATS | F75: OML | G75: PRU | H75: KGF | I75: 0.2686567164 | J75: 0.3627760252 | K75: 0.2 | L75: 0.1569767442 | M75: 0.01877934272 | O75: 66 | P75: 1.39 | Q75: 1.5 | R75: 4.568 | S75: 18.66 | T75: 19.87 | U75: 18.92 | V75: 1.18 | W75: 6.21 | X75: 2.46 | Y75: 2.12 | AA75: 0.006294233098 | AB75: 0.008773924308 | AC75: 0.003723774555 | AD75: 0.01131776052 | AE75: -0.0007643148103 | AF75: -0.001375076025 | AG75: 0.007424018079 | AH75: 0.008474307544 | AI75: 0.005328833505 | AJ75: 0
B76: 66 | D76: BT | E76: BATS | F76: IMT | G76: KGF | H76: GSK | I76: 0.2686567164 | J76: 0.3627760252 | K76: 0.1750881316 | L76: 0.01877934272 | M76: 0.05785837651 | O76: 67 | P76: 1.39 | Q76: 1.48 | R76: 4.49 | S76: 18.49 | T76: 19.75 | U76: 18.86 | V76: 1.17 | W76: 6.22 | X76: 2.41 | Y76: 2.12 | AA76: 0 | AB76: -0.005829543661 | AC76: -0.007479754234 | AD76: -0.003974728251 | AE76: -0.002630767147 | AF76: -0.001379443664 | AG76: -0.00369614556 | AH76: 0.0006987845142 | AI76: -0.008918064529 | AJ76: -0.001042724347
B77: 67 | D77: BT | E77: BATS | F77: IMT | G77: PRU | H77: GSK | I77: 0.2686567164 | J77: 0.3627760252 | K77: 0.1750881316 | L77: 0.1569767442 | M77: 0.05785837651 | O77: 68 | P77: 1.35 | Q77: 1.46 | R77: 4.491 | S77: 18.785 | T77: 19.49 | U77: 18.52 | V77: 1.17 | W77: 6.17 | X77: 2.44 | Y77: 2.12 | AA77: -0.01268103176 | AB77: -0.005908859611 | AC77: 9.671405939e-05 | AD77: 0.00687428824 | AE77: -0.005755260845 | AF77: -0.007900706055 | AG77: 0 | AH77: -0.003505220658 | AI77: 0.005372783764 | AJ77: -0.0003481318679
B78: 68 | D78: BT | E78: BATS | F78: IMT | G78: PRU | H78: KGF | I78: 0.2686567164 | J78: 0.3627760252 | K78: 0.1750881316 | L78: 0.1569767442 | M78: 0.01877934272 | O78: 69 | P78: 1.34 | Q78: 1.45 | R78: 4.4 | S78: 18.265 | T78: 19.29 | U78: 18.33 | V78: 1.16 | W78: 6.09 | X78: 2.42 | Y78: 2.12 | AA78: -0.00322897013 | AB78: -0.002984853549 | AC78: -0.008890378577 | AD78: -0.01219152285 | AE78: -0.004479611474 | AF78: -0.004478517384 | AG78: -0.003727872519 | AH78: -0.0056678714 | AI78: -0.003574460358 | AJ78: -0.002444768316
B79: 69 | D79: BT | E79: BATS | F79: IMT | G79: OML | H79: GSK | I79: 0.2686567164 | J79: 0.3627760252 | K79: 0.1750881316 | L79: 0.2 | M79: 0.05785837651 | O79: 70 | P79: 1.35 | Q79: 1.45 | R79: 4.388 | S79: 18.075 | T79: 19.15 | U79: 18.34 | V79: 1.18 | W79: 6.14 | X79: 2.38 | Y79: 2.12 | AA79: 0.00322897013 | AB79: 0 | AC79: -0.001186057584 | AD79: -0.004541370581 | AE79: -0.003163449339 | AF79: 0.0002368663718 | AG79: 0.007424018079 | AH79: 0.003551078508 | AI79: -0.007238408924 | AJ79: 0.004875851332
B80: 70 | D80: BT | E80: BATS | F80: IMT | G80: OML | H80: KGF | I80: 0.2686567164 | J80: 0.3627760252 | K80: 0.1750881316 | L80: 0.2 | M80: 0.01877934272 | O80: 71 | P80: 1.36 | Q80: 1.49 | R80: 4.475 | S80: 18.705 | T80: 19.32 | U80: 18.52 | V80: 1.21 | W80: 6.36 | X80: 2.44 | Y80: 2.12 | AA80: 0.003205139875 | AB80: 0.01181826618 | AC80: 0.008526420749 | AD80: 0.01487940657 | AE80: 0.003838343775 | AF80: 0.004241651012 | AG80: 0.01090336301 | AH80: 0.01528874451 | AI80: 0.01081286928 | AJ80: 0.008233317328
B81: 71 | D81: BT | E81: BATS | F81: IMT | G81: OML | H81: PRU | I81: 0.2686567164 | J81: 0.3627760252 | K81: 0.1750881316 | L81: 0.2 | M81: 0.1569767442 | O81: 72 | P81: 1.37 | Q81: 1.48 | R81: 4.472 | S81: 18.575 | T81: 19.16 | U81: 18.33 | V81: 1.19 | W81: 6.45 | X81: 2.42 | Y81: 2.12 | AA81: 0.003181658786 | AB81: -0.002924553017 | AC81: -0.0002912447736 | AD81: -0.003028890102 | AE81: -0.003611617337 | AF81: -0.004478517384 | AG81: -0.007238408924 | AH81: 0.006102598987 | AI81: -0.003574460358 | AJ81: -0.00204374251
B82: 72 | D82: BT | E82: BLT | F82: PRU | G82: KGF | H82: GSK | I82: 0.2686567164 | J82: 0.1886670959 | K82: 0.1569767442 | L82: 0.01877934272 | M82: 0.05785837651 | O82: 73 | P82: 1.39 | Q82: 1.48 | R82: 4.452 | S82: 19.15 | T82: 19.15 | U82: 18.22 | V82: 1.21 | W82: 6.5 | X82: 2.47 | Y82: 2.12 | AA82: 0.006294233098 | AB82: 0 | AC82: -0.001946639216 | AD82: 0.01323995587 | AE82: -0.0002267264379 | AF82: -0.002614092325 | AG82: 0.007238408924 | AH82: 0.003353642008 | AI82: 0.008881587279 | AJ82: 0.006102598987
B83: 73 | D83: BT | E83: BLT | F83: OML | G83: KGF | H83: GSK | I83: 0.2686567164 | J83: 0.1886670959 | K83: 0.2 | L83: 0.01877934272 | M83: 0.05785837651 | O83: 74 | P83: 1.38 | Q83: 1.45 | R83: 4.295 | S83: 18.345 | T83: 18.54 | U83: 17.67 | V83: 1.15 | W83: 6.21 | X83: 2.4 | Y83: 2.12 | AA83: -0.003135713853 | AB83: -0.00889371316 | AC83: -0.0155919875 | AD83: -0.01865106221 | AE83: -0.0140590485 | AF83: -0.01331182313 | AG83: -0.02208752996 | AH83: -0.01982175647 | AI83: -0.01248571155 | AJ83: -0.006102598987
B84: 74 | D84: BT | E84: BLT | F84: OML | G84: PRU | H84: GSK | I84: 0.2686567164 | J84: 0.1886670959 | K84: 0.2 | L84: 0.1569767442 | M84: 0.05785837651 | O84: 75 | P84: 1.38 | Q84: 1.45 | R84: 4.287 | S84: 18.64 | T84: 18.5 | U84: 17.76 | V84: 1.15 | W84: 6.39 | X84: 2.4 | Y84: 2.12 | AA84: 0 | AB84: 0 | AC84: -0.0008096846566 | AD84: 0.006928191926 | AE84: -0.0009380014055 | AF84: 0.002206411936 | AG84: 0 | AH84: 0.01240925798 | AI84: 0 | AJ84: 0.002383433166
B85: 75 | D85: BT | E85: BLT | F85: OML | G85: PRU | H85: KGF | I85: 0.2686567164 | J85: 0.1886670959 | K85: 0.2 | L85: 0.1569767442 | M85: 0.01877934272 | O85: 76 | P85: 1.37 | Q85: 1.4 | R85: 4.299 | S85: 18.575 | T85: 18.47 | U85: 17.68 | V85: 1.14 | W85: 6.25 | X85: 2.37 | Y85: 2.12 | AA85: -0.003158519245 | AB85: -0.01523996656 | AC85: 0.001213961606 | AD85: -0.001517085585 | AE85: -0.0007048329628 | AF85: -0.001960700766 | AG85: -0.003792989017 | AH85: -0.009620840814 | AI85: -0.005462895702 | AJ85: -0.007535266793
B86: 76 | D86: BT | E86: BLT | F86: IMT | G86: KGF | H86: GSK | I86: 0.2686567164 | J86: 0.1886670959 | K86: 0.1750881316 | L86: 0.01877934272 | M86: 0.05785837651 | O86: 77 | P86: 1.4 | Q86: 1.42 | R86: 4.466 | S86: 19.23 | T86: 19 | U86: 18.14 | V86: 1.16 | W86: 6.37 | X86: 2.4 | Y86: 2.12 | AA86: 0.009407468522 | AB86: 0.006160308705 | AC86: 0.01655127362 | AD86: 0.01505046181 | AE86: 0.01228670551 | AF86: 0.01115502205 | AG86: 0.00755313789 | AH86: 0.008259414991 | AI86: 0.005462895702 | AJ86: 0.007874691962
B87: 77 | D87: BT | E87: BLT | F87: IMT | G87: PRU | H87: GSK | I87: 0.2686567164 | J87: 0.1886670959 | K87: 0.1750881316 | L87: 0.1569767442 | M87: 0.05785837651 | O87: 78 | P87: 1.43 | Q87: 1.45 | R87: 4.383 | S87: 19.42 | T87: 19.055 | U87: 18.36 | V87: 1.14 | W87: 6.43 | X87: 2.36 | Y87: 2.12 | AA87: 0.009208001787 | AB87: 0.009079657852 | AC87: -0.008147248081 | AD87: 0.004269941334 | AE87: 0.001255352155 | AF87: 0.005235394141 | AG87: -0.00755313789 | AH87: 0.004071540589 | AI87: -0.007299238741 | AJ87: 0.0006780555349
B88: 78 | D88: BT | E88: BLT | F88: IMT | G88: PRU | H88: KGF | I88: 0.2686567164 | J88: 0.1886670959 | K88: 0.1750881316 | L88: 0.1569767442 | M88: 0.01877934272 | O88: 79 | P88: 1.4 | Q88: 1.43 | R88: 4.358 | S88: 19.315 | T88: 19.075 | U88: 18.57 | V88: 1.15 | W88: 6.5 | X88: 2.38 | Y88: 2.12 | AA88: -0.009208001787 | AB88: -0.00603196477 | AC88: -0.002484244744 | AD88: -0.002354513091 | AE88: 0.0004555935187 | AF88: 0.004939226875 | AG88: 0.003792989017 | AH88: 0.004702383719 | AI88: 0.003664954086 | AJ88: 0.0003386311921
B89: 79 | D89: BT | E89: BLT | F89: IMT | G89: OML | H89: GSK | I89: 0.2686567164 | J89: 0.1886670959 | K89: 0.1750881316 | L89: 0.2 | M89: 0.05785837651 | O89: 80 | P89: 1.42 | Q89: 1.42 | R89: 4.359 | S89: 18.905 | T89: 19.38 | U89: 18.84 | V89: 1.13 | W89: 6.42 | X89: 2.39 | Y89: 2.12 | AA89: 0.006160308705 | AB89: -0.003047693082 | AC89: 9.964310745e-05 | AD89: -0.009318030782 | AE89: 0.006889226088 | AF89: 0.006268994717 | AG89: -0.00761939687 | AH89: -0.005378328574 | AI89: 0.001820943892 | AJ89: 0.009707178665
B90: 80 | D90: BT | E90: BLT | F90: IMT | G90: OML | H90: KGF | I90: 0.2686567164 | J90: 0.1886670959 | K90: 0.1750881316 | L90: 0.2 | M90: 0.01877934272 | O90: 81 | P90: 1.41 | Q90: 1.42 | R90: 4.36 | S90: 19.105 | T90: 19.28 | U90: 18.9 | V90: 1.13 | W90: 6.39 | X90: 2.37 | Y90: 2.12 | AA90: -0.003069231728 | AB90: 0 | AC90: 9.96202509e-05 | AD90: 0.004570360326 | AE90: -0.002246743148 | AF90: 0.001380905716 | AG90: 0 | AH90: -0.00203416991 | AI90: -0.003649554938 | AJ90: -0.002656243644
B91: 81 | D91: BT | E91: BLT | F91: IMT | G91: OML | H91: PRU | I91: 0.2686567164 | J91: 0.1886670959 | K91: 0.1750881316 | L91: 0.2 | M91: 0.1569767442 | O91: 82 | P91: 1.4 | Q91: 1.4 | R91: 4.278 | S91: 18.565 | T91: 19.17 | U91: 18.73 | V91: 1.1 | W91: 6.2 | X91: 2.34 | Y91: 2.12 | AA91: -0.003091076977 | AB91: -0.006160308705 | AC91: -0.008245709033 | AD91: -0.01245208846 | AE91: -0.002484916689 | AF91: -0.003924026798 | AG91: -0.01168575833 | AH91: -0.01310916866 | AI91: -0.0055324886 | AJ91: -0.003679066516
B92: 82 | D92: BT | E92: BLT | F92: BATS | G92: KGF | H92: GSK | I92: 0.2686567164 | J92: 0.1886670959 | K92: 0.3627760252 | L92: 0.01877934272 | M92: 0.05785837651 | O92: 83 | P92: 1.4 | Q92: 1.4 | R92: 4.132 | S92: 18.505 | T92: 19.22 | U92: 18.87 | V92: 1.04 | W92: 6.08 | X92: 2.3 | Y92: 2.12 | AA92: 0 | AB92: 0 | AC92: -0.01508046739 | AD92: -0.001405864131 | AE92: 0.001131270454 | AF92: 0.00323412279 | AG92: -0.02435934586 | AH92: -0.008488110226 | AI92: -0.007488021393 | AJ92: -0.004388555233
B93: 83 | D93: BT | E93: BLT | F93: BATS | G93: PRU | H93: GSK | I93: 0.2686567164 | J93: 0.1886670959 | K93: 0.3627760252 | L93: 0.1569767442 | M93: 0.05785837651 | O93: 84 | P93: 1.41 | Q93: 1.43 | R93: 4.177 | S93: 18.5 | T93: 19.4 | U93: 18.82 | V93: 1.06 | W93: 6.09 | X93: 2.34 | Y93: 2.12 | AA93: 0.003091076977 | AB93: 0.009208001787 | AC93: 0.004704162418 | AD93: -0.0001173610281 | AE93: 0.004048346598 | AF93: -0.001152281074 | AG93: 0.008272525966 | AH93: 0.0007137133601 | AI93: 0.007488021393 | AJ93: 0.006064722816
B94: 84 | D94: BT | E94: BLT | F94: BATS | G94: PRU | H94: KGF | I94: 0.2686567164 | J94: 0.1886670959 | K94: 0.3627760252 | L94: 0.1569767442 | M94: 0.01877934272 | O94: 85 | P94: 1.42 | Q94: 1.42 | R94: 4.217 | S94: 18.75 | T94: 19.585 | U94: 19.01 | V94: 1.06 | W94: 6.03 | X94: 2.35 | Y94: 2.12 | AA94: 0.003069231728 | AB94: -0.003047693082 | AC94: 0.00413912575 | AD94: 0.005829543661 | AE94: 0.004121845954 | AF94: 0.004362497774 | AG94: 0 | AH94: -0.004299980493 | AI94: 0.001852004862 | AJ94: 0.001669723248
B95: 85 | D95: BT | E95: BLT | F95: BATS | G95: OML | H95: GSK | I95: 0.2686567164 | J95: 0.1886670959 | K95: 0.3627760252 | L95: 0.2 | M95: 0.05785837651 | O95: 86 | P95: 1.42 | Q95: 1.43 | R95: 4.302 | S95: 19.06 | T95: 19.61 | U95: 19.07 | V95: 1.07 | W95: 6.12 | X95: 2.34 | Y95: 2.12 | AA95: 0 | AB95: 0.003047693082 | AC95: 0.008666805037 | AD95: 0.007121624239 | AE95: 0.0005540177839 | AF95: 0.001368576181 | AG95: 0.00407791242 | AH95: 0.006434110005 | AI95: -0.001852004862 | AJ95: 0.006943569391
B96: 86 | D96: BT | E96: BLT | F96: BATS | G96: OML | H96: KGF | I96: 0.2686567164 | J96: 0.1886670959 | K96: 0.3627760252 | L96: 0.2 | M96: 0.01877934272 | O96: 87 | P96: 1.41 | Q96: 1.41 | R96: 4.279 | S96: 19.015 | T96: 19.49 | U96: 19.13 | V96: 1.07 | W96: 6.09 | X96: 2.33 | Y96: 2.12 | AA96: -0.003069231728 | AB96: -0.00611692481 | AC96: -0.002328119568 | AD96: -0.001026566555 | AE96: -0.00266575455 | AF96: 0.001364276981 | AG96: 0 | AH96: -0.002134129513 | AI96: -0.001859936384 | AJ96: -0.003623259014
B97: 87 | D97: BT | E97: BLT | F97: BATS | G97: OML | H97: PRU | I97: 0.2686567164 | J97: 0.1886670959 | K97: 0.3627760252 | L97: 0.2 | M97: 0.1569767442 | O97: 88 | P97: 1.42 | Q97: 1.43 | R97: 4.221 | S97: 19.025 | T97: 19.4 | U97: 18.94 | V97: 1.08 | W97: 6.26 | X97: 2.33 | Y97: 2.12 | AA97: 0.003069231728 | AB97: 0.00611692481 | AC97: -0.00592693433 | AD97: 0.000228335695 | AE97: -0.002010109187 | AF97: -0.00433499536 | AG97: 0.004039977802 | AH97: 0.01195704058 | AI97: 0 | AJ97: 0.001980069457
B98: 88 | D98: BT | E98: BLT | F98: BATS | G98: IMT | H98: GSK | I98: 0.2686567164 | J98: 0.1886670959 | K98: 0.3627760252 | L98: 0.1750881316 | M98: 0.05785837651 | O98: 89 | P98: 1.4 | Q98: 1.41 | R98: 4.288 | S98: 18.63 | T98: 19.26 | U98: 18.8 | V98: 1.05 | W98: 6.11 | X98: 2.27 | Y98: 2.12 | AA98: -0.006160308705 | AB98: -0.00611692481 | AC98: 0.00683942453 | AD98: -0.009111810546 | AE98: -0.003145447142 | AF98: -0.003222125404 | AG98: -0.01223445642 | AH98: -0.01053312297 | AI98: -0.01133006383 | AJ98: -0.007304819462
B99: 89 | D99: BT | E99: BLT | F99: BATS | G99: IMT | H99: KGF | I99: 0.2686567164 | J99: 0.1886670959 | K99: 0.3627760252 | L99: 0.1750881316 | M99: 0.01877934272 | O99: 90 | P99: 1.4 | Q99: 1.38 | R99: 4.179 | S99: 18.83 | T99: 19.375 | U99: 18.71 | V99: 1.03 | W99: 5.98 | X99: 2.21 | Y99: 2.12 | AA99: 0 | AB99: -0.009340026254 | AC99: -0.01118240554 | AD99: 0.00463746512 | AE99: 0.00258542839 | AF99: -0.002084061764 | AG99: -0.008352074365 | AH99: -0.009340026254 | AI99: -0.01163358351 | AJ99: -0.0003349745495
B100: 90 | D100: BT | E100: BLT | F100: BATS | G100: IMT | H100: PRU | I100: 0.2686567164 | J100: 0.1886670959 | K100: 0.3627760252 | L100: 0.1750881316 | M100: 0.1569767442 | O100: 91 | P100: 1.42 | Q100: 1.41 | R100: 4.234 | S100: 19.09 | T100: 19.495 | U100: 19.1 | V100: 1.07 | W100: 6.25 | X100: 2.22 | Y100: 2.12 | AA100: 0.006160308705 | AB100: 0.009340026254 | AC100: 0.00567848254 | AD100: 0.005955608377 | AE100: 0.002681528346 | AF100: 0.008959579748 | AG100: 0.01654655298 | AH100: 0.01917883336 | AI100: 0.001960700766 | AJ100: 0.001672295027
B101: 91 | D101: BT | E101: BLT | F101: BATS | G101: IMT | H101: OML | I101: 0.2686567164 | J101: 0.1886670959 | K101: 0.3627760252 | L101: 0.1750881316 | M101: 0.2 | O101: 92 | P101: 1.42 | Q101: 1.42 | R101: 4.268 | S101: 19.05 | T101: 19.67 | U101: 19.44 | V101: 1.07 | W101: 6.28 | X101: 2.23 | Y101: 2.12 | AA101: 0 | AB101: 0.003069231728 | AC101: 0.003473557069 | AD101: -0.000910948382 | AE101: 0.003881120395 | AF101: 0.007662893343 | AG101: 0 | AH101: 0.002079626393 | AI101: 0.001951888598 | AJ101: 0.008266227507
B102: 92 | D102: BT | E102: INVP | F102: PRU | G102: KGF | H102: GSK | I102: 0.2686567164 | J102: 0.01460957179 | K102: 0.1569767442 | L102: 0.01877934272 | M102: 0.05785837651 | O102: 93 | P102: 1.43 | Q102: 1.38 | R102: 4.27 | S102: 19.45 | T102: 20.275 | U102: 19.47 | V102: 1.06 | W102: 6.33 | X102: 2.22 | Y102: 2.12 | AA102: 0.003047693082 | AB102: -0.01240925798 | AC102: 0.0002034642726 | AD102: 0.00902462565 | AE102: 0.01315650296 | AF102: 0.0006696909298 | AG102: -0.00407791242 | AH102: 0.00344406628 | AI102: -0.001951888598 | AJ102: -0.001969592863
B103: 93 | D103: BT | E103: INVP | F103: OML | G103: KGF | H103: GSK | I103: 0.2686567164 | J103: 0.01460957179 | K103: 0.2 | L103: 0.01877934272 | M103: 0.05785837651 | O103: 94 | P103: 1.42 | Q103: 1.37 | R103: 4.317 | S103: 19.7 | T103: 20.325 | U103: 19.49 | V103: 1.08 | W103: 6.31 | X103: 2.25 | Y103: 2.12 | AA103: -0.003047693082 | AB103: -0.003158519245 | AC103: 0.004754173631 | AD103: 0.0055466205 | AE103: 0.001069691383 | AF103: 0.0004458875976 | AG103: 0.008117890222 | AH103: -0.001374350773 | AI103: 0.005829543661 | AJ103: 0.003604124269
B104: 94 | D104: BT | E104: INVP | F104: OML | G104: PRU | H104: GSK | I104: 0.2686567164 | J104: 0.01460957179 | K104: 0.2 | L104: 0.1569767442 | M104: 0.05785837651 | O104: 95 | P104: 1.44 | Q104: 1.38 | R104: 4.322 | S104: 20.125 | T104: 20.175 | U104: 19.61 | V104: 1.11 | W104: 6.4 | X104: 2.29 | Y104: 2.12 | AA104: 0.006074147712 | AB104: 0.003158519245 | AC104: 0.000502713891 | AD104: 0.009269662878 | AE104: -0.003217010872 | AF104: 0.00266575455 | AG104: 0.0118992233 | AH104: 0.00615061474 | AI104: 0.007652964229 | AJ104: 0.0009777741059
B105: 95 | D105: BT | E105: INVP | F105: OML | G105: PRU | H105: KGF | I105: 0.2686567164 | J105: 0.01460957179 | K105: 0.2 | L105: 0.1569767442 | M105: 0.01877934272 | O105: 96 | P105: 1.43 | Q105: 1.37 | R105: 4.277 | S105: 19.945 | T105: 20.215 | U105: 19.62 | V105: 1.09 | W105: 6.3 | X105: 2.29 | Y105: 2.12 | AA105: -0.00302645463 | AB105: -0.003158519245 | AC105: -0.00454551229 | AD105: -0.003901848394 | AE105: 0.0008602022756 | AF105: 0.0002214093761 | AG105: -0.007896480846 | AH105: -0.00683942453 | AI105: 0 | AJ105: -0.004253011966
B106: 96 | D106: BT | E106: INVP | F106: IMT | G106: KGF | H106: GSK | I106: 0.2686567164 | J106: 0.01460957179 | K106: 0.1750881316 | L106: 0.01877934272 | M106: 0.05785837651 | O106: 97 | P106: 1.44 | Q106: 1.35 | R106: 4.251 | S106: 19.95 | T106: 20.165 | U106: 19.6 | V106: 1.09 | W106: 6.4 | X106: 2.29 | Y106: 2.12 | AA106: 0.00302645463 | AB106: -0.006386798661 | AC106: -0.00264814529 | AD106: 0.0001088593769 | AE106: -0.001075519326 | AF106: -0.0004429316875 | AG106: 0 | AH106: 0.00683942453 | AI106: 0 | AJ106: -0.0003288864087
B107: 97 | D107: BT | E107: INVP | F107: IMT | G107: PRU | H107: GSK | I107: 0.2686567164 | J107: 0.01460957179 | K107: 0.1750881316 | L107: 0.1569767442 | M107: 0.05785837651 | O107: 98 | P107: 1.43 | Q107: 1.39 | R107: 4.391 | S107: 20.64 | T107: 20.32 | U107: 19.35 | V107: 1.11 | W107: 6.4 | X107: 2.36 | Y107: 2.12 | AA107: -0.00302645463 | AB107: 0.01268103176 | AC107: 0.01407233214 | AD107: 0.01476679293 | AE107: 0.003325477268 | AF107: -0.005575102002 | AG107: 0.007896480846 | AH107: 0 | AI107: 0.01307652063 | AJ107: 0.006530867159
B108: 98 | D108: BT | E108: INVP | F108: IMT | G108: PRU | H108: KGF | I108: 0.2686567164 | J108: 0.01460957179 | K108: 0.1750881316 | L108: 0.1569767442 | M108: 0.01877934272 | O108: 99 | P108: 1.43 | Q108: 1.42 | R108: 4.509 | S108: 20.8 | T108: 20.2 | U108: 19.25 | V108: 1.14 | W108: 6.42 | X108: 2.33 | Y108: 2.12 | AA108: 0 | AB108: 0.009273544129 | AC108: 0.0115167982 | AD108: 0.003353642008 | AE108: -0.002572334165 | AF108: -0.00225023551 | AG108: 0.01158187255 | AH108: 0.001355054085 | AI108: -0.005556081944 | AJ108: -0.01082921078
B109: 99 | D109: BT | E109: INVP | F109: IMT | G109: OML | H109: GSK | I109: 0.2686567164 | J109: 0.01460957179 | K109: 0.1750881316 | L109: 0.2 | M109: 0.05785837651 | O109: 100 | P109: 1.43 | Q109: 1.45 | R109: 4.506 | S109: 21 | T109: 20.32 | U109: 19.35 | V109: 1.14 | W109: 6.46 | X109: 2.3 | Y109: 2.12 | AA109: 0 | AB109: 0.009079657852 | AC109: -0.0002890479188 | AD109: 0.004155959771 | AE109: 0.002572334165 | AF109: 0.00225023551 | AG109: 0 | AH109: 0.002697489926 | AI109: -0.005628085008 | AJ109: -0.003670586046
B110: 100 | D110: BT | E110: INVP | F110: IMT | G110: OML | H110: KGF | I110: 0.2686567164 | J110: 0.01460957179 | K110: 0.1750881316 | L110: 0.2 | M110: 0.01877934272 | O110: 101 | P110: 1.39 | Q110: 1.43 | R110: 4.601 | S110: 20.91 | T110: 20.445 | U110: 19.5 | V110: 1.13 | W110: 6.29 | X110: 2.3 | Y110: 2.12 | AA110: -0.01232123721 | AB110: -0.00603196477 | AC110: 0.009061045877 | AD110: -0.001865261916 | AE110: 0.002663411278 | AF110: 0.003353642008 | AG110: -0.003826407853 | AH110: -0.01158187255 | AI110: 0 | AJ110: -0.0006707252019
B111: 101 | D111: BT | E111: INVP | F111: IMT | G111: OML | H111: PRU | I111: 0.2686567164 | J111: 0.01460957179 | K111: 0.1750881316 | L111: 0.2 | M111: 0.1569767442 | O111: 102 | P111: 1.37 | Q111: 1.43 | R111: 4.626 | S111: 21.155 | T111: 20.35 | U111: 19.5 | V111: 1.13 | W111: 6.38 | X111: 2.26 | Y111: 2.12 | AA111: -0.006294233098 | AB111: 0 | AC111: 0.00235339517 | AD111: 0.00505899685 | AE111: -0.002022701329 | AF111: 0 | AG111: 0 | AH111: 0.006170033276 | AI111: -0.00761939687 | AJ111: -0.004385146588
B112: 102 | D112: BT | E112: INVP | F112: BATS | G112: KGF | H112: GSK | I112: 0.2686567164 | J112: 0.01460957179 | K112: 0.3627760252 | L112: 0.01877934272 | M112: 0.05785837651 | O112: 103 | P112: 1.38 | Q112: 1.43 | R112: 4.548 | S112: 21.045 | T112: 20.225 | U112: 19.38 | V112: 1.12 | W112: 6.26 | X112: 2.31 | Y112: 2.12 | AA112: 0.003158519245 | AB112: 0 | AC112: -0.007385172419 | AD112: -0.002264099583 | AE112: -0.002675883277 | AF112: -0.002680838648 | AG112: -0.003860420813 | AH112: -0.008246345511 | AI112: 0.009503540745 | AJ112: 0.002366733279
B113: 103 | D113: BT | E113: INVP | F113: BATS | G113: PRU | H113: GSK | I113: 0.2686567164 | J113: 0.01460957179 | K113: 0.3627760252 | L113: 0.1569767442 | M113: 0.05785837651 | O113: 104 | P113: 1.38 | Q113: 1.44 | R113: 4.473 | S113: 20.56 | T113: 20.25 | U113: 19.52 | V113: 1.11 | W113: 6.29 | X113: 2.31 | Y113: 2.12 | AA113: 0 | AB113: 0.00302645463 | AC113: -0.007221557843 | AD113: -0.01012581976 | AE113: 0.0005364972664 | AF113: 0.003126040616 | AG113: -0.003895043884 | AH113: 0.002076312235 | AI113: 0 | AJ113: 0.0006738472755
B114: 104 | D114: BT | E114: INVP | F114: BATS | G114: PRU | H114: KGF | I114: 0.2686567164 | J114: 0.01460957179 | K114: 0.3627760252 | L114: 0.1569767442 | M114: 0.01877934272 | O114: 105 | P114: 1.38 | Q114: 1.47 | R114: 4.47 | S114: 20.425 | T114: 20.23 | U114: 19.48 | V114: 1.1 | W114: 6.24 | X114: 2.31 | Y114: 2.12 | AA114: 0 | AB114: 0.008954842653 | AC114: -0.0002913750407 | AD114: -0.002861045119 | AE114: -0.0004291447799 | AF114: -0.0008908607881 | AG114: -0.003930293628 | AH114: -0.003466055763 | AI114: 0 | AJ114: -0.005079525529
B115: 105 | D115: BT | E115: INVP | F115: BATS | G115: OML | H115: GSK | I115: 0.2686567164 | J115: 0.01460957179 | K115: 0.3627760252 | L115: 0.2 | M115: 0.05785837651 | O115: 106 | P115: 1.37 | Q115: 1.47 | R115: 4.534 | S115: 20.66 | T115: 20.22 | U115: 19.59 | V115: 1.13 | W115: 6.21 | X115: 2.27 | Y115: 2.12 | AA115: -0.003158519245 | AB115: 0 | AC115: 0.006173992659 | AD115: 0.004968251979 | AE115: -0.0002147315158 | AF115: 0.002445483452 | AG115: 0.01168575833 | AH115: -0.002092989506 | AI115: -0.007586122699 | AJ115: 0.002716471605
B116: 106 | D116: BT | E116: INVP | F116: BATS | G116: OML | H116: KGF | I116: 0.2686567164 | J116: 0.01460957179 | K116: 0.3627760252 | L116: 0.2 | M116: 0.01877934272 | O116: 107 | P116: 1.35 | Q116: 1.45 | R116: 4.449 | S116: 20.445 | T116: 20.47 | U116: 20 | V116: 1.09 | W116: 6.1 | X116: 2.26 | Y116: 2.12 | AA116: -0.006386798661 | AB116: -0.005949332513 | AC116: -0.008219110042 | AD116: -0.004543202293 | AE116: 0.005336691408 | AF116: 0.008995559669 | AG116: -0.01565194554 | AH116: -0.007761765166 | AI116: -0.001917418046 | AJ116: -0.01131664337
B117: 107 | D117: BT | E117: INVP | F117: BATS | G117: OML | H117: PRU | I117: 0.2686567164 | J117: 0.01460957179 | K117: 0.3627760252 | L117: 0.2 | M117: 0.1569767442 | O117: 108 | P117: 1.36 | Q117: 1.47 | R117: 4.455 | S117: 20.745 | T117: 20.67 | U117: 20.39 | V117: 1.09 | W117: 6.15 | X117: 2.28 | Y117: 2.12 | AA117: 0.003205139875 | AB117: 0.005949332513 | AC117: 0.0005853026248 | AD117: 0.006326324275 | AE117: 0.004222633965 | AF117: 0.008387230114 | AG117: 0 | AH117: 0.003545280765 | AI117: 0.003826407853 | AJ117: 0.00346053211
B118: 108 | D118: BT | E118: INVP | F118: BATS | G118: IMT | H118: GSK | I118: 0.2686567164 | J118: 0.01460957179 | K118: 0.3627760252 | L118: 0.1750881316 | M118: 0.05785837651 | O118: 109 | P118: 1.37 | Q118: 1.46 | R118: 4.454 | S118: 20.8 | T118: 20.85 | U118: 20.65 | V118: 1.08 | W118: 6.13 | X118: 2.28 | Y118: 2.12 | AA118: 0.003181658786 | AB118: -0.002964478964 | AC118: -9.749567487e-05 | AD118: 0.001149895798 | AE118: 0.003765582682 | AF118: 0.005502830214 | AG118: -0.004002742454 | AH118: -0.001414641257 | AI118: 0 | AJ118: 0.00853258255
B119: 109 | D119: BT | E119: INVP | F119: BATS | G119: IMT | H119: KGF | I119: 0.2686567164 | J119: 0.01460957179 | K119: 0.3627760252 | L119: 0.1750881316 | M119: 0.01877934272 | O119: 110 | P119: 1.36 | Q119: 1.45 | R119: 4.405 | S119: 20.05 | T119: 20.8 | U119: 19.95 | V119: 1.07 | W119: 6.07 | X119: 2.26 | Y119: 2.12 | AA119: -0.003181658786 | AB119: -0.002984853549 | AC119: -0.00480429995 | AD119: -0.01594895801 | AE119: -0.001042724347 | AF119: -0.01497715597 | AG119: -0.004039977802 | AH119: -0.004271783443 | AI119: -0.003826407853 | AJ119: -0.0003381039345
B120: 110 | D120: BT | E120: INVP | F120: BATS | G120: IMT | H120: PRU | I120: 0.2686567164 | J120: 0.01460957179 | K120: 0.3627760252 | L120: 0.1750881316 | M120: 0.1569767442 | O120: 111 | P120: 1.35 | Q120: 1.43 | R120: 4.412 | S120: 19.425 | T120: 20.63 | U120: 20.07 | V120: 1.04 | W120: 6.08 | X120: 2.23 | Y120: 2.12 | AA120: -0.003205139875 | AB120: -0.00603196477 | AC120: 0.0006895910201 | AD120: -0.01375334948 | AE120: -0.00356410699 | AF120: 0.002604472465 | AG120: -0.01235043839 | AH120: 0.0007148881975 | AI120: -0.005803576099 | AJ120: -0.00067699855
B121: 111 | D121: BT | E121: INVP | F121: BATS | G121: IMT | H121: OML | I121: 0.2686567164 | J121: 0.01460957179 | K121: 0.3627760252 | L121: 0.1750881316 | M121: 0.2 | O121: 112 | P121: 1.36 | Q121: 1.43 | R121: 4.337 | S121: 19.345 | T121: 20.535 | U121: 20.08 | V121: 1.03 | W121: 6.05 | X121: 2.23 | Y121: 2.12 | AA121: 0.003205139875 | AB121: 0 | AC121: -0.007446081619 | AD121: -0.001792293416 | AE121: -0.002004520783 | AF121: 0.0002163359855 | AG121: -0.004196114594 | AH121: -0.00214820462 | AI121: 0 | AJ121: -0.004084304227
B122: 112 | D122: BT | E122: INVP | F122: BLT | G122: KGF | H122: GSK | I122: 0.2686567164 | J122: 0.01460957179 | K122: 0.1886670959 | L122: 0.01877934272 | M122: 0.05785837651 | O122: 113 | P122: 1.34 | Q122: 1.39 | R122: 4.242 | S122: 19.145 | T122: 20.26 | U122: 19.91 | V122: 1.04 | W122: 6.04 | X122: 2.21 | Y122: 2.12 | AA122: -0.006434110005 | AB122: -0.01232123721 | AC122: -0.009618757968 | AD122: -0.004513363374 | AE122: -0.005855266165 | AF122: -0.003692448446 | AG122: 0.004196114594 | AH122: -0.0007184360313 | AI122: -0.003912589363 | AJ122: -0.008983340601
B123: 113 | D123: BT | E123: INVP | F123: BLT | G123: PRU | H123: GSK | I123: 0.2686567164 | J123: 0.01460957179 | K123: 0.1886670959 | L123: 0.1569767442 | M123: 0.05785837651 | O123: 114 | P123: 1.35 | Q123: 1.4 | R123: 4.273 | S123: 18.96 | T123: 20.45 | U123: 20.3 | V123: 1.04 | W123: 6.01 | X123: 2.18 | Y123: 2.12 | AA123: 0.00322897013 | AB123: 0.003113235424 | AC123: 0.003162228637 | AD123: -0.004217037682 | AE123: 0.004053871319 | AF123: 0.008424777886 | AG123: 0 | AH123: -0.002162466618 | AI123: -0.005935780081 | AJ123: 0.006582970201
B124: 114 | D124: BT | E124: INVP | F124: BLT | G124: PRU | H124: KGF | I124: 0.2686567164 | J124: 0.01460957179 | K124: 0.1886670959 | L124: 0.1569767442 | M124: 0.01877934272 | O124: 115 | P124: 1.35 | Q124: 1.38 | R124: 4.214 | S124: 18.88 | T124: 20.7 | U124: 20.4 | V124: 1.02 | W124: 5.91 | X124: 2.15 | Y124: 2.12 | AA124: 0 | AB124: -0.006248949277 | AC124: -0.006038361545 | AD124: -0.00183634304 | AE124: 0.005277033114 | AF124: 0.002134129513 | AG124: -0.008433167537 | AH124: -0.007286991121 | AI124: -0.006018033689 | AJ124: -0.005188765209
B125: 115 | D125: BT | E125: INVP | F125: BLT | G125: OML | H125: GSK | I125: 0.2686567164 | J125: 0.01460957179 | K125: 0.1886670959 | L125: 0.2 | M125: 0.05785837651 | O125: 116 | P125: 1.33 | Q125: 1.37 | R125: 4.186 | S125: 18.425 | T125: 20.465 | U125: 20.05 | V125: 1.02 | W125: 5.88 | X125: 2.11 | Y125: 2.12 | AA125: -0.006482127528 | AB125: -0.003158519245 | AC125: -0.002895307269 | AD125: -0.01059449343 | AE125: -0.004958596476 | AF125: -0.00751579047 | AG125: 0 | AH125: -0.002210154805 | AI125: -0.008156004618 | AJ125: -0.007016218541
B126: 116 | D126: BT | E126: INVP | F126: BLT | G126: OML | H126: KGF | I126: 0.2686567164 | J126: 0.01460957179 | K126: 0.1886670959 | L126: 0.2 | M126: 0.01877934272 | O126: 117 | P126: 1.35 | Q126: 1.38 | R126: 4.263 | S126: 18.66 | T126: 20.705 | U126: 20.26 | V126: 1.04 | W126: 5.78 | X126: 2.12 | Y126: 2.12 | AA126: 0.006482127528 | AB126: 0.003158519245 | AC126: 0.007916108644 | AD126: 0.005504142879 | AE126: 0.005063485857 | AF126: 0.004525064068 | AG126: 0.008433167537 | AH126: -0.007449487656 | AI126: 0.002053405631 | AJ126: -0.004264791868
B127: 117 | D127: BT | E127: INVP | F127: BLT | G127: OML | H127: PRU | I127: 0.2686567164 | J127: 0.01460957179 | K127: 0.1886670959 | L127: 0.2 | M127: 0.1569767442 | O127: 118 | P127: 1.36 | Q127: 1.37 | R127: 4.401 | S127: 18.96 | T127: 20.66 | U127: 20.02 | V127: 1.04 | W127: 5.87 | X127: 2.17 | Y127: 2.12 | AA127: 0.003205139875 | AB127: -0.003158519245 | AC127: 0.01383603592 | AD127: 0.006926693592 | AE127: -0.0009449176548 | AF127: -0.005175367881 | AG127: 0 | AH127: 0.006710262827 | AI127: 0.01012387292 | AJ127: -0.001789431794
B128: 118 | D128: BT | E128: INVP | F128: BLT | G128: IMT | H128: GSK | I128: 0.2686567164 | J128: 0.01460957179 | K128: 0.1886670959 | L128: 0.1750881316 | M128: 0.05785837651 | O128: 119 | P128: 1.35 | Q128: 1.37 | R128: 4.489 | S128: 19.47 | T128: 20.78 | U128: 20.38 | V128: 1.06 | W128: 5.93 | X128: 2.15 | Y128: 2.12 | AA128: -0.003205139875 | AB128: 0 | AC128: 0.008598236839 | AD128: 0.01152761852 | AE128: 0.002515226038 | AF128: 0.007740106527 | AG128: 0.008272525966 | AH128: 0.004416592117 | AI128: -0.004021273933 | AJ128: 0.004991945557
B129: 119 | D129: BT | E129: INVP | F129: BLT | G129: IMT | H129: KGF | I129: 0.2686567164 | J129: 0.01460957179 | K129: 0.1886670959 | L129: 0.1750881316 | M129: 0.01877934272 | O129: 120 | P129: 1.35 | Q129: 1.33 | R129: 4.436 | S129: 19.315 | T129: 20.845 | U129: 20.68 | V129: 1.05 | W129: 6.09 | X129: 2.11 | Y129: 2.12 | AA129: 0 | AB129: -0.01286892619 | AC129: -0.005158067925 | AD129: -0.003471239039 | AE129: 0.001356356241 | AF129: 0.006346354751 | AG129: -0.004116566195 | AH129: 0.01156259927 | AI129: -0.008156004618 | AJ129: -0.00284551047
B130: 120 | D130: BT | E130: INVP | F130: BLT | G130: IMT | H130: PRU | I130: 0.2686567164 | J130: 0.01460957179 | K130: 0.1886670959 | L130: 0.1750881316 | M130: 0.1569767442 | O130: 121 | P130: 1.39 | Q130: 1.32 | R130: 4.338 | S130: 18.535 | T130: 20.715 | U130: 20.55 | V130: 1.01 | W130: 5.95 | X130: 2.06 | Y130: 2.12 | AA130: 0.01268103176 | AB130: -0.003277709761 | AC130: -0.009701989799 | AD130: -0.01790212212 | AE130: -0.002716961828 | AF130: -0.00273870821 | AG130: -0.01686792529 | AH130: -0.0101003269 | AI130: -0.01041523493 | AJ130: 0.003199891952
B131: 121 | D131: BT | E131: INVP | F131: BLT | G131: IMT | H131: OML | I131: 0.2686567164 | J131: 0.01460957179 | K131: 0.1886670959 | L131: 0.1750881316 | M131: 0.2 | O131: 122 | P131: 1.39 | Q131: 1.29 | R131: 4.179 | S131: 18.245 | T131: 20.54 | U131: 20.26 | V131: 0.97 | W131: 5.75 | X131: 2.01 | Y131: 2.12 | AA131: 0 | AB131: -0.009984220907 | AC131: -0.01621717653 | AD131: -0.006848722665 | AE131: -0.003684498373 | AF131: -0.006172385188 | AG131: -0.01754963952 | AH131: -0.01484912104 | AI131: -0.01067116295 | AJ131: -0.007143162378
B132: 122 | D132: BT | E132: INVP | F132: BLT | G132: BATS | H132: GSK | I132: 0.2686567164 | J132: 0.01460957179 | K132: 0.1886670959 | L132: 0.3627760252 | M132: 0.05785837651 | O132: 123 | P132: 1.39 | Q132: 1.31 | R132: 4.177 | S132: 18.57 | T132: 21.02 | U132: 20.61 | V132: 0.97 | W132: 5.61 | X132: 1.99 | Y132: 2.12 | AA132: 0 | AB132: 0.006681585357 | AC132: -0.0002078958785 | AD132: 0.007668036039 | AE132: 0.01003227243 | AF132: 0.007438550755 | AG132: 0 | AH132: -0.01070498343 | AI132: -0.004342981011 | AJ132: 0.004656397814
B133: 123 | D133: BT | E133: INVP | F133: BLT | G133: BATS | H133: KGF | I133: 0.2686567164 | J133: 0.01460957179 | K133: 0.1886670959 | L133: 0.3627760252 | M133: 0.01877934272 | O133: 124 | P133: 1.38 | Q133: 1.31 | R133: 4.196 | S133: 18.855 | T133: 20.77 | U133: 20.38 | V133: 0.97 | W133: 5.6 | X133: 2.04 | Y133: 2.12 | AA133: -0.003135713853 | AB133: 0 | AC133: 0.001971004256 | AD133: 0.006614633002 | AE133: -0.005196215157 | AF133: -0.004873812109 | AG133: 0 | AH133: -0.00077483425 | AI133: 0.01077709102 | AJ133: 0
B134: 124 | D134: BT | E134: INVP | F134: BLT | G134: BATS | H134: PRU | I134: 0.2686567164 | J134: 0.01460957179 | K134: 0.1886670959 | L134: 0.3627760252 | M134: 0.1569767442 | O134: 125 | P134: 1.39 | Q134: 1.31 | R134: 4.227 | S134: 18.565 | T134: 20.95 | U134: 20.19 | V134: 1.01 | W134: 5.82 | X134: 2.07 | Y134: 2.12 | AA134: 0.003135713853 | AB134: 0 | AC134: 0.003196768307 | AD134: -0.006731583179 | AE134: 0.003747530767 | AF134: -0.004067860727 | AG134: 0.01754963952 | AH134: 0.01673495764 | AI134: 0.006340178031 | AJ134: -0.008272525966
B135: 125 | D135: BT | E135: INVP | F135: BLT | G135: BATS | H135: OML | I135: 0.2686567164 | J135: 0.01460957179 | K135: 0.1886670959 | L135: 0.3627760252 | M135: 0.2 | O135: 126 | P135: 1.38 | Q135: 1.2 | R135: 4.24 | S135: 19.015 | T135: 21.41 | U135: 20.42 | V135: 1.02 | W135: 5.8 | X135: 2.1 | Y135: 2.12 | AA135: -0.003135713853 | AB135: -0.03809004961 | AC135: 0.001333608764 | AD135: 0.01040137619 | AE135: 0.009432639992 | AF135: 0.004919418807 | AG135: 0.004278797979 | AH135: -0.001494991087 | AI135: 0.006248949277 | AJ135: 0.005771440178
B136: 126 | D136: BT | E136: INVP | F136: BLT | G136: BATS | H136: IMT | I136: 0.2686567164 | J136: 0.01460957179 | K136: 0.1886670959 | L136: 0.3627760252 | M136: 0.1750881316 | O136: 127 | P136: 1.39 | Q136: 1.23 | R136: 4.25 | S136: 18.98 | T136: 21.575 | U136: 20.57 | V136: 1.01 | W136: 5.71 | X136: 2.1 | Y136: 2.12 | AA136: 0.003135713853 | AB136: 0.01072386539 | AC136: 0.001023073458 | AD136: -0.0008001216563 | AE136: 0.003334137093 | AF136: 0.003178553944 | AG136: -0.004278797979 | AH136: -0.006791885317 | AI136: 0 | AJ136: 0.006049263056
B137: 127 | D137: VOD | E137: OML | F137: PRU | G137: KGF | H137: GSK | I137: 0.2936507937 | J137: 0.2 | K137: 0.1569767442 | L137: 0.01877934272 | M137: 0.05785837651 | O137: 128 | P137: 1.39 | Q137: 1.19 | R137: 4.28 | S137: 19.135 | T137: 21.47 | U137: 20.39 | V137: 1.02 | W137: 5.74 | X137: 2.06 | Y137: 2.12 | AA137: 0 | AB137: -0.01435815005 | AC137: 0.003054838963 | AD137: 0.003532258469 | AE137: -0.002118759951 | AF137: -0.003817065917 | AG137: 0.004278797979 | AH137: 0.002275784152 | AI137: -0.008352074365 | AJ137: 0.002466587866
B138: 128 | D138: VOD | E138: IMT | F138: PRU | G138: KGF | H138: GSK | I138: 0.2936507937 | J138: 0.1750881316 | K138: 0.1569767442 | L138: 0.01877934272 | M138: 0.05785837651 | O138: 129 | P138: 1.39 | Q138: 1.19 | R138: 4.389 | S138: 19.735 | T138: 21.285 | U138: 20.04 | V138: 1.05 | W138: 5.84 | X138: 2.06 | Y138: 2.12 | AA138: 0 | AB138: 0 | AC138: 0.01092181183 | AD138: 0.01340866417 | AE138: -0.003758389923 | AF138: -0.007519508583 | AG138: 0.01258912731 | AH138: 0.007500954714 | AI138: 0 | AJ138: 0.001753310746
B139: 129 | D139: VOD | E139: IMT | F139: OML | G139: KGF | H139: GSK | I139: 0.2936507937 | J139: 0.1750881316 | K139: 0.2 | L139: 0.01877934272 | M139: 0.05785837651 | O139: 130 | P139: 1.4 | Q139: 1.17 | R139: 4.522 | S139: 19.78 | T139: 21.435 | U139: 20 | V139: 1.08 | W139: 6.04 | X139: 2.13 | Y139: 2.12 | AA139: 0.003113235424 | AB139: -0.007361099646 | AC139: 0.01296497716 | AD139: 0.0009891565296 | AE139: 0.003049833333 | AF139: -0.0008677215312 | AG139: 0.01223445642 | AH139: 0.01462409151 | AI139: 0.01451238307 | AJ139: 0.001397569933
B140: 130 | D140: VOD | E140: IMT | F140: OML | G140: PRU | H140: GSK | I140: 0.2936507937 | J140: 0.1750881316 | K140: 0.2 | L140: 0.1569767442 | M140: 0.05785837651 | O140: 131 | P140: 1.42 | Q140: 1.16 | R140: 4.597 | S140: 20.16 | T140: 21.7 | U140: 20.35 | V140: 1.08 | W140: 6.01 | X140: 2.17 | Y140: 2.12 | AA140: 0.006160308705 | AB140: -0.003727872519 | AC140: 0.007143945741 | AD140: 0.008264240512 | AE140: 0.005336246002 | AF140: 0.007534417897 | AG140: 0 | AH140: -0.002162466618 | AI140: 0.00808013041 | AJ140: -0.000348971077
B141: 131 | D141: VOD | E141: IMT | F141: OML | G141: PRU | H141: KGF | I141: 0.2936507937 | J141: 0.1750881316 | K141: 0.2 | L141: 0.1569767442 | M141: 0.01877934272 | O141: 132 | P141: 1.42 | Q141: 1.19 | R141: 4.608 | S141: 20.29 | T141: 22.25 | U141: 20.8 | V141: 1.09 | W141: 6.04 | X141: 2.19 | Y141: 2.12 | AA141: 0 | AB141: 0.01108897217 | AC141: 0.001037966665 | AD141: 0.00279151926 | AE141: 0.01087028147 | AF141: 0.009498921402 | AG141: 0.004002742454 | AH141: 0.002162466618 | AI141: 0.003984380992 | AJ141: -0.003153422759
B142: 132 | D142: VOD | E142: BATS | F142: PRU | G142: KGF | H142: GSK | I142: 0.2936507937 | J142: 0.3627760252 | K142: 0.1569767442 | L142: 0.01877934272 | M142: 0.05785837651 | O142: 133 | P142: 1.41 | Q142: 1.18 | R142: 4.612 | S142: 20.245 | T142: 22 | U142: 20.56 | V142: 1.11 | W142: 6.12 | X142: 2.16 | Y142: 2.12 | AA142: -0.003069231728 | AB142: -0.003664954086 | AC142: 0.0003768282075 | AD142: -0.0009642659289 | AE142: -0.004907334495 | AF142: -0.00504022464 | AG142: 0.007896480846 | AH142: 0.005714483524 | AI142: -0.005990363689 | AJ142: -0.01104047067
B143: 133 | D143: VOD | E143: BATS | F143: OML | G143: KGF | H143: GSK | I143: 0.2936507937 | J143: 0.3627760252 | K143: 0.2 | L143: 0.01877934272 | M143: 0.05785837651 | O143: 134 | P143: 1.4 | Q143: 1.16 | R143: 4.531 | S143: 20 | T143: 22.17 | U143: 20.48 | V143: 1.11 | W143: 6.02 | X143: 2.13 | Y143: 2.12 | AA143: -0.003091076977 | AB143: -0.007424018079 | AC143: -0.007695236443 | AD143: -0.00528778544 | AE143: 0.003343012292 | AF143: -0.001693158019 | AG143: 0 | AH143: -0.007154930888 | AI143: -0.006074147712 | AJ143: 0.001799813939
B144: 134 | D144: VOD | E144: BATS | F144: OML | G144: PRU | H144: GSK | I144: 0.2936507937 | J144: 0.3627760252 | K144: 0.2 | L144: 0.1569767442 | M144: 0.05785837651 | O144: 135 | P144: 1.41 | Q144: 1.16 | R144: 4.469 | S144: 20.035 | T144: 22.31 | U144: 20.44 | V144: 1.12 | W144: 6.1 | X144: 2.14 | Y144: 2.12 | AA144: 0.003091076977 | AB144: 0 | AC144: -0.005983707519 | AD144: 0.0007593511047 | AE144: 0.002733877169 | AF144: -0.0008490608411 | AG144: 0.003895043884 | AH144: 0.005733343753 | AI144: 0.00203416991 | AJ144: -0.0007190307634
B145: 135 | D145: VOD | E145: BATS | F145: OML | G145: PRU | H145: KGF | I145: 0.2936507937 | J145: 0.3627760252 | K145: 0.2 | L145: 0.1569767442 | M145: 0.01877934272 | O145: 136 | P145: 1.42 | Q145: 1.18 | R145: 4.356 | S145: 19.61 | T145: 21.795 | U145: 20.36 | V145: 1.09 | W145: 5.89 | X145: 2.12 | Y145: 2.12 | AA145: 0.003069231728 | AB145: 0.007424018079 | AC145: -0.01112248358 | AD145: -0.009311753101 | AE145: -0.01014269693 | AF145: -0.001703117798 | AG145: -0.01179152473 | AH145: -0.01521454022 | AI145: -0.00407791242 | AJ145: -0.001080783176
B146: 136 | D146: VOD | E146: BATS | F146: IMT | G146: KGF | H146: GSK | I146: 0.2936507937 | J146: 0.3627760252 | K146: 0.1750881316 | L146: 0.01877934272 | M146: 0.05785837651 | O146: 137 | P146: 1.41 | Q146: 1.15 | R146: 4.449 | S146: 20.07 | T146: 22.295 | U146: 20.46 | V146: 1.13 | W146: 6.03 | X146: 2.15 | Y146: 2.12 | AA146: -0.003069231728 | AB146: -0.01118416695 | AC146: 0.009174534664 | AD146: 0.01006977882 | AE146: 0.009850603332 | AF146: 0.002127855711 | AG146: 0.01565194554 | AH146: 0.01020201735 | AI146: 0.006102598987 | AJ146: 0.003592199817
B147: 137 | D147: VOD | E147: BATS | F147: IMT | G147: PRU | H147: GSK | I147: 0.2936507937 | J147: 0.3627760252 | K147: 0.1750881316 | L147: 0.1569767442 | M147: 0.05785837651 | O147: 138 | P147: 1.43 | Q147: 1.14 | R147: 4.5 | S147: 20.72 | T147: 22.885 | U147: 21.03 | V147: 1.14 | W147: 5.3 | X147: 2.19 | Y147: 2.12 | AA147: 0.00611692481 | AB147: -0.003792989017 | AC147: 0.004950108027 | AD147: 0.01384237859 | AE147: 0.01134344008 | AF147: 0.01193364331 | AG147: 0.003826407853 | AH147: -0.05604144254 | AI147: 0.008005654925 | AJ147: 0.0056864247
B148: 138 | D148: VOD | E148: BATS | F148: IMT | G148: PRU | H148: KGF | I148: 0.2936507937 | J148: 0.3627760252 | K148: 0.1750881316 | L148: 0.1569767442 | M148: 0.01877934272 | O148: 139 | P148: 1.46 | Q148: 1.15 | R148: 4.706 | S148: 21.17 | T148: 22.89 | U148: 21.13 | V148: 1.16 | W148: 4.88 | X148: 2.21 | Y148: 2.12 | AA148: 0.009016818319 | AB148: 0.003792989017 | AC148: 0.01943940906 | AD148: 0.009331106946 | AE148: 9.487591122e-05 | AF148: 0.002060224366 | AG148: 0.00755313789 | AH148: -0.0358560476 | AI148: 0.003948158845 | AJ148: 0.005264239992
B149: 139 | D149: VOD | E149: BATS | F149: IMT | G149: OML | H149: GSK | I149: 0.2936507937 | J149: 0.3627760252 | K149: 0.1750881316 | L149: 0.2 | M149: 0.05785837651 | O149: 140 | P149: 1.48 | Q149: 1.18 | R149: 4.881 | S149: 21.49 | T149: 22.965 | U149: 21.38 | V149: 1.17 | W149: 5 | X149: 2.21 | Y149: 2.12 | AA149: 0.005908859611 | AB149: 0.01118416695 | AC149: 0.01585688482 | AD149: 0.006515557472 | AE149: 0.001420657079 | AF149: 0.00510820382 | AG149: 0.003727872519 | AH149: 0.01055018233 | AI149: 0 | AJ149: -0.00174766627
B150: 140 | D150: VOD | E150: BATS | F150: IMT | G150: OML | H150: KGF | I150: 0.2936507937 | J150: 0.3627760252 | K150: 0.1750881316 | L150: 0.2 | M150: 0.01877934272 | O150: 141 | P150: 1.48 | Q150: 1.18 | R150: 5.015 | S150: 21.265 | T150: 23.18 | U150: 21.4 | V150: 1.17 | W150: 5.13 | X150: 2.22 | Y150: 2.12 | AA150: 0 | AB150: 0 | AC150: 0.0117621297 | AD150: -0.004571028441 | AE150: 0.004046981874 | AF150: 0.0004060724764 | AG150: 0 | AH150: 0.01114736078 | AI150: 0.001960700766 | AJ150: 0.00174766627
B151: 141 | D151: VOD | E151: BATS | F151: IMT | G151: OML | H151: PRU | I151: 0.2936507937 | J151: 0.3627760252 | K151: 0.1750881316 | L151: 0.2 | M151: 0.1569767442 | O151: 142 | P151: 1.48 | Q151: 1.19 | R151: 5.13 | S151: 22.07 | T151: 23.27 | U151: 21.54 | V151: 1.19 | W151: 5.2 | X151: 2.22 | Y151: 2.12 | AA151: 0 | AB151: 0.003664954086 | AC151: 0.009846427755 | AD151: 0.01613694611 | AE151: 0.001682951659 | AF151: 0.002831925613 | AG151: 0.007361099646 | AH151: 0.005885978523 | AI151: 0 | AJ151: -0.002098045056
B152: 142 | D152: VOD | E152: BLT | F152: PRU | G152: KGF | H152: GSK | I152: 0.2936507937 | J152: 0.1886670959 | K152: 0.1569767442 | L152: 0.01877934272 | M152: 0.05785837651 | O152: 143 | P152: 1.48 | Q152: 1.2 | R152: 5.225 | S152: 22.33 | T152: 23.22 | U152: 21.45 | V152: 1.19 | W152: 5.18 | X152: 2.21 | Y152: 2.12 | AA152: 0 | AB152: 0.003634284655 | AC152: 0.007968929671 | AD152: 0.00508638991 | AE152: -0.0009341678842 | AF152: -0.001818402441 | AG152: 0 | AH152: -0.00167358389 | AI152: -0.001960700766 | AJ152: -0.001052835623
B153: 143 | D153: VOD | E153: BLT | F153: OML | G153: KGF | H153: GSK | I153: 0.2936507937 | J153: 0.1886670959 | K153: 0.2 | L153: 0.01877934272 | M153: 0.05785837651 | O153: 144 | P153: 1.48 | Q153: 1.2 | R153: 5.265 | S153: 22.225 | T153: 23.065 | U153: 20.91 | V153: 1.22 | W153: 5.2 | X153: 2.18 | Y153: 2.12 | AA153: 0 | AB153: 0 | AC153: 0.003312080738 | AD153: -0.002046953429 | AE153: -0.002908756458 | AF153: -0.0110732637 | AG153: 0.01081286928 | AH153: 0.00167358389 | AI153: -0.005935780081 | AJ153: 0.006971168648
B154: 144 | D154: VOD | E154: BLT | F154: OML | G154: PRU | H154: GSK | I154: 0.2936507937 | J154: 0.1886670959 | K154: 0.2 | L154: 0.1569767442 | M154: 0.05785837651 | O154: 145 | P154: 1.49 | Q154: 1.19 | R154: 5.39 | S154: 22.475 | T154: 22.35 | U154: 20.99 | V154: 1.24 | W154: 5.34 | X154: 2.17 | Y154: 2.12 | AA154: 0.002924553017 | AB154: -0.003634284655 | AC154: 0.01019038967 | AD154: 0.004857930763 | AE154: -0.01367593148 | AF154: 0.001658405765 | AG154: 0.007061854487 | AH154: 0.01153791339 | AI154: -0.001996759756 | AJ154: -0.0003459135841
B155: 145 | D155: VOD | E155: BLT | F155: OML | G155: PRU | H155: KGF | I155: 0.2936507937 | J155: 0.1886670959 | K155: 0.2 | L155: 0.1569767442 | M155: 0.01877934272 | O155: 146 | P155: 1.5 | Q155: 1.22 | R155: 5.3 | S155: 22 | T155: 22.345 | U155: 21.01 | V155: 1.22 | W155: 5.46 | X155: 2.24 | Y155: 2.12 | AA155: 0.002904990643 | AB155: 0.01081286928 | AC155: -0.007312895586 | AD155: -0.009277019583 | AE155: -9.716847158e-05 | AF155: 0.0004136138236 | AG155: -0.007061854487 | AH155: 0.009651385676 | AI155: 0.01378828449 | AJ155: -0.001733712809
B156: 146 | D156: VOD | E156: BLT | F156: IMT | G156: KGF | H156: GSK | I156: 0.2936507937 | J156: 0.1886670959 | K156: 0.1750881316 | L156: 0.01877934272 | M156: 0.05785837651 | O156: 147 | P156: 1.52 | Q156: 1.23 | R156: 5.3 | S156: 21.98 | T156: 22.335 | U156: 20.78 | V156: 1.24 | W156: 5.53 | X156: 2.21 | Y156: 2.12 | AA156: 0.005752328889 | AB156: 0.003545280765 | AC156: 0 | AD156: -0.0003949927347 | AE156: -0.0001944021885 | AF156: -0.004780509185 | AG156: 0.007061854487 | AH156: 0.0055324886 | AI156: -0.005855744649 | AJ156: -0.002438884366
B157: 147 | D157: VOD | E157: BLT | F157: IMT | G157: PRU | H157: GSK | I157: 0.2936507937 | J157: 0.1886670959 | K157: 0.1750881316 | L157: 0.1569767442 | M157: 0.05785837651 | O157: 148 | P157: 1.51 | Q157: 1.25 | R157: 5.29 | S157: 21.655 | T157: 22.16 | U157: 20.59 | V157: 1.24 | W157: 5.38 | X157: 2.2 | Y157: 2.12 | AA157: -0.002866640652 | AB157: 0.007004901569 | AC157: -0.0008201975656 | AD157: -0.006469500022 | AE157: -0.003416200751 | AF157: -0.003989196603 | AG157: 0 | AH157: -0.01194285564 | AI157: -0.001969592863 | AJ157: 0.001743456705
B158: 148 | D158: VOD | E158: BLT | F158: IMT | G158: PRU | H158: KGF | I158: 0.2936507937 | J158: 0.1886670959 | K158: 0.1750881316 | L158: 0.1569767442 | M158: 0.01877934272 | O158: 149 | P158: 1.49 | Q158: 1.26 | R158: 5.3 | S158: 21.855 | T158: 22.32 | U158: 20.55 | V158: 1.25 | W158: 5.3 | X158: 2.23 | Y158: 2.12 | AA158: -0.005790678881 | AB158: 0.00346053211 | AC158: 0.0008201975656 | AD158: 0.00399262276 | AE158: 0.003124434209 | AF158: -0.0008445204059 | AG158: 0.003488327846 | AH158: -0.006506406066 | AI158: 0.005882182226 | AJ158: -0.00314327897
B159: 149 | D159: VOD | E159: BLT | F159: IMT | G159: OML | H159: GSK | I159: 0.2936507937 | J159: 0.1886670959 | K159: 0.1750881316 | L159: 0.2 | M159: 0.05785837651 | O159: 150 | P159: 1.48 | Q159: 1.25 | R159: 5.35 | S159: 22.2 | T159: 22.34 | U159: 20.32 | V159: 1.25 | W159: 5.33 | X159: 2.28 | Y159: 2.12 | AA159: -0.002924553017 | AB159: -0.00346053211 | AC159: 0.00407791242 | AD159: 0.006802163625 | AE159: 0.000388978514 | AF159: -0.0048881226 | AG159: 0 | AH159: 0.002451339426 | AI159: 0.009629983952 | AJ159: -0.005289888567
B160: 150 | D160: VOD | E160: BLT | F160: IMT | G160: OML | H160: KGF | I160: 0.2936507937 | J160: 0.1886670959 | K160: 0.1750881316 | L160: 0.2 | M160: 0.01877934272 | O160: 151 | P160: 1.47 | Q160: 1.24 | R160: 5.35 | S160: 22.065 | T160: 22.635 | U160: 20.48 | V160: 1.25 | W160: 5.34 | X160: 2.3 | Y160: 2.12 | AA160: -0.002944380647 | AB160: -0.003488327846 | AC160: 0 | AD160: -0.002649042667 | AE160: 0.005697330052 | AF160: 0.003406248692 | AG160: 0 | AH160: 0.000814048002 | AI160: 0.003792989017 | AJ160: 0.0167056935
B161: 151 | D161: VOD | E161: BLT | F161: IMT | G161: OML | H161: PRU | I161: 0.2936507937 | J161: 0.1886670959 | K161: 0.1750881316 | L161: 0.2 | M161: 0.1569767442 | O161: 152 | P161: 1.48 | Q161: 1.24 | R161: 5.39 | S161: 21.85 | T161: 22.335 | U161: 20.31 | V161: 1.26 | W161: 5.33 | X161: 2.31 | Y161: 2.12 | AA161: 0.002944380647 | AB161: 0 | AC161: 0.003234983166 | AD161: -0.004252490477 | AE161: -0.005794542023 | AF161: -0.003620028899 | AG161: 0.00346053211 | AH161: -0.000814048002 | AI161: 0.001884143875 | AJ161: 0.005091435592
B162: 152 | D162: VOD | E162: BLT | F162: BATS | G162: KGF | H162: GSK | I162: 0.2936507937 | J162: 0.1886670959 | K162: 0.3627760252 | L162: 0.01877934272 | M162: 0.05785837651 | O162: 153 | P162: 1.48 | Q162: 1.23 | R162: 5.52 | S162: 22.015 | T162: 22.675 | U162: 20.5 | V162: 1.26 | W162: 5.26 | X162: 2.33 | Y162: 2.12 | AA162: 0 | AB162: -0.003516573723 | AC162: 0.01035031254 | AD162: 0.003267248489 | AE162: 0.006561338924 | AF162: 0.004043937651 | AG162: 0 | AH162: -0.005741464873 | AI162: 0.003743941134 | AJ162: 0.002355729428
B163: 153 | D163: VOD | E163: BLT | F163: BATS | G163: PRU | H163: GSK | I163: 0.2936507937 | J163: 0.1886670959 | K163: 0.3627760252 | L163: 0.1569767442 | M163: 0.05785837651 | O163: 154 | P163: 1.49 | Q163: 1.24 | R163: 5.585 | S163: 22.365 | T163: 22.56 | U163: 20.41 | V163: 1.25 | W163: 5.22 | X163: 2.27 | Y163: 2.12 | AA163: 0.002924553017 | AB163: 0.003516573723 | AC163: 0.005084099722 | AD163: 0.006850212713 | AE163: -0.002208200421 | AF163: -0.00191085634 | AG163: -0.00346053211 | AH163: -0.003315241151 | AI163: -0.01133006383 | AJ163: -0.003031148665
B164: 154 | D164: VOD | E164: BLT | F164: BATS | G164: PRU | H164: KGF | I164: 0.2936507937 | J164: 0.1886670959 | K164: 0.3627760252 | L164: 0.1569767442 | M164: 0.01877934272 | O164: 155 | P164: 1.49 | Q164: 1.24 | R164: 5.59 | S164: 22.34 | T164: 22.515 | U164: 20.4 | V164: 1.25 | W164: 5.29 | X164: 2.29 | Y164: 2.12 | AA164: 0 | AB164: 0 | AC164: 0.0003886304348 | AD164: -0.0004857337291 | AE164: -0.0008671440124 | AF164: -0.0002128372902 | AG164: 0 | AH164: 0.005785169033 | AI164: 0.003809625147 | AJ164: 0.002695397213
B165: 155 | D165: VOD | E165: BLT | F165: BATS | G165: OML | H165: GSK | I165: 0.2936507937 | J165: 0.1886670959 | K165: 0.3627760252 | L165: 0.2 | M165: 0.05785837651 | O165: 156 | P165: 1.47 | Q165: 1.26 | R165: 5.605 | S165: 22.485 | T165: 22.78 | U165: 20.61 | V165: 1.23 | W165: 5.34 | X165: 2.26 | Y165: 2.12 | AA165: -0.005868933664 | AB165: 0.006948859955 | AC165: 0.001163809045 | AD165: 0.002809723124 | AE165: 0.005081768444 | AF165: 0.004447824353 | AG165: -0.007004901569 | AH165: 0.004085584993 | AI165: -0.005727043192 | AJ165: 0.0006712435369
B166: 156 | D166: VOD | E166: BLT | F166: BATS | G166: OML | H166: KGF | I166: 0.2936507937 | J166: 0.1886670959 | K166: 0.3627760252 | L166: 0.2 | M166: 0.01877934272 | O166: 157 | P166: 1.47 | Q166: 1.25 | R166: 5.605 | S166: 22.37 | T166: 22.77 | U166: 20.51 | V166: 1.23 | W166: 5.33 | X166: 2.23 | Y166: 2.12 | AA166: 0 | AB166: -0.00346053211 | AC166: 0 | AD166: -0.002226907807 | AE166: -0.0001906891279 | AF166: -0.002112331411 | AG166: 0 | AH166: -0.000814048002 | AI166: -0.005803576099 | AJ166: -0.006759583647
B167: 157 | D167: VOD | E167: BLT | F167: BATS | G167: OML | H167: PRU | I167: 0.2936507937 | J167: 0.1886670959 | K167: 0.3627760252 | L167: 0.2 | M167: 0.1569767442 | O167: 158 | P167: 1.51 | Q167: 1.25 | R167: 5.62 | S167: 22.675 | T167: 22.84 | U167: 20.46 | V167: 1.23 | W167: 5.34 | X167: 2.22 | Y167: 2.12 | AA167: 0.01165961254 | AB167: 0 | AC167: 0.001160698638 | AD167: 0.005881311636 | AE167: 0.001333068959 | AF167: -0.001060030992 | AG167: 0 | AH167: 0.000814048002 | AI167: -0.001951888598 | AJ167: -0.001023073458
B168: 158 | D168: VOD | E168: BLT | F168: BATS | G168: IMT | H168: GSK | I168: 0.2936507937 | J168: 0.1886670959 | K168: 0.3627760252 | L168: 0.1750881316 | M168: 0.05785837651 | O168: 159 | P168: 1.52 | Q168: 1.24 | R168: 5.41 | S168: 22.685 | T168: 22.825 | U168: 20.3 | V168: 1.22 | W168: 5.39 | X168: 2.17 | Y168: 2.12 | AA168: 0.002866640652 | AB168: -0.003488327846 | AC168: -0.01653905046 | AD168: 0.0001914878699 | AE168: -0.0002853133675 | AF168: -0.003409591463 | AG168: -0.003545280765 | AH168: 0.004047508158 | AI168: -0.009893240602 | AJ168: -0.002740037366
B169: 159 | D169: VOD | E169: BLT | F169: BATS | G169: IMT | H169: KGF | I169: 0.2936507937 | J169: 0.1886670959 | K169: 0.3627760252 | L169: 0.1750881316 | M169: 0.01877934272 | O169: 160 | P169: 1.52 | Q169: 1.24 | R169: 5.39 | S169: 22.6 | T169: 22.715 | U169: 20.1 | V169: 1.23 | W169: 5.47 | X169: 2.14 | Y169: 2.12 | AA169: 0 | AB169: 0 | AC169: -0.00160849992 | AD169: -0.001630344455 | AE169: -0.002098045056 | AF169: -0.004299980493 | AG169: 0.003545280765 | AH169: 0.006398561147 | AI169: -0.006045960499 | AJ169: 0.0003434515655
B170: 160 | D170: VOD | E170: BLT | F170: BATS | G170: IMT | H170: PRU | I170: 0.2936507937 | J170: 0.1886670959 | K170: 0.3627760252 | L170: 0.1750881316 | M170: 0.1569767442 | O170: 161 | P170: 1.52 | Q170: 1.25 | R170: 5.395 | S170: 23.01 | T170: 22.785 | U170: 20.04 | V170: 1.24 | W170: 5.68 | X170: 2.17 | Y170: 2.12 | AA170: 0 | AB170: 0.003488327846 | AC170: 0.0004026838322 | AD170: 0.007808179521 | AE170: 0.001336291768 | AF170: -0.001298340225 | AG170: 0.003516573723 | AH170: 0.01636100938 | AI170: 0.006045960499 | AJ170: -0.002755247826
B171: 161 | D171: VOD | E171: BLT | F171: BATS | G171: IMT | H171: OML | I171: 0.2936507937 | J171: 0.1886670959 | K171: 0.3627760252 | L171: 0.1750881316 | M171: 0.2 | O171: 162 | P171: 1.5 | Q171: 1.24 | R171: 5.505 | S171: 23.345 | T171: 22.735 | U171: 19.79 | V171: 1.25 | W171: 5.77 | X171: 2.24 | Y171: 2.12 | AA171: -0.005752328889 | AB171: -0.003488327846 | AC171: 0.008765874289 | AD171: 0.006277259598 | AE171: -0.0009540743773 | AF171: -0.005451922989 | AG171: 0.003488327846 | AH171: 0.006827477445 | AI171: 0.01378828449 | AJ171: 0.001379808887
B172: 162 | D172: VOD | E172: INVP | F172: PRU | G172: KGF | H172: GSK | I172: 0.2936507937 | J172: 0.01460957179 | K172: 0.1569767442 | L172: 0.01877934272 | M172: 0.05785837651 | O172: 163 | P172: 1.48 | Q172: 1.24 | R172: 5.495 | S172: 22.75 | T172: 22.73 | U172: 20.31 | V172: 1.24 | W172: 5.67 | X172: 2.3 | Y172: 2.12 | AA172: -0.005829543661 | AB172: 0 | AC172: -0.0007896265483 | AD172: -0.01121247727 | AE172: -9.552281616e-05 | AF172: 0.0112641292 | AG172: -0.003488327846 | AH172: -0.007592754263 | AI172: 0.01147981768 | AJ172: 0.004454341426
B173: 163 | D173: VOD | E173: INVP | F173: OML | G173: KGF | H173: GSK | I173: 0.2936507937 | J173: 0.01460957179 | K173: 0.2 | L173: 0.01877934272 | M173: 0.05785837651 | O173: 164 | P173: 1.48 | Q173: 1.22 | R173: 5.475 | S173: 22.525 | T173: 22.33 | U173: 20.08 | V173: 1.21 | W173: 5.63 | X173: 2.3 | Y173: 2.12 | AA173: 0 | AB173: -0.007061854487 | AC173: -0.001583573247 | AD173: -0.004316601342 | AE173: -0.007710712654 | AF173: -0.004946214932 | AG173: -0.01063631485 | AH173: -0.003074664042 | AI173: 0 | AJ173: -0.0003410243457
B174: 164 | D174: VOD | E174: INVP | F174: OML | G174: PRU | H174: GSK | I174: 0.2936507937 | J174: 0.01460957179 | K174: 0.2 | L174: 0.1569767442 | M174: 0.05785837651 | O174: 165 | P174: 1.49 | Q174: 1.23 | R174: 5.445 | S174: 22.87 | T174: 22.29 | U174: 20.01 | V174: 1.22 | W174: 5.74 | X174: 2.3 | Y174: 2.12 | AA174: 0.002924553017 | AB174: 0.003545280765 | AC174: -0.00238623942 | AD174: 0.006601364956 | AE174: -0.0007786545912 | AF174: -0.001516619837 | AG174: 0.003574460358 | AH174: 0.008403497547 | AI174: 0 | AJ174: -0.001366781559
B175: 165 | D175: VOD | E175: INVP | F175: OML | G175: PRU | H175: KGF | I175: 0.2936507937 | J175: 0.01460957179 | K175: 0.2 | L175: 0.1569767442 | M175: 0.01877934272 | O175: 166 | P175: 1.49 | Q175: 1.23 | R175: 5.43 | S175: 22.705 | T175: 22.575 | U175: 20.1 | V175: 1.22 | W175: 5.73 | X175: 2.33 | Y175: 2.12 | AA175: 0 | AB175: 0 | AC175: -0.001198054503 | AD175: -0.00314465837 | AE175: 0.005517690505 | AF175: 0.001948968784 | AG175: 0 | AH175: -0.0007572704306 | AI175: 0.005628085008 | AJ175: 0.0003420988613
B176: 166 | D176: VOD | E176: INVP | F176: IMT | G176: KGF | H176: GSK | I176: 0.2936507937 | J176: 0.01460957179 | K176: 0.1750881316 | L176: 0.01877934272 | M176: 0.05785837651 | O176: 167 | P176: 1.49 | Q176: 1.24 | R176: 5.43 | S176: 22.435 | T176: 22.5 | U176: 20.06 | V176: 1.21 | W176: 5.71 | X176: 2.39 | Y176: 2.12 | AA176: 0 | AB176: 0.003516573723 | AC176: 0 | AD176: -0.005195432368 | AE176: -0.001445240874 | AF176: -0.0008651287361 | AG176: -0.003574460358 | AH176: -0.001518513722 | AI176: 0.01104197992 | AJ176: 0.001706463814
B177: 167 | D177: VOD | E177: INVP | F177: IMT | G177: PRU | H177: GSK | I177: 0.2936507937 | J177: 0.01460957179 | K177: 0.1750881316 | L177: 0.1569767442 | M177: 0.05785837651 | O177: 168 | P177: 1.5 | Q177: 1.29 | R177: 5.425 | S177: 22.86 | T177: 22.24 | U177: 20.08 | V177: 1.23 | W177: 5.73 | X177: 2.38 | Y177: 2.12 | AA177: 0.002904990643 | AB177: 0.01716802514 | AC177: -0.0004000870683 | AD177: 0.00815015219 | AE177: -0.005047735201 | AF177: 0.0004327797886 | AG177: 0.007119741123 | AH177: 0.001518513722 | AI177: -0.001820943892 | AJ177: -0.0006817811163
B178: 168 | D178: VOD | E178: INVP | F178: IMT | G178: PRU | H178: KGF | I178: 0.2936507937 | J178: 0.01460957179 | K178: 0.1750881316 | L178: 0.1569767442 | M178: 0.01877934272 | O178: 169 | P178: 1.53 | Q178: 1.32 | R178: 5.445 | S178: 22.665 | T178: 21.855 | U178: 19.87 | V178: 1.22 | W178: 5.83 | X178: 2.38 | Y178: 2.12 | AA178: 0.008600171762 | AB178: 0.009984220907 | AC178: 0.001598141571 | AD178: -0.003720502665 | AE178: -0.007583972084 | AF178: -0.004565841363 | AG178: -0.003545280765 | AH178: 0.007513932792 | AI178: 0 | AJ178: -0.0003412923413
B179: 169 | D179: VOD | E179: INVP | F179: IMT | G179: OML | H179: GSK | I179: 0.2936507937 | J179: 0.01460957179 | K179: 0.1750881316 | L179: 0.2 | M179: 0.05785837651 | O179: 170 | P179: 1.52 | Q179: 1.31 | R179: 5.3 | S179: 21.96 | T179: 21.5 | U179: 19.51 | V179: 1.21 | W179: 5.84 | X179: 2.36 | Y179: 2.12 | AA179: -0.002847842873 | AB179: -0.00330263555 | AC179: -0.01172201449 | AD179: -0.01372338762 | AE179: -0.00711235091 | AF179: -0.007940597715 | AG179: -0.003574460358 | AH179: 0.0007442923534 | AI179: -0.003664954086 | AJ179: 0.003062018432
B180: 170 | D180: VOD | E180: INVP | F180: IMT | G180: OML | H180: KGF | I180: 0.2936507937 | J180: 0.01460957179 | K180: 0.1750881316 | L180: 0.2 | M180: 0.01877934272 | O180: 171 | P180: 1.5 | Q180: 1.32 | R180: 5.25 | S180: 21.62 | T180: 21.705 | U180: 19.47 | V180: 1.18 | W180: 5.83 | X180: 2.36 | Y180: 2.12 | AA180: -0.005752328889 | AB180: 0.00330263555 | AC180: -0.004116566195 | AD180: -0.006776646161 | AE180: 0.004121330259 | AF180: -0.0008913178745 | AG180: -0.01090336301 | AH180: -0.0007442923534 | AI180: 0 | AJ180: -0.000678585266
B181: 171 | D181: VOD | E181: INVP | F181: IMT | G181: OML | H181: PRU | I181: 0.2936507937 | J181: 0.01460957179 | K181: 0.1750881316 | L181: 0.2 | M181: 0.1569767442 | O181: 172 | P181: 1.5 | Q181: 1.34 | R181: 5.36 | S181: 21.8 | T181: 22.17 | U181: 19.71 | V181: 1.2 | W181: 5.88 | X181: 2.37 | Y181: 2.12 | AA181: 0 | AB181: 0.006530867159 | AC181: 0.009005486287 | AD181: 0.003600803987 | AE181: 0.00920590294 | AF181: 0.005320672759 | AG181: 0.007299238741 | AH181: 0.003708771317 | AI181: 0.00183634304 | AJ181: 0.0003394251692
B182: 172 | D182: VOD | E182: INVP | F182: BATS | G182: KGF | H182: GSK | I182: 0.2936507937 | J182: 0.01460957179 | K182: 0.3627760252 | L182: 0.01877934272 | M182: 0.05785837651 | O182: 173 | P182: 1.5 | Q182: 1.34 | R182: 5.33 | S182: 21.18 | T182: 21.91 | U182: 19.46 | V182: 1.18 | W182: 5.64 | X182: 2.37 | Y182: 2.12 | AA182: 0 | AB182: 0 | AC182: -0.002437580666 | AD182: -0.01253053783 | AE182: -0.005123315554 | AF182: -0.005543788347 | AG182: -0.007299238741 | AH182: -0.01809822209 | AI182: 0 | AJ182: -0.006494883075
B183: 173 | D183: VOD | E183: INVP | F183: BATS | G183: PRU | H183: GSK | I183: 0.2936507937 | J183: 0.01460957179 | K183: 0.3627760252 | L183: 0.1569767442 | M183: 0.05785837651 | O183: 174 | P183: 1.48 | Q183: 1.32 | R183: 5.21 | S183: 20.98 | T183: 21.665 | U183: 19.29 | V183: 1.17 | W183: 5.46 | X183: 2.38 | Y183: 2.12 | AA183: -0.005829543661 | AB183: -0.006530867159 | AC183: -0.009889485727 | AD183: -0.004120471914 | AE183: -0.00488368419 | AF183: -0.003810608288 | AG183: -0.00369614556 | AH183: -0.01408646128 | AI183: 0.001828611046 | AJ183: -0.005545735141
B184: 174 | D184: VOD | E184: INVP | F184: BATS | G184: PRU | H184: KGF | I184: 0.2936507937 | J184: 0.01460957179 | K184: 0.3627760252 | L184: 0.1569767442 | M184: 0.01877934272 | O184: 175 | P184: 1.48 | Q184: 1.32 | R184: 5.28 | S184: 21.09 | T184: 21.875 | U184: 19.53 | V184: 1.18 | W184: 5.41 | X184: 2.48 | Y184: 2.12 | AA184: 0 | AB184: 0 | AC184: 0.005796199234 | AD184: 0.002271095882 | AE184: 0.004189368324 | AF184: 0.005370015644 | AG184: 0.00369614556 | AH184: -0.003995377598 | AI184: 0.01787472377 | AJ184: -0.002448706748
B185: 175 | D185: VOD | E185: INVP | F185: BATS | G185: OML | H185: GSK | I185: 0.2936507937 | J185: 0.01460957179 | K185: 0.3627760252 | L185: 0.2 | M185: 0.05785837651 | O185: 176 | P185: 1.48 | Q185: 1.31 | R185: 5.395 | S185: 21.51 | T185: 21.945 | U185: 19.47 | V185: 1.19 | W185: 5.46 | X185: 2.48 | Y185: 2.12 | AA185: 0 | AB185: -0.00330263555 | AC185: 0.009357526485 | AD185: 0.008563830648 | AE185: 0.001387523487 | AF185: -0.001336291768 | AG185: 0.003664954086 | AH185: 0.003995377598 | AI185: 0 | AJ185: 0.003145808794
B186: 176 | D186: VOD | E186: INVP | F186: BATS | G186: OML | H186: KGF | I186: 0.2936507937 | J186: 0.01460957179 | K186: 0.3627760252 | L186: 0.2 | M186: 0.01877934272 | O186: 177 | P186: 1.43 | Q186: 1.27 | R186: 5.195 | S186: 20.61 | T186: 21.4 | U186: 19.53 | V186: 1.13 | W186: 5.4 | X186: 2.44 | Y186: 2.12 | AA186: -0.01492567793 | AB186: -0.0134675747 | AC186: -0.01640589713 | AD186: -0.01856241861 | AE186: -0.01092181183 | AF186: 0.001336291768 | AG186: -0.02246851791 | AH186: -0.004798882882 | AI186: -0.007061854487 | AJ186: -0.01164776674
B187: 177 | D187: VOD | E187: INVP | F187: BATS | G187: OML | H187: PRU | I187: 0.2936507937 | J187: 0.01460957179 | K187: 0.3627760252 | L187: 0.2 | M187: 0.1569767442 | O187: 178 | P187: 1.43 | Q187: 1.25 | R187: 5.12 | S187: 20.585 | T187: 21.075 | U187: 19.45 | V187: 1.16 | W187: 5.46 | X187: 2.38 | Y187: 2.12 | AA187: 0 | AB187: -0.006893707948 | AC187: -0.006315590917 | AD187: -0.0005271204457 | AE187: -0.006646190052 | AF187: -0.001782637626 | AG187: 0.01137954574 | AH187: 0.004798882882 | AI187: -0.01081286928 | AJ187: 0.001071891491
B188: 178 | D188: VOD | E188: INVP | F188: BATS | G188: IMT | H188: GSK | I188: 0.2936507937 | J188: 0.01460957179 | K188: 0.3627760252 | L188: 0.1750881316 | M188: 0.05785837651 | O188: 179 | P188: 1.45 | Q188: 1.26 | R188: 5.17 | S188: 20.895 | T188: 20.85 | U188: 19.06 | V188: 1.18 | W188: 5.69 | X188: 2.46 | Y188: 2.12 | AA188: 0.00603196477 | AB188: 0.00346053211 | AC188: 0.004220582118 | AD188: 0.006491504146 | AE188: -0.004661523987 | AF188: -0.008796709359 | AG188: 0.007424018079 | AH188: 0.01791962369 | AI188: 0.01435815005 | AJ188: 0.001069252445
B189: 179 | D189: VOD | E189: INVP | F189: BATS | G189: IMT | H189: KGF | I189: 0.2936507937 | J189: 0.01460957179 | K189: 0.3627760252 | L189: 0.1750881316 | M189: 0.01877934272 | O189: 180 | P189: 1.45 | Q189: 1.27 | R189: 5.21 | S189: 20.255 | T189: 20.54 | U189: 18.67 | V189: 1.16 | W189: 5.79 | X189: 2.5 | Y189: 2.12 | AA189: 0 | AB189: 0.003433175838 | AC189: 0.003347180206 | AD189: -0.01351012796 | AE189: -0.006505620049 | AF189: -0.008978578353 | AG189: -0.007424018079 | AH189: 0.007566297332 | AI189: 0.007004901569 | AJ189: -0.003215687532
B190: 180 | D190: VOD | E190: INVP | F190: BATS | G190: IMT | H190: PRU | I190: 0.2936507937 | J190: 0.01460957179 | K190: 0.3627760252 | L190: 0.1750881316 | M190: 0.1569767442 | O190: 181 | P190: 1.42 | Q190: 1.25 | R190: 5.04 | S190: 18.65 | T190: 20.935 | U190: 18.82 | V190: 1.12 | W190: 5.59 | X190: 2.41 | Y190: 2.12 | AA190: -0.009079657852 | AB190: -0.006893707948 | AC190: -0.01440718685 | AD190: -0.03585341137 | AE190: 0.008272525966 | AF190: 0.003475301142 | AG190: -0.01523996656 | AH190: -0.01526675584 | AI190: -0.0159229661 | AJ190: 0.001432134791
B191: 181 | D191: VOD | E191: INVP | F191: BATS | G191: IMT | H191: OML | I191: 0.2936507937 | J191: 0.01460957179 | K191: 0.3627760252 | L191: 0.1750881316 | M191: 0.2 | O191: 182 | P191: 1.4 | Q191: 1.21 | R191: 4.926 | S191: 18.86 | T191: 20.545 | U191: 18.48 | V191: 1.12 | W191: 5.49 | X191: 2.33 | Y191: 2.12 | AA191: -0.006160308705 | AB191: -0.01412464269 | AC191: -0.009936128942 | AD191: 0.004862852257 | AE191: -0.008166819629 | AF191: -0.007917652207 | AG191: 0 | AH191: -0.007839463436 | AI191: -0.01466112155 | AJ191: -0.007935834264
B192: 182 | D192: VOD | E192: INVP | F192: BLT | G192: KGF | H192: GSK | I192: 0.2936507937 | J192: 0.01460957179 | K192: 0.1886670959 | L192: 0.01877934272 | M192: 0.05785837651 | O192: 183 | P192: 1.39 | Q192: 1.17 | R192: 4.847 | S192: 18.725 | T192: 20.42 | U192: 18.24 | V192: 1.11 | W192: 5.5 | X192: 2.31 | Y192: 2.12 | AA192: -0.003113235424 | AB192: -0.01459950857 | AC192: -0.00702138778 | AD192: -0.00311986203 | AE192: -0.002650407847 | AF192: -0.005677132892 | AG192: -0.003895043884 | AH192: 0.0007903450442 | AI192: -0.003743941134 | AJ192: -0.004758436364
B193: 183 | D193: VOD | E193: INVP | F193: BLT | G193: PRU | H193: GSK | I193: 0.2936507937 | J193: 0.01460957179 | K193: 0.1886670959 | L193: 0.1569767442 | M193: 0.05785837651 | O193: 184 | P193: 1.33 | Q193: 1.1 | R193: 4.652 | S193: 18.645 | T193: 20.05 | U193: 17.8 | V193: 1.07 | W193: 5.43 | X193: 2.21 | Y193: 2.12 | AA193: -0.01916315929 | AB193: -0.02679317659 | AC193: -0.01783331367 | AD193: -0.001859438674 | AE193: -0.007941360795 | AF193: -0.01060483168 | AG193: -0.0159392011 | AH193: -0.005562859905 | AI193: -0.01921970621 | AJ193: -0.01194011924
B194: 184 | D194: VOD | E194: INVP | F194: BLT | G194: PRU | H194: KGF | I194: 0.2936507937 | J194: 0.01460957179 | K194: 0.1886670959 | L194: 0.1569767442 | M194: 0.01877934272 | O194: 185 | P194: 1.39 | Q194: 1.16 | R194: 5.06 | S194: 19.83 | T194: 20.685 | U194: 18.14 | V194: 1.15 | W194: 5.54 | X194: 2.37 | Y194: 2.12 | AA194: 0.01916315929 | AB194: 0.02306530407 | AC194: 0.03651081078 | AD194: 0.02676032651 | AE194: 0.01354114828 | AF194: 0.008217280415 | AG194: 0.03131406267 | AH194: 0.00870993514 | AI194: 0.03035607232 | AJ194: 0.01487455258
B195: 185 | D195: VOD | E195: INVP | F195: BLT | G195: OML | H195: GSK | I195: 0.2936507937 | J195: 0.01460957179 | K195: 0.1886670959 | L195: 0.2 | M195: 0.05785837651 | O195: 186 | P195: 1.37 | Q195: 1.19 | R195: 4.947 | S195: 19.485 | T195: 20.71 | U195: 18.32 | V195: 1.14 | W195: 5.41 | X195: 2.32 | Y195: 2.12 | AA195: -0.006294233098 | AB195: 0.01108897217 | AC195: -0.009808606476 | AD195: -0.007622304077 | AE195: 0.0005245736619 | AF195: 0.004288186608 | AG195: -0.003792989017 | AH195: -0.01031249962 | AI195: -0.009260361119 | AJ195: -0.001098090299
B196: 186 | D196: VOD | E196: INVP | F196: BLT | G196: OML | H196: KGF | I196: 0.2936507937 | J196: 0.01460957179 | K196: 0.1886670959 | L196: 0.2 | M196: 0.01877934272 | O196: 187 | P196: 1.38 | Q196: 1.21 | R196: 5.165 | S196: 19.44 | T196: 20.665 | U196: 18.46 | V196: 1.19 | W196: 5.66 | X196: 2.34 | Y196: 2.12 | AA196: 0.003158519245 | AB196: 0.007238408924 | AC196: 0.01872841549 | AD196: -0.001004149538 | AE196: -0.0009446892757 | AF196: 0.003306227358 | AG196: 0.01864211006 | AH196: 0.01961916608 | AI196: 0.003727872519 | AJ196: -0.0003666479592
B197: 187 | D197: VOD | E197: INVP | F197: BLT | G197: OML | H197: PRU | I197: 0.2936507937 | J197: 0.01460957179 | K197: 0.1886670959 | L197: 0.2 | M197: 0.1569767442 | O197: 188 | P197: 1.38 | Q197: 1.34 | R197: 5.155 | S197: 20.055 | T197: 20.785 | U197: 18.65 | V197: 1.21 | W197: 5.63 | X197: 2.36 | Y197: 2.12 | AA197: 0 | AB197: 0.04431942805 | AC197: -0.0008416562361 | AD197: 0.01352640573 | AE197: 0.002514619225 | AF197: 0.004447139455 | AG197: 0.007238408924 | AH197: -0.002308036337 | AI197: 0.00369614556 | AJ197: 0.005105115666
B198: 188 | D198: VOD | E198: INVP | F198: BLT | G198: IMT | H198: GSK | I198: 0.2936507937 | J198: 0.01460957179 | K198: 0.1886670959 | L198: 0.1750881316 | M198: 0.05785837651 | O198: 189 | P198: 1.35 | Q198: 1.3 | R198: 4.955 | S198: 19.145 | T198: 20.33 | U198: 18.24 | V198: 1.2 | W198: 5.42 | X198: 2.25 | Y198: 2.12 | AA198: -0.009545317906 | AB198: -0.01316144606 | AC198: -0.0171850108 | AD198: -0.02016729563 | AE198: -0.009612650204 | AF198: -0.009654002152 | AG198: -0.003604124269 | AH198: -0.01650910831 | AI198: -0.02072948486 | AJ198: -0.01138596201
B199: 189 | D199: VOD | E199: INVP | F199: BLT | G199: IMT | H199: KGF | I199: 0.2936507937 | J199: 0.01460957179 | K199: 0.1886670959 | L199: 0.1750881316 | M199: 0.01877934272 | O199: 190 | P199: 1.36 | Q199: 1.28 | R199: 4.907 | S199: 18.955 | T199: 20.405 | U199: 18.17 | V199: 1.18 | W199: 5.34 | X199: 2.25 | Y199: 2.12 | AA199: 0.003205139875 | AB199: -0.006733382659 | AC199: -0.00422760084 | AD199: -0.004331581921 | AE199: 0.001599220471 | AF199: -0.001669906684 | AG199: -0.007299238741 | AH199: -0.00645802951 | AI199: 0 | AJ199: 0.004811151261
B200: 190 | D200: VOD | E200: INVP | F200: BLT | G200: IMT | H200: PRU | I200: 0.2936507937 | J200: 0.01460957179 | K200: 0.1886670959 | L200: 0.1750881316 | M200: 0.1569767442 | O200: 191 | P200: 1.36 | Q200: 1.29 | R200: 5.05 | S200: 19.325 | T200: 20.37 | U200: 18.08 | V200: 1.2 | W200: 5.3 | X200: 2.27 | Y200: 2.12 | AA200: 0 | AB200: 0.003379740651 | AC200: 0.01247532014 | AD200: 0.008395713828 | AE200: -0.0007455701091 | AF200: -0.002156501169 | AG200: 0.007299238741 | AH200: -0.003265387428 | AI200: 0.003843339082 | AJ200: -0.002583995191
B201: 191 | D201: VOD | E201: INVP | F201: BLT | G201: IMT | H201: OML | I201: 0.2936507937 | J201: 0.01460957179 | K201: 0.1886670959 | L201: 0.1750881316 | M201: 0.2 | O201: 192 | P201: 1.31 | Q201: 1.26 | R201: 4.871 | S201: 18.28 | T201: 20.075 | U201: 17.7 | V201: 1.15 | W201: 5.18 | X201: 2.17 | Y201: 2.12 | AA201: -0.01626761271 | AB201: -0.01021916518 | AC201: -0.01567324855 | AD201: -0.02414331119 | AE201: -0.006335475049 | AF201: -0.009225159778 | AG201: -0.01848340569 | AH201: -0.009946109856 | AI201: -0.01956612334 | AJ201: 0.001847278336
B202: 192 | D202: VOD | E202: INVP | F202: BLT | G202: BATS | H202: GSK | I202: 0.2936507937 | J202: 0.01460957179 | K202: 0.1886670959 | L202: 0.3627760252 | M202: 0.05785837651 | O202: 193 | P202: 1.29 | Q202: 1.27 | R202: 4.704 | S202: 17.685 | T202: 19.83 | U202: 17.53 | V202: 1.12 | W202: 5.17 | X202: 2.12 | Y202: 2.12 | AA202: -0.006681585357 | AB202: 0.003433175838 | AC202: -0.0151508165 | AD202: -0.01437112725 | AE202: -0.005332839745 | AF202: -0.004191350268 | AG202: -0.01147981768 | AH202: -0.0008392166513 | AI202: -0.01012387292 | AJ202: -0.004446740028
B203: 193 | D203: VOD | E203: INVP | F203: BLT | G203: BATS | H203: KGF | I203: 0.2936507937 | J203: 0.01460957179 | K203: 0.1886670959 | L203: 0.3627760252 | M203: 0.01877934272 | O203: 194 | P203: 1.3 | Q203: 1.25 | R203: 4.667 | S203: 18.175 | T203: 19.925 | U203: 17.62 | V203: 1.11 | W203: 5.17 | X203: 2.13 | Y203: 2.12 | AA203: 0.003353642008 | AB203: -0.006893707948 | AC203: -0.003429512183 | AD203: 0.01186935538 | AE203: 0.002075615863 | AF203: 0.002223987982 | AG203: -0.003895043884 | AH203: 0 | AI203: 0.00204374251 | AJ203: -0.009793699087
... 306 more rows

Sheet Sharpe_Ratios(Step2)
H2: Variance-Covariance Matrix | P2: =VLOOKUP($N$15,'Data(Step1)'!$B$11:$H$252,3,FALSE) -> VOD | Q2: =VLOOKUP($N$15,'Data(Step1)'!$B$11:$H$252,4,FALSE) -> BT | R2: =VLOOKUP($N$15,'Data(Step1)'!$B$11:$H$252,5,FALSE) -> BATS | S2: =VLOOKUP($N$15,'Data(Step1)'!$B$11:$H$252,6,FALSE) -> IMT | T2: =VLOOKUP($N$15,'Data(Step1)'!$B$11:$H$252,7,FALSE) -> OML
H3: =P4 -> VOD | I3: =Q4 -> BT | J3: INVP | K3: BLT | L3: BATS | P3: Portfolio Daily Returns
G4: =P4 -> VOD | H4: =_xlfn.COVARIANCE.P($P$5:$P$503,P5:P503) -> 3.11549955e-05 | I4: =_xlfn.COVARIANCE.P($P$5:$P$503,Q5:Q503) -> 1.901386945e-05 | J4: 1.692887392e-05 | K4: 1.818367102e-05 | L4: 8.081638024e-06 | P4: VOD | Q4: BT | R4: INVP | S4: BLT | T4: BATS
B5: Computing Max Sharpe Ratio | G5: =Q4 -> BT | H5: =_xlfn.COVARIANCE.P($Q$5:$Q$503,P5:P503) -> 1.901386945e-05 | I5: =_xlfn.COVARIANCE.P($Q$5:$Q$503,Q5:Q503) -> 6.030381517e-05 | J5: 2.493559581e-05 | K5: 2.427515035e-05 | L5: 1.145584775e-05 | O5: 3 | P5: =HLOOKUP(P$4,'Data(Step1)'!$AA$9:$AJ$509,$O5,FALSE) -> 0.003433175838 | Q5: =HLOOKUP(Q$4,'Data(Step1)'!$AA$9:$AJ$509,$O5,FALSE) -> -0.003253157398 | R5: =HLOOKUP(R$4,'Data(Step1)'!$AA$9:$AJ$509,$O5,FALSE) -> -0.01479870756 | S5: =HLOOKUP(S$4,'Data(Step1)'!$AA$9:$AJ$509,$O5,FALSE) -> -0.01392361947 | T5: =HLOOKUP(T$4,'Data(Step1)'!$AA$9:$AJ$509,$O5,FALSE) -> -0.00644092605
G6: =R4 -> INVP | H6: =_xlfn.COVARIANCE.P($R$5:$R$503,P5:P503) -> 1.692887392e-05 | I6: =_xlfn.COVARIANCE.P($R$5:$R$503,Q5:Q503) -> 2.493559581e-05 | J6: 6.034081143e-05 | K6: 4.268496767e-05 | L6: 1.632974021e-05 | O6: 4 | P6: =HLOOKUP(P$4,'Data(Step1)'!$AA$9:$AJ$509,$O6,FALSE) -> 0.003406248692 | Q6: =HLOOKUP(Q$4,'Data(Step1)'!$AA$9:$AJ$509,$O6,FALSE) -> 0.003253157398 | R6: =HLOOKUP(R$4,'Data(Step1)'!$AA$9:$AJ$509,$O6,FALSE) -> 0.00651566281 | S6: =HLOOKUP(S$4,'Data(Step1)'!$AA$9:$AJ$509,$O6,FALSE) -> 0.001872893354 | T6: =HLOOKUP(T$4,'Data(Step1)'!$AA$9:$AJ$509,$O6,FALSE) -> 0.005984014401
B7: STEP1 : Choose the weights | G7: =S4 -> BLT | H7: =_xlfn.COVARIANCE.P($S$5:$S$503,P5:P503) -> 1.818367102e-05 | I7: =_xlfn.COVARIANCE.P($S$5:$S$503,Q5:Q503) -> 2.427515035e-05 | J7: 4.268496767e-05 | K7: 7.394696936e-05 | L7: 1.708200209e-05 | O7: 5 | P7: =HLOOKUP(P$4,'Data(Step1)'!$AA$9:$AJ$509,$O7,FALSE) -> 0 | Q7: =HLOOKUP(Q$4,'Data(Step1)'!$AA$9:$AJ$509,$O7,FALSE) -> -0.006530867159 | R7: =HLOOKUP(R$4,'Data(Step1)'!$AA$9:$AJ$509,$O7,FALSE) -> -0.006742093724 | S7: =HLOOKUP(S$4,'Data(Step1)'!$AA$9:$AJ$509,$O7,FALSE) -> 0.006704630004 | T7: =HLOOKUP(T$4,'Data(Step1)'!$AA$9:$AJ$509,$O7,FALSE) -> -0.007609283004
G8: =T4 -> BATS | H8: =_xlfn.COVARIANCE.P($T$5:$T$503,P5:P503) -> 8.081638024e-06 | I8: =_xlfn.COVARIANCE.P($T$5:$T$503,Q5:Q503) -> 1.145584775e-05 | J8: 1.632974021e-05 | K8: 1.708200209e-05 | L8: 2.352844417e-05 | O8: 6 | P8: =HLOOKUP(P$4,'Data(Step1)'!$AA$9:$AJ$509,$O8,FALSE) -> 0.01006132601 | Q8: =HLOOKUP(Q$4,'Data(Step1)'!$AA$9:$AJ$509,$O8,FALSE) -> 0.009759837289 | R8: =HLOOKUP(R$4,'Data(Step1)'!$AA$9:$AJ$509,$O8,FALSE) -> 0.01786011127 | S8: =HLOOKUP(S$4,'Data(Step1)'!$AA$9:$AJ$509,$O8,FALSE) -> 0.007994666403 | T8: =HLOOKUP(T$4,'Data(Step1)'!$AA$9:$AJ$509,$O8,FALSE) -> -0.001864928177
B9: STEP2 : Choose the risk-free rate | O9: 7 | P9: =HLOOKUP(P$4,'Data(Step1)'!$AA$9:$AJ$509,$O9,FALSE) -> 0 | Q9: =HLOOKUP(Q$4,'Data(Step1)'!$AA$9:$AJ$509,$O9,FALSE) -> 0.01268103176 | R9: =HLOOKUP(R$4,'Data(Step1)'!$AA$9:$AJ$509,$O9,FALSE) -> 0.006900554023 | S9: =HLOOKUP(S$4,'Data(Step1)'!$AA$9:$AJ$509,$O9,FALSE) -> 0.00785015363 | T9: =HLOOKUP(T$4,'Data(Step1)'!$AA$9:$AJ$509,$O9,FALSE) -> 0.007182414401
F10: Risk-free rate | H10: Weights | M10: Weights' sum | O10: 8 | P10: =HLOOKUP(P$4,'Data(Step1)'!$AA$9:$AJ$509,$O10,FALSE) -> 0 | Q10: =HLOOKUP(Q$4,'Data(Step1)'!$AA$9:$AJ$509,$O10,FALSE) -> 0 | R10: =HLOOKUP(R$4,'Data(Step1)'!$AA$9:$AJ$509,$O10,FALSE) -> 0.01585920784 | S10: =HLOOKUP(S$4,'Data(Step1)'!$AA$9:$AJ$509,$O10,FALSE) -> 0.01541877183 | T10: =HLOOKUP(T$4,'Data(Step1)'!$AA$9:$AJ$509,$O10,FALSE) -> 0.001605526715
B11: STEP3: Press "Ctrl+p" to compute the Sharpe Ratios | F11: 0.02 | H11: 0.2 | I11: 0.2 | J11: 0.2 | K11: 0.2 | L11: 0.2 | M11: =SUM(H11:L11) -> 1 | O11: 9 | P11: =HLOOKUP(P$4,'Data(Step1)'!$AA$9:$AJ$509,$O11,FALSE) -> 0.009833502709 | Q11: =HLOOKUP(Q$4,'Data(Step1)'!$AA$9:$AJ$509,$O11,FALSE) -> 0.006204312401 | R11: =HLOOKUP(R$4,'Data(Step1)'!$AA$9:$AJ$509,$O11,FALSE) -> 0.005024357682 | S11: =HLOOKUP(S$4,'Data(Step1)'!$AA$9:$AJ$509,$O11,FALSE) -> -0.005434550926 | T11: =HLOOKUP(T$4,'Data(Step1)'!$AA$9:$AJ$509,$O11,FALSE) -> -0.003909481625
O12: 10 | P12: =HLOOKUP(P$4,'Data(Step1)'!$AA$9:$AJ$509,$O12,FALSE) -> -0.003253157398 | Q12: =HLOOKUP(Q$4,'Data(Step1)'!$AA$9:$AJ$509,$O12,FALSE) -> -0.009340026254 | R12: =HLOOKUP(R$4,'Data(Step1)'!$AA$9:$AJ$509,$O12,FALSE) -> -0.006367164856 | S12: =HLOOKUP(S$4,'Data(Step1)'!$AA$9:$AJ$509,$O12,FALSE) -> -0.006179363812 | T12: =HLOOKUP(T$4,'Data(Step1)'!$AA$9:$AJ$509,$O12,FALSE) -> 0.002074108658
H13: =SQRT(MMULT(H11:L11,MMULT(H4:L8,TRANSPOSE(H11:L11)))) -> 0.005088094921 | M13: Max Sharpe Ratio | O13: 11 | P13: =HLOOKUP(P$4,'Data(Step1)'!$AA$9:$AJ$509,$O13,FALSE) -> 0 | Q13: =HLOOKUP(Q$4,'Data(Step1)'!$AA$9:$AJ$509,$O13,FALSE) -> -0.003158519245 | R13: =HLOOKUP(R$4,'Data(Step1)'!$AA$9:$AJ$509,$O13,FALSE) -> -0.003844718453 | S13: =HLOOKUP(S$4,'Data(Step1)'!$AA$9:$AJ$509,$O13,FALSE) -> -0.0009480937411 | T13: =HLOOKUP(T$4,'Data(Step1)'!$AA$9:$AJ$509,$O13,FALSE) -> -0.001612338831
F14: Number of portfolios | H14: Standard Deviations | J14: Returns | K14: Sharpe Ratios | M14: =MAX(K15:L266) -> 54.65782397 | O14: 12 | P14: =HLOOKUP(P$4,'Data(Step1)'!$AA$9:$AJ$509,$O14,FALSE) -> 0 | Q14: =HLOOKUP(Q$4,'Data(Step1)'!$AA$9:$AJ$509,$O14,FALSE) -> 0.003158519245 | R14: =HLOOKUP(R$4,'Data(Step1)'!$AA$9:$AJ$509,$O14,FALSE) -> 0.01809183189 | S14: =HLOOKUP(S$4,'Data(Step1)'!$AA$9:$AJ$509,$O14,FALSE) -> 0.007127457553 | T14: =HLOOKUP(T$4,'Data(Step1)'!$AA$9:$AJ$509,$O14,FALSE) -> -0.001850032539
F15: 1 | H15: 0.004939932923 | J15: =$H$11*'Data(Step1)'!I11+$I$11*'Data(Step1)'!J11+$J$11*'Data(Step1)'!K11+$K$11*'Data(Step1)'!L11+$L$11*'Data(Step1)'!M11 -> 0.121740519 | K15: =(J15-$F$11)/H15 -> 20.59552641 | M15: 1 | N15: =VLOOKUP(M14,K15:M266,3,FALSE) -> 216 | O15: 13 | P15: =HLOOKUP(P$4,'Data(Step1)'!$AA$9:$AJ$509,$O15,FALSE) -> -0.003277709761 | Q15: =HLOOKUP(Q$4,'Data(Step1)'!$AA$9:$AJ$509,$O15,FALSE) -> -0.006340178031 | R15: =HLOOKUP(R$4,'Data(Step1)'!$AA$9:$AJ$509,$O15,FALSE) -> -0.005744319844 | S15: =HLOOKUP(S$4,'Data(Step1)'!$AA$9:$AJ$509,$O15,FALSE) -> -0.01148815419 | T15: =HLOOKUP(T$4,'Data(Step1)'!$AA$9:$AJ$509,$O15,FALSE) -> 0.00323240341
F16: 2 | H16: 0.005019748424 | J16: =$H$11*'Data(Step1)'!I12+$I$11*'Data(Step1)'!J12+$J$11*'Data(Step1)'!K12+$K$11*'Data(Step1)'!L12+$L$11*'Data(Step1)'!M12 -> 0.1592780977 | K16: =(J16-$F$11)/H16 -> 27.74603147 | M16: 2 | O16: 14 | P16: =HLOOKUP(P$4,'Data(Step1)'!$AA$9:$AJ$509,$O16,FALSE) -> -0.006630578899 | Q16: =HLOOKUP(Q$4,'Data(Step1)'!$AA$9:$AJ$509,$O16,FALSE) -> -0.01959555606 | R16: =HLOOKUP(R$4,'Data(Step1)'!$AA$9:$AJ$509,$O16,FALSE) -> -0.01297419971 | S16: =HLOOKUP(S$4,'Data(Step1)'!$AA$9:$AJ$509,$O16,FALSE) -> -0.007738191032 | T16: =HLOOKUP(T$4,'Data(Step1)'!$AA$9:$AJ$509,$O16,FALSE) -> 0.00639351478
F17: 3 | H17: 0.004361129608 | J17: =$H$11*'Data(Step1)'!I13+$I$11*'Data(Step1)'!J13+$J$11*'Data(Step1)'!K13+$K$11*'Data(Step1)'!L13+$L$11*'Data(Step1)'!M13 -> 0.1542957241 | K17: =(J17-$F$11)/H17 -> 30.79379338 | M17: 3 | O17: 15 | P17: =HLOOKUP(P$4,'Data(Step1)'!$AA$9:$AJ$509,$O17,FALSE) -> 0 | Q17: =HLOOKUP(Q$4,'Data(Step1)'!$AA$9:$AJ$509,$O17,FALSE) -> -0.006733382659 | R17: =HLOOKUP(R$4,'Data(Step1)'!$AA$9:$AJ$509,$O17,FALSE) -> 0.006432572895 | S17: =HLOOKUP(S$4,'Data(Step1)'!$AA$9:$AJ$509,$O17,FALSE) -> 0.002225016622 | T17: =HLOOKUP(T$4,'Data(Step1)'!$AA$9:$AJ$509,$O17,FALSE) -> -0.009162670699
F18: 4 | H18: 0.004352658565 | J18: =$H$11*'Data(Step1)'!I14+$I$11*'Data(Step1)'!J14+$J$11*'Data(Step1)'!K14+$K$11*'Data(Step1)'!L14+$L$11*'Data(Step1)'!M14 -> 0.1629003752 | K18: =(J18-$F$11)/H18 -> 32.83059608 | M18: 4 | O18: 16 | P18: =HLOOKUP(P$4,'Data(Step1)'!$AA$9:$AJ$509,$O18,FALSE) -> 0.00990828866 | Q18: =HLOOKUP(Q$4,'Data(Step1)'!$AA$9:$AJ$509,$O18,FALSE) -> 0.003379740651 | R18: =HLOOKUP(R$4,'Data(Step1)'!$AA$9:$AJ$509,$O18,FALSE) -> 0.01577587633 | S18: =HLOOKUP(S$4,'Data(Step1)'!$AA$9:$AJ$509,$O18,FALSE) -> 0.00551317441 | T18: =HLOOKUP(T$4,'Data(Step1)'!$AA$9:$AJ$509,$O18,FALSE) -> 0.005292130694
F19: 5 | H19: 0.004591575068 | J19: =$H$11*'Data(Step1)'!I15+$I$11*'Data(Step1)'!J15+$J$11*'Data(Step1)'!K15+$K$11*'Data(Step1)'!L15+$L$11*'Data(Step1)'!M15 -> 0.1905398555 | K19: 37.14190729 | M19: 5 | O19: 17 | P19: =HLOOKUP(P$4,'Data(Step1)'!$AA$9:$AJ$509,$O19,FALSE) -> 0.006482127528 | Q19: =HLOOKUP(Q$4,'Data(Step1)'!$AA$9:$AJ$509,$O19,FALSE) -> 0.01326193067 | R19: =HLOOKUP(R$4,'Data(Step1)'!$AA$9:$AJ$509,$O19,FALSE) -> -0.006705451857 | S19: =HLOOKUP(S$4,'Data(Step1)'!$AA$9:$AJ$509,$O19,FALSE) -> 0.01015227346 | T19: =HLOOKUP(T$4,'Data(Step1)'!$AA$9:$AJ$509,$O19,FALSE) -> 0.00793150501
F20: 6 | H20: 0.00497104853 | J20: =$H$11*'Data(Step1)'!I16+$I$11*'Data(Step1)'!J16+$J$11*'Data(Step1)'!K16+$K$11*'Data(Step1)'!L16+$L$11*'Data(Step1)'!M16 -> 0.1827240488 | K20: 32.73435126 | M20: 6 | O20: 18 | P20: =HLOOKUP(P$4,'Data(Step1)'!$AA$9:$AJ$509,$O20,FALSE) -> 0.006386798661 | Q20: =HLOOKUP(Q$4,'Data(Step1)'!$AA$9:$AJ$509,$O20,FALSE) -> -0.003277709761 | R20: =HLOOKUP(R$4,'Data(Step1)'!$AA$9:$AJ$509,$O20,FALSE) -> -0.01268999701 | S20: =HLOOKUP(S$4,'Data(Step1)'!$AA$9:$AJ$509,$O20,FALSE) -> 0.0112261172 | T20: =HLOOKUP(T$4,'Data(Step1)'!$AA$9:$AJ$509,$O20,FALSE) -> -0.005423102499
F21: 7 | H21: 0.005776236802 | J21: =$H$11*'Data(Step1)'!I17+$I$11*'Data(Step1)'!J17+$J$11*'Data(Step1)'!K17+$K$11*'Data(Step1)'!L17+$L$11*'Data(Step1)'!M17 -> 0.1244563119 | K21: 18.08380014 | M21: 7 | O21: 19 | P21: =HLOOKUP(P$4,'Data(Step1)'!$AA$9:$AJ$509,$O21,FALSE) -> 0.003158519245 | Q21: =HLOOKUP(Q$4,'Data(Step1)'!$AA$9:$AJ$509,$O21,FALSE) -> 0.006530867159 | R21: =HLOOKUP(R$4,'Data(Step1)'!$AA$9:$AJ$509,$O21,FALSE) -> 0.01056679778 | S21: =HLOOKUP(S$4,'Data(Step1)'!$AA$9:$AJ$509,$O21,FALSE) -> -0.0005218318224 | T21: =HLOOKUP(T$4,'Data(Step1)'!$AA$9:$AJ$509,$O21,FALSE) -> 0.007215858324
F22: 8 | H22: 0.004953898102 | J22: =$H$11*'Data(Step1)'!I18+$I$11*'Data(Step1)'!J18+$J$11*'Data(Step1)'!K18+$K$11*'Data(Step1)'!L18+$L$11*'Data(Step1)'!M18 -> 0.1194739382 | K22: 20.07993224 | M22: 8 | O22: 20 | P22: =HLOOKUP(P$4,'Data(Step1)'!$AA$9:$AJ$509,$O22,FALSE) -> 0 | Q22: =HLOOKUP(Q$4,'Data(Step1)'!$AA$9:$AJ$509,$O22,FALSE) -> -0.006530867159 | R22: =HLOOKUP(R$4,'Data(Step1)'!$AA$9:$AJ$509,$O22,FALSE) -> -0.007978314242 | S22: =HLOOKUP(S$4,'Data(Step1)'!$AA$9:$AJ$509,$O22,FALSE) -> 0.0003914326375 | T22: =HLOOKUP(T$4,'Data(Step1)'!$AA$9:$AJ$509,$O22,FALSE) -> 0.00311962488
F23: 9 | H23: 0.004978491252 | J23: =$H$11*'Data(Step1)'!I19+$I$11*'Data(Step1)'!J19+$J$11*'Data(Step1)'!K19+$K$11*'Data(Step1)'!L19+$L$11*'Data(Step1)'!M19 -> 0.1280785894 | K23: 21.70910501 | M23: 9 | O23: 21 | P23: =HLOOKUP(P$4,'Data(Step1)'!$AA$9:$AJ$509,$O23,FALSE) -> 0 | Q23: =HLOOKUP(Q$4,'Data(Step1)'!$AA$9:$AJ$509,$O23,FALSE) -> -0.006630578899 | R23: =HLOOKUP(R$4,'Data(Step1)'!$AA$9:$AJ$509,$O23,FALSE) -> 0.01201359978 | S23: =HLOOKUP(S$4,'Data(Step1)'!$AA$9:$AJ$509,$O23,FALSE) -> 0.01272325161 | T23: =HLOOKUP(T$4,'Data(Step1)'!$AA$9:$AJ$509,$O23,FALSE) -> 0.001772632999
F24: 10 | H24: 0.005262670553 | J24: =$H$11*'Data(Step1)'!I20+$I$11*'Data(Step1)'!J20+$J$11*'Data(Step1)'!K20+$K$11*'Data(Step1)'!L20+$L$11*'Data(Step1)'!M20 -> 0.1557180697 | K24: 25.78882115 | M24: 10 | O24: 22 | P24: =HLOOKUP(P$4,'Data(Step1)'!$AA$9:$AJ$509,$O24,FALSE) -> 0.003135713853 | Q24: =HLOOKUP(Q$4,'Data(Step1)'!$AA$9:$AJ$509,$O24,FALSE) -> 0 | R24: =HLOOKUP(R$4,'Data(Step1)'!$AA$9:$AJ$509,$O24,FALSE) -> -0.00708654738 | S24: =HLOOKUP(S$4,'Data(Step1)'!$AA$9:$AJ$509,$O24,FALSE) -> -0.004199803543 | T24: =HLOOKUP(T$4,'Data(Step1)'!$AA$9:$AJ$509,$O24,FALSE) -> 0.0004420300452
F25: 11 | H25: 0.005693080852 | J25: =$H$11*'Data(Step1)'!I21+$I$11*'Data(Step1)'!J21+$J$11*'Data(Step1)'!K21+$K$11*'Data(Step1)'!L21+$L$11*'Data(Step1)'!M21 -> 0.1479022629 | K25: 22.46626497 | M25: 11 | O25: 23 | P25: =HLOOKUP(P$4,'Data(Step1)'!$AA$9:$AJ$509,$O25,FALSE) -> 0 | Q25: =HLOOKUP(Q$4,'Data(Step1)'!$AA$9:$AJ$509,$O25,FALSE) -> 0.01959555606 | R25: =HLOOKUP(R$4,'Data(Step1)'!$AA$9:$AJ$509,$O25,FALSE) -> -0.006374702017 | S25: =HLOOKUP(S$4,'Data(Step1)'!$AA$9:$AJ$509,$O25,FALSE) -> 0.002423026446 | T25: =HLOOKUP(T$4,'Data(Step1)'!$AA$9:$AJ$509,$O25,FALSE) -> -0.00132744214
F26: 12 | H26: 0.005035902969 | J26: =$H$11*'Data(Step1)'!I22+$I$11*'Data(Step1)'!J22+$J$11*'Data(Step1)'!K22+$K$11*'Data(Step1)'!L22+$L$11*'Data(Step1)'!M22 -> 0.1570115169 | K26: 27.20694139 | M26: 12 | O26: 24 | P26: =HLOOKUP(P$4,'Data(Step1)'!$AA$9:$AJ$509,$O26,FALSE) -> 0.003113235424 | Q26: =HLOOKUP(Q$4,'Data(Step1)'!$AA$9:$AJ$509,$O26,FALSE) -> 0.006340178031 | R26: =HLOOKUP(R$4,'Data(Step1)'!$AA$9:$AJ$509,$O26,FALSE) -> 0.01013485089 | S26: =HLOOKUP(S$4,'Data(Step1)'!$AA$9:$AJ$509,$O26,FALSE) -> 0.01364519172 | T26: =HLOOKUP(T$4,'Data(Step1)'!$AA$9:$AJ$509,$O26,FALSE) -> 0
F27: 13 | H27: 0.005088318695 | J27: =$H$11*'Data(Step1)'!I23+$I$11*'Data(Step1)'!J23+$J$11*'Data(Step1)'!K23+$K$11*'Data(Step1)'!L23+$L$11*'Data(Step1)'!M23 -> 0.1656161681 | K27: 28.61773737 | M27: 13 | O27: 25 | P27: =HLOOKUP(P$4,'Data(Step1)'!$AA$9:$AJ$509,$O27,FALSE) -> 0 | Q27: =HLOOKUP(Q$4,'Data(Step1)'!$AA$9:$AJ$509,$O27,FALSE) -> 0.003135713853 | R27: =HLOOKUP(R$4,'Data(Step1)'!$AA$9:$AJ$509,$O27,FALSE) -> 0.01686985265 | S27: =HLOOKUP(S$4,'Data(Step1)'!$AA$9:$AJ$509,$O27,FALSE) -> 0.0009847951655 | T27: =HLOOKUP(T$4,'Data(Step1)'!$AA$9:$AJ$509,$O27,FALSE) -> 0.004628404182
F28: 14 | H28: 0.005354391109 | J28: =$H$11*'Data(Step1)'!I24+$I$11*'Data(Step1)'!J24+$J$11*'Data(Step1)'!K24+$K$11*'Data(Step1)'!L24+$L$11*'Data(Step1)'!M24 -> 0.1932556484 | K28: 32.3576752 | M28: 14 | O28: 26 | P28: =HLOOKUP(P$4,'Data(Step1)'!$AA$9:$AJ$509,$O28,FALSE) -> 0 | Q28: =HLOOKUP(Q$4,'Data(Step1)'!$AA$9:$AJ$509,$O28,FALSE) -> 0 | R28: =HLOOKUP(R$4,'Data(Step1)'!$AA$9:$AJ$509,$O28,FALSE) -> -0.0009744102851 | S28: =HLOOKUP(S$4,'Data(Step1)'!$AA$9:$AJ$509,$O28,FALSE) -> -0.003952650555 | T28: =HLOOKUP(T$4,'Data(Step1)'!$AA$9:$AJ$509,$O28,FALSE) -> 0.003493589332
F29: 15 | H29: 0.005780354809 | J29: =$H$11*'Data(Step1)'!I25+$I$11*'Data(Step1)'!J25+$J$11*'Data(Step1)'!K25+$K$11*'Data(Step1)'!L25+$L$11*'Data(Step1)'!M25 -> 0.1854398416 | K29: 28.62105305 | M29: 15 | O29: 27 | P29: =HLOOKUP(P$4,'Data(Step1)'!$AA$9:$AJ$509,$O29,FALSE) -> 0 | Q29: =HLOOKUP(Q$4,'Data(Step1)'!$AA$9:$AJ$509,$O29,FALSE) -> 0 | R29: =HLOOKUP(R$4,'Data(Step1)'!$AA$9:$AJ$509,$O29,FALSE) -> 0.0007797030495 | S29: =HLOOKUP(S$4,'Data(Step1)'!$AA$9:$AJ$509,$O29,FALSE) -> -0.01207849294 | T29: =HLOOKUP(T$4,'Data(Step1)'!$AA$9:$AJ$509,$O29,FALSE) -> -0.005911838709
F30: 16 | H30: 0.004453519543 | J30: =$H$11*'Data(Step1)'!I26+$I$11*'Data(Step1)'!J26+$J$11*'Data(Step1)'!K26+$K$11*'Data(Step1)'!L26+$L$11*'Data(Step1)'!M26 -> 0.1606337944 | K30: 31.57812446 | M30: 16 | O30: 28 | P30: =HLOOKUP(P$4,'Data(Step1)'!$AA$9:$AJ$509,$O30,FALSE) -> 0.003091076977 | Q30: =HLOOKUP(Q$4,'Data(Step1)'!$AA$9:$AJ$509,$O30,FALSE) -> 0 | R30: =HLOOKUP(R$4,'Data(Step1)'!$AA$9:$AJ$509,$O30,FALSE) -> 0.008294572677 | S30: =HLOOKUP(S$4,'Data(Step1)'!$AA$9:$AJ$509,$O30,FALSE) -> 0.004316320938 | T30: =HLOOKUP(T$4,'Data(Step1)'!$AA$9:$AJ$509,$O30,FALSE) -> -0.001545926562
F31: 17 | H31: 0.004601034973 | J31: =$H$11*'Data(Step1)'!I27+$I$11*'Data(Step1)'!J27+$J$11*'Data(Step1)'!K27+$K$11*'Data(Step1)'!L27+$L$11*'Data(Step1)'!M27 -> 0.1882732747 | K31: 36.57291798 | M31: 17 | O31: 29 | P31: =HLOOKUP(P$4,'Data(Step1)'!$AA$9:$AJ$509,$O31,FALSE) -> 0.00611692481 | Q31: =HLOOKUP(Q$4,'Data(Step1)'!$AA$9:$AJ$509,$O31,FALSE) -> -0.01268103176 | R31: =HLOOKUP(R$4,'Data(Step1)'!$AA$9:$AJ$509,$O31,FALSE) -> -0.0051896838 | S31: =HLOOKUP(S$4,'Data(Step1)'!$AA$9:$AJ$509,$O31,FALSE) -> -0.004443923255 | T31: =HLOOKUP(T$4,'Data(Step1)'!$AA$9:$AJ$509,$O31,FALSE) -> 0.004621368218
F32: 18 | H32: 0.005001716181 | J32: =$H$11*'Data(Step1)'!I28+$I$11*'Data(Step1)'!J28+$J$11*'Data(Step1)'!K28+$K$11*'Data(Step1)'!L28+$L$11*'Data(Step1)'!M28 -> 0.1804574679 | K32: 32.0804824 | M32: 18 | O32: 30 | P32: =HLOOKUP(P$4,'Data(Step1)'!$AA$9:$AJ$509,$O32,FALSE) -> -0.003047693082 | Q32: =HLOOKUP(Q$4,'Data(Step1)'!$AA$9:$AJ$509,$O32,FALSE) -> -0.006482127528 | R32: =HLOOKUP(R$4,'Data(Step1)'!$AA$9:$AJ$509,$O32,FALSE) -> -0.001743767829 | S32: =HLOOKUP(S$4,'Data(Step1)'!$AA$9:$AJ$509,$O32,FALSE) -> -0.008375616753 | T32: =HLOOKUP(T$4,'Data(Step1)'!$AA$9:$AJ$509,$O32,FALSE) -> -0.005728980351
F33: 19 | H33: 0.004662696131 | J33: =$H$11*'Data(Step1)'!I29+$I$11*'Data(Step1)'!J29+$J$11*'Data(Step1)'!K29+$K$11*'Data(Step1)'!L29+$L$11*'Data(Step1)'!M29 -> 0.1968779259 | K33: 37.93468862 | M33: 19 | O33: 31 | P33: =HLOOKUP(P$4,'Data(Step1)'!$AA$9:$AJ$509,$O33,FALSE) -> 0 | Q33: =HLOOKUP(Q$4,'Data(Step1)'!$AA$9:$AJ$509,$O33,FALSE) -> -0.003277709761 | R33: =HLOOKUP(R$4,'Data(Step1)'!$AA$9:$AJ$509,$O33,FALSE) -> -0.003410834735 | S33: =HLOOKUP(S$4,'Data(Step1)'!$AA$9:$AJ$509,$O33,FALSE) -> 0.006072340678 | T33: =HLOOKUP(T$4,'Data(Step1)'!$AA$9:$AJ$509,$O33,FALSE) -> 0.0006649062007
F34: 20 | H34: 0.005028517294 | J34: =$H$11*'Data(Step1)'!I30+$I$11*'Data(Step1)'!J30+$J$11*'Data(Step1)'!K30+$K$11*'Data(Step1)'!L30+$L$11*'Data(Step1)'!M30 -> 0.1890621191 | K34: 33.62066971 | M34: 20 | O34: 32 | P34: =HLOOKUP(P$4,'Data(Step1)'!$AA$9:$AJ$509,$O34,FALSE) -> 0.006074147712 | Q34: =HLOOKUP(Q$4,'Data(Step1)'!$AA$9:$AJ$509,$O34,FALSE) -> -0.00330263555 | R34: =HLOOKUP(R$4,'Data(Step1)'!$AA$9:$AJ$509,$O34,FALSE) -> 0.009483634241 | S34: =HLOOKUP(S$4,'Data(Step1)'!$AA$9:$AJ$509,$O34,FALSE) -> 0.01152109476 | T34: =HLOOKUP(T$4,'Data(Step1)'!$AA$9:$AJ$509,$O34,FALSE) -> 0.005282917431
F35: 21 | H35: 0.005314849903 | J35: =$H$11*'Data(Step1)'!I31+$I$11*'Data(Step1)'!J31+$J$11*'Data(Step1)'!K31+$K$11*'Data(Step1)'!L31+$L$11*'Data(Step1)'!M31 -> 0.2167015994 | K35: 37.00981269 | M35: 21 | O35: 33 | P35: =HLOOKUP(P$4,'Data(Step1)'!$AA$9:$AJ$509,$O35,FALSE) -> -0.006074147712 | Q35: =HLOOKUP(Q$4,'Data(Step1)'!$AA$9:$AJ$509,$O35,FALSE) -> 0 | R35: =HLOOKUP(R$4,'Data(Step1)'!$AA$9:$AJ$509,$O35,FALSE) -> -0.001054229647 | S35: =HLOOKUP(S$4,'Data(Step1)'!$AA$9:$AJ$509,$O35,FALSE) -> -0.00250603397 | T35: =HLOOKUP(T$4,'Data(Step1)'!$AA$9:$AJ$509,$O35,FALSE) -> 0
F36: 22 | H36: 0.005711494801 | J36: =$H$11*'Data(Step1)'!I32+$I$11*'Data(Step1)'!J32+$J$11*'Data(Step1)'!K32+$K$11*'Data(Step1)'!L32+$L$11*'Data(Step1)'!M32 -> 0.08964480704 | K36: 12.1937968 | M36: 22 | O36: 34 | P36: =HLOOKUP(P$4,'Data(Step1)'!$AA$9:$AJ$509,$O36,FALSE) -> -0.006160308705 | Q36: =HLOOKUP(Q$4,'Data(Step1)'!$AA$9:$AJ$509,$O36,FALSE) -> -0.003327943349 | R36: =HLOOKUP(R$4,'Data(Step1)'!$AA$9:$AJ$509,$O36,FALSE) -> 0.005150928385 | S36: =HLOOKUP(S$4,'Data(Step1)'!$AA$9:$AJ$509,$O36,FALSE) -> -0.00505587179 | T36: =HLOOKUP(T$4,'Data(Step1)'!$AA$9:$AJ$509,$O36,FALSE) -> -0.004840211499
F37: 23 | H37: 0.004879390787 | J37: =$H$11*'Data(Step1)'!I33+$I$11*'Data(Step1)'!J33+$J$11*'Data(Step1)'!K33+$K$11*'Data(Step1)'!L33+$L$11*'Data(Step1)'!M33 -> 0.08466243336 | K37: 13.25215302 | M37: 23 | O37: 35 | P37: =HLOOKUP(P$4,'Data(Step1)'!$AA$9:$AJ$509,$O37,FALSE) -> 0 | Q37: =HLOOKUP(Q$4,'Data(Step1)'!$AA$9:$AJ$509,$O37,FALSE) -> 0 | R37: =HLOOKUP(R$4,'Data(Step1)'!$AA$9:$AJ$509,$O37,FALSE) -> -0.009006208757 | S37: =HLOOKUP(S$4,'Data(Step1)'!$AA$9:$AJ$509,$O37,FALSE) -> -0.01685030292 | T37: =HLOOKUP(T$4,'Data(Step1)'!$AA$9:$AJ$509,$O37,FALSE) -> -0.002663030205
F38: 24 | H38: 0.004911817078 | J38: =$H$11*'Data(Step1)'!I34+$I$11*'Data(Step1)'!J34+$J$11*'Data(Step1)'!K34+$K$11*'Data(Step1)'!L34+$L$11*'Data(Step1)'!M34 -> 0.09326708453 | K38: 14.91649289 | M38: 24 | O38: 36 | P38: =HLOOKUP(P$4,'Data(Step1)'!$AA$9:$AJ$509,$O38,FALSE) -> -0.006248949277 | Q38: =HLOOKUP(Q$4,'Data(Step1)'!$AA$9:$AJ$509,$O38,FALSE) -> -0.006733382659 | R38: =HLOOKUP(R$4,'Data(Step1)'!$AA$9:$AJ$509,$O38,FALSE) -> -0.01058351202 | S38: =HLOOKUP(S$4,'Data(Step1)'!$AA$9:$AJ$509,$O38,FALSE) -> -0.004250010498 | T38: =HLOOKUP(T$4,'Data(Step1)'!$AA$9:$AJ$509,$O38,FALSE) -> -0.002455539464
F39: 25 | H39: 0.00517969615 | J39: =$H$11*'Data(Step1)'!I35+$I$11*'Data(Step1)'!J35+$J$11*'Data(Step1)'!K35+$K$11*'Data(Step1)'!L35+$L$11*'Data(Step1)'!M35 -> 0.1209065648 | K39: 19.48117455 | M39: 25 | O39: 37 | P39: =HLOOKUP(P$4,'Data(Step1)'!$AA$9:$AJ$509,$O39,FALSE) -> 0.006248949277 | Q39: =HLOOKUP(Q$4,'Data(Step1)'!$AA$9:$AJ$509,$O39,FALSE) -> 0.006733382659 | R39: =HLOOKUP(R$4,'Data(Step1)'!$AA$9:$AJ$509,$O39,FALSE) -> 0.004637517802 | S39: =HLOOKUP(S$4,'Data(Step1)'!$AA$9:$AJ$509,$O39,FALSE) -> 0.008458833088 | T39: =HLOOKUP(T$4,'Data(Step1)'!$AA$9:$AJ$509,$O39,FALSE) -> -0.0006721092111
F40: 26 | H40: 0.005618732074 | J40: =$H$11*'Data(Step1)'!I36+$I$11*'Data(Step1)'!J36+$J$11*'Data(Step1)'!K36+$K$11*'Data(Step1)'!L36+$L$11*'Data(Step1)'!M36 -> 0.1130907581 | K40: 16.56792971 | M40: 26 | O40: 38 | P40: =HLOOKUP(P$4,'Data(Step1)'!$AA$9:$AJ$509,$O40,FALSE) -> 0 | Q40: =HLOOKUP(Q$4,'Data(Step1)'!$AA$9:$AJ$509,$O40,FALSE) -> 0.003327943349 | R40: =HLOOKUP(R$4,'Data(Step1)'!$AA$9:$AJ$509,$O40,FALSE) -> 0.01257510628 | S40: =HLOOKUP(S$4,'Data(Step1)'!$AA$9:$AJ$509,$O40,FALSE) -> 0.01957823198 | T40: =HLOOKUP(T$4,'Data(Step1)'!$AA$9:$AJ$509,$O40,FALSE) -> 0.002682218399
F41: 27 | H41: 0.004964726312 | J41: =$H$11*'Data(Step1)'!I37+$I$11*'Data(Step1)'!J37+$J$11*'Data(Step1)'!K37+$K$11*'Data(Step1)'!L37+$L$11*'Data(Step1)'!M37 -> 0.1222000121 | K41: 20.58522578 | M41: 27 | O41: 39 | P41: =HLOOKUP(P$4,'Data(Step1)'!$AA$9:$AJ$509,$O41,FALSE) -> -0.009407468522 | Q41: =HLOOKUP(Q$4,'Data(Step1)'!$AA$9:$AJ$509,$O41,FALSE) -> 0 | R41: =HLOOKUP(R$4,'Data(Step1)'!$AA$9:$AJ$509,$O41,FALSE) -> -0.002869797768 | S41: =HLOOKUP(S$4,'Data(Step1)'!$AA$9:$AJ$509,$O41,FALSE) -> 0.001124630275 | T41: =HLOOKUP(T$4,'Data(Step1)'!$AA$9:$AJ$509,$O41,FALSE) -> 0.0004454302769
F42: 28 | H42: 0.005025176574 | J42: =$H$11*'Data(Step1)'!I38+$I$11*'Data(Step1)'!J38+$J$11*'Data(Step1)'!K38+$K$11*'Data(Step1)'!L38+$L$11*'Data(Step1)'!M38 -> 0.1308046633 | K42: 22.04990444 | M42: 28 | O42: 40 | P42: =HLOOKUP(P$4,'Data(Step1)'!$AA$9:$AJ$509,$O42,FALSE) -> -0.006386798661 | Q42: =HLOOKUP(Q$4,'Data(Step1)'!$AA$9:$AJ$509,$O42,FALSE) -> 0.01306247284 | R42: =HLOOKUP(R$4,'Data(Step1)'!$AA$9:$AJ$509,$O42,FALSE) -> 0.01192775597 | S42: =HLOOKUP(S$4,'Data(Step1)'!$AA$9:$AJ$509,$O42,FALSE) -> 0.009260361119 | T42: =HLOOKUP(T$4,'Data(Step1)'!$AA$9:$AJ$509,$O42,FALSE) -> 0.004208956767
F43: 29 | H43: 0.005274836074 | J43: =$H$11*'Data(Step1)'!I39+$I$11*'Data(Step1)'!J39+$J$11*'Data(Step1)'!K39+$K$11*'Data(Step1)'!L39+$L$11*'Data(Step1)'!M39 -> 0.1584441435 | K43: 26.2461509 | M43: 29 | O43: 41 | P43: =HLOOKUP(P$4,'Data(Step1)'!$AA$9:$AJ$509,$O43,FALSE) -> -0.009759837289 | Q43: =HLOOKUP(Q$4,'Data(Step1)'!$AA$9:$AJ$509,$O43,FALSE) -> 0.003205139875 | R43: =HLOOKUP(R$4,'Data(Step1)'!$AA$9:$AJ$509,$O43,FALSE) -> -0.002528514099 | S43: =HLOOKUP(S$4,'Data(Step1)'!$AA$9:$AJ$509,$O43,FALSE) -> -0.00183634304 | T43: =HLOOKUP(T$4,'Data(Step1)'!$AA$9:$AJ$509,$O43,FALSE) -> -0.002210154805
F44: 30 | H44: 0.005708968633 | J44: =$H$11*'Data(Step1)'!I40+$I$11*'Data(Step1)'!J40+$J$11*'Data(Step1)'!K40+$K$11*'Data(Step1)'!L40+$L$11*'Data(Step1)'!M40 -> 0.1506283368 | K44: 22.88124969 | M44: 30 | O44: 42 | P44: =HLOOKUP(P$4,'Data(Step1)'!$AA$9:$AJ$509,$O44,FALSE) -> 0.009759837289 | Q44: =HLOOKUP(Q$4,'Data(Step1)'!$AA$9:$AJ$509,$O44,FALSE) -> -0.003205139875 | R44: =HLOOKUP(R$4,'Data(Step1)'!$AA$9:$AJ$509,$O44,FALSE) -> 0.007634097428 | S44: =HLOOKUP(S$4,'Data(Step1)'!$AA$9:$AJ$509,$O44,FALSE) -> 0.003786588167 | T44: =HLOOKUP(T$4,'Data(Step1)'!$AA$9:$AJ$509,$O44,FALSE) -> -0.001109309625
F45: 31 | H45: 0.004382503343 | J45: =$H$11*'Data(Step1)'!I41+$I$11*'Data(Step1)'!J41+$J$11*'Data(Step1)'!K41+$K$11*'Data(Step1)'!L41+$L$11*'Data(Step1)'!M41 -> 0.1258222896 | K45: 24.14653938 | M45: 31 | O45: 43 | P45: =HLOOKUP(P$4,'Data(Step1)'!$AA$9:$AJ$509,$O45,FALSE) -> -0.00322897013 | Q45: =HLOOKUP(Q$4,'Data(Step1)'!$AA$9:$AJ$509,$O45,FALSE) -> 0 | R45: =HLOOKUP(R$4,'Data(Step1)'!$AA$9:$AJ$509,$O45,FALSE) -> -0.00566620451 | S45: =HLOOKUP(S$4,'Data(Step1)'!$AA$9:$AJ$509,$O45,FALSE) -> -0.005015144805 | T45: =HLOOKUP(T$4,'Data(Step1)'!$AA$9:$AJ$509,$O45,FALSE) -> 0.005299032475
F46: 32 | H46: 0.004509434672 | J46: =$H$11*'Data(Step1)'!I42+$I$11*'Data(Step1)'!J42+$J$11*'Data(Step1)'!K42+$K$11*'Data(Step1)'!L42+$L$11*'Data(Step1)'!M42 -> 0.1534617699 | K46: 29.59612004 | M46: 32 | O46: 44 | P46: =HLOOKUP(P$4,'Data(Step1)'!$AA$9:$AJ$509,$O46,FALSE) -> 0.00322897013 | Q46: =HLOOKUP(Q$4,'Data(Step1)'!$AA$9:$AJ$509,$O46,FALSE) -> -0.00322897013 | R46: =HLOOKUP(R$4,'Data(Step1)'!$AA$9:$AJ$509,$O46,FALSE) -> 0.00677221822 | S46: =HLOOKUP(S$4,'Data(Step1)'!$AA$9:$AJ$509,$O46,FALSE) -> 0.01842701347 | T46: =HLOOKUP(T$4,'Data(Step1)'!$AA$9:$AJ$509,$O46,FALSE) -> -0.0008786942439
F47: 33 | H47: 0.004920169984 | J47: =$H$11*'Data(Step1)'!I43+$I$11*'Data(Step1)'!J43+$J$11*'Data(Step1)'!K43+$K$11*'Data(Step1)'!L43+$L$11*'Data(Step1)'!M43 -> 0.1456459631 | K47: 25.53691509 | M47: 33 | O47: 45 | P47: =HLOOKUP(P$4,'Data(Step1)'!$AA$9:$AJ$509,$O47,FALSE) -> 0.003205139875 | Q47: =HLOOKUP(Q$4,'Data(Step1)'!$AA$9:$AJ$509,$O47,FALSE) -> 0.00322897013 | R47: =HLOOKUP(R$4,'Data(Step1)'!$AA$9:$AJ$509,$O47,FALSE) -> 0.009289101689 | S47: =HLOOKUP(S$4,'Data(Step1)'!$AA$9:$AJ$509,$O47,FALSE) -> -0.00713338482 | T47: =HLOOKUP(T$4,'Data(Step1)'!$AA$9:$AJ$509,$O47,FALSE) -> 0.001098090299
F48: 34 | H48: 0.004580331566 | J48: =$H$11*'Data(Step1)'!I44+$I$11*'Data(Step1)'!J44+$J$11*'Data(Step1)'!K44+$K$11*'Data(Step1)'!L44+$L$11*'Data(Step1)'!M44 -> 0.162066421 | K48: 31.01662379 | M48: 34 | O48: 46 | P48: =HLOOKUP(P$4,'Data(Step1)'!$AA$9:$AJ$509,$O48,FALSE) -> -0.009687267403 | Q48: =HLOOKUP(Q$4,'Data(Step1)'!$AA$9:$AJ$509,$O48,FALSE) -> -0.006482127528 | R48: =HLOOKUP(R$4,'Data(Step1)'!$AA$9:$AJ$509,$O48,FALSE) -> -0.007360329539 | S48: =HLOOKUP(S$4,'Data(Step1)'!$AA$9:$AJ$509,$O48,FALSE) -> -0.001681451975 | T48: =HLOOKUP(T$4,'Data(Step1)'!$AA$9:$AJ$509,$O48,FALSE) -> 0.001969592863
F49: 35 | H49: 0.004954807554 | J49: =$H$11*'Data(Step1)'!I45+$I$11*'Data(Step1)'!J45+$J$11*'Data(Step1)'!K45+$K$11*'Data(Step1)'!L45+$L$11*'Data(Step1)'!M45 -> 0.1542506143 | K49: 27.09502091 | M49: 35 | O49: 47 | P49: =HLOOKUP(P$4,'Data(Step1)'!$AA$9:$AJ$509,$O49,FALSE) -> 0.003253157398 | Q49: =HLOOKUP(Q$4,'Data(Step1)'!$AA$9:$AJ$509,$O49,FALSE) -> 0.003253157398 | R49: =HLOOKUP(R$4,'Data(Step1)'!$AA$9:$AJ$509,$O49,FALSE) -> 0.001920244021 | S49: =HLOOKUP(S$4,'Data(Step1)'!$AA$9:$AJ$509,$O49,FALSE) -> 0.01022756067 | T49: =HLOOKUP(T$4,'Data(Step1)'!$AA$9:$AJ$509,$O49,FALSE) -> 0.004020770826
F50: 36 | H50: 0.005225393786 | J50: =$H$11*'Data(Step1)'!I46+$I$11*'Data(Step1)'!J46+$J$11*'Data(Step1)'!K46+$K$11*'Data(Step1)'!L46+$L$11*'Data(Step1)'!M46 -> 0.1818900946 | K50: 30.98141522 | M50: 36 | O50: 48 | P50: =HLOOKUP(P$4,'Data(Step1)'!$AA$9:$AJ$509,$O50,FALSE) -> 0 | Q50: =HLOOKUP(Q$4,'Data(Step1)'!$AA$9:$AJ$509,$O50,FALSE) -> 0.006434110005 | R50: =HLOOKUP(R$4,'Data(Step1)'!$AA$9:$AJ$509,$O50,FALSE) -> -0.007082794938 | S50: =HLOOKUP(S$4,'Data(Step1)'!$AA$9:$AJ$509,$O50,FALSE) -> -0.005083673869 | T50: =HLOOKUP(T$4,'Data(Step1)'!$AA$9:$AJ$509,$O50,FALSE) -> -0.003475243205
F51: 37 | H51: 0.005699951659 | J51: =$H$11*'Data(Step1)'!I47+$I$11*'Data(Step1)'!J47+$J$11*'Data(Step1)'!K47+$K$11*'Data(Step1)'!L47+$L$11*'Data(Step1)'!M47 -> 0.08737822623 | K51: 11.82084169 | M51: 37 | O51: 49 | P51: =HLOOKUP(P$4,'Data(Step1)'!$AA$9:$AJ$509,$O51,FALSE) -> 0.00322897013 | Q51: =HLOOKUP(Q$4,'Data(Step1)'!$AA$9:$AJ$509,$O51,FALSE) -> 0.006340178031 | R51: =HLOOKUP(R$4,'Data(Step1)'!$AA$9:$AJ$509,$O51,FALSE) -> 0.001481287241 | S51: =HLOOKUP(S$4,'Data(Step1)'!$AA$9:$AJ$509,$O51,FALSE) -> -0.0002379044058 | T51: =HLOOKUP(T$4,'Data(Step1)'!$AA$9:$AJ$509,$O51,FALSE) -> -0.0009824436355
F52: 38 | H52: 0.005780261654 | J52: =$H$11*'Data(Step1)'!I48+$I$11*'Data(Step1)'!J48+$J$11*'Data(Step1)'!K48+$K$11*'Data(Step1)'!L48+$L$11*'Data(Step1)'!M48 -> 0.09598287739 | K52: 13.14523147 | M52: 38 | O52: 50 | P52: =HLOOKUP(P$4,'Data(Step1)'!$AA$9:$AJ$509,$O52,FALSE) -> 0.01579426718 | Q52: =HLOOKUP(Q$4,'Data(Step1)'!$AA$9:$AJ$509,$O52,FALSE) -> 0.006248949277 | R52: =HLOOKUP(R$4,'Data(Step1)'!$AA$9:$AJ$509,$O52,FALSE) -> -0.003060710565 | S52: =HLOOKUP(S$4,'Data(Step1)'!$AA$9:$AJ$509,$O52,FALSE) -> -0.006956536461 | T52: =HLOOKUP(T$4,'Data(Step1)'!$AA$9:$AJ$509,$O52,FALSE) -> -0.003841881965
F53: 39 | H53: 0.006062699231 | J53: =$H$11*'Data(Step1)'!I49+$I$11*'Data(Step1)'!J49+$J$11*'Data(Step1)'!K49+$K$11*'Data(Step1)'!L49+$L$11*'Data(Step1)'!M49 -> 0.1236223577 | K53: 17.09178598 | M53: 39 | O53: 51 | P53: =HLOOKUP(P$4,'Data(Step1)'!$AA$9:$AJ$509,$O53,FALSE) -> -0.006248949277 | Q53: =HLOOKUP(Q$4,'Data(Step1)'!$AA$9:$AJ$509,$O53,FALSE) -> -0.01579426718 | R53: =HLOOKUP(R$4,'Data(Step1)'!$AA$9:$AJ$509,$O53,FALSE) -> 0.004536962616 | S53: =HLOOKUP(S$4,'Data(Step1)'!$AA$9:$AJ$509,$O53,FALSE) -> 0.008619137001 | T53: =HLOOKUP(T$4,'Data(Step1)'!$AA$9:$AJ$509,$O53,FALSE) -> 0.001211114817
F54: 40 | H54: 0.00652774506 | J54: =$H$11*'Data(Step1)'!I50+$I$11*'Data(Step1)'!J50+$J$11*'Data(Step1)'!K50+$K$11*'Data(Step1)'!L50+$L$11*'Data(Step1)'!M50 -> 0.1158065509 | K54: 14.67682179 | M54: 40 | O54: 52 | P54: =HLOOKUP(P$4,'Data(Step1)'!$AA$9:$AJ$509,$O54,FALSE) -> -0.006340178031 | Q54: =HLOOKUP(Q$4,'Data(Step1)'!$AA$9:$AJ$509,$O54,FALSE) -> 0 | R54: =HLOOKUP(R$4,'Data(Step1)'!$AA$9:$AJ$509,$O54,FALSE) -> -0.01138525166 | S54: =HLOOKUP(S$4,'Data(Step1)'!$AA$9:$AJ$509,$O54,FALSE) -> -0.00644826309 | T54: =HLOOKUP(T$4,'Data(Step1)'!$AA$9:$AJ$509,$O54,FALSE) -> 0.0009884061257
F55: 41 | H55: 0.00497191898 | J55: =$H$11*'Data(Step1)'!I51+$I$11*'Data(Step1)'!J51+$J$11*'Data(Step1)'!K51+$K$11*'Data(Step1)'!L51+$L$11*'Data(Step1)'!M51 -> 0.09100050372 | K55: 14.28030183 | M55: 41 | O55: 53 | P55: =HLOOKUP(P$4,'Data(Step1)'!$AA$9:$AJ$509,$O55,FALSE) -> 0.006340178031 | Q55: =HLOOKUP(Q$4,'Data(Step1)'!$AA$9:$AJ$509,$O55,FALSE) -> -0.00322897013 | R55: =HLOOKUP(R$4,'Data(Step1)'!$AA$9:$AJ$509,$O55,FALSE) -> -0.008112538044 | S55: =HLOOKUP(S$4,'Data(Step1)'!$AA$9:$AJ$509,$O55,FALSE) -> -0.005569506541 | T55: =HLOOKUP(T$4,'Data(Step1)'!$AA$9:$AJ$509,$O55,FALSE) -> 0.002406675832
F56: 42 | H56: 0.005159655513 | J56: =$H$11*'Data(Step1)'!I52+$I$11*'Data(Step1)'!J52+$J$11*'Data(Step1)'!K52+$K$11*'Data(Step1)'!L52+$L$11*'Data(Step1)'!M52 -> 0.118639984 | K56: 19.11755228 | M56: 42 | O56: 54 | P56: =HLOOKUP(P$4,'Data(Step1)'!$AA$9:$AJ$509,$O56,FALSE) -> 0 | Q56: =HLOOKUP(Q$4,'Data(Step1)'!$AA$9:$AJ$509,$O56,FALSE) -> -0.003253157398 | R56: =HLOOKUP(R$4,'Data(Step1)'!$AA$9:$AJ$509,$O56,FALSE) -> -0.01769665528 | S56: =HLOOKUP(S$4,'Data(Step1)'!$AA$9:$AJ$509,$O56,FALSE) -> -0.02715224604 | T56: =HLOOKUP(T$4,'Data(Step1)'!$AA$9:$AJ$509,$O56,FALSE) -> -0.007371356262
F57: 43 | H57: 0.005619770724 | J57: =$H$11*'Data(Step1)'!I53+$I$11*'Data(Step1)'!J53+$J$11*'Data(Step1)'!K53+$K$11*'Data(Step1)'!L53+$L$11*'Data(Step1)'!M53 -> 0.1108241773 | K57: 16.16154497 | M57: 43 | O57: 55 | P57: =HLOOKUP(P$4,'Data(Step1)'!$AA$9:$AJ$509,$O57,FALSE) -> 0.003135713853 | Q57: =HLOOKUP(Q$4,'Data(Step1)'!$AA$9:$AJ$509,$O57,FALSE) -> 0 | R57: =HLOOKUP(R$4,'Data(Step1)'!$AA$9:$AJ$509,$O57,FALSE) -> 0.006375079344 | S57: =HLOOKUP(S$4,'Data(Step1)'!$AA$9:$AJ$509,$O57,FALSE) -> 0.01177299325 | T57: =HLOOKUP(T$4,'Data(Step1)'!$AA$9:$AJ$509,$O57,FALSE) -> -0.004013016579
F58: 44 | H58: 0.005252100992 | J58: =$H$11*'Data(Step1)'!I54+$I$11*'Data(Step1)'!J54+$J$11*'Data(Step1)'!K54+$K$11*'Data(Step1)'!L54+$L$11*'Data(Step1)'!M54 -> 0.1272446352 | K58: 20.41937795 | M58: 44 | O58: 56 | P58: =HLOOKUP(P$4,'Data(Step1)'!$AA$9:$AJ$509,$O58,FALSE) -> -0.01268103176 | Q58: =HLOOKUP(Q$4,'Data(Step1)'!$AA$9:$AJ$509,$O58,FALSE) -> -0.006580345311 | R58: =HLOOKUP(R$4,'Data(Step1)'!$AA$9:$AJ$509,$O58,FALSE) -> -0.002081524952 | S58: =HLOOKUP(S$4,'Data(Step1)'!$AA$9:$AJ$509,$O58,FALSE) -> -0.01975873849 | T58: =HLOOKUP(T$4,'Data(Step1)'!$AA$9:$AJ$509,$O58,FALSE) -> 0.0008949915211
F59: 45 | H59: 0.005678199701 | J59: =$H$11*'Data(Step1)'!I55+$I$11*'Data(Step1)'!J55+$J$11*'Data(Step1)'!K55+$K$11*'Data(Step1)'!L55+$L$11*'Data(Step1)'!M55 -> 0.1194288284 | K59: 17.51062549 | M59: 45 | O59: 57 | P59: =HLOOKUP(P$4,'Data(Step1)'!$AA$9:$AJ$509,$O59,FALSE) -> 0.003205139875 | Q59: =HLOOKUP(Q$4,'Data(Step1)'!$AA$9:$AJ$509,$O59,FALSE) -> 0.009833502709 | R59: =HLOOKUP(R$4,'Data(Step1)'!$AA$9:$AJ$509,$O59,FALSE) -> -0.002991020651 | S59: =HLOOKUP(S$4,'Data(Step1)'!$AA$9:$AJ$509,$O59,FALSE) -> 0.0121169962 | T59: =HLOOKUP(T$4,'Data(Step1)'!$AA$9:$AJ$509,$O59,FALSE) -> -0.001455299278
F60: 46 | H60: 0.005980800559 | J60: =$H$11*'Data(Step1)'!I56+$I$11*'Data(Step1)'!J56+$J$11*'Data(Step1)'!K56+$K$11*'Data(Step1)'!L56+$L$11*'Data(Step1)'!M56 -> 0.1470683087 | K60: 21.24603679 | M60: 46 | O60: 58 | P60: =HLOOKUP(P$4,'Data(Step1)'!$AA$9:$AJ$509,$O60,FALSE) -> -0.006434110005 | Q60: =HLOOKUP(Q$4,'Data(Step1)'!$AA$9:$AJ$509,$O60,FALSE) -> -0.006530867159 | R60: =HLOOKUP(R$4,'Data(Step1)'!$AA$9:$AJ$509,$O60,FALSE) -> -0.01135210069 | S60: =HLOOKUP(S$4,'Data(Step1)'!$AA$9:$AJ$509,$O60,FALSE) -> -0.01027117595 | T60: =HLOOKUP(T$4,'Data(Step1)'!$AA$9:$AJ$509,$O60,FALSE) -> -0.005189034762
F61: 47 | H61: 0.00508632542 | J61: =$H$11*'Data(Step1)'!I57+$I$11*'Data(Step1)'!J57+$J$11*'Data(Step1)'!K57+$K$11*'Data(Step1)'!L57+$L$11*'Data(Step1)'!M57 -> 0.1285380824 | K61: 21.33919352 | M61: 47 | O61: 59 | P61: =HLOOKUP(P$4,'Data(Step1)'!$AA$9:$AJ$509,$O61,FALSE) -> 0.006434110005 | Q61: =HLOOKUP(Q$4,'Data(Step1)'!$AA$9:$AJ$509,$O61,FALSE) -> 0.006530867159 | R61: =HLOOKUP(R$4,'Data(Step1)'!$AA$9:$AJ$509,$O61,FALSE) -> 0.009949210052 | S61: =HLOOKUP(S$4,'Data(Step1)'!$AA$9:$AJ$509,$O61,FALSE) -> 0.01410885466 | T61: =HLOOKUP(T$4,'Data(Step1)'!$AA$9:$AJ$509,$O61,FALSE) -> 0.0007936463175
F62: 48 | H62: 0.005257467428 | J62: =$H$11*'Data(Step1)'!I58+$I$11*'Data(Step1)'!J58+$J$11*'Data(Step1)'!K58+$K$11*'Data(Step1)'!L58+$L$11*'Data(Step1)'!M58 -> 0.1561775627 | K62: 25.90174159 | M62: 48 | O62: 60 | P62: =HLOOKUP(P$4,'Data(Step1)'!$AA$9:$AJ$509,$O62,FALSE) -> 0.003181658786 | Q62: =HLOOKUP(Q$4,'Data(Step1)'!$AA$9:$AJ$509,$O62,FALSE) -> 0.009615768792 | R62: =HLOOKUP(R$4,'Data(Step1)'!$AA$9:$AJ$509,$O62,FALSE) -> -0.0006026288875 | S62: =HLOOKUP(S$4,'Data(Step1)'!$AA$9:$AJ$509,$O62,FALSE) -> -0.00127546195 | T62: =HLOOKUP(T$4,'Data(Step1)'!$AA$9:$AJ$509,$O62,FALSE) -> 0.007635156516
F63: 49 | H63: 0.005712116163 | J63: =$H$11*'Data(Step1)'!I59+$I$11*'Data(Step1)'!J59+$J$11*'Data(Step1)'!K59+$K$11*'Data(Step1)'!L59+$L$11*'Data(Step1)'!M59 -> 0.148361756 | K63: 22.47183921 | M63: 49 | O63: 61 | P63: =HLOOKUP(P$4,'Data(Step1)'!$AA$9:$AJ$509,$O63,FALSE) -> -0.003181658786 | Q63: =HLOOKUP(Q$4,'Data(Step1)'!$AA$9:$AJ$509,$O63,FALSE) -> 0.003158519245 | R63: =HLOOKUP(R$4,'Data(Step1)'!$AA$9:$AJ$509,$O63,FALSE) -> 0.005790678881 | S63: =HLOOKUP(S$4,'Data(Step1)'!$AA$9:$AJ$509,$O63,FALSE) -> 0.0008932165256 | T63: =HLOOKUP(T$4,'Data(Step1)'!$AA$9:$AJ$509,$O63,FALSE) -> 0.0017771666
F64: 50 | H64: 0.005374931001 | J64: =$H$11*'Data(Step1)'!I60+$I$11*'Data(Step1)'!J60+$J$11*'Data(Step1)'!K60+$K$11*'Data(Step1)'!L60+$L$11*'Data(Step1)'!M60 -> 0.1647822139 | K64: 26.93657162 | M64: 50 | O64: 62 | P64: =HLOOKUP(P$4,'Data(Step1)'!$AA$9:$AJ$509,$O64,FALSE) -> 0.006340178031 | Q64: =HLOOKUP(Q$4,'Data(Step1)'!$AA$9:$AJ$509,$O64,FALSE) -> 0.003135713853 | R64: =HLOOKUP(R$4,'Data(Step1)'!$AA$9:$AJ$509,$O64,FALSE) -> 0.008349240737 | S64: =HLOOKUP(S$4,'Data(Step1)'!$AA$9:$AJ$509,$O64,FALSE) -> 0.01797853873 | T64: =HLOOKUP(T$4,'Data(Step1)'!$AA$9:$AJ$509,$O64,FALSE) -> 0.0008858636053
F65: 51 | H65: 0.00579437655 | J65: =$H$11*'Data(Step1)'!I61+$I$11*'Data(Step1)'!J61+$J$11*'Data(Step1)'!K61+$K$11*'Data(Step1)'!L61+$L$11*'Data(Step1)'!M61 -> 0.1569664071 | K65: 23.63781607 | M65: 51 | O65: 63 | P65: =HLOOKUP(P$4,'Data(Step1)'!$AA$9:$AJ$509,$O65,FALSE) -> -0.006340178031 | Q65: =HLOOKUP(Q$4,'Data(Step1)'!$AA$9:$AJ$509,$O65,FALSE) -> 0 | R65: =HLOOKUP(R$4,'Data(Step1)'!$AA$9:$AJ$509,$O65,FALSE) -> -0.006864133345 | S65: =HLOOKUP(S$4,'Data(Step1)'!$AA$9:$AJ$509,$O65,FALSE) -> -0.001347410276 | T65: =HLOOKUP(T$4,'Data(Step1)'!$AA$9:$AJ$509,$O65,FALSE) -> 0.001656139602
F66: 52 | H66: 0.006080379421 | J66: =$H$11*'Data(Step1)'!I62+$I$11*'Data(Step1)'!J62+$J$11*'Data(Step1)'!K62+$K$11*'Data(Step1)'!L62+$L$11*'Data(Step1)'!M62 -> 0.1846058874 | K66: 27.07164735 | M66: 52 | O66: 64 | P66: =HLOOKUP(P$4,'Data(Step1)'!$AA$9:$AJ$509,$O66,FALSE) -> -0.006434110005 | Q66: =HLOOKUP(Q$4,'Data(Step1)'!$AA$9:$AJ$509,$O66,FALSE) -> 0.009273544129 | R66: =HLOOKUP(R$4,'Data(Step1)'!$AA$9:$AJ$509,$O66,FALSE) -> 0.01600953962 | S66: =HLOOKUP(S$4,'Data(Step1)'!$AA$9:$AJ$509,$O66,FALSE) -> 0.01126213584 | T66: =HLOOKUP(T$4,'Data(Step1)'!$AA$9:$AJ$509,$O66,FALSE) -> 0.003293452198
F67: 53 | H67: 0.004639209058 | J67: =$H$11*'Data(Step1)'!I63+$I$11*'Data(Step1)'!J63+$J$11*'Data(Step1)'!K63+$K$11*'Data(Step1)'!L63+$L$11*'Data(Step1)'!M63 -> 0.1597998402 | K67: 30.13441267 | M67: 53 | O67: 65 | P67: =HLOOKUP(P$4,'Data(Step1)'!$AA$9:$AJ$509,$O67,FALSE) -> 0.006434110005 | Q67: =HLOOKUP(Q$4,'Data(Step1)'!$AA$9:$AJ$509,$O67,FALSE) -> 0.01502899037 | R67: =HLOOKUP(R$4,'Data(Step1)'!$AA$9:$AJ$509,$O67,FALSE) -> -0.000953655372 | S67: =HLOOKUP(S$4,'Data(Step1)'!$AA$9:$AJ$509,$O67,FALSE) -> -0.00408355121 | T67: =HLOOKUP(T$4,'Data(Step1)'!$AA$9:$AJ$509,$O67,FALSE) -> 0.00305151707
F68: 54 | H68: 0.005031085508 | J68: =$H$11*'Data(Step1)'!I64+$I$11*'Data(Step1)'!J64+$J$11*'Data(Step1)'!K64+$K$11*'Data(Step1)'!L64+$L$11*'Data(Step1)'!M64 -> 0.1519840335 | K68: 26.23370906 | M68: 54 | O68: 66 | P68: =HLOOKUP(P$4,'Data(Step1)'!$AA$9:$AJ$509,$O68,FALSE) -> 0.003181658786 | Q68: =HLOOKUP(Q$4,'Data(Step1)'!$AA$9:$AJ$509,$O68,FALSE) -> 0 | R68: =HLOOKUP(R$4,'Data(Step1)'!$AA$9:$AJ$509,$O68,FALSE) -> -0.001913616147 | S68: =HLOOKUP(S$4,'Data(Step1)'!$AA$9:$AJ$509,$O68,FALSE) -> 0.004442027897 | T68: =HLOOKUP(T$4,'Data(Step1)'!$AA$9:$AJ$509,$O68,FALSE) -> -0.001959226549
F69: 55 | H69: 0.005221609443 | J69: =$H$11*'Data(Step1)'!I65+$I$11*'Data(Step1)'!J65+$J$11*'Data(Step1)'!K65+$K$11*'Data(Step1)'!L65+$L$11*'Data(Step1)'!M65 -> 0.1796235138 | K69: 30.56979184 | M69: 55 | O69: 67 | P69: =HLOOKUP(P$4,'Data(Step1)'!$AA$9:$AJ$509,$O69,FALSE) -> 0.006294233098 | Q69: =HLOOKUP(Q$4,'Data(Step1)'!$AA$9:$AJ$509,$O69,FALSE) -> 0.008773924308 | R69: =HLOOKUP(R$4,'Data(Step1)'!$AA$9:$AJ$509,$O69,FALSE) -> 0.003723774555 | S69: =HLOOKUP(S$4,'Data(Step1)'!$AA$9:$AJ$509,$O69,FALSE) -> 0.01131776052 | T69: =HLOOKUP(T$4,'Data(Step1)'!$AA$9:$AJ$509,$O69,FALSE) -> -0.0007643148103
F70: 56 | H70: 0.005315287167 | J70: =$H$11*'Data(Step1)'!I66+$I$11*'Data(Step1)'!J66+$J$11*'Data(Step1)'!K66+$K$11*'Data(Step1)'!L66+$L$11*'Data(Step1)'!M66 -> 0.1882281649 | K70: 31.64987321 | M70: 56 | O70: 68 | P70: =HLOOKUP(P$4,'Data(Step1)'!$AA$9:$AJ$509,$O70,FALSE) -> 0 | Q70: =HLOOKUP(Q$4,'Data(Step1)'!$AA$9:$AJ$509,$O70,FALSE) -> -0.005829543661 | R70: =HLOOKUP(R$4,'Data(Step1)'!$AA$9:$AJ$509,$O70,FALSE) -> -0.007479754234 | S70: =HLOOKUP(S$4,'Data(Step1)'!$AA$9:$AJ$509,$O70,FALSE) -> -0.003974728251 | T70: =HLOOKUP(T$4,'Data(Step1)'!$AA$9:$AJ$509,$O70,FALSE) -> -0.002630767147
F71: 57 | H71: 0.005429683426 | J71: =$H$11*'Data(Step1)'!I67+$I$11*'Data(Step1)'!J67+$J$11*'Data(Step1)'!K67+$K$11*'Data(Step1)'!L67+$L$11*'Data(Step1)'!M67 -> 0.140454236 | K71: 22.18439392 | M71: 57 | O71: 69 | P71: =HLOOKUP(P$4,'Data(Step1)'!$AA$9:$AJ$509,$O71,FALSE) -> -0.01268103176 | Q71: =HLOOKUP(Q$4,'Data(Step1)'!$AA$9:$AJ$509,$O71,FALSE) -> -0.005908859611 | R71: =HLOOKUP(R$4,'Data(Step1)'!$AA$9:$AJ$509,$O71,FALSE) -> 9.671405939e-05 | S71: =HLOOKUP(S$4,'Data(Step1)'!$AA$9:$AJ$509,$O71,FALSE) -> 0.00687428824 | T71: =HLOOKUP(T$4,'Data(Step1)'!$AA$9:$AJ$509,$O71,FALSE) -> -0.005755260845
F72: 58 | H72: 0.004702627876 | J72: =$H$11*'Data(Step1)'!I68+$I$11*'Data(Step1)'!J68+$J$11*'Data(Step1)'!K68+$K$11*'Data(Step1)'!L68+$L$11*'Data(Step1)'!M68 -> 0.1354718623 | K72: 24.55475222 | M72: 58 | O72: 70 | P72: =HLOOKUP(P$4,'Data(Step1)'!$AA$9:$AJ$509,$O72,FALSE) -> -0.00322897013 | Q72: =HLOOKUP(Q$4,'Data(Step1)'!$AA$9:$AJ$509,$O72,FALSE) -> -0.002984853549 | R72: =HLOOKUP(R$4,'Data(Step1)'!$AA$9:$AJ$509,$O72,FALSE) -> -0.008890378577 | S72: =HLOOKUP(S$4,'Data(Step1)'!$AA$9:$AJ$509,$O72,FALSE) -> -0.01219152285 | T72: =HLOOKUP(T$4,'Data(Step1)'!$AA$9:$AJ$509,$O72,FALSE) -> -0.004479611474
F73: 59 | H73: 0.004663577532 | J73: =$H$11*'Data(Step1)'!I69+$I$11*'Data(Step1)'!J69+$J$11*'Data(Step1)'!K69+$K$11*'Data(Step1)'!L69+$L$11*'Data(Step1)'!M69 -> 0.1440765135 | K73: 26.60543598 | M73: 59 | O73: 71 | P73: =HLOOKUP(P$4,'Data(Step1)'!$AA$9:$AJ$509,$O73,FALSE) -> 0.00322897013 | Q73: =HLOOKUP(Q$4,'Data(Step1)'!$AA$9:$AJ$509,$O73,FALSE) -> 0 | R73: =HLOOKUP(R$4,'Data(Step1)'!$AA$9:$AJ$509,$O73,FALSE) -> -0.001186057584 | S73: =HLOOKUP(S$4,'Data(Step1)'!$AA$9:$AJ$509,$O73,FALSE) -> -0.004541370581 | T73: =HLOOKUP(T$4,'Data(Step1)'!$AA$9:$AJ$509,$O73,FALSE) -> -0.003163449339
F74: 60 | H74: 0.004943651326 | J74: =$H$11*'Data(Step1)'!I70+$I$11*'Data(Step1)'!J70+$J$11*'Data(Step1)'!K70+$K$11*'Data(Step1)'!L70+$L$11*'Data(Step1)'!M70 -> 0.1717159937 | K74: 30.68905627 | M74: 60 | O74: 72 | P74: =HLOOKUP(P$4,'Data(Step1)'!$AA$9:$AJ$509,$O74,FALSE) -> 0.003205139875 | Q74: =HLOOKUP(Q$4,'Data(Step1)'!$AA$9:$AJ$509,$O74,FALSE) -> 0.01181826618 | R74: =HLOOKUP(R$4,'Data(Step1)'!$AA$9:$AJ$509,$O74,FALSE) -> 0.008526420749 | S74: =HLOOKUP(S$4,'Data(Step1)'!$AA$9:$AJ$509,$O74,FALSE) -> 0.01487940657 | T74: =HLOOKUP(T$4,'Data(Step1)'!$AA$9:$AJ$509,$O74,FALSE) -> 0.003838343775
F75: 61 | H75: 0.005336916929 | J75: =$H$11*'Data(Step1)'!I71+$I$11*'Data(Step1)'!J71+$J$11*'Data(Step1)'!K71+$K$11*'Data(Step1)'!L71+$L$11*'Data(Step1)'!M71 -> 0.163900187 | K75: 26.96316786 | M75: 61 | O75: 73 | P75: =HLOOKUP(P$4,'Data(Step1)'!$AA$9:$AJ$509,$O75,FALSE) -> 0.003181658786 | Q75: =HLOOKUP(Q$4,'Data(Step1)'!$AA$9:$AJ$509,$O75,FALSE) -> -0.002924553017 | R75: =HLOOKUP(R$4,'Data(Step1)'!$AA$9:$AJ$509,$O75,FALSE) -> -0.0002912447736 | S75: =HLOOKUP(S$4,'Data(Step1)'!$AA$9:$AJ$509,$O75,FALSE) -> -0.003028890102 | T75: =HLOOKUP(T$4,'Data(Step1)'!$AA$9:$AJ$509,$O75,FALSE) -> -0.003611617337
F76: 62 | H76: 0.004753592283 | J76: =$H$11*'Data(Step1)'!I72+$I$11*'Data(Step1)'!J72+$J$11*'Data(Step1)'!K72+$K$11*'Data(Step1)'!L72+$L$11*'Data(Step1)'!M72 -> 0.173009441 | K76: 32.18817095 | M76: 62 | O76: 74 | P76: =HLOOKUP(P$4,'Data(Step1)'!$AA$9:$AJ$509,$O76,FALSE) -> 0.006294233098 | Q76: =HLOOKUP(Q$4,'Data(Step1)'!$AA$9:$AJ$509,$O76,FALSE) -> 0 | R76: =HLOOKUP(R$4,'Data(Step1)'!$AA$9:$AJ$509,$O76,FALSE) -> -0.001946639216 | S76: =HLOOKUP(S$4,'Data(Step1)'!$AA$9:$AJ$509,$O76,FALSE) -> 0.01323995587 | T76: =HLOOKUP(T$4,'Data(Step1)'!$AA$9:$AJ$509,$O76,FALSE) -> -0.0002267264379
F77: 63 | H77: 0.004745238218 | J77: =$H$11*'Data(Step1)'!I73+$I$11*'Data(Step1)'!J73+$J$11*'Data(Step1)'!K73+$K$11*'Data(Step1)'!L73+$L$11*'Data(Step1)'!M73 -> 0.1816140922 | K77: 34.05816205 | M77: 63 | O77: 75 | P77: =HLOOKUP(P$4,'Data(Step1)'!$AA$9:$AJ$509,$O77,FALSE) -> -0.003135713853 | Q77: =HLOOKUP(Q$4,'Data(Step1)'!$AA$9:$AJ$509,$O77,FALSE) -> -0.00889371316 | R77: =HLOOKUP(R$4,'Data(Step1)'!$AA$9:$AJ$509,$O77,FALSE) -> -0.0155919875 | S77: =HLOOKUP(S$4,'Data(Step1)'!$AA$9:$AJ$509,$O77,FALSE) -> -0.01865106221 | T77: =HLOOKUP(T$4,'Data(Step1)'!$AA$9:$AJ$509,$O77,FALSE) -> -0.0140590485
F78: 64 | H78: 0.00500761516 | J78: =$H$11*'Data(Step1)'!I74+$I$11*'Data(Step1)'!J74+$J$11*'Data(Step1)'!K74+$K$11*'Data(Step1)'!L74+$L$11*'Data(Step1)'!M74 -> 0.2092535725 | K78: 37.79315431 | M78: 64 | O78: 76 | P78: =HLOOKUP(P$4,'Data(Step1)'!$AA$9:$AJ$509,$O78,FALSE) -> 0 | Q78: =HLOOKUP(Q$4,'Data(Step1)'!$AA$9:$AJ$509,$O78,FALSE) -> 0 | R78: =HLOOKUP(R$4,'Data(Step1)'!$AA$9:$AJ$509,$O78,FALSE) -> -0.0008096846566 | S78: =HLOOKUP(S$4,'Data(Step1)'!$AA$9:$AJ$509,$O78,FALSE) -> 0.006928191926 | T78: =HLOOKUP(T$4,'Data(Step1)'!$AA$9:$AJ$509,$O78,FALSE) -> -0.0009380014055
F79: 65 | H79: 0.005398771415 | J79: =$H$11*'Data(Step1)'!I75+$I$11*'Data(Step1)'!J75+$J$11*'Data(Step1)'!K75+$K$11*'Data(Step1)'!L75+$L$11*'Data(Step1)'!M75 -> 0.2014377657 | K79: 33.60723242 | M79: 65 | O79: 77 | P79: =HLOOKUP(P$4,'Data(Step1)'!$AA$9:$AJ$509,$O79,FALSE) -> -0.003158519245 | Q79: =HLOOKUP(Q$4,'Data(Step1)'!$AA$9:$AJ$509,$O79,FALSE) -> -0.01523996656 | R79: =HLOOKUP(R$4,'Data(Step1)'!$AA$9:$AJ$509,$O79,FALSE) -> 0.001213961606 | S79: =HLOOKUP(S$4,'Data(Step1)'!$AA$9:$AJ$509,$O79,FALSE) -> -0.001517085585 | T79: =HLOOKUP(T$4,'Data(Step1)'!$AA$9:$AJ$509,$O79,FALSE) -> -0.0007048329628
F80: 66 | H80: 0.004232869823 | J80: =$H$11*'Data(Step1)'!I76+$I$11*'Data(Step1)'!J76+$J$11*'Data(Step1)'!K76+$K$11*'Data(Step1)'!L76+$L$11*'Data(Step1)'!M76 -> 0.1766317185 | K80: 37.0036701 | M80: 66 | O80: 78 | P80: =HLOOKUP(P$4,'Data(Step1)'!$AA$9:$AJ$509,$O80,FALSE) -> 0.009407468522 | Q80: =HLOOKUP(Q$4,'Data(Step1)'!$AA$9:$AJ$509,$O80,FALSE) -> 0.006160308705 | R80: =HLOOKUP(R$4,'Data(Step1)'!$AA$9:$AJ$509,$O80,FALSE) -> 0.01655127362 | S80: =HLOOKUP(S$4,'Data(Step1)'!$AA$9:$AJ$509,$O80,FALSE) -> 0.01505046181 | T80: =HLOOKUP(T$4,'Data(Step1)'!$AA$9:$AJ$509,$O80,FALSE) -> 0.01228670551
F81: 67 | H81: 0.004362714783 | J81: =$H$11*'Data(Step1)'!I77+$I$11*'Data(Step1)'!J77+$J$11*'Data(Step1)'!K77+$K$11*'Data(Step1)'!L77+$L$11*'Data(Step1)'!M77 -> 0.2042711988 | K81: 42.23773681 | M81: 67 | O81: 79 | P81: =HLOOKUP(P$4,'Data(Step1)'!$AA$9:$AJ$509,$O81,FALSE) -> 0.009208001787 | Q81: =HLOOKUP(Q$4,'Data(Step1)'!$AA$9:$AJ$509,$O81,FALSE) -> 0.009079657852 | R81: =HLOOKUP(R$4,'Data(Step1)'!$AA$9:$AJ$509,$O81,FALSE) -> -0.008147248081 | S81: =HLOOKUP(S$4,'Data(Step1)'!$AA$9:$AJ$509,$O81,FALSE) -> 0.004269941334 | T81: =HLOOKUP(T$4,'Data(Step1)'!$AA$9:$AJ$509,$O81,FALSE) -> 0.001255352155
F82: 68 | H82: 0.004712583988 | J82: =$H$11*'Data(Step1)'!I78+$I$11*'Data(Step1)'!J78+$J$11*'Data(Step1)'!K78+$K$11*'Data(Step1)'!L78+$L$11*'Data(Step1)'!M78 -> 0.196455392 | K82: =(J82-$F$11)/H82 -> 37.44344769 | M82: 68 | O82: 80 | P82: =HLOOKUP(P$4,'Data(Step1)'!$AA$9:$AJ$509,$O82,FALSE) -> -0.009208001787 | Q82: =HLOOKUP(Q$4,'Data(Step1)'!$AA$9:$AJ$509,$O82,FALSE) -> -0.00603196477 | R82: =HLOOKUP(R$4,'Data(Step1)'!$AA$9:$AJ$509,$O82,FALSE) -> -0.002484244744 | S82: =HLOOKUP(S$4,'Data(Step1)'!$AA$9:$AJ$509,$O82,FALSE) -> -0.002354513091 | T82: =HLOOKUP(T$4,'Data(Step1)'!$AA$9:$AJ$509,$O82,FALSE) -> 0.0004555935187
F83: 69 | H83: 0.004358264606 | J83: =$H$11*'Data(Step1)'!I79+$I$11*'Data(Step1)'!J79+$J$11*'Data(Step1)'!K79+$K$11*'Data(Step1)'!L79+$L$11*'Data(Step1)'!M79 -> 0.21287585 | K83: 44.25519499 | M83: 69 | O83: 81 | P83: =HLOOKUP(P$4,'Data(Step1)'!$AA$9:$AJ$509,$O83,FALSE) -> 0.006160308705 | Q83: =HLOOKUP(Q$4,'Data(Step1)'!$AA$9:$AJ$509,$O83,FALSE) -> -0.003047693082 | R83: =HLOOKUP(R$4,'Data(Step1)'!$AA$9:$AJ$509,$O83,FALSE) -> 9.964310745e-05 | S83: =HLOOKUP(S$4,'Data(Step1)'!$AA$9:$AJ$509,$O83,FALSE) -> -0.009318030782 | T83: =HLOOKUP(T$4,'Data(Step1)'!$AA$9:$AJ$509,$O83,FALSE) -> 0.006889226088
F84: 70 | H84: 0.004676242827 | J84: =$H$11*'Data(Step1)'!I80+$I$11*'Data(Step1)'!J80+$J$11*'Data(Step1)'!K80+$K$11*'Data(Step1)'!L80+$L$11*'Data(Step1)'!M80 -> 0.2050600432 | K84: 39.57451527 | M84: 70 | O84: 82 | P84: =HLOOKUP(P$4,'Data(Step1)'!$AA$9:$AJ$509,$O84,FALSE) -> -0.003069231728 | Q84: =HLOOKUP(Q$4,'Data(Step1)'!$AA$9:$AJ$509,$O84,FALSE) -> 0 | R84: =HLOOKUP(R$4,'Data(Step1)'!$AA$9:$AJ$509,$O84,FALSE) -> 9.96202509e-05 | S84: =HLOOKUP(S$4,'Data(Step1)'!$AA$9:$AJ$509,$O84,FALSE) -> 0.004570360326 | T84: =HLOOKUP(T$4,'Data(Step1)'!$AA$9:$AJ$509,$O84,FALSE) -> -0.002246743148
F85: 71 | H85: 0.00496077586 | J85: =$H$11*'Data(Step1)'!I81+$I$11*'Data(Step1)'!J81+$J$11*'Data(Step1)'!K81+$K$11*'Data(Step1)'!L81+$L$11*'Data(Step1)'!M81 -> 0.2326995235 | K85: 42.87626159 | M85: 71 | O85: 83 | P85: =HLOOKUP(P$4,'Data(Step1)'!$AA$9:$AJ$509,$O85,FALSE) -> -0.003091076977 | Q85: =HLOOKUP(Q$4,'Data(Step1)'!$AA$9:$AJ$509,$O85,FALSE) -> -0.006160308705 | R85: =HLOOKUP(R$4,'Data(Step1)'!$AA$9:$AJ$509,$O85,FALSE) -> -0.008245709033 | S85: =HLOOKUP(S$4,'Data(Step1)'!$AA$9:$AJ$509,$O85,FALSE) -> -0.01245208846 | T85: =HLOOKUP(T$4,'Data(Step1)'!$AA$9:$AJ$509,$O85,FALSE) -> -0.002484916689
F86: 72 | H86: 0.005417998447 | J86: =$H$11*'Data(Step1)'!I82+$I$11*'Data(Step1)'!J82+$J$11*'Data(Step1)'!K82+$K$11*'Data(Step1)'!L82+$L$11*'Data(Step1)'!M82 -> 0.1381876552 | K86: 21.81389609 | M86: 72 | O86: 84 | P86: =HLOOKUP(P$4,'Data(Step1)'!$AA$9:$AJ$509,$O86,FALSE) -> 0 | Q86: =HLOOKUP(Q$4,'Data(Step1)'!$AA$9:$AJ$509,$O86,FALSE) -> 0 | R86: =HLOOKUP(R$4,'Data(Step1)'!$AA$9:$AJ$509,$O86,FALSE) -> -0.01508046739 | S86: =HLOOKUP(S$4,'Data(Step1)'!$AA$9:$AJ$509,$O86,FALSE) -> -0.001405864131 | T86: =HLOOKUP(T$4,'Data(Step1)'!$AA$9:$AJ$509,$O86,FALSE) -> 0.001131270454
F87: 73 | H87: 0.005439985013 | J87: =$H$11*'Data(Step1)'!I83+$I$11*'Data(Step1)'!J83+$J$11*'Data(Step1)'!K83+$K$11*'Data(Step1)'!L83+$L$11*'Data(Step1)'!M83 -> 0.1467923063 | K87: 23.30747346 | M87: 73 | O87: 85 | P87: =HLOOKUP(P$4,'Data(Step1)'!$AA$9:$AJ$509,$O87,FALSE) -> 0.003091076977 | Q87: =HLOOKUP(Q$4,'Data(Step1)'!$AA$9:$AJ$509,$O87,FALSE) -> 0.009208001787 | R87: =HLOOKUP(R$4,'Data(Step1)'!$AA$9:$AJ$509,$O87,FALSE) -> 0.004704162418 | S87: =HLOOKUP(S$4,'Data(Step1)'!$AA$9:$AJ$509,$O87,FALSE) -> -0.0001173610281 | T87: =HLOOKUP(T$4,'Data(Step1)'!$AA$9:$AJ$509,$O87,FALSE) -> 0.004048346598
F88: 74 | H88: 0.005738097416 | J88: =$H$11*'Data(Step1)'!I84+$I$11*'Data(Step1)'!J84+$J$11*'Data(Step1)'!K84+$K$11*'Data(Step1)'!L84+$L$11*'Data(Step1)'!M84 -> 0.1744317866 | K88: 26.91341318 | M88: 74 | O88: 86 | P88: =HLOOKUP(P$4,'Data(Step1)'!$AA$9:$AJ$509,$O88,FALSE) -> 0.003069231728 | Q88: =HLOOKUP(Q$4,'Data(Step1)'!$AA$9:$AJ$509,$O88,FALSE) -> -0.003047693082 | R88: =HLOOKUP(R$4,'Data(Step1)'!$AA$9:$AJ$509,$O88,FALSE) -> 0.00413912575 | S88: =HLOOKUP(S$4,'Data(Step1)'!$AA$9:$AJ$509,$O88,FALSE) -> 0.005829543661 | T88: =HLOOKUP(T$4,'Data(Step1)'!$AA$9:$AJ$509,$O88,FALSE) -> 0.004121845954
F89: 75 | H89: 0.006171141832 | J89: =$H$11*'Data(Step1)'!I85+$I$11*'Data(Step1)'!J85+$J$11*'Data(Step1)'!K85+$K$11*'Data(Step1)'!L85+$L$11*'Data(Step1)'!M85 -> 0.1666159799 | K89: 23.75832283 | M89: 75 | O89: 87 | P89: =HLOOKUP(P$4,'Data(Step1)'!$AA$9:$AJ$509,$O89,FALSE) -> 0 | Q89: =HLOOKUP(Q$4,'Data(Step1)'!$AA$9:$AJ$509,$O89,FALSE) -> 0.003047693082 | R89: =HLOOKUP(R$4,'Data(Step1)'!$AA$9:$AJ$509,$O89,FALSE) -> 0.008666805037 | S89: =HLOOKUP(S$4,'Data(Step1)'!$AA$9:$AJ$509,$O89,FALSE) -> 0.007121624239 | T89: =HLOOKUP(T$4,'Data(Step1)'!$AA$9:$AJ$509,$O89,FALSE) -> 0.0005540177839
F90: 76 | H90: 0.00472736245 | J90: =$H$11*'Data(Step1)'!I86+$I$11*'Data(Step1)'!J86+$J$11*'Data(Step1)'!K86+$K$11*'Data(Step1)'!L86+$L$11*'Data(Step1)'!M86 -> 0.1418099326 | K90: 25.7669967 | M90: 76 | O90: 88 | P90: =HLOOKUP(P$4,'Data(Step1)'!$AA$9:$AJ$509,$O90,FALSE) -> -0.003069231728 | Q90: =HLOOKUP(Q$4,'Data(Step1)'!$AA$9:$AJ$509,$O90,FALSE) -> -0.00611692481 | R90: =HLOOKUP(R$4,'Data(Step1)'!$AA$9:$AJ$509,$O90,FALSE) -> -0.002328119568 | S90: =HLOOKUP(S$4,'Data(Step1)'!$AA$9:$AJ$509,$O90,FALSE) -> -0.001026566555 | T90: =HLOOKUP(T$4,'Data(Step1)'!$AA$9:$AJ$509,$O90,FALSE) -> -0.00266575455
F91: 77 | H91: 0.004923154502 | J91: =$H$11*'Data(Step1)'!I87+$I$11*'Data(Step1)'!J87+$J$11*'Data(Step1)'!K87+$K$11*'Data(Step1)'!L87+$L$11*'Data(Step1)'!M87 -> 0.1694494129 | K91: 30.35643364 | M91: 77 | O91: 89 | P91: =HLOOKUP(P$4,'Data(Step1)'!$AA$9:$AJ$509,$O91,FALSE) -> 0.003069231728 | Q91: =HLOOKUP(Q$4,'Data(Step1)'!$AA$9:$AJ$509,$O91,FALSE) -> 0.00611692481 | R91: =HLOOKUP(R$4,'Data(Step1)'!$AA$9:$AJ$509,$O91,FALSE) -> -0.00592693433 | S91: =HLOOKUP(S$4,'Data(Step1)'!$AA$9:$AJ$509,$O91,FALSE) -> 0.000228335695 | T91: =HLOOKUP(T$4,'Data(Step1)'!$AA$9:$AJ$509,$O91,FALSE) -> -0.002010109187
F92: 78 | H92: 0.005338475829 | J92: =$H$11*'Data(Step1)'!I88+$I$11*'Data(Step1)'!J88+$J$11*'Data(Step1)'!K88+$K$11*'Data(Step1)'!L88+$L$11*'Data(Step1)'!M88 -> 0.1616336062 | K92: 26.53071976 | M92: 78 | O92: 90 | P92: =HLOOKUP(P$4,'Data(Step1)'!$AA$9:$AJ$509,$O92,FALSE) -> -0.006160308705 | Q92: =HLOOKUP(Q$4,'Data(Step1)'!$AA$9:$AJ$509,$O92,FALSE) -> -0.00611692481 | R92: =HLOOKUP(R$4,'Data(Step1)'!$AA$9:$AJ$509,$O92,FALSE) -> 0.00683942453 | S92: =HLOOKUP(S$4,'Data(Step1)'!$AA$9:$AJ$509,$O92,FALSE) -> -0.009111810546 | T92: =HLOOKUP(T$4,'Data(Step1)'!$AA$9:$AJ$509,$O92,FALSE) -> -0.003145447142
F93: 79 | H93: 0.004951436556 | J93: =$H$11*'Data(Step1)'!I89+$I$11*'Data(Step1)'!J89+$J$11*'Data(Step1)'!K89+$K$11*'Data(Step1)'!L89+$L$11*'Data(Step1)'!M89 -> 0.1780540641 | K93: 31.9208501 | M93: 79 | O93: 91 | P93: =HLOOKUP(P$4,'Data(Step1)'!$AA$9:$AJ$509,$O93,FALSE) -> 0 | Q93: =HLOOKUP(Q$4,'Data(Step1)'!$AA$9:$AJ$509,$O93,FALSE) -> -0.009340026254 | R93: =HLOOKUP(R$4,'Data(Step1)'!$AA$9:$AJ$509,$O93,FALSE) -> -0.01118240554 | S93: =HLOOKUP(S$4,'Data(Step1)'!$AA$9:$AJ$509,$O93,FALSE) -> 0.00463746512 | T93: =HLOOKUP(T$4,'Data(Step1)'!$AA$9:$AJ$509,$O93,FALSE) -> 0.00258542839
F94: 80 | H94: 0.005336310236 | J94: =$H$11*'Data(Step1)'!I90+$I$11*'Data(Step1)'!J90+$J$11*'Data(Step1)'!K90+$K$11*'Data(Step1)'!L90+$L$11*'Data(Step1)'!M90 -> 0.1702382573 | K94: 28.15395858 | M94: 80 | O94: 92 | P94: =HLOOKUP(P$4,'Data(Step1)'!$AA$9:$AJ$509,$O94,FALSE) -> 0.006160308705 | Q94: =HLOOKUP(Q$4,'Data(Step1)'!$AA$9:$AJ$509,$O94,FALSE) -> 0.009340026254 | R94: =HLOOKUP(R$4,'Data(Step1)'!$AA$9:$AJ$509,$O94,FALSE) -> 0.00567848254 | S94: =HLOOKUP(S$4,'Data(Step1)'!$AA$9:$AJ$509,$O94,FALSE) -> 0.005955608377 | T94: =HLOOKUP(T$4,'Data(Step1)'!$AA$9:$AJ$509,$O94,FALSE) -> 0.002681528346
F95: 81 | H95: 0.005656116889 | J95: =$H$11*'Data(Step1)'!I91+$I$11*'Data(Step1)'!J91+$J$11*'Data(Step1)'!K91+$K$11*'Data(Step1)'!L91+$L$11*'Data(Step1)'!M91 -> 0.1978777376 | K95: 31.44873791 | M95: 81 | O95: 93 | P95: =HLOOKUP(P$4,'Data(Step1)'!$AA$9:$AJ$509,$O95,FALSE) -> 0 | Q95: =HLOOKUP(Q$4,'Data(Step1)'!$AA$9:$AJ$509,$O95,FALSE) -> 0.003069231728 | R95: =HLOOKUP(R$4,'Data(Step1)'!$AA$9:$AJ$509,$O95,FALSE) -> 0.003473557069 | S95: =HLOOKUP(S$4,'Data(Step1)'!$AA$9:$AJ$509,$O95,FALSE) -> -0.000910948382 | T95: =HLOOKUP(T$4,'Data(Step1)'!$AA$9:$AJ$509,$O95,FALSE) -> 0.003881120395
F96: 82 | H96: 0.004810463744 | J96: =$H$11*'Data(Step1)'!I92+$I$11*'Data(Step1)'!J92+$J$11*'Data(Step1)'!K92+$K$11*'Data(Step1)'!L92+$L$11*'Data(Step1)'!M92 -> 0.1793475114 | K96: 33.12518706 | M96: 82 | O96: 94 | P96: =HLOOKUP(P$4,'Data(Step1)'!$AA$9:$AJ$509,$O96,FALSE) -> 0.003047693082 | Q96: =HLOOKUP(Q$4,'Data(Step1)'!$AA$9:$AJ$509,$O96,FALSE) -> -0.01240925798 | R96: =HLOOKUP(R$4,'Data(Step1)'!$AA$9:$AJ$509,$O96,FALSE) -> 0.0002034642726 | S96: =HLOOKUP(S$4,'Data(Step1)'!$AA$9:$AJ$509,$O96,FALSE) -> 0.00902462565 | T96: =HLOOKUP(T$4,'Data(Step1)'!$AA$9:$AJ$509,$O96,FALSE) -> 0.01315650296
F97: 83 | H97: 0.0049898143 | J97: =$H$11*'Data(Step1)'!I93+$I$11*'Data(Step1)'!J93+$J$11*'Data(Step1)'!K93+$K$11*'Data(Step1)'!L93+$L$11*'Data(Step1)'!M93 -> 0.2069869917 | K97: 37.47373758 | M97: 83 | O97: 95 | P97: =HLOOKUP(P$4,'Data(Step1)'!$AA$9:$AJ$509,$O97,FALSE) -> -0.003047693082 | Q97: =HLOOKUP(Q$4,'Data(Step1)'!$AA$9:$AJ$509,$O97,FALSE) -> -0.003158519245 | R97: =HLOOKUP(R$4,'Data(Step1)'!$AA$9:$AJ$509,$O97,FALSE) -> 0.004754173631 | S97: =HLOOKUP(S$4,'Data(Step1)'!$AA$9:$AJ$509,$O97,FALSE) -> 0.0055466205 | T97: =HLOOKUP(T$4,'Data(Step1)'!$AA$9:$AJ$509,$O97,FALSE) -> 0.001069691383
F98: 84 | H98: 0.005402559578 | J98: =$H$11*'Data(Step1)'!I94+$I$11*'Data(Step1)'!J94+$J$11*'Data(Step1)'!K94+$K$11*'Data(Step1)'!L94+$L$11*'Data(Step1)'!M94 -> 0.1991711849 | K98: 33.16412939 | M98: 84 | O98: 96 | P98: =HLOOKUP(P$4,'Data(Step1)'!$AA$9:$AJ$509,$O98,FALSE) -> 0.006074147712 | Q98: =HLOOKUP(Q$4,'Data(Step1)'!$AA$9:$AJ$509,$O98,FALSE) -> 0.003158519245 | R98: =HLOOKUP(R$4,'Data(Step1)'!$AA$9:$AJ$509,$O98,FALSE) -> 0.000502713891 | S98: =HLOOKUP(S$4,'Data(Step1)'!$AA$9:$AJ$509,$O98,FALSE) -> 0.009269662878 | T98: =HLOOKUP(T$4,'Data(Step1)'!$AA$9:$AJ$509,$O98,FALSE) -> -0.003217010872
F99: 85 | H99: 0.005046178768 | J99: =$H$11*'Data(Step1)'!I95+$I$11*'Data(Step1)'!J95+$J$11*'Data(Step1)'!K95+$K$11*'Data(Step1)'!L95+$L$11*'Data(Step1)'!M95 -> 0.2155916428 | K99: 38.76034754 | M99: 85 | O99: 97 | P99: =HLOOKUP(P$4,'Data(Step1)'!$AA$9:$AJ$509,$O99,FALSE) -> -0.00302645463 | Q99: =HLOOKUP(Q$4,'Data(Step1)'!$AA$9:$AJ$509,$O99,FALSE) -> -0.003158519245 | R99: =HLOOKUP(R$4,'Data(Step1)'!$AA$9:$AJ$509,$O99,FALSE) -> -0.00454551229 | S99: =HLOOKUP(S$4,'Data(Step1)'!$AA$9:$AJ$509,$O99,FALSE) -> -0.003901848394 | T99: =HLOOKUP(T$4,'Data(Step1)'!$AA$9:$AJ$509,$O99,FALSE) -> 0.0008602022756
F100: 86 | H100: 0.005426871332 | J100: =$H$11*'Data(Step1)'!I96+$I$11*'Data(Step1)'!J96+$J$11*'Data(Step1)'!K96+$K$11*'Data(Step1)'!L96+$L$11*'Data(Step1)'!M96 -> 0.2077758361 | K100: 34.60112182 | M100: 86 | O100: 98 | P100: =HLOOKUP(P$4,'Data(Step1)'!$AA$9:$AJ$509,$O100,FALSE) -> 0.00302645463 | Q100: =HLOOKUP(Q$4,'Data(Step1)'!$AA$9:$AJ$509,$O100,FALSE) -> -0.006386798661 | R100: =HLOOKUP(R$4,'Data(Step1)'!$AA$9:$AJ$509,$O100,FALSE) -> -0.00264814529 | S100: =HLOOKUP(S$4,'Data(Step1)'!$AA$9:$AJ$509,$O100,FALSE) -> 0.0001088593769 | T100: =HLOOKUP(T$4,'Data(Step1)'!$AA$9:$AJ$509,$O100,FALSE) -> -0.001075519326
F101: 87 | H101: 0.005730146122 | J101: =$H$11*'Data(Step1)'!I97+$I$11*'Data(Step1)'!J97+$J$11*'Data(Step1)'!K97+$K$11*'Data(Step1)'!L97+$L$11*'Data(Step1)'!M97 -> 0.2354153164 | K101: 37.59333737 | M101: 87 | O101: 99 | P101: =HLOOKUP(P$4,'Data(Step1)'!$AA$9:$AJ$509,$O101,FALSE) -> -0.00302645463 | Q101: =HLOOKUP(Q$4,'Data(Step1)'!$AA$9:$AJ$509,$O101,FALSE) -> 0.01268103176 | R101: =HLOOKUP(R$4,'Data(Step1)'!$AA$9:$AJ$509,$O101,FALSE) -> 0.01407233214 | S101: =HLOOKUP(S$4,'Data(Step1)'!$AA$9:$AJ$509,$O101,FALSE) -> 0.01476679293 | T101: =HLOOKUP(T$4,'Data(Step1)'!$AA$9:$AJ$509,$O101,FALSE) -> 0.003325477268
F102: 88 | H102: 0.004420663165 | J102: =$H$11*'Data(Step1)'!I98+$I$11*'Data(Step1)'!J98+$J$11*'Data(Step1)'!K98+$K$11*'Data(Step1)'!L98+$L$11*'Data(Step1)'!M98 -> 0.2106092691 | K102: 43.11779976 | M102: 88 | O102: 100 | P102: =HLOOKUP(P$4,'Data(Step1)'!$AA$9:$AJ$509,$O102,FALSE) -> 0 | Q102: =HLOOKUP(Q$4,'Data(Step1)'!$AA$9:$AJ$509,$O102,FALSE) -> 0.009273544129 | R102: =HLOOKUP(R$4,'Data(Step1)'!$AA$9:$AJ$509,$O102,FALSE) -> 0.0115167982 | S102: =HLOOKUP(S$4,'Data(Step1)'!$AA$9:$AJ$509,$O102,FALSE) -> 0.003353642008 | T102: =HLOOKUP(T$4,'Data(Step1)'!$AA$9:$AJ$509,$O102,FALSE) -> -0.002572334165
F103: 89 | H103: 0.004757511899 | J103: =$H$11*'Data(Step1)'!I99+$I$11*'Data(Step1)'!J99+$J$11*'Data(Step1)'!K99+$K$11*'Data(Step1)'!L99+$L$11*'Data(Step1)'!M99 -> 0.2027934624 | K103: 38.42207151 | M103: 89 | O103: 101 | P103: =HLOOKUP(P$4,'Data(Step1)'!$AA$9:$AJ$509,$O103,FALSE) -> 0 | Q103: =HLOOKUP(Q$4,'Data(Step1)'!$AA$9:$AJ$509,$O103,FALSE) -> 0.009079657852 | R103: =HLOOKUP(R$4,'Data(Step1)'!$AA$9:$AJ$509,$O103,FALSE) -> -0.0002890479188 | S103: =HLOOKUP(S$4,'Data(Step1)'!$AA$9:$AJ$509,$O103,FALSE) -> 0.004155959771 | T103: =HLOOKUP(T$4,'Data(Step1)'!$AA$9:$AJ$509,$O103,FALSE) -> 0.002572334165
F104: 90 | H104: 0.004957290702 | J104: =$H$11*'Data(Step1)'!I100+$I$11*'Data(Step1)'!J100+$J$11*'Data(Step1)'!K100+$K$11*'Data(Step1)'!L100+$L$11*'Data(Step1)'!M100 -> 0.2304329427 | K104: 42.44918351 | M104: 90 | O104: 102 | P104: =HLOOKUP(P$4,'Data(Step1)'!$AA$9:$AJ$509,$O104,FALSE) -> -0.01232123721 | Q104: =HLOOKUP(Q$4,'Data(Step1)'!$AA$9:$AJ$509,$O104,FALSE) -> -0.00603196477 | R104: =HLOOKUP(R$4,'Data(Step1)'!$AA$9:$AJ$509,$O104,FALSE) -> 0.009061045877 | S104: =HLOOKUP(S$4,'Data(Step1)'!$AA$9:$AJ$509,$O104,FALSE) -> -0.001865261916 | T104: =HLOOKUP(T$4,'Data(Step1)'!$AA$9:$AJ$509,$O104,FALSE) -> 0.002663411278
F105: 91 | H105: 0.004987840966 | J105: =$H$11*'Data(Step1)'!I101+$I$11*'Data(Step1)'!J101+$J$11*'Data(Step1)'!K101+$K$11*'Data(Step1)'!L101+$L$11*'Data(Step1)'!M101 -> 0.2390375938 | K105: 43.91430989 | M105: 91 | O105: 103 | P105: =HLOOKUP(P$4,'Data(Step1)'!$AA$9:$AJ$509,$O105,FALSE) -> -0.006294233098 | Q105: =HLOOKUP(Q$4,'Data(Step1)'!$AA$9:$AJ$509,$O105,FALSE) -> 0 | R105: =HLOOKUP(R$4,'Data(Step1)'!$AA$9:$AJ$509,$O105,FALSE) -> 0.00235339517 | S105: =HLOOKUP(S$4,'Data(Step1)'!$AA$9:$AJ$509,$O105,FALSE) -> 0.00505899685 | T105: =HLOOKUP(T$4,'Data(Step1)'!$AA$9:$AJ$509,$O105,FALSE) -> -0.002022701329
F106: 92 | H106: 0.005362453953 | J106: =$H$11*'Data(Step1)'!I102+$I$11*'Data(Step1)'!J102+$J$11*'Data(Step1)'!K102+$K$11*'Data(Step1)'!L102+$L$11*'Data(Step1)'!M102 -> 0.1033761503 | K106: 15.54813357 | M106: 92 | O106: 104 | P106: =HLOOKUP(P$4,'Data(Step1)'!$AA$9:$AJ$509,$O106,FALSE) -> 0.003158519245 | Q106: =HLOOKUP(Q$4,'Data(Step1)'!$AA$9:$AJ$509,$O106,FALSE) -> 0 | R106: =HLOOKUP(R$4,'Data(Step1)'!$AA$9:$AJ$509,$O106,FALSE) -> -0.007385172419 | S106: =HLOOKUP(S$4,'Data(Step1)'!$AA$9:$AJ$509,$O106,FALSE) -> -0.002264099583 | T106: =HLOOKUP(T$4,'Data(Step1)'!$AA$9:$AJ$509,$O106,FALSE) -> -0.002675883277
F107: 93 | H107: 0.005391462323 | J107: =$H$11*'Data(Step1)'!I103+$I$11*'Data(Step1)'!J103+$J$11*'Data(Step1)'!K103+$K$11*'Data(Step1)'!L103+$L$11*'Data(Step1)'!M103 -> 0.1119808015 | K107: 17.06045521 | M107: 93 | O107: 105 | P107: =HLOOKUP(P$4,'Data(Step1)'!$AA$9:$AJ$509,$O107,FALSE) -> 0 | Q107: =HLOOKUP(Q$4,'Data(Step1)'!$AA$9:$AJ$509,$O107,FALSE) -> 0.00302645463 | R107: =HLOOKUP(R$4,'Data(Step1)'!$AA$9:$AJ$509,$O107,FALSE) -> -0.007221557843 | S107: =HLOOKUP(S$4,'Data(Step1)'!$AA$9:$AJ$509,$O107,FALSE) -> -0.01012581976 | T107: =HLOOKUP(T$4,'Data(Step1)'!$AA$9:$AJ$509,$O107,FALSE) -> 0.0005364972664
F108: 94 | H108: 0.005673902537 | J108: =$H$11*'Data(Step1)'!I104+$I$11*'Data(Step1)'!J104+$J$11*'Data(Step1)'!K104+$K$11*'Data(Step1)'!L104+$L$11*'Data(Step1)'!M104 -> 0.1396202818 | K108: 21.08254081 | M108: 94 | O108: 106 | P108: =HLOOKUP(P$4,'Data(Step1)'!$AA$9:$AJ$509,$O108,FALSE) -> 0 | Q108: =HLOOKUP(Q$4,'Data(Step1)'!$AA$9:$AJ$509,$O108,FALSE) -> 0.008954842653 | R108: =HLOOKUP(R$4,'Data(Step1)'!$AA$9:$AJ$509,$O108,FALSE) -> -0.0002913750407 | S108: =HLOOKUP(S$4,'Data(Step1)'!$AA$9:$AJ$509,$O108,FALSE) -> -0.002861045119 | T108: =HLOOKUP(T$4,'Data(Step1)'!$AA$9:$AJ$509,$O108,FALSE) -> -0.0004291447799
F109: 95 | H109: 0.00611357745 | J109: =$H$11*'Data(Step1)'!I105+$I$11*'Data(Step1)'!J105+$J$11*'Data(Step1)'!K105+$K$11*'Data(Step1)'!L105+$L$11*'Data(Step1)'!M105 -> 0.131804475 | K109: 18.28789705 | M109: 95 | O109: 107 | P109: =HLOOKUP(P$4,'Data(Step1)'!$AA$9:$AJ$509,$O109,FALSE) -> -0.003158519245 | Q109: =HLOOKUP(Q$4,'Data(Step1)'!$AA$9:$AJ$509,$O109,FALSE) -> 0 | R109: =HLOOKUP(R$4,'Data(Step1)'!$AA$9:$AJ$509,$O109,FALSE) -> 0.006173992659 | S109: =HLOOKUP(S$4,'Data(Step1)'!$AA$9:$AJ$509,$O109,FALSE) -> 0.004968251979 | T109: =HLOOKUP(T$4,'Data(Step1)'!$AA$9:$AJ$509,$O109,FALSE) -> -0.0002147315158
F110: 96 | H110: 0.004672630047 | J110: =$H$11*'Data(Step1)'!I106+$I$11*'Data(Step1)'!J106+$J$11*'Data(Step1)'!K106+$K$11*'Data(Step1)'!L106+$L$11*'Data(Step1)'!M106 -> 0.1069984278 | K110: 18.61872798 | M110: 96 | O110: 108 | P110: =HLOOKUP(P$4,'Data(Step1)'!$AA$9:$AJ$509,$O110,FALSE) -> -0.006386798661 | Q110: =HLOOKUP(Q$4,'Data(Step1)'!$AA$9:$AJ$509,$O110,FALSE) -> -0.005949332513 | R110: =HLOOKUP(R$4,'Data(Step1)'!$AA$9:$AJ$509,$O110,FALSE) -> -0.008219110042 | S110: =HLOOKUP(S$4,'Data(Step1)'!$AA$9:$AJ$509,$O110,FALSE) -> -0.004543202293 | T110: =HLOOKUP(T$4,'Data(Step1)'!$AA$9:$AJ$509,$O110,FALSE) -> 0.005336691408
F111: 97 | H111: 0.004849324187 | J111: =$H$11*'Data(Step1)'!I107+$I$11*'Data(Step1)'!J107+$J$11*'Data(Step1)'!K107+$K$11*'Data(Step1)'!L107+$L$11*'Data(Step1)'!M107 -> 0.1346379081 | K111: 23.63997614 | M111: 97 | O111: 109 | P111: =HLOOKUP(P$4,'Data(Step1)'!$AA$9:$AJ$509,$O111,FALSE) -> 0.003205139875 | Q111: =HLOOKUP(Q$4,'Data(Step1)'!$AA$9:$AJ$509,$O111,FALSE) -> 0.005949332513 | R111: =HLOOKUP(R$4,'Data(Step1)'!$AA$9:$AJ$509,$O111,FALSE) -> 0.0005853026248 | S111: =HLOOKUP(S$4,'Data(Step1)'!$AA$9:$AJ$509,$O111,FALSE) -> 0.006326324275 | T111: =HLOOKUP(T$4,'Data(Step1)'!$AA$9:$AJ$509,$O111,FALSE) -> 0.004222633965
F112: 98 | H112: 0.005272878594 | J112: =$H$11*'Data(Step1)'!I108+$I$11*'Data(Step1)'!J108+$J$11*'Data(Step1)'!K108+$K$11*'Data(Step1)'!L108+$L$11*'Data(Step1)'!M108 -> 0.1268221013 | K112: 20.25878264 | M112: 98 | O112: 110 | P112: =HLOOKUP(P$4,'Data(Step1)'!$AA$9:$AJ$509,$O112,FALSE) -> 0.003181658786 | Q112: =HLOOKUP(Q$4,'Data(Step1)'!$AA$9:$AJ$509,$O112,FALSE) -> -0.002964478964 | R112: =HLOOKUP(R$4,'Data(Step1)'!$AA$9:$AJ$509,$O112,FALSE) -> -9.749567487e-05 | S112: =HLOOKUP(S$4,'Data(Step1)'!$AA$9:$AJ$509,$O112,FALSE) -> 0.001149895798 | T112: =HLOOKUP(T$4,'Data(Step1)'!$AA$9:$AJ$509,$O112,FALSE) -> 0.003765582682
F113: 99 | H113: 0.004885534014 | J113: =$H$11*'Data(Step1)'!I109+$I$11*'Data(Step1)'!J109+$J$11*'Data(Step1)'!K109+$K$11*'Data(Step1)'!L109+$L$11*'Data(Step1)'!M109 -> 0.1432425593 | K113: 25.22601601 | M113: 99 | O113: 111 | P113: =HLOOKUP(P$4,'Data(Step1)'!$AA$9:$AJ$509,$O113,FALSE) -> -0.003181658786 | Q113: =HLOOKUP(Q$4,'Data(Step1)'!$AA$9:$AJ$509,$O113,FALSE) -> -0.002984853549 | R113: =HLOOKUP(R$4,'Data(Step1)'!$AA$9:$AJ$509,$O113,FALSE) -> -0.00480429995 | S113: =HLOOKUP(S$4,'Data(Step1)'!$AA$9:$AJ$509,$O113,FALSE) -> -0.01594895801 | T113: =HLOOKUP(T$4,'Data(Step1)'!$AA$9:$AJ$509,$O113,FALSE) -> -0.001042724347
F114: 100 | H114: 0.005277627804 | J114: =$H$11*'Data(Step1)'!I110+$I$11*'Data(Step1)'!J110+$J$11*'Data(Step1)'!K110+$K$11*'Data(Step1)'!L110+$L$11*'Data(Step1)'!M110 -> 0.1354267525 | K114: 21.87095354 | M114: 100 | O114: 112 | P114: =HLOOKUP(P$4,'Data(Step1)'!$AA$9:$AJ$509,$O114,FALSE) -> -0.003205139875 | Q114: =HLOOKUP(Q$4,'Data(Step1)'!$AA$9:$AJ$509,$O114,FALSE) -> -0.00603196477 | R114: =HLOOKUP(R$4,'Data(Step1)'!$AA$9:$AJ$509,$O114,FALSE) -> 0.0006895910201 | S114: =HLOOKUP(S$4,'Data(Step1)'!$AA$9:$AJ$509,$O114,FALSE) -> -0.01375334948 | T114: =HLOOKUP(T$4,'Data(Step1)'!$AA$9:$AJ$509,$O114,FALSE) -> -0.00356410699
F115: 101 | H115: 0.005582274229 | J115: =$H$11*'Data(Step1)'!I111+$I$11*'Data(Step1)'!J111+$J$11*'Data(Step1)'!K111+$K$11*'Data(Step1)'!L111+$L$11*'Data(Step1)'!M111 -> 0.1630662328 | K115: 25.6286644 | M115: 101 | O115: 113 | P115: =HLOOKUP(P$4,'Data(Step1)'!$AA$9:$AJ$509,$O115,FALSE) -> 0.003205139875 | Q115: =HLOOKUP(Q$4,'Data(Step1)'!$AA$9:$AJ$509,$O115,FALSE) -> 0 | R115: =HLOOKUP(R$4,'Data(Step1)'!$AA$9:$AJ$509,$O115,FALSE) -> -0.007446081619 | S115: =HLOOKUP(S$4,'Data(Step1)'!$AA$9:$AJ$509,$O115,FALSE) -> -0.001792293416 | T115: =HLOOKUP(T$4,'Data(Step1)'!$AA$9:$AJ$509,$O115,FALSE) -> -0.002004520783
F116: 102 | H116: 0.004758877793 | J116: =$H$11*'Data(Step1)'!I112+$I$11*'Data(Step1)'!J112+$J$11*'Data(Step1)'!K112+$K$11*'Data(Step1)'!L112+$L$11*'Data(Step1)'!M112 -> 0.1445360065 | K116: 26.16919618 | M116: 102 | O116: 114 | P116: =HLOOKUP(P$4,'Data(Step1)'!$AA$9:$AJ$509,$O116,FALSE) -> -0.006434110005 | Q116: =HLOOKUP(Q$4,'Data(Step1)'!$AA$9:$AJ$509,$O116,FALSE) -> -0.01232123721 | R116: =HLOOKUP(R$4,'Data(Step1)'!$AA$9:$AJ$509,$O116,FALSE) -> -0.009618757968 | S116: =HLOOKUP(S$4,'Data(Step1)'!$AA$9:$AJ$509,$O116,FALSE) -> -0.004513363374 | T116: =HLOOKUP(T$4,'Data(Step1)'!$AA$9:$AJ$509,$O116,FALSE) -> -0.005855266165
F117: 103 | H117: 0.004919103797 | J117: =$H$11*'Data(Step1)'!I113+$I$11*'Data(Step1)'!J113+$J$11*'Data(Step1)'!K113+$K$11*'Data(Step1)'!L113+$L$11*'Data(Step1)'!M113 -> 0.1721754868 | K117: 30.93561208 | M117: 103 | O117: 115 | P117: =HLOOKUP(P$4,'Data(Step1)'!$AA$9:$AJ$509,$O117,FALSE) -> 0.00322897013 | Q117: =HLOOKUP(Q$4,'Data(Step1)'!$AA$9:$AJ$509,$O117,FALSE) -> 0.003113235424 | R117: =HLOOKUP(R$4,'Data(Step1)'!$AA$9:$AJ$509,$O117,FALSE) -> 0.003162228637 | S117: =HLOOKUP(S$4,'Data(Step1)'!$AA$9:$AJ$509,$O117,FALSE) -> -0.004217037682 | T117: =HLOOKUP(T$4,'Data(Step1)'!$AA$9:$AJ$509,$O117,FALSE) -> 0.004053871319
F118: 104 | H118: 0.005339701779 | J118: =$H$11*'Data(Step1)'!I114+$I$11*'Data(Step1)'!J114+$J$11*'Data(Step1)'!K114+$K$11*'Data(Step1)'!L114+$L$11*'Data(Step1)'!M114 -> 0.1643596801 | K118: 27.03515777 | M118: 104 | O118: 116 | P118: =HLOOKUP(P$4,'Data(Step1)'!$AA$9:$AJ$509,$O118,FALSE) -> 0 | Q118: =HLOOKUP(Q$4,'Data(Step1)'!$AA$9:$AJ$509,$O118,FALSE) -> -0.006248949277 | R118: =HLOOKUP(R$4,'Data(Step1)'!$AA$9:$AJ$509,$O118,FALSE) -> -0.006038361545 | S118: =HLOOKUP(S$4,'Data(Step1)'!$AA$9:$AJ$509,$O118,FALSE) -> -0.00183634304 | T118: =HLOOKUP(T$4,'Data(Step1)'!$AA$9:$AJ$509,$O118,FALSE) -> 0.005277033114
F119: 105 | H119: 0.004983621112 | J119: =$H$11*'Data(Step1)'!I115+$I$11*'Data(Step1)'!J115+$J$11*'Data(Step1)'!K115+$K$11*'Data(Step1)'!L115+$L$11*'Data(Step1)'!M115 -> 0.180780138 | K119: 32.26170978 | M119: 105 | O119: 117 | P119: =HLOOKUP(P$4,'Data(Step1)'!$AA$9:$AJ$509,$O119,FALSE) -> -0.006482127528 | Q119: =HLOOKUP(Q$4,'Data(Step1)'!$AA$9:$AJ$509,$O119,FALSE) -> -0.003158519245 | R119: =HLOOKUP(R$4,'Data(Step1)'!$AA$9:$AJ$509,$O119,FALSE) -> -0.002895307269 | S119: =HLOOKUP(S$4,'Data(Step1)'!$AA$9:$AJ$509,$O119,FALSE) -> -0.01059449343 | T119: =HLOOKUP(T$4,'Data(Step1)'!$AA$9:$AJ$509,$O119,FALSE) -> -0.004958596476
F120: 106 | H120: 0.00537111919 | J120: =$H$11*'Data(Step1)'!I116+$I$11*'Data(Step1)'!J116+$J$11*'Data(Step1)'!K116+$K$11*'Data(Step1)'!L116+$L$11*'Data(Step1)'!M116 -> 0.1729643312 | K120: 28.47904241 | M120: 106 | O120: 118 | P120: =HLOOKUP(P$4,'Data(Step1)'!$AA$9:$AJ$509,$O120,FALSE) -> 0.006482127528 | Q120: =HLOOKUP(Q$4,'Data(Step1)'!$AA$9:$AJ$509,$O120,FALSE) -> 0.003158519245 | R120: =HLOOKUP(R$4,'Data(Step1)'!$AA$9:$AJ$509,$O120,FALSE) -> 0.007916108644 | S120: =HLOOKUP(S$4,'Data(Step1)'!$AA$9:$AJ$509,$O120,FALSE) -> 0.005504142879 | T120: =HLOOKUP(T$4,'Data(Step1)'!$AA$9:$AJ$509,$O120,FALSE) -> 0.005063485857
F121: 107 | H121: 0.005659111458 | J121: =$H$11*'Data(Step1)'!I117+$I$11*'Data(Step1)'!J117+$J$11*'Data(Step1)'!K117+$K$11*'Data(Step1)'!L117+$L$11*'Data(Step1)'!M117 -> 0.2006038115 | K121: 31.91381065 | M121: 107 | O121: 119 | P121: =HLOOKUP(P$4,'Data(Step1)'!$AA$9:$AJ$509,$O121,FALSE) -> 0.003205139875 | Q121: =HLOOKUP(Q$4,'Data(Step1)'!$AA$9:$AJ$509,$O121,FALSE) -> -0.003158519245 | R121: =HLOOKUP(R$4,'Data(Step1)'!$AA$9:$AJ$509,$O121,FALSE) -> 0.01383603592 | S121: =HLOOKUP(S$4,'Data(Step1)'!$AA$9:$AJ$509,$O121,FALSE) -> 0.006926693592 | T121: =HLOOKUP(T$4,'Data(Step1)'!$AA$9:$AJ$509,$O121,FALSE) -> -0.0009449176548
F122: 108 | H122: 0.004350391801 | J122: =$H$11*'Data(Step1)'!I118+$I$11*'Data(Step1)'!J118+$J$11*'Data(Step1)'!K118+$K$11*'Data(Step1)'!L118+$L$11*'Data(Step1)'!M118 -> 0.1757977643 | K122: 35.81235241 | M122: 108 | O122: 120 | P122: =HLOOKUP(P$4,'Data(Step1)'!$AA$9:$AJ$509,$O122,FALSE) -> -0.003205139875 | Q122: =HLOOKUP(Q$4,'Data(Step1)'!$AA$9:$AJ$509,$O122,FALSE) -> 0 | R122: =HLOOKUP(R$4,'Data(Step1)'!$AA$9:$AJ$509,$O122,FALSE) -> 0.008598236839 | S122: =HLOOKUP(S$4,'Data(Step1)'!$AA$9:$AJ$509,$O122,FALSE) -> 0.01152761852 | T122: =HLOOKUP(T$4,'Data(Step1)'!$AA$9:$AJ$509,$O122,FALSE) -> 0.002515226038
F123: 109 | H123: 0.004694996821 | J123: =$H$11*'Data(Step1)'!I119+$I$11*'Data(Step1)'!J119+$J$11*'Data(Step1)'!K119+$K$11*'Data(Step1)'!L119+$L$11*'Data(Step1)'!M119 -> 0.1679819576 | K123: 31.51907513 | M123: 109 | O123: 121 | P123: =HLOOKUP(P$4,'Data(Step1)'!$AA$9:$AJ$509,$O123,FALSE) -> 0 | Q123: =HLOOKUP(Q$4,'Data(Step1)'!$AA$9:$AJ$509,$O123,FALSE) -> -0.01286892619 | R123: =HLOOKUP(R$4,'Data(Step1)'!$AA$9:$AJ$509,$O123,FALSE) -> -0.005158067925 | S123: =HLOOKUP(S$4,'Data(Step1)'!$AA$9:$AJ$509,$O123,FALSE) -> -0.003471239039 | T123: =HLOOKUP(T$4,'Data(Step1)'!$AA$9:$AJ$509,$O123,FALSE) -> 0.001356356241
F124: 110 | H124: 0.004876144561 | J124: =$H$11*'Data(Step1)'!I120+$I$11*'Data(Step1)'!J120+$J$11*'Data(Step1)'!K120+$K$11*'Data(Step1)'!L120+$L$11*'Data(Step1)'!M120 -> 0.1956214378 | K124: 36.01645432 | M124: 110 | O124: 122 | P124: =HLOOKUP(P$4,'Data(Step1)'!$AA$9:$AJ$509,$O124,FALSE) -> 0.01268103176 | Q124: =HLOOKUP(Q$4,'Data(Step1)'!$AA$9:$AJ$509,$O124,FALSE) -> -0.003277709761 | R124: =HLOOKUP(R$4,'Data(Step1)'!$AA$9:$AJ$509,$O124,FALSE) -> -0.009701989799 | S124: =HLOOKUP(S$4,'Data(Step1)'!$AA$9:$AJ$509,$O124,FALSE) -> -0.01790212212 | T124: =HLOOKUP(T$4,'Data(Step1)'!$AA$9:$AJ$509,$O124,FALSE) -> -0.002716961828
F125: 111 | H125: 0.004914655226 | J125: =$H$11*'Data(Step1)'!I121+$I$11*'Data(Step1)'!J121+$J$11*'Data(Step1)'!K121+$K$11*'Data(Step1)'!L121+$L$11*'Data(Step1)'!M121 -> 0.204226089 | K125: 37.4850484 | M125: 111 | O125: 123 | P125: =HLOOKUP(P$4,'Data(Step1)'!$AA$9:$AJ$509,$O125,FALSE) -> 0 | Q125: =HLOOKUP(Q$4,'Data(Step1)'!$AA$9:$AJ$509,$O125,FALSE) -> -0.009984220907 | R125: =HLOOKUP(R$4,'Data(Step1)'!$AA$9:$AJ$509,$O125,FALSE) -> -0.01621717653 | S125: =HLOOKUP(S$4,'Data(Step1)'!$AA$9:$AJ$509,$O125,FALSE) -> -0.006848722665 | T125: =HLOOKUP(T$4,'Data(Step1)'!$AA$9:$AJ$509,$O125,FALSE) -> -0.003684498373
F126: 112 | H126: 0.005421897571 | J126: =$H$11*'Data(Step1)'!I122+$I$11*'Data(Step1)'!J122+$J$11*'Data(Step1)'!K122+$K$11*'Data(Step1)'!L122+$L$11*'Data(Step1)'!M122 -> 0.1097142207 | K126: 16.54664617 | M126: 112 | O126: 124 | P126: =HLOOKUP(P$4,'Data(Step1)'!$AA$9:$AJ$509,$O126,FALSE) -> 0 | Q126: =HLOOKUP(Q$4,'Data(Step1)'!$AA$9:$AJ$509,$O126,FALSE) -> 0.006681585357 | R126: =HLOOKUP(R$4,'Data(Step1)'!$AA$9:$AJ$509,$O126,FALSE) -> -0.0002078958785 | S126: =HLOOKUP(S$4,'Data(Step1)'!$AA$9:$AJ$509,$O126,FALSE) -> 0.007668036039 | T126: =HLOOKUP(T$4,'Data(Step1)'!$AA$9:$AJ$509,$O126,FALSE) -> 0.01003227243
F127: 113 | H127: 0.005632143354 | J127: =$H$11*'Data(Step1)'!I123+$I$11*'Data(Step1)'!J123+$J$11*'Data(Step1)'!K123+$K$11*'Data(Step1)'!L123+$L$11*'Data(Step1)'!M123 -> 0.137353701 | K127: 20.83641939 | M127: 113 | O127: 125 | P127: =HLOOKUP(P$4,'Data(Step1)'!$AA$9:$AJ$509,$O127,FALSE) -> -0.003135713853 | Q127: =HLOOKUP(Q$4,'Data(Step1)'!$AA$9:$AJ$509,$O127,FALSE) -> 0 | R127: =HLOOKUP(R$4,'Data(Step1)'!$AA$9:$AJ$509,$O127,FALSE) -> 0.001971004256 | S127: =HLOOKUP(S$4,'Data(Step1)'!$AA$9:$AJ$509,$O127,FALSE) -> 0.006614633002 | T127: =HLOOKUP(T$4,'Data(Step1)'!$AA$9:$AJ$509,$O127,FALSE) -> -0.005196215157
F128: 114 | H128: 0.006092830052 | J128: =$H$11*'Data(Step1)'!I124+$I$11*'Data(Step1)'!J124+$J$11*'Data(Step1)'!K124+$K$11*'Data(Step1)'!L124+$L$11*'Data(Step1)'!M124 -> 0.1295378942 | K128: 17.97816339 | M128: 114 | O128: 126 | P128: =HLOOKUP(P$4,'Data(Step1)'!$AA$9:$AJ$509,$O128,FALSE) -> 0.003135713853 | Q128: =HLOOKUP(Q$4,'Data(Step1)'!$AA$9:$AJ$509,$O128,FALSE) -> 0 | R128: =HLOOKUP(R$4,'Data(Step1)'!$AA$9:$AJ$509,$O128,FALSE) -> 0.003196768307 | S128: =HLOOKUP(S$4,'Data(Step1)'!$AA$9:$AJ$509,$O128,FALSE) -> -0.006731583179 | T128: =HLOOKUP(T$4,'Data(Step1)'!$AA$9:$AJ$509,$O128,FALSE) -> 0.003747530767
F129: 115 | H129: 0.005716469155 | J129: =$H$11*'Data(Step1)'!I125+$I$11*'Data(Step1)'!J125+$J$11*'Data(Step1)'!K125+$K$11*'Data(Step1)'!L125+$L$11*'Data(Step1)'!M125 -> 0.1459583521 | K129: 22.03429227 | M129: 115 | O129: 127 | P129: =HLOOKUP(P$4,'Data(Step1)'!$AA$9:$AJ$509,$O129,FALSE) -> -0.003135713853 | Q129: =HLOOKUP(Q$4,'Data(Step1)'!$AA$9:$AJ$509,$O129,FALSE) -> -0.03809004961 | R129: =HLOOKUP(R$4,'Data(Step1)'!$AA$9:$AJ$509,$O129,FALSE) -> 0.001333608764 | S129: =HLOOKUP(S$4,'Data(Step1)'!$AA$9:$AJ$509,$O129,FALSE) -> 0.01040137619 | T129: =HLOOKUP(T$4,'Data(Step1)'!$AA$9:$AJ$509,$O129,FALSE) -> 0.009432639992
F130: 116 | H130: 0.006146313361 | J130: =$H$11*'Data(Step1)'!I126+$I$11*'Data(Step1)'!J126+$J$11*'Data(Step1)'!K126+$K$11*'Data(Step1)'!L126+$L$11*'Data(Step1)'!M126 -> 0.1381425454 | K130: 19.22169249 | M130: 116 | O130: 128 | P130: =HLOOKUP(P$4,'Data(Step1)'!$AA$9:$AJ$509,$O130,FALSE) -> 0.003135713853 | Q130: =HLOOKUP(Q$4,'Data(Step1)'!$AA$9:$AJ$509,$O130,FALSE) -> 0.01072386539 | R130: =HLOOKUP(R$4,'Data(Step1)'!$AA$9:$AJ$509,$O130,FALSE) -> 0.001023073458 | S130: =HLOOKUP(S$4,'Data(Step1)'!$AA$9:$AJ$509,$O130,FALSE) -> -0.0008001216563 | T130: =HLOOKUP(T$4,'Data(Step1)'!$AA$9:$AJ$509,$O130,FALSE) -> 0.003334137093
F131: 117 | H131: 0.006459658678 | J131: =$H$11*'Data(Step1)'!I127+$I$11*'Data(Step1)'!J127+$J$11*'Data(Step1)'!K127+$K$11*'Data(Step1)'!L127+$L$11*'Data(Step1)'!M127 -> 0.1657820257 | K131: 22.56806945 | M131: 117 | O131: 129 | P131: =HLOOKUP(P$4,'Data(Step1)'!$AA$9:$AJ$509,$O131,FALSE) -> 0 | Q131: =HLOOKUP(Q$4,'Data(Step1)'!$AA$9:$AJ$509,$O131,FALSE) -> -0.01435815005 | R131: =HLOOKUP(R$4,'Data(Step1)'!$AA$9:$AJ$509,$O131,FALSE) -> 0.003054838963 | S131: =HLOOKUP(S$4,'Data(Step1)'!$AA$9:$AJ$509,$O131,FALSE) -> 0.003532258469 | T131: =HLOOKUP(T$4,'Data(Step1)'!$AA$9:$AJ$509,$O131,FALSE) -> -0.002118759951
F132: 118 | H132: 0.004911422059 | J132: =$H$11*'Data(Step1)'!I128+$I$11*'Data(Step1)'!J128+$J$11*'Data(Step1)'!K128+$K$11*'Data(Step1)'!L128+$L$11*'Data(Step1)'!M128 -> 0.1409759785 | K132: 24.63155824 | M132: 118 | O132: 130 | P132: =HLOOKUP(P$4,'Data(Step1)'!$AA$9:$AJ$509,$O132,FALSE) -> 0 | Q132: =HLOOKUP(Q$4,'Data(Step1)'!$AA$9:$AJ$509,$O132,FALSE) -> 0 | R132: =HLOOKUP(R$4,'Data(Step1)'!$AA$9:$AJ$509,$O132,FALSE) -> 0.01092181183 | S132: =HLOOKUP(S$4,'Data(Step1)'!$AA$9:$AJ$509,$O132,FALSE) -> 0.01340866417 | T132: =HLOOKUP(T$4,'Data(Step1)'!$AA$9:$AJ$509,$O132,FALSE) -> -0.003758389923
F133: 119 | H133: 0.005322204367 | J133: =$H$11*'Data(Step1)'!I129+$I$11*'Data(Step1)'!J129+$J$11*'Data(Step1)'!K129+$K$11*'Data(Step1)'!L129+$L$11*'Data(Step1)'!M129 -> 0.1331601717 | K133: 21.261899 | M133: 119 | O133: 131 | P133: =HLOOKUP(P$4,'Data(Step1)'!$AA$9:$AJ$509,$O133,FALSE) -> 0.003113235424 | Q133: =HLOOKUP(Q$4,'Data(Step1)'!$AA$9:$AJ$509,$O133,FALSE) -> -0.007361099646 | R133: =HLOOKUP(R$4,'Data(Step1)'!$AA$9:$AJ$509,$O133,FALSE) -> 0.01296497716 | S133: =HLOOKUP(S$4,'Data(Step1)'!$AA$9:$AJ$509,$O133,FALSE) -> 0.0009891565296 | T133: =HLOOKUP(T$4,'Data(Step1)'!$AA$9:$AJ$509,$O133,FALSE) -> 0.003049833333
F134: 120 | H134: 0.005552751672 | J134: =$H$11*'Data(Step1)'!I130+$I$11*'Data(Step1)'!J130+$J$11*'Data(Step1)'!K130+$K$11*'Data(Step1)'!L130+$L$11*'Data(Step1)'!M130 -> 0.160799652 | K134: 25.35673488 | M134: 120 | O134: 132 | P134: =HLOOKUP(P$4,'Data(Step1)'!$AA$9:$AJ$509,$O134,FALSE) -> 0.006160308705 | Q134: =HLOOKUP(Q$4,'Data(Step1)'!$AA$9:$AJ$509,$O134,FALSE) -> -0.003727872519 | R134: =HLOOKUP(R$4,'Data(Step1)'!$AA$9:$AJ$509,$O134,FALSE) -> 0.007143945741 | S134: =HLOOKUP(S$4,'Data(Step1)'!$AA$9:$AJ$509,$O134,FALSE) -> 0.008264240512 | T134: =HLOOKUP(T$4,'Data(Step1)'!$AA$9:$AJ$509,$O134,FALSE) -> 0.005336246002
F135: 121 | H135: 0.005614996434 | J135: =$H$11*'Data(Step1)'!I131+$I$11*'Data(Step1)'!J131+$J$11*'Data(Step1)'!K131+$K$11*'Data(Step1)'!L131+$L$11*'Data(Step1)'!M131 -> 0.1694043032 | K135: 26.60808513 | M135: 121 | O135: 133 | P135: =HLOOKUP(P$4,'Data(Step1)'!$AA$9:$AJ$509,$O135,FALSE) -> 0 | Q135: =HLOOKUP(Q$4,'Data(Step1)'!$AA$9:$AJ$509,$O135,FALSE) -> 0.01108897217 | R135: =HLOOKUP(R$4,'Data(Step1)'!$AA$9:$AJ$509,$O135,FALSE) -> 0.001037966665 | S135: =HLOOKUP(S$4,'Data(Step1)'!$AA$9:$AJ$509,$O135,FALSE) -> 0.00279151926 | T135: =HLOOKUP(T$4,'Data(Step1)'!$AA$9:$AJ$509,$O135,FALSE) -> 0.01087028147
F136: 122 | H136: 0.005011424824 | J136: =$H$11*'Data(Step1)'!I132+$I$11*'Data(Step1)'!J132+$J$11*'Data(Step1)'!K132+$K$11*'Data(Step1)'!L132+$L$11*'Data(Step1)'!M132 -> 0.1785135572 | K136: 31.630437 | M136: 122 | O136: 134 | P136: =HLOOKUP(P$4,'Data(Step1)'!$AA$9:$AJ$509,$O136,FALSE) -> -0.003069231728 | Q136: =HLOOKUP(Q$4,'Data(Step1)'!$AA$9:$AJ$509,$O136,FALSE) -> -0.003664954086 | R136: =HLOOKUP(R$4,'Data(Step1)'!$AA$9:$AJ$509,$O136,FALSE) -> 0.0003768282075 | S136: =HLOOKUP(S$4,'Data(Step1)'!$AA$9:$AJ$509,$O136,FALSE) -> -0.0009642659289 | T136: =HLOOKUP(T$4,'Data(Step1)'!$AA$9:$AJ$509,$O136,FALSE) -> -0.004907334495
F137: 123 | H137: 0.005417167229 | J137: =$H$11*'Data(Step1)'!I133+$I$11*'Data(Step1)'!J133+$J$11*'Data(Step1)'!K133+$K$11*'Data(Step1)'!L133+$L$11*'Data(Step1)'!M133 -> 0.1706977504 | K137: 27.8185524 | M137: 123 | O137: 135 | P137: =HLOOKUP(P$4,'Data(Step1)'!$AA$9:$AJ$509,$O137,FALSE) -> -0.003091076977 | Q137: =HLOOKUP(Q$4,'Data(Step1)'!$AA$9:$AJ$509,$O137,FALSE) -> -0.007424018079 | R137: =HLOOKUP(R$4,'Data(Step1)'!$AA$9:$AJ$509,$O137,FALSE) -> -0.007695236443 | S137: =HLOOKUP(S$4,'Data(Step1)'!$AA$9:$AJ$509,$O137,FALSE) -> -0.00528778544 | T137: =HLOOKUP(T$4,'Data(Step1)'!$AA$9:$AJ$509,$O137,FALSE) -> 0.003343012292
F138: 124 | H138: 0.005632147316 | J138: =$H$11*'Data(Step1)'!I134+$I$11*'Data(Step1)'!J134+$J$11*'Data(Step1)'!K134+$K$11*'Data(Step1)'!L134+$L$11*'Data(Step1)'!M134 -> 0.1983372307 | K138: 31.66416301 | M138: 124 | O138: 136 | P138: =HLOOKUP(P$4,'Data(Step1)'!$AA$9:$AJ$509,$O138,FALSE) -> 0.003091076977 | Q138: =HLOOKUP(Q$4,'Data(Step1)'!$AA$9:$AJ$509,$O138,FALSE) -> 0 | R138: =HLOOKUP(R$4,'Data(Step1)'!$AA$9:$AJ$509,$O138,FALSE) -> -0.005983707519 | S138: =HLOOKUP(S$4,'Data(Step1)'!$AA$9:$AJ$509,$O138,FALSE) -> 0.0007593511047 | T138: =HLOOKUP(T$4,'Data(Step1)'!$AA$9:$AJ$509,$O138,FALSE) -> 0.002733877169
F139: 125 | H139: 0.005718620194 | J139: =$H$11*'Data(Step1)'!I135+$I$11*'Data(Step1)'!J135+$J$11*'Data(Step1)'!K135+$K$11*'Data(Step1)'!L135+$L$11*'Data(Step1)'!M135 -> 0.2069418819 | K139: 32.69003283 | M139: 125 | O139: 137 | P139: =HLOOKUP(P$4,'Data(Step1)'!$AA$9:$AJ$509,$O139,FALSE) -> 0.003069231728 | Q139: =HLOOKUP(Q$4,'Data(Step1)'!$AA$9:$AJ$509,$O139,FALSE) -> 0.007424018079 | R139: =HLOOKUP(R$4,'Data(Step1)'!$AA$9:$AJ$509,$O139,FALSE) -> -0.01112248358 | S139: =HLOOKUP(S$4,'Data(Step1)'!$AA$9:$AJ$509,$O139,FALSE) -> -0.009311753101 | T139: =HLOOKUP(T$4,'Data(Step1)'!$AA$9:$AJ$509,$O139,FALSE) -> -0.01014269693
F140: 126 | H140: 0.004957331155 | J140: =$H$11*'Data(Step1)'!I136+$I$11*'Data(Step1)'!J136+$J$11*'Data(Step1)'!K136+$K$11*'Data(Step1)'!L136+$L$11*'Data(Step1)'!M136 -> 0.2019595082 | K140: 36.70513478 | M140: 126 | O140: 138 | P140: =HLOOKUP(P$4,'Data(Step1)'!$AA$9:$AJ$509,$O140,FALSE) -> -0.003069231728 | Q140: =HLOOKUP(Q$4,'Data(Step1)'!$AA$9:$AJ$509,$O140,FALSE) -> -0.01118416695 | R140: =HLOOKUP(R$4,'Data(Step1)'!$AA$9:$AJ$509,$O140,FALSE) -> 0.009174534664 | S140: =HLOOKUP(S$4,'Data(Step1)'!$AA$9:$AJ$509,$O140,FALSE) -> 0.01006977882 | T140: =HLOOKUP(T$4,'Data(Step1)'!$AA$9:$AJ$509,$O140,FALSE) -> 0.009850603332
F141: 127 | H141: 0.005096128206 | J141: =$H$11*'Data(Step1)'!I137+$I$11*'Data(Step1)'!J137+$J$11*'Data(Step1)'!K137+$K$11*'Data(Step1)'!L137+$L$11*'Data(Step1)'!M137 -> 0.1454530514 | K141: 24.6173264 | M141: 127 | O141: 139 | P141: =HLOOKUP(P$4,'Data(Step1)'!$AA$9:$AJ$509,$O141,FALSE) -> 0.00611692481 | Q141: =HLOOKUP(Q$4,'Data(Step1)'!$AA$9:$AJ$509,$O141,FALSE) -> -0.003792989017 | R141: =HLOOKUP(R$4,'Data(Step1)'!$AA$9:$AJ$509,$O141,FALSE) -> 0.004950108027 | S141: =HLOOKUP(S$4,'Data(Step1)'!$AA$9:$AJ$509,$O141,FALSE) -> 0.01384237859 | T141: =HLOOKUP(T$4,'Data(Step1)'!$AA$9:$AJ$509,$O141,FALSE) -> 0.01134344008
F142: 128 | H142: 0.004353190489 | J142: =$H$11*'Data(Step1)'!I138+$I$11*'Data(Step1)'!J138+$J$11*'Data(Step1)'!K138+$K$11*'Data(Step1)'!L138+$L$11*'Data(Step1)'!M138 -> 0.1404706777 | K142: 27.67411122 | M142: 128 | O142: 140 | P142: =HLOOKUP(P$4,'Data(Step1)'!$AA$9:$AJ$509,$O142,FALSE) -> 0.009016818319 | Q142: =HLOOKUP(Q$4,'Data(Step1)'!$AA$9:$AJ$509,$O142,FALSE) -> 0.003792989017 | R142: =HLOOKUP(R$4,'Data(Step1)'!$AA$9:$AJ$509,$O142,FALSE) -> 0.01943940906 | S142: =HLOOKUP(S$4,'Data(Step1)'!$AA$9:$AJ$509,$O142,FALSE) -> 0.009331106946 | T142: =HLOOKUP(T$4,'Data(Step1)'!$AA$9:$AJ$509,$O142,FALSE) -> 9.487591122e-05
F143: 129 | H143: 0.004316153609 | J143: =$H$11*'Data(Step1)'!I139+$I$11*'Data(Step1)'!J139+$J$11*'Data(Step1)'!K139+$K$11*'Data(Step1)'!L139+$L$11*'Data(Step1)'!M139 -> 0.1490753289 | K143: 29.90517497 | M143: 129 | O143: 141 | P143: =HLOOKUP(P$4,'Data(Step1)'!$AA$9:$AJ$509,$O143,FALSE) -> 0.005908859611 | Q143: =HLOOKUP(Q$4,'Data(Step1)'!$AA$9:$AJ$509,$O143,FALSE) -> 0.01118416695 | R143: =HLOOKUP(R$4,'Data(Step1)'!$AA$9:$AJ$509,$O143,FALSE) -> 0.01585688482 | S143: =HLOOKUP(S$4,'Data(Step1)'!$AA$9:$AJ$509,$O143,FALSE) -> 0.006515557472 | T143: =HLOOKUP(T$4,'Data(Step1)'!$AA$9:$AJ$509,$O143,FALSE) -> 0.001420657079
F144: 130 | H144: 0.004588177374 | J144: =$H$11*'Data(Step1)'!I140+$I$11*'Data(Step1)'!J140+$J$11*'Data(Step1)'!K140+$K$11*'Data(Step1)'!L140+$L$11*'Data(Step1)'!M140 -> 0.1767148092 | K144: 34.15622292 | M144: 130 | O144: 142 | P144: =HLOOKUP(P$4,'Data(Step1)'!$AA$9:$AJ$509,$O144,FALSE) -> 0 | Q144: =HLOOKUP(Q$4,'Data(Step1)'!$AA$9:$AJ$509,$O144,FALSE) -> 0 | R144: =HLOOKUP(R$4,'Data(Step1)'!$AA$9:$AJ$509,$O144,FALSE) -> 0.0117621297 | S144: =HLOOKUP(S$4,'Data(Step1)'!$AA$9:$AJ$509,$O144,FALSE) -> -0.004571028441 | T144: =HLOOKUP(T$4,'Data(Step1)'!$AA$9:$AJ$509,$O144,FALSE) -> 0.004046981874
F145: 131 | H145: 0.005003487015 | J145: =$H$11*'Data(Step1)'!I141+$I$11*'Data(Step1)'!J141+$J$11*'Data(Step1)'!K141+$K$11*'Data(Step1)'!L141+$L$11*'Data(Step1)'!M141 -> 0.1688990024 | K145: 29.75904644 | M145: 131 | O145: 143 | P145: =HLOOKUP(P$4,'Data(Step1)'!$AA$9:$AJ$509,$O145,FALSE) -> 0 | Q145: =HLOOKUP(Q$4,'Data(Step1)'!$AA$9:$AJ$509,$O145,FALSE) -> 0.003664954086 | R145: =HLOOKUP(R$4,'Data(Step1)'!$AA$9:$AJ$509,$O145,FALSE) -> 0.009846427755 | S145: =HLOOKUP(S$4,'Data(Step1)'!$AA$9:$AJ$509,$O145,FALSE) -> 0.01613694611 | T145: =HLOOKUP(T$4,'Data(Step1)'!$AA$9:$AJ$509,$O145,FALSE) -> 0.001682951659
F146: 132 | H146: 0.004417878618 | J146: =$H$11*'Data(Step1)'!I142+$I$11*'Data(Step1)'!J142+$J$11*'Data(Step1)'!K142+$K$11*'Data(Step1)'!L142+$L$11*'Data(Step1)'!M142 -> 0.1780082565 | K146: =(J146-$F$11)/H146 -> 35.76564005 | M146: 132 | O146: 144 | P146: =HLOOKUP(P$4,'Data(Step1)'!$AA$9:$AJ$509,$O146,FALSE) -> 0 | Q146: =HLOOKUP(Q$4,'Data(Step1)'!$AA$9:$AJ$509,$O146,FALSE) -> 0.003634284655 | R146: =HLOOKUP(R$4,'Data(Step1)'!$AA$9:$AJ$509,$O146,FALSE) -> 0.007968929671 | S146: =HLOOKUP(S$4,'Data(Step1)'!$AA$9:$AJ$509,$O146,FALSE) -> 0.00508638991 | T146: =HLOOKUP(T$4,'Data(Step1)'!$AA$9:$AJ$509,$O146,FALSE) -> -0.0009341678842
F147: 133 | H147: 0.00441395126 | J147: =$H$11*'Data(Step1)'!I143+$I$11*'Data(Step1)'!J143+$J$11*'Data(Step1)'!K143+$K$11*'Data(Step1)'!L143+$L$11*'Data(Step1)'!M143 -> 0.1866129076 | K147: 37.74688432 | M147: 133 | O147: 145 | P147: =HLOOKUP(P$4,'Data(Step1)'!$AA$9:$AJ$509,$O147,FALSE) -> 0 | Q147: =HLOOKUP(Q$4,'Data(Step1)'!$AA$9:$AJ$509,$O147,FALSE) -> 0 | R147: =HLOOKUP(R$4,'Data(Step1)'!$AA$9:$AJ$509,$O147,FALSE) -> 0.003312080738 | S147: =HLOOKUP(S$4,'Data(Step1)'!$AA$9:$AJ$509,$O147,FALSE) -> -0.002046953429 | T147: =HLOOKUP(T$4,'Data(Step1)'!$AA$9:$AJ$509,$O147,FALSE) -> -0.002908756458
F148: 134 | H148: 0.004666191827 | J148: =$H$11*'Data(Step1)'!I144+$I$11*'Data(Step1)'!J144+$J$11*'Data(Step1)'!K144+$K$11*'Data(Step1)'!L144+$L$11*'Data(Step1)'!M144 -> 0.2142523879 | K148: 41.62974758 | M148: 134 | O148: 146 | P148: =HLOOKUP(P$4,'Data(Step1)'!$AA$9:$AJ$509,$O148,FALSE) -> 0.002924553017 | Q148: =HLOOKUP(Q$4,'Data(Step1)'!$AA$9:$AJ$509,$O148,FALSE) -> -0.003634284655 | R148: =HLOOKUP(R$4,'Data(Step1)'!$AA$9:$AJ$509,$O148,FALSE) -> 0.01019038967 | S148: =HLOOKUP(S$4,'Data(Step1)'!$AA$9:$AJ$509,$O148,FALSE) -> 0.004857930763 | T148: =HLOOKUP(T$4,'Data(Step1)'!$AA$9:$AJ$509,$O148,FALSE) -> -0.01367593148
F149: 135 | H149: 0.005077832825 | J149: =$H$11*'Data(Step1)'!I145+$I$11*'Data(Step1)'!J145+$J$11*'Data(Step1)'!K145+$K$11*'Data(Step1)'!L145+$L$11*'Data(Step1)'!M145 -> 0.2064365812 | K149: 36.71577769 | M149: 135 | O149: 147 | P149: =HLOOKUP(P$4,'Data(Step1)'!$AA$9:$AJ$509,$O149,FALSE) -> 0.002904990643 | Q149: =HLOOKUP(Q$4,'Data(Step1)'!$AA$9:$AJ$509,$O149,FALSE) -> 0.01081286928 | R149: =HLOOKUP(R$4,'Data(Step1)'!$AA$9:$AJ$509,$O149,FALSE) -> -0.007312895586 | S149: =HLOOKUP(S$4,'Data(Step1)'!$AA$9:$AJ$509,$O149,FALSE) -> -0.009277019583 | T149: =HLOOKUP(T$4,'Data(Step1)'!$AA$9:$AJ$509,$O149,FALSE) -> -9.716847158e-05
F150: 136 | H150: 0.003902481881 | J150: =$H$11*'Data(Step1)'!I146+$I$11*'Data(Step1)'!J146+$J$11*'Data(Step1)'!K146+$K$11*'Data(Step1)'!L146+$L$11*'Data(Step1)'!M146 -> 0.1816305339 | K150: 41.41736948 | M150: 136 | O150: 148 | P150: =HLOOKUP(P$4,'Data(Step1)'!$AA$9:$AJ$509,$O150,FALSE) -> 0.005752328889 | Q150: =HLOOKUP(Q$4,'Data(Step1)'!$AA$9:$AJ$509,$O150,FALSE) -> 0.003545280765 | R150: =HLOOKUP(R$4,'Data(Step1)'!$AA$9:$AJ$509,$O150,FALSE) -> 0 | S150: =HLOOKUP(S$4,'Data(Step1)'!$AA$9:$AJ$509,$O150,FALSE) -> -0.0003949927347 | T150: =HLOOKUP(T$4,'Data(Step1)'!$AA$9:$AJ$509,$O150,FALSE) -> -0.0001944021885
F151: 137 | H151: 0.004009602819 | J151: =$H$11*'Data(Step1)'!I147+$I$11*'Data(Step1)'!J147+$J$11*'Data(Step1)'!K147+$K$11*'Data(Step1)'!L147+$L$11*'Data(Step1)'!M147 -> 0.2092700142 | K151: 47.20418026 | M151: 137 | O151: 149 | P151: =HLOOKUP(P$4,'Data(Step1)'!$AA$9:$AJ$509,$O151,FALSE) -> -0.002866640652 | Q151: =HLOOKUP(Q$4,'Data(Step1)'!$AA$9:$AJ$509,$O151,FALSE) -> 0.007004901569 | R151: =HLOOKUP(R$4,'Data(Step1)'!$AA$9:$AJ$509,$O151,FALSE) -> -0.0008201975656 | S151: =HLOOKUP(S$4,'Data(Step1)'!$AA$9:$AJ$509,$O151,FALSE) -> -0.006469500022 | T151: =HLOOKUP(T$4,'Data(Step1)'!$AA$9:$AJ$509,$O151,FALSE) -> -0.003416200751
F152: 138 | H152: 0.004380935877 | J152: =$H$11*'Data(Step1)'!I148+$I$11*'Data(Step1)'!J148+$J$11*'Data(Step1)'!K148+$K$11*'Data(Step1)'!L148+$L$11*'Data(Step1)'!M148 -> 0.2014542075 | K152: 41.41905122 | M152: 138 | O152: 150 | P152: =HLOOKUP(P$4,'Data(Step1)'!$AA$9:$AJ$509,$O152,FALSE) -> -0.005790678881 | Q152: =HLOOKUP(Q$4,'Data(Step1)'!$AA$9:$AJ$509,$O152,FALSE) -> 0.00346053211 | R152: =HLOOKUP(R$4,'Data(Step1)'!$AA$9:$AJ$509,$O152,FALSE) -> 0.0008201975656 | S152: =HLOOKUP(S$4,'Data(Step1)'!$AA$9:$AJ$509,$O152,FALSE) -> 0.00399262276 | T152: =HLOOKUP(T$4,'Data(Step1)'!$AA$9:$AJ$509,$O152,FALSE) -> 0.003124434209
F153: 139 | H153: 0.004010333272 | J153: =$H$11*'Data(Step1)'!I149+$I$11*'Data(Step1)'!J149+$J$11*'Data(Step1)'!K149+$K$11*'Data(Step1)'!L149+$L$11*'Data(Step1)'!M149 -> 0.2178746654 | K153: 49.34120233 | M153: 139 | O153: 151 | P153: =HLOOKUP(P$4,'Data(Step1)'!$AA$9:$AJ$509,$O153,FALSE) -> -0.002924553017 | Q153: =HLOOKUP(Q$4,'Data(Step1)'!$AA$9:$AJ$509,$O153,FALSE) -> -0.00346053211 | R153: =HLOOKUP(R$4,'Data(Step1)'!$AA$9:$AJ$509,$O153,FALSE) -> 0.00407791242 | S153: =HLOOKUP(S$4,'Data(Step1)'!$AA$9:$AJ$509,$O153,FALSE) -> 0.006802163625 | T153: =HLOOKUP(T$4,'Data(Step1)'!$AA$9:$AJ$509,$O153,FALSE) -> 0.000388978514
F154: 140 | H154: 0.004346960592 | J154: =$H$11*'Data(Step1)'!I150+$I$11*'Data(Step1)'!J150+$J$11*'Data(Step1)'!K150+$K$11*'Data(Step1)'!L150+$L$11*'Data(Step1)'!M150 -> 0.2100588586 | K154: 43.72224101 | M154: 140 | O154: 152 | P154: =HLOOKUP(P$4,'Data(Step1)'!$AA$9:$AJ$509,$O154,FALSE) -> -0.002944380647 | Q154: =HLOOKUP(Q$4,'Data(Step1)'!$AA$9:$AJ$509,$O154,FALSE) -> -0.003488327846 | R154: =HLOOKUP(R$4,'Data(Step1)'!$AA$9:$AJ$509,$O154,FALSE) -> 0 | S154: =HLOOKUP(S$4,'Data(Step1)'!$AA$9:$AJ$509,$O154,FALSE) -> -0.002649042667 | T154: =HLOOKUP(T$4,'Data(Step1)'!$AA$9:$AJ$509,$O154,FALSE) -> 0.005697330052
F155: 141 | H155: 0.004622723563 | J155: =$H$11*'Data(Step1)'!I151+$I$11*'Data(Step1)'!J151+$J$11*'Data(Step1)'!K151+$K$11*'Data(Step1)'!L151+$L$11*'Data(Step1)'!M151 -> 0.2376983389 | K155: 47.09309047 | M155: 141 | O155: 153 | P155: =HLOOKUP(P$4,'Data(Step1)'!$AA$9:$AJ$509,$O155,FALSE) -> 0.002944380647 | Q155: =HLOOKUP(Q$4,'Data(Step1)'!$AA$9:$AJ$509,$O155,FALSE) -> 0 | R155: =HLOOKUP(R$4,'Data(Step1)'!$AA$9:$AJ$509,$O155,FALSE) -> 0.003234983166 | S155: =HLOOKUP(S$4,'Data(Step1)'!$AA$9:$AJ$509,$O155,FALSE) -> -0.004252490477 | T155: =HLOOKUP(T$4,'Data(Step1)'!$AA$9:$AJ$509,$O155,FALSE) -> -0.005794542023
F156: 142 | H156: 0.00510473677 | J156: =$H$11*'Data(Step1)'!I152+$I$11*'Data(Step1)'!J152+$J$11*'Data(Step1)'!K152+$K$11*'Data(Step1)'!L152+$L$11*'Data(Step1)'!M152 -> 0.1431864706 | K156: 24.13179683 | M156: 142 | O156: 154 | P156: =HLOOKUP(P$4,'Data(Step1)'!$AA$9:$AJ$509,$O156,FALSE) -> 0 | Q156: =HLOOKUP(Q$4,'Data(Step1)'!$AA$9:$AJ$509,$O156,FALSE) -> -0.003516573723 | R156: =HLOOKUP(R$4,'Data(Step1)'!$AA$9:$AJ$509,$O156,FALSE) -> 0.01035031254 | S156: =HLOOKUP(S$4,'Data(Step1)'!$AA$9:$AJ$509,$O156,FALSE) -> 0.003267248489 | T156: =HLOOKUP(T$4,'Data(Step1)'!$AA$9:$AJ$509,$O156,FALSE) -> 0.006561338924
F157: 143 | H157: 0.005132420029 | J157: =$H$11*'Data(Step1)'!I153+$I$11*'Data(Step1)'!J153+$J$11*'Data(Step1)'!K153+$K$11*'Data(Step1)'!L153+$L$11*'Data(Step1)'!M153 -> 0.1517911218 | K157: 25.67816371 | M157: 143 | O157: 155 | P157: =HLOOKUP(P$4,'Data(Step1)'!$AA$9:$AJ$509,$O157,FALSE) -> 0.002924553017 | Q157: =HLOOKUP(Q$4,'Data(Step1)'!$AA$9:$AJ$509,$O157,FALSE) -> 0.003516573723 | R157: =HLOOKUP(R$4,'Data(Step1)'!$AA$9:$AJ$509,$O157,FALSE) -> 0.005084099722 | S157: =HLOOKUP(S$4,'Data(Step1)'!$AA$9:$AJ$509,$O157,FALSE) -> 0.006850212713 | T157: =HLOOKUP(T$4,'Data(Step1)'!$AA$9:$AJ$509,$O157,FALSE) -> -0.002208200421
F158: 144 | H158: 0.005422685402 | J158: =$H$11*'Data(Step1)'!I154+$I$11*'Data(Step1)'!J154+$J$11*'Data(Step1)'!K154+$K$11*'Data(Step1)'!L154+$L$11*'Data(Step1)'!M154 -> 0.1794306021 | K158: 29.40067333 | M158: 144 | O158: 156 | P158: =HLOOKUP(P$4,'Data(Step1)'!$AA$9:$AJ$509,$O158,FALSE) -> 0 | Q158: =HLOOKUP(Q$4,'Data(Step1)'!$AA$9:$AJ$509,$O158,FALSE) -> 0 | R158: =HLOOKUP(R$4,'Data(Step1)'!$AA$9:$AJ$509,$O158,FALSE) -> 0.0003886304348 | S158: =HLOOKUP(S$4,'Data(Step1)'!$AA$9:$AJ$509,$O158,FALSE) -> -0.0004857337291 | T158: =HLOOKUP(T$4,'Data(Step1)'!$AA$9:$AJ$509,$O158,FALSE) -> -0.0008671440124
F159: 145 | H159: 0.005873947851 | J159: =$H$11*'Data(Step1)'!I155+$I$11*'Data(Step1)'!J155+$J$11*'Data(Step1)'!K155+$K$11*'Data(Step1)'!L155+$L$11*'Data(Step1)'!M155 -> 0.1716147953 | K159: 25.81139621 | M159: 145 | O159: 157 | P159: =HLOOKUP(P$4,'Data(Step1)'!$AA$9:$AJ$509,$O159,FALSE) -> -0.005868933664 | Q159: =HLOOKUP(Q$4,'Data(Step1)'!$AA$9:$AJ$509,$O159,FALSE) -> 0.006948859955 | R159: =HLOOKUP(R$4,'Data(Step1)'!$AA$9:$AJ$509,$O159,FALSE) -> 0.001163809045 | S159: =HLOOKUP(S$4,'Data(Step1)'!$AA$9:$AJ$509,$O159,FALSE) -> 0.002809723124 | T159: =HLOOKUP(T$4,'Data(Step1)'!$AA$9:$AJ$509,$O159,FALSE) -> 0.005081768444
F160: 146 | H160: 0.004409393616 | J160: =$H$11*'Data(Step1)'!I156+$I$11*'Data(Step1)'!J156+$J$11*'Data(Step1)'!K156+$K$11*'Data(Step1)'!L156+$L$11*'Data(Step1)'!M156 -> 0.1468087481 | K160: 28.75877255 | M160: 146 | O160: 158 | P160: =HLOOKUP(P$4,'Data(Step1)'!$AA$9:$AJ$509,$O160,FALSE) -> 0 | Q160: =HLOOKUP(Q$4,'Data(Step1)'!$AA$9:$AJ$509,$O160,FALSE) -> -0.00346053211 | R160: =HLOOKUP(R$4,'Data(Step1)'!$AA$9:$AJ$509,$O160,FALSE) -> 0 | S160: =HLOOKUP(S$4,'Data(Step1)'!$AA$9:$AJ$509,$O160,FALSE) -> -0.002226907807 | T160: =HLOOKUP(T$4,'Data(Step1)'!$AA$9:$AJ$509,$O160,FALSE) -> -0.0001906891279
F161: 147 | H161: 0.004589521017 | J161: =$H$11*'Data(Step1)'!I157+$I$11*'Data(Step1)'!J157+$J$11*'Data(Step1)'!K157+$K$11*'Data(Step1)'!L157+$L$11*'Data(Step1)'!M157 -> 0.1744482284 | K161: 33.65236324 | M161: 147 | O161: 159 | P161: =HLOOKUP(P$4,'Data(Step1)'!$AA$9:$AJ$509,$O161,FALSE) -> 0.01165961254 | Q161: =HLOOKUP(Q$4,'Data(Step1)'!$AA$9:$AJ$509,$O161,FALSE) -> 0 | R161: =HLOOKUP(R$4,'Data(Step1)'!$AA$9:$AJ$509,$O161,FALSE) -> 0.001160698638 | S161: =HLOOKUP(S$4,'Data(Step1)'!$AA$9:$AJ$509,$O161,FALSE) -> 0.005881311636 | T161: =HLOOKUP(T$4,'Data(Step1)'!$AA$9:$AJ$509,$O161,FALSE) -> 0.001333068959
F162: 148 | H162: 0.00502653896 | J162: =$H$11*'Data(Step1)'!I158+$I$11*'Data(Step1)'!J158+$J$11*'Data(Step1)'!K158+$K$11*'Data(Step1)'!L158+$L$11*'Data(Step1)'!M158 -> 0.1666324216 | K162: 29.17164729 | M162: 148 | O162: 160 | P162: =HLOOKUP(P$4,'Data(Step1)'!$AA$9:$AJ$509,$O162,FALSE) -> 0.002866640652 | Q162: =HLOOKUP(Q$4,'Data(Step1)'!$AA$9:$AJ$509,$O162,FALSE) -> -0.003488327846 | R162: =HLOOKUP(R$4,'Data(Step1)'!$AA$9:$AJ$509,$O162,FALSE) -> -0.01653905046 | S162: =HLOOKUP(S$4,'Data(Step1)'!$AA$9:$AJ$509,$O162,FALSE) -> 0.0001914878699 | T162: =HLOOKUP(T$4,'Data(Step1)'!$AA$9:$AJ$509,$O162,FALSE) -> -0.0002853133675
F163: 149 | H163: 0.004624677824 | J163: =$H$11*'Data(Step1)'!I159+$I$11*'Data(Step1)'!J159+$J$11*'Data(Step1)'!K159+$K$11*'Data(Step1)'!L159+$L$11*'Data(Step1)'!M159 -> 0.1830528795 | K163: 35.25713266 | M163: 149 | O163: 161 | P163: =HLOOKUP(P$4,'Data(Step1)'!$AA$9:$AJ$509,$O163,FALSE) -> 0 | Q163: =HLOOKUP(Q$4,'Data(Step1)'!$AA$9:$AJ$509,$O163,FALSE) -> 0 | R163: =HLOOKUP(R$4,'Data(Step1)'!$AA$9:$AJ$509,$O163,FALSE) -> -0.00160849992 | S163: =HLOOKUP(S$4,'Data(Step1)'!$AA$9:$AJ$509,$O163,FALSE) -> -0.001630344455 | T163: =HLOOKUP(T$4,'Data(Step1)'!$AA$9:$AJ$509,$O163,FALSE) -> -0.002098045056
F164: 150 | H164: 0.00502868221 | J164: =$H$11*'Data(Step1)'!I160+$I$11*'Data(Step1)'!J160+$J$11*'Data(Step1)'!K160+$K$11*'Data(Step1)'!L160+$L$11*'Data(Step1)'!M160 -> 0.1752370728 | K164: 30.87032871 | M164: 150 | O164: 162 | P164: =HLOOKUP(P$4,'Data(Step1)'!$AA$9:$AJ$509,$O164,FALSE) -> 0 | Q164: =HLOOKUP(Q$4,'Data(Step1)'!$AA$9:$AJ$509,$O164,FALSE) -> 0.003488327846 | R164: =HLOOKUP(R$4,'Data(Step1)'!$AA$9:$AJ$509,$O164,FALSE) -> 0.0004026838322 | S164: =HLOOKUP(S$4,'Data(Step1)'!$AA$9:$AJ$509,$O164,FALSE) -> 0.007808179521 | T164: =HLOOKUP(T$4,'Data(Step1)'!$AA$9:$AJ$509,$O164,FALSE) -> 0.001336291768
F165: 151 | H165: 0.005341774302 | J165: =$H$11*'Data(Step1)'!I161+$I$11*'Data(Step1)'!J161+$J$11*'Data(Step1)'!K161+$K$11*'Data(Step1)'!L161+$L$11*'Data(Step1)'!M161 -> 0.2028765531 | K165: 34.23517033 | M165: 151 | O165: 163 | P165: =HLOOKUP(P$4,'Data(Step1)'!$AA$9:$AJ$509,$O165,FALSE) -> -0.005752328889 | Q165: =HLOOKUP(Q$4,'Data(Step1)'!$AA$9:$AJ$509,$O165,FALSE) -> -0.003488327846 | R165: =HLOOKUP(R$4,'Data(Step1)'!$AA$9:$AJ$509,$O165,FALSE) -> 0.008765874289 | S165: =HLOOKUP(S$4,'Data(Step1)'!$AA$9:$AJ$509,$O165,FALSE) -> 0.006277259598 | T165: =HLOOKUP(T$4,'Data(Step1)'!$AA$9:$AJ$509,$O165,FALSE) -> -0.0009540743773
F166: 152 | H166: 0.004507861039 | J166: =$H$11*'Data(Step1)'!I162+$I$11*'Data(Step1)'!J162+$J$11*'Data(Step1)'!K162+$K$11*'Data(Step1)'!L162+$L$11*'Data(Step1)'!M162 -> 0.1843463268 | K166: 36.45771806 | M166: 152 | O166: 164 | P166: =HLOOKUP(P$4,'Data(Step1)'!$AA$9:$AJ$509,$O166,FALSE) -> -0.005829543661 | Q166: =HLOOKUP(Q$4,'Data(Step1)'!$AA$9:$AJ$509,$O166,FALSE) -> 0 | R166: =HLOOKUP(R$4,'Data(Step1)'!$AA$9:$AJ$509,$O166,FALSE) -> -0.0007896265483 | S166: =HLOOKUP(S$4,'Data(Step1)'!$AA$9:$AJ$509,$O166,FALSE) -> -0.01121247727 | T166: =HLOOKUP(T$4,'Data(Step1)'!$AA$9:$AJ$509,$O166,FALSE) -> -9.552281616e-05
F167: 153 | H167: 0.004670112746 | J167: =$H$11*'Data(Step1)'!I163+$I$11*'Data(Step1)'!J163+$J$11*'Data(Step1)'!K163+$K$11*'Data(Step1)'!L163+$L$11*'Data(Step1)'!M163 -> 0.2119858071 | K167: 41.10945871 | M167: 153 | O167: 165 | P167: =HLOOKUP(P$4,'Data(Step1)'!$AA$9:$AJ$509,$O167,FALSE) -> 0 | Q167: =HLOOKUP(Q$4,'Data(Step1)'!$AA$9:$AJ$509,$O167,FALSE) -> -0.007061854487 | R167: =HLOOKUP(R$4,'Data(Step1)'!$AA$9:$AJ$509,$O167,FALSE) -> -0.001583573247 | S167: =HLOOKUP(S$4,'Data(Step1)'!$AA$9:$AJ$509,$O167,FALSE) -> -0.004316601342 | T167: =HLOOKUP(T$4,'Data(Step1)'!$AA$9:$AJ$509,$O167,FALSE) -> -0.007710712654
F168: 154 | H168: 0.005102927899 | J168: =$H$11*'Data(Step1)'!I164+$I$11*'Data(Step1)'!J164+$J$11*'Data(Step1)'!K164+$K$11*'Data(Step1)'!L164+$L$11*'Data(Step1)'!M164 -> 0.2041700003 | K168: 36.09104498 | M168: 154 | O168: 166 | P168: =HLOOKUP(P$4,'Data(Step1)'!$AA$9:$AJ$509,$O168,FALSE) -> 0.002924553017 | Q168: =HLOOKUP(Q$4,'Data(Step1)'!$AA$9:$AJ$509,$O168,FALSE) -> 0.003545280765 | R168: =HLOOKUP(R$4,'Data(Step1)'!$AA$9:$AJ$509,$O168,FALSE) -> -0.00238623942 | S168: =HLOOKUP(S$4,'Data(Step1)'!$AA$9:$AJ$509,$O168,FALSE) -> 0.006601364956 | T168: =HLOOKUP(T$4,'Data(Step1)'!$AA$9:$AJ$509,$O168,FALSE) -> -0.0007786545912
F169: 155 | H169: 0.004735007346 | J169: =$H$11*'Data(Step1)'!I165+$I$11*'Data(Step1)'!J165+$J$11*'Data(Step1)'!K165+$K$11*'Data(Step1)'!L165+$L$11*'Data(Step1)'!M165 -> 0.2205904583 | K169: 42.36328344 | M169: 155 | O169: 167 | P169: =HLOOKUP(P$4,'Data(Step1)'!$AA$9:$AJ$509,$O169,FALSE) -> 0 | Q169: =HLOOKUP(Q$4,'Data(Step1)'!$AA$9:$AJ$509,$O169,FALSE) -> 0 | R169: =HLOOKUP(R$4,'Data(Step1)'!$AA$9:$AJ$509,$O169,FALSE) -> -0.001198054503 | S169: =HLOOKUP(S$4,'Data(Step1)'!$AA$9:$AJ$509,$O169,FALSE) -> -0.00314465837 | T169: =HLOOKUP(T$4,'Data(Step1)'!$AA$9:$AJ$509,$O169,FALSE) -> 0.005517690505
F170: 156 | H170: 0.00513301312 | J170: =$H$11*'Data(Step1)'!I166+$I$11*'Data(Step1)'!J166+$J$11*'Data(Step1)'!K166+$K$11*'Data(Step1)'!L166+$L$11*'Data(Step1)'!M166 -> 0.2127746515 | K170: 37.55584625 | M170: 156 | O170: 168 | P170: =HLOOKUP(P$4,'Data(Step1)'!$AA$9:$AJ$509,$O170,FALSE) -> 0 | Q170: =HLOOKUP(Q$4,'Data(Step1)'!$AA$9:$AJ$509,$O170,FALSE) -> 0.003516573723 | R170: =HLOOKUP(R$4,'Data(Step1)'!$AA$9:$AJ$509,$O170,FALSE) -> 0 | S170: =HLOOKUP(S$4,'Data(Step1)'!$AA$9:$AJ$509,$O170,FALSE) -> -0.005195432368 | T170: =HLOOKUP(T$4,'Data(Step1)'!$AA$9:$AJ$509,$O170,FALSE) -> -0.001445240874
F171: 157 | H171: 0.005427975904 | J171: =$H$11*'Data(Step1)'!I167+$I$11*'Data(Step1)'!J167+$J$11*'Data(Step1)'!K167+$K$11*'Data(Step1)'!L167+$L$11*'Data(Step1)'!M167 -> 0.2404141318 | K171: 40.6070579 | M171: 157 | O171: 169 | P171: =HLOOKUP(P$4,'Data(Step1)'!$AA$9:$AJ$509,$O171,FALSE) -> 0.002904990643 | Q171: =HLOOKUP(Q$4,'Data(Step1)'!$AA$9:$AJ$509,$O171,FALSE) -> 0.01716802514 | R171: =HLOOKUP(R$4,'Data(Step1)'!$AA$9:$AJ$509,$O171,FALSE) -> -0.0004000870683 | S171: =HLOOKUP(S$4,'Data(Step1)'!$AA$9:$AJ$509,$O171,FALSE) -> 0.00815015219 | T171: =HLOOKUP(T$4,'Data(Step1)'!$AA$9:$AJ$509,$O171,FALSE) -> -0.005047735201
F172: 158 | H172: 0.004104282535 | J172: =$H$11*'Data(Step1)'!I168+$I$11*'Data(Step1)'!J168+$J$11*'Data(Step1)'!K168+$K$11*'Data(Step1)'!L168+$L$11*'Data(Step1)'!M168 -> 0.2156080846 | K172: 47.65950758 | M172: 158 | O172: 170 | P172: =HLOOKUP(P$4,'Data(Step1)'!$AA$9:$AJ$509,$O172,FALSE) -> 0.008600171762 | Q172: =HLOOKUP(Q$4,'Data(Step1)'!$AA$9:$AJ$509,$O172,FALSE) -> 0.009984220907 | R172: =HLOOKUP(R$4,'Data(Step1)'!$AA$9:$AJ$509,$O172,FALSE) -> 0.001598141571 | S172: =HLOOKUP(S$4,'Data(Step1)'!$AA$9:$AJ$509,$O172,FALSE) -> -0.003720502665 | T172: =HLOOKUP(T$4,'Data(Step1)'!$AA$9:$AJ$509,$O172,FALSE) -> -0.007583972084
F173: 159 | H173: 0.004458397539 | J173: =$H$11*'Data(Step1)'!I169+$I$11*'Data(Step1)'!J169+$J$11*'Data(Step1)'!K169+$K$11*'Data(Step1)'!L169+$L$11*'Data(Step1)'!M169 -> 0.2077922778 | K173: 42.12102582 | M173: 159 | O173: 171 | P173: =HLOOKUP(P$4,'Data(Step1)'!$AA$9:$AJ$509,$O173,FALSE) -> -0.002847842873 | Q173: =HLOOKUP(Q$4,'Data(Step1)'!$AA$9:$AJ$509,$O173,FALSE) -> -0.00330263555 | R173: =HLOOKUP(R$4,'Data(Step1)'!$AA$9:$AJ$509,$O173,FALSE) -> -0.01172201449 | S173: =HLOOKUP(S$4,'Data(Step1)'!$AA$9:$AJ$509,$O173,FALSE) -> -0.01372338762 | T173: =HLOOKUP(T$4,'Data(Step1)'!$AA$9:$AJ$509,$O173,FALSE) -> -0.00711235091
F174: 160 | H174: 0.004642152177 | J174: =$H$11*'Data(Step1)'!I170+$I$11*'Data(Step1)'!J170+$J$11*'Data(Step1)'!K170+$K$11*'Data(Step1)'!L170+$L$11*'Data(Step1)'!M170 -> 0.2354317581 | K174: 46.40773286 | M174: 160 | O174: 172 | P174: =HLOOKUP(P$4,'Data(Step1)'!$AA$9:$AJ$509,$O174,FALSE) -> -0.005752328889 | Q174: =HLOOKUP(Q$4,'Data(Step1)'!$AA$9:$AJ$509,$O174,FALSE) -> 0.00330263555 | R174: =HLOOKUP(R$4,'Data(Step1)'!$AA$9:$AJ$509,$O174,FALSE) -> -0.004116566195 | S174: =HLOOKUP(S$4,'Data(Step1)'!$AA$9:$AJ$509,$O174,FALSE) -> -0.006776646161 | T174: =HLOOKUP(T$4,'Data(Step1)'!$AA$9:$AJ$509,$O174,FALSE) -> 0.004121330259
F175: 161 | H175: 0.004679537512 | J175: =$H$11*'Data(Step1)'!I171+$I$11*'Data(Step1)'!J171+$J$11*'Data(Step1)'!K171+$K$11*'Data(Step1)'!L171+$L$11*'Data(Step1)'!M171 -> 0.2440364093 | K175: 47.87575881 | M175: 161 | O175: 173 | P175: =HLOOKUP(P$4,'Data(Step1)'!$AA$9:$AJ$509,$O175,FALSE) -> 0 | Q175: =HLOOKUP(Q$4,'Data(Step1)'!$AA$9:$AJ$509,$O175,FALSE) -> 0.006530867159 | R175: =HLOOKUP(R$4,'Data(Step1)'!$AA$9:$AJ$509,$O175,FALSE) -> 0.009005486287 | S175: =HLOOKUP(S$4,'Data(Step1)'!$AA$9:$AJ$509,$O175,FALSE) -> 0.003600803987 | T175: =HLOOKUP(T$4,'Data(Step1)'!$AA$9:$AJ$509,$O175,FALSE) -> 0.00920590294
F176: 162 | H176: 0.005030539069 | J176: =$H$11*'Data(Step1)'!I172+$I$11*'Data(Step1)'!J172+$J$11*'Data(Step1)'!K172+$K$11*'Data(Step1)'!L172+$L$11*'Data(Step1)'!M172 -> 0.1083749658 | K176: 17.56769296 | M176: 162 | O176: 174 | P176: =HLOOKUP(P$4,'Data(Step1)'!$AA$9:$AJ$509,$O176,FALSE) -> 0 | Q176: =HLOOKUP(Q$4,'Data(Step1)'!$AA$9:$AJ$509,$O176,FALSE) -> 0 | R176: =HLOOKUP(R$4,'Data(Step1)'!$AA$9:$AJ$509,$O176,FALSE) -> -0.002437580666 | S176: =HLOOKUP(S$4,'Data(Step1)'!$AA$9:$AJ$509,$O176,FALSE) -> -0.01253053783 | T176: =HLOOKUP(T$4,'Data(Step1)'!$AA$9:$AJ$509,$O176,FALSE) -> -0.005123315554
F177: 163 | H177: 0.005065860736 | J177: =$H$11*'Data(Step1)'!I173+$I$11*'Data(Step1)'!J173+$J$11*'Data(Step1)'!K173+$K$11*'Data(Step1)'!L173+$L$11*'Data(Step1)'!M173 -> 0.1169796169 | K177: 19.14375898 | M177: 163 | O177: 175 | P177: =HLOOKUP(P$4,'Data(Step1)'!$AA$9:$AJ$509,$O177,FALSE) -> -0.005829543661 | Q177: =HLOOKUP(Q$4,'Data(Step1)'!$AA$9:$AJ$509,$O177,FALSE) -> -0.006530867159 | R177: =HLOOKUP(R$4,'Data(Step1)'!$AA$9:$AJ$509,$O177,FALSE) -> -0.009889485727 | S177: =HLOOKUP(S$4,'Data(Step1)'!$AA$9:$AJ$509,$O177,FALSE) -> -0.004120471914 | T177: =HLOOKUP(T$4,'Data(Step1)'!$AA$9:$AJ$509,$O177,FALSE) -> -0.00488368419
F178: 164 | H178: 0.005340384406 | J178: =$H$11*'Data(Step1)'!I174+$I$11*'Data(Step1)'!J174+$J$11*'Data(Step1)'!K174+$K$11*'Data(Step1)'!L174+$L$11*'Data(Step1)'!M174 -> 0.1446190972 | K178: 23.33522978 | M178: 164 | O178: 176 | P178: =HLOOKUP(P$4,'Data(Step1)'!$AA$9:$AJ$509,$O178,FALSE) -> 0 | Q178: =HLOOKUP(Q$4,'Data(Step1)'!$AA$9:$AJ$509,$O178,FALSE) -> 0 | R178: =HLOOKUP(R$4,'Data(Step1)'!$AA$9:$AJ$509,$O178,FALSE) -> 0.005796199234 | S178: =HLOOKUP(S$4,'Data(Step1)'!$AA$9:$AJ$509,$O178,FALSE) -> 0.002271095882 | T178: =HLOOKUP(T$4,'Data(Step1)'!$AA$9:$AJ$509,$O178,FALSE) -> 0.004189368324
F179: 165 | H179: 0.005800248415 | J179: =$H$11*'Data(Step1)'!I175+$I$11*'Data(Step1)'!J175+$J$11*'Data(Step1)'!K175+$K$11*'Data(Step1)'!L175+$L$11*'Data(Step1)'!M175 -> 0.1368032905 | K179: 20.13763586 | M179: 165 | O179: 177 | P179: =HLOOKUP(P$4,'Data(Step1)'!$AA$9:$AJ$509,$O179,FALSE) -> 0 | Q179: =HLOOKUP(Q$4,'Data(Step1)'!$AA$9:$AJ$509,$O179,FALSE) -> -0.00330263555 | R179: =HLOOKUP(R$4,'Data(Step1)'!$AA$9:$AJ$509,$O179,FALSE) -> 0.009357526485 | S179: =HLOOKUP(S$4,'Data(Step1)'!$AA$9:$AJ$509,$O179,FALSE) -> 0.008563830648 | T179: =HLOOKUP(T$4,'Data(Step1)'!$AA$9:$AJ$509,$O179,FALSE) -> 0.001387523487
F180: 166 | H180: 0.004333018402 | J180: =$H$11*'Data(Step1)'!I176+$I$11*'Data(Step1)'!J176+$J$11*'Data(Step1)'!K176+$K$11*'Data(Step1)'!L176+$L$11*'Data(Step1)'!M176 -> 0.1119972433 | K180: 21.2316761 | M180: 166 | O180: 178 | P180: =HLOOKUP(P$4,'Data(Step1)'!$AA$9:$AJ$509,$O180,FALSE) -> -0.01492567793 | Q180: =HLOOKUP(Q$4,'Data(Step1)'!$AA$9:$AJ$509,$O180,FALSE) -> -0.0134675747 | R180: =HLOOKUP(R$4,'Data(Step1)'!$AA$9:$AJ$509,$O180,FALSE) -> -0.01640589713 | S180: =HLOOKUP(S$4,'Data(Step1)'!$AA$9:$AJ$509,$O180,FALSE) -> -0.01856241861 | T180: =HLOOKUP(T$4,'Data(Step1)'!$AA$9:$AJ$509,$O180,FALSE) -> -0.01092181183
F181: 167 | H181: 0.004493214727 | J181: =$H$11*'Data(Step1)'!I177+$I$11*'Data(Step1)'!J177+$J$11*'Data(Step1)'!K177+$K$11*'Data(Step1)'!L177+$L$11*'Data(Step1)'!M177 -> 0.1396367235 | K181: 26.6260864 | M181: 167 | O181: 179 | P181: =HLOOKUP(P$4,'Data(Step1)'!$AA$9:$AJ$509,$O181,FALSE) -> 0 | Q181: =HLOOKUP(Q$4,'Data(Step1)'!$AA$9:$AJ$509,$O181,FALSE) -> -0.006893707948 | R181: =HLOOKUP(R$4,'Data(Step1)'!$AA$9:$AJ$509,$O181,FALSE) -> -0.006315590917 | S181: =HLOOKUP(S$4,'Data(Step1)'!$AA$9:$AJ$509,$O181,FALSE) -> -0.0005271204457 | T181: =HLOOKUP(T$4,'Data(Step1)'!$AA$9:$AJ$509,$O181,FALSE) -> -0.006646190052
F182: 168 | H182: 0.004941335751 | J182: =$H$11*'Data(Step1)'!I178+$I$11*'Data(Step1)'!J178+$J$11*'Data(Step1)'!K178+$K$11*'Data(Step1)'!L178+$L$11*'Data(Step1)'!M178 -> 0.1318209168 | K182: 22.62969416 | M182: 168 | O182: 180 | P182: =HLOOKUP(P$4,'Data(Step1)'!$AA$9:$AJ$509,$O182,FALSE) -> 0.00603196477 | Q182: =HLOOKUP(Q$4,'Data(Step1)'!$AA$9:$AJ$509,$O182,FALSE) -> 0.00346053211 | R182: =HLOOKUP(R$4,'Data(Step1)'!$AA$9:$AJ$509,$O182,FALSE) -> 0.004220582118 | S182: =HLOOKUP(S$4,'Data(Step1)'!$AA$9:$AJ$509,$O182,FALSE) -> 0.006491504146 | T182: =HLOOKUP(T$4,'Data(Step1)'!$AA$9:$AJ$509,$O182,FALSE) -> -0.004661523987
F183: 169 | H183: 0.004537195632 | J183: =$H$11*'Data(Step1)'!I179+$I$11*'Data(Step1)'!J179+$J$11*'Data(Step1)'!K179+$K$11*'Data(Step1)'!L179+$L$11*'Data(Step1)'!M179 -> 0.1482413747 | K183: 28.26445785 | M183: 169 | O183: 181 | P183: =HLOOKUP(P$4,'Data(Step1)'!$AA$9:$AJ$509,$O183,FALSE) -> 0 | Q183: =HLOOKUP(Q$4,'Data(Step1)'!$AA$9:$AJ$509,$O183,FALSE) -> 0.003433175838 | R183: =HLOOKUP(R$4,'Data(Step1)'!$AA$9:$AJ$509,$O183,FALSE) -> 0.003347180206 | S183: =HLOOKUP(S$4,'Data(Step1)'!$AA$9:$AJ$509,$O183,FALSE) -> -0.01351012796 | T183: =HLOOKUP(T$4,'Data(Step1)'!$AA$9:$AJ$509,$O183,FALSE) -> -0.006505620049
F184: 170 | H184: 0.004950916447 | J184: =$H$11*'Data(Step1)'!I180+$I$11*'Data(Step1)'!J180+$J$11*'Data(Step1)'!K180+$K$11*'Data(Step1)'!L180+$L$11*'Data(Step1)'!M180 -> 0.140425568 | K184: 24.32389422 | M184: 170 | O184: 182 | P184: =HLOOKUP(P$4,'Data(Step1)'!$AA$9:$AJ$509,$O184,FALSE) -> -0.009079657852 | Q184: =HLOOKUP(Q$4,'Data(Step1)'!$AA$9:$AJ$509,$O184,FALSE) -> -0.006893707948 | R184: =HLOOKUP(R$4,'Data(Step1)'!$AA$9:$AJ$509,$O184,FALSE) -> -0.01440718685 | S184: =HLOOKUP(S$4,'Data(Step1)'!$AA$9:$AJ$509,$O184,FALSE) -> -0.03585341137 | T184: =HLOOKUP(T$4,'Data(Step1)'!$AA$9:$AJ$509,$O184,FALSE) -> 0.008272525966
F185: 171 | H185: 0.005248948523 | J185: =$H$11*'Data(Step1)'!I181+$I$11*'Data(Step1)'!J181+$J$11*'Data(Step1)'!K181+$K$11*'Data(Step1)'!L181+$L$11*'Data(Step1)'!M181 -> 0.1680650482 | K185: 28.20851597 | M185: 171 | O185: 183 | P185: =HLOOKUP(P$4,'Data(Step1)'!$AA$9:$AJ$509,$O185,FALSE) -> -0.006160308705 | Q185: =HLOOKUP(Q$4,'Data(Step1)'!$AA$9:$AJ$509,$O185,FALSE) -> -0.01412464269 | R185: =HLOOKUP(R$4,'Data(Step1)'!$AA$9:$AJ$509,$O185,FALSE) -> -0.009936128942 | S185: =HLOOKUP(S$4,'Data(Step1)'!$AA$9:$AJ$509,$O185,FALSE) -> 0.004862852257 | T185: =HLOOKUP(T$4,'Data(Step1)'!$AA$9:$AJ$509,$O185,FALSE) -> -0.008166819629
F186: 172 | H186: 0.004435532455 | J186: =$H$11*'Data(Step1)'!I182+$I$11*'Data(Step1)'!J182+$J$11*'Data(Step1)'!K182+$K$11*'Data(Step1)'!L182+$L$11*'Data(Step1)'!M182 -> 0.149534822 | K186: 29.20389452 | M186: 172 | O186: 184 | P186: =HLOOKUP(P$4,'Data(Step1)'!$AA$9:$AJ$509,$O186,FALSE) -> -0.003113235424 | Q186: =HLOOKUP(Q$4,'Data(Step1)'!$AA$9:$AJ$509,$O186,FALSE) -> -0.01459950857 | R186: =HLOOKUP(R$4,'Data(Step1)'!$AA$9:$AJ$509,$O186,FALSE) -> -0.00702138778 | S186: =HLOOKUP(S$4,'Data(Step1)'!$AA$9:$AJ$509,$O186,FALSE) -> -0.00311986203 | T186: =HLOOKUP(T$4,'Data(Step1)'!$AA$9:$AJ$509,$O186,FALSE) -> -0.002650407847
F187: 173 | H187: 0.004577779929 | J187: =$H$11*'Data(Step1)'!I183+$I$11*'Data(Step1)'!J183+$J$11*'Data(Step1)'!K183+$K$11*'Data(Step1)'!L183+$L$11*'Data(Step1)'!M183 -> 0.1771743023 | K187: 34.33417611 | M187: 173 | O187: 185 | P187: =HLOOKUP(P$4,'Data(Step1)'!$AA$9:$AJ$509,$O187,FALSE) -> -0.01916315929 | Q187: =HLOOKUP(Q$4,'Data(Step1)'!$AA$9:$AJ$509,$O187,FALSE) -> -0.02679317659 | R187: =HLOOKUP(R$4,'Data(Step1)'!$AA$9:$AJ$509,$O187,FALSE) -> -0.01783331367 | S187: =HLOOKUP(S$4,'Data(Step1)'!$AA$9:$AJ$509,$O187,FALSE) -> -0.001859438674 | T187: =HLOOKUP(T$4,'Data(Step1)'!$AA$9:$AJ$509,$O187,FALSE) -> -0.007941360795
F188: 174 | H188: 0.005021097373 | J188: =$H$11*'Data(Step1)'!I184+$I$11*'Data(Step1)'!J184+$J$11*'Data(Step1)'!K184+$K$11*'Data(Step1)'!L184+$L$11*'Data(Step1)'!M184 -> 0.1693584955 | K188: 29.74618583 | M188: 174 | O188: 186 | P188: =HLOOKUP(P$4,'Data(Step1)'!$AA$9:$AJ$509,$O188,FALSE) -> 0.01916315929 | Q188: =HLOOKUP(Q$4,'Data(Step1)'!$AA$9:$AJ$509,$O188,FALSE) -> 0.02306530407 | R188: =HLOOKUP(R$4,'Data(Step1)'!$AA$9:$AJ$509,$O188,FALSE) -> 0.03651081078 | S188: =HLOOKUP(S$4,'Data(Step1)'!$AA$9:$AJ$509,$O188,FALSE) -> 0.02676032651 | T188: =HLOOKUP(T$4,'Data(Step1)'!$AA$9:$AJ$509,$O188,FALSE) -> 0.01354114828
F189: 175 | H189: 0.004651842043 | J189: =$H$11*'Data(Step1)'!I185+$I$11*'Data(Step1)'!J185+$J$11*'Data(Step1)'!K185+$K$11*'Data(Step1)'!L185+$L$11*'Data(Step1)'!M185 -> 0.1857789534 | K189: 35.63727055 | M189: 175 | O189: 187 | P189: =HLOOKUP(P$4,'Data(Step1)'!$AA$9:$AJ$509,$O189,FALSE) -> -0.006294233098 | Q189: =HLOOKUP(Q$4,'Data(Step1)'!$AA$9:$AJ$509,$O189,FALSE) -> 0.01108897217 | R189: =HLOOKUP(R$4,'Data(Step1)'!$AA$9:$AJ$509,$O189,FALSE) -> -0.009808606476 | S189: =HLOOKUP(S$4,'Data(Step1)'!$AA$9:$AJ$509,$O189,FALSE) -> -0.007622304077 | T189: =HLOOKUP(T$4,'Data(Step1)'!$AA$9:$AJ$509,$O189,FALSE) -> 0.0005245736619
F190: 176 | H190: 0.005058912253 | J190: =$H$11*'Data(Step1)'!I186+$I$11*'Data(Step1)'!J186+$J$11*'Data(Step1)'!K186+$K$11*'Data(Step1)'!L186+$L$11*'Data(Step1)'!M186 -> 0.1779631467 | K190: 31.22472555 | M190: 176 | O190: 188 | P190: =HLOOKUP(P$4,'Data(Step1)'!$AA$9:$AJ$509,$O190,FALSE) -> 0.003158519245 | Q190: =HLOOKUP(Q$4,'Data(Step1)'!$AA$9:$AJ$509,$O190,FALSE) -> 0.007238408924 | R190: =HLOOKUP(R$4,'Data(Step1)'!$AA$9:$AJ$509,$O190,FALSE) -> 0.01872841549 | S190: =HLOOKUP(S$4,'Data(Step1)'!$AA$9:$AJ$509,$O190,FALSE) -> -0.001004149538 | T190: =HLOOKUP(T$4,'Data(Step1)'!$AA$9:$AJ$509,$O190,FALSE) -> -0.0009446892757
F191: 177 | H191: 0.005338601962 | J191: =$H$11*'Data(Step1)'!I187+$I$11*'Data(Step1)'!J187+$J$11*'Data(Step1)'!K187+$K$11*'Data(Step1)'!L187+$L$11*'Data(Step1)'!M187 -> 0.205602627 | K191: 34.76614819 | M191: 177 | O191: 189 | P191: =HLOOKUP(P$4,'Data(Step1)'!$AA$9:$AJ$509,$O191,FALSE) -> 0 | Q191: =HLOOKUP(Q$4,'Data(Step1)'!$AA$9:$AJ$509,$O191,FALSE) -> 0.04431942805 | R191: =HLOOKUP(R$4,'Data(Step1)'!$AA$9:$AJ$509,$O191,FALSE) -> -0.0008416562361 | S191: =HLOOKUP(S$4,'Data(Step1)'!$AA$9:$AJ$509,$O191,FALSE) -> 0.01352640573 | T191: =HLOOKUP(T$4,'Data(Step1)'!$AA$9:$AJ$509,$O191,FALSE) -> 0.002514619225
F192: 178 | H192: 0.004009434091 | J192: =$H$11*'Data(Step1)'!I188+$I$11*'Data(Step1)'!J188+$J$11*'Data(Step1)'!K188+$K$11*'Data(Step1)'!L188+$L$11*'Data(Step1)'!M188 -> 0.1807965798 | K192: 40.10455743 | M192: 178 | O192: 190 | P192: =HLOOKUP(P$4,'Data(Step1)'!$AA$9:$AJ$509,$O192,FALSE) -> -0.009545317906 | Q192: =HLOOKUP(Q$4,'Data(Step1)'!$AA$9:$AJ$509,$O192,FALSE) -> -0.01316144606 | R192: =HLOOKUP(R$4,'Data(Step1)'!$AA$9:$AJ$509,$O192,FALSE) -> -0.0171850108 | S192: =HLOOKUP(S$4,'Data(Step1)'!$AA$9:$AJ$509,$O192,FALSE) -> -0.02016729563 | T192: =HLOOKUP(T$4,'Data(Step1)'!$AA$9:$AJ$509,$O192,FALSE) -> -0.009612650204
F193: 179 | H193: 0.004374147333 | J193: =$H$11*'Data(Step1)'!I189+$I$11*'Data(Step1)'!J189+$J$11*'Data(Step1)'!K189+$K$11*'Data(Step1)'!L189+$L$11*'Data(Step1)'!M189 -> 0.172980773 | K193: 34.97385007 | M193: 179 | O193: 191 | P193: =HLOOKUP(P$4,'Data(Step1)'!$AA$9:$AJ$509,$O193,FALSE) -> 0.003205139875 | Q193: =HLOOKUP(Q$4,'Data(Step1)'!$AA$9:$AJ$509,$O193,FALSE) -> -0.006733382659 | R193: =HLOOKUP(R$4,'Data(Step1)'!$AA$9:$AJ$509,$O193,FALSE) -> -0.00422760084 | S193: =HLOOKUP(S$4,'Data(Step1)'!$AA$9:$AJ$509,$O193,FALSE) -> -0.004331581921 | T193: =HLOOKUP(T$4,'Data(Step1)'!$AA$9:$AJ$509,$O193,FALSE) -> 0.001599220471
F194: 180 | H194: 0.004538547357 | J194: =$H$11*'Data(Step1)'!I190+$I$11*'Data(Step1)'!J190+$J$11*'Data(Step1)'!K190+$K$11*'Data(Step1)'!L190+$L$11*'Data(Step1)'!M190 -> 0.2006202533 | K194: 39.7969304 | M194: 180 | O194: 192 | P194: =HLOOKUP(P$4,'Data(Step1)'!$AA$9:$AJ$509,$O194,FALSE) -> 0 | Q194: =HLOOKUP(Q$4,'Data(Step1)'!$AA$9:$AJ$509,$O194,FALSE) -> 0.003379740651 | R194: =HLOOKUP(R$4,'Data(Step1)'!$AA$9:$AJ$509,$O194,FALSE) -> 0.01247532014 | S194: =HLOOKUP(S$4,'Data(Step1)'!$AA$9:$AJ$509,$O194,FALSE) -> 0.008395713828 | T194: =HLOOKUP(T$4,'Data(Step1)'!$AA$9:$AJ$509,$O194,FALSE) -> -0.0007455701091
F195: 181 | H195: 0.004584771577 | J195: =$H$11*'Data(Step1)'!I191+$I$11*'Data(Step1)'!J191+$J$11*'Data(Step1)'!K191+$K$11*'Data(Step1)'!L191+$L$11*'Data(Step1)'!M191 -> 0.2092249045 | K195: 41.27248245 | M195: 181 | O195: 193 | P195: =HLOOKUP(P$4,'Data(Step1)'!$AA$9:$AJ$509,$O195,FALSE) -> -0.01626761271 | Q195: =HLOOKUP(Q$4,'Data(Step1)'!$AA$9:$AJ$509,$O195,FALSE) -> -0.01021916518 | R195: =HLOOKUP(R$4,'Data(Step1)'!$AA$9:$AJ$509,$O195,FALSE) -> -0.01567324855 | S195: =HLOOKUP(S$4,'Data(Step1)'!$AA$9:$AJ$509,$O195,FALSE) -> -0.02414331119 | T195: =HLOOKUP(T$4,'Data(Step1)'!$AA$9:$AJ$509,$O195,FALSE) -> -0.006335475049
F196: 182 | H196: 0.005119240375 | J196: =$H$11*'Data(Step1)'!I192+$I$11*'Data(Step1)'!J192+$J$11*'Data(Step1)'!K192+$K$11*'Data(Step1)'!L192+$L$11*'Data(Step1)'!M192 -> 0.1147130361 | K196: 18.50138481 | M196: 182 | O196: 194 | P196: =HLOOKUP(P$4,'Data(Step1)'!$AA$9:$AJ$509,$O196,FALSE) -> -0.006681585357 | Q196: =HLOOKUP(Q$4,'Data(Step1)'!$AA$9:$AJ$509,$O196,FALSE) -> 0.003433175838 | R196: =HLOOKUP(R$4,'Data(Step1)'!$AA$9:$AJ$509,$O196,FALSE) -> -0.0151508165 | S196: =HLOOKUP(S$4,'Data(Step1)'!$AA$9:$AJ$509,$O196,FALSE) -> -0.01437112725 | T196: =HLOOKUP(T$4,'Data(Step1)'!$AA$9:$AJ$509,$O196,FALSE) -> -0.005332839745
F197: 183 | H197: 0.005316215204 | J197: =$H$11*'Data(Step1)'!I193+$I$11*'Data(Step1)'!J193+$J$11*'Data(Step1)'!K193+$K$11*'Data(Step1)'!L193+$L$11*'Data(Step1)'!M193 -> 0.1423525164 | K197: 23.0149668 | M197: 183 | O197: 195 | P197: =HLOOKUP(P$4,'Data(Step1)'!$AA$9:$AJ$509,$O197,FALSE) -> 0.003353642008 | Q197: =HLOOKUP(Q$4,'Data(Step1)'!$AA$9:$AJ$509,$O197,FALSE) -> -0.006893707948 | R197: =HLOOKUP(R$4,'Data(Step1)'!$AA$9:$AJ$509,$O197,FALSE) -> -0.003429512183 | S197: =HLOOKUP(S$4,'Data(Step1)'!$AA$9:$AJ$509,$O197,FALSE) -> 0.01186935538 | T197: =HLOOKUP(T$4,'Data(Step1)'!$AA$9:$AJ$509,$O197,FALSE) -> 0.002075615863
F198: 184 | H198: 0.00579691299 | J198: =$H$11*'Data(Step1)'!I194+$I$11*'Data(Step1)'!J194+$J$11*'Data(Step1)'!K194+$K$11*'Data(Step1)'!L194+$L$11*'Data(Step1)'!M194 -> 0.1345367097 | K198: 19.75822474 | M198: 184 | O198: 196 | P198: =HLOOKUP(P$4,'Data(Step1)'!$AA$9:$AJ$509,$O198,FALSE) -> 0.003327943349 | Q198: =HLOOKUP(Q$4,'Data(Step1)'!$AA$9:$AJ$509,$O198,FALSE) -> 0 | R198: =HLOOKUP(R$4,'Data(Step1)'!$AA$9:$AJ$509,$O198,FALSE) -> 0.00573151313 | S198: =HLOOKUP(S$4,'Data(Step1)'!$AA$9:$AJ$509,$O198,FALSE) -> -0.0009568596146 | T198: =HLOOKUP(T$4,'Data(Step1)'!$AA$9:$AJ$509,$O198,FALSE) -> 0.003797727352
F199: 185 | H199: 0.00540960193 | J199: =$H$11*'Data(Step1)'!I195+$I$11*'Data(Step1)'!J195+$J$11*'Data(Step1)'!K195+$K$11*'Data(Step1)'!L195+$L$11*'Data(Step1)'!M195 -> 0.1509571676 | K199: 24.20828173 | M199: 185 | O199: 197 | P199: =HLOOKUP(P$4,'Data(Step1)'!$AA$9:$AJ$509,$O199,FALSE) -> -0.006681585357 | Q199: =HLOOKUP(Q$4,'Data(Step1)'!$AA$9:$AJ$509,$O199,FALSE) -> -0.01772876696 | R199: =HLOOKUP(R$4,'Data(Step1)'!$AA$9:$AJ$509,$O199,FALSE) -> -0.0196308792 | S199: =HLOOKUP(S$4,'Data(Step1)'!$AA$9:$AJ$509,$O199,FALSE) -> -0.01214209591 | T199: =HLOOKUP(T$4,'Data(Step1)'!$AA$9:$AJ$509,$O199,FALSE) -> -0.01116162143
F200: 186 | H200: 0.005856915416 | J200: =$H$11*'Data(Step1)'!I196+$I$11*'Data(Step1)'!J196+$J$11*'Data(Step1)'!K196+$K$11*'Data(Step1)'!L196+$L$11*'Data(Step1)'!M196 -> 0.1431413608 | K200: 21.0249512 | M200: 186 | O200: 198 | P200: =HLOOKUP(P$4,'Data(Step1)'!$AA$9:$AJ$509,$O200,FALSE) -> 0.01326193067 | Q200: =HLOOKUP(Q$4,'Data(Step1)'!$AA$9:$AJ$509,$O200,FALSE) -> 0 | R200: =HLOOKUP(R$4,'Data(Step1)'!$AA$9:$AJ$509,$O200,FALSE) -> 0.02137227547 | S200: =HLOOKUP(S$4,'Data(Step1)'!$AA$9:$AJ$509,$O200,FALSE) -> 0.02255335843 | T200: =HLOOKUP(T$4,'Data(Step1)'!$AA$9:$AJ$509,$O200,FALSE) -> 0.01040472808
F201: 187 | H201: 0.006163192118 | J201: =$H$11*'Data(Step1)'!I197+$I$11*'Data(Step1)'!J197+$J$11*'Data(Step1)'!K197+$K$11*'Data(Step1)'!L197+$L$11*'Data(Step1)'!M197 -> 0.1707808411 | K201: 24.46473162 | M201: 187 | O201: 199 | P201: =HLOOKUP(P$4,'Data(Step1)'!$AA$9:$AJ$509,$O201,FALSE) -> 0.01286892619 | Q201: =HLOOKUP(Q$4,'Data(Step1)'!$AA$9:$AJ$509,$O201,FALSE) -> 0.01772876696 | R201: =HLOOKUP(R$4,'Data(Step1)'!$AA$9:$AJ$509,$O201,FALSE) -> 0.01844529197 | S201: =HLOOKUP(S$4,'Data(Step1)'!$AA$9:$AJ$509,$O201,FALSE) -> 0.01853698291 | T201: =HLOOKUP(T$4,'Data(Step1)'!$AA$9:$AJ$509,$O201,FALSE) -> 0.004842882963
... 302 more rows

Sheet Portfolio_Weights(Step3)
H2: Variance-Covariance Matrix Optimal Portfolio | P2: =VLOOKUP('Sharpe_Ratios(Step2)'!$N$15,'Data(Step1)'!$B$11:$M$262,8,FALSE) -> 0.2936507937 | Q2: =VLOOKUP('Sharpe_Ratios(Step2)'!$N$15,'Data(Step1)'!$B$11:$M$262,9,FALSE) -> 0.2686567164 | R2: =VLOOKUP('Sharpe_Ratios(Step2)'!$N$15,'Data(Step1)'!$B$11:$M$262,10,FALSE) -> 0.3627760252 | S2: =VLOOKUP('Sharpe_Ratios(Step2)'!$N$15,'Data(Step1)'!$B$11:$M$262,11,FALSE) -> 0.1750881316 | T2: =VLOOKUP('Sharpe_Ratios(Step2)'!$N$15,'Data(Step1)'!$B$11:$M$262,12,FALSE) -> 0.2
H3: =P4 -> VOD | I3: =Q4 -> BT | J3: =R4 -> BATS | K3: =S4 -> IMT | L3: =T4 -> OML | P3: Portfolio Daily Returns
G4: =P4 -> VOD | H4: =_xlfn.COVARIANCE.P($P$5:$P$503,P5:P503) -> 3.11549955e-05 | I4: =_xlfn.COVARIANCE.P($P$5:$P$503,Q5:Q503) -> 1.901386945e-05 | J4: 8.081638024e-06 | K4: 6.218465469e-06 | L4: 1.681642864e-05 | P4: ='Sharpe_Ratios(Step2)'!P2 -> VOD | Q4: ='Sharpe_Ratios(Step2)'!Q2 -> BT | R4: ='Sharpe_Ratios(Step2)'!R2 -> BATS | S4: ='Sharpe_Ratios(Step2)'!S2 -> IMT | T4: ='Sharpe_Ratios(Step2)'!T2 -> OML
B5: Finding optimal weights using Excel Solver | G5: =Q4 -> BT | H5: =_xlfn.COVARIANCE.P($Q$5:$Q$503,P5:P503) -> 1.901386945e-05 | I5: =_xlfn.COVARIANCE.P($Q$5:$Q$503,Q5:Q503) -> 6.030381517e-05 | J5: 1.145584775e-05 | K5: 1.066084269e-05 | L5: 2.559002968e-05 | O5: 3 | P5: =HLOOKUP(P$4,'Data(Step1)'!$AA$9:$AJ$509,$O5,FALSE) -> 0.003433175838 | Q5: =HLOOKUP(Q$4,'Data(Step1)'!$AA$9:$AJ$509,$O5,FALSE) -> -0.003253157398 | R5: =HLOOKUP(R$4,'Data(Step1)'!$AA$9:$AJ$509,$O5,FALSE) -> -0.00644092605 | S5: =HLOOKUP(S$4,'Data(Step1)'!$AA$9:$AJ$509,$O5,FALSE) -> -0.005650274023 | T5: =HLOOKUP(T$4,'Data(Step1)'!$AA$9:$AJ$509,$O5,FALSE) -> -0.009759837289
G6: =R4 -> BATS | H6: =_xlfn.COVARIANCE.P($R$5:$R$503,P5:P503) -> 8.081638024e-06 | I6: =_xlfn.COVARIANCE.P($R$5:$R$503,Q5:Q503) -> 1.145584775e-05 | J6: 2.352844417e-05 | K6: 1.470683173e-05 | L6: 1.478188891e-05 | O6: 4 | P6: =HLOOKUP(P$4,'Data(Step1)'!$AA$9:$AJ$509,$O6,FALSE) -> 0.003406248692 | Q6: =HLOOKUP(Q$4,'Data(Step1)'!$AA$9:$AJ$509,$O6,FALSE) -> 0.003253157398 | R6: =HLOOKUP(R$4,'Data(Step1)'!$AA$9:$AJ$509,$O6,FALSE) -> 0.005984014401 | S6: =HLOOKUP(S$4,'Data(Step1)'!$AA$9:$AJ$509,$O6,FALSE) -> 0.001032805438 | T6: =HLOOKUP(T$4,'Data(Step1)'!$AA$9:$AJ$509,$O6,FALSE) -> 0
G7: =S4 -> IMT | H7: =_xlfn.COVARIANCE.P($S$5:$S$503,P5:P503) -> 6.218465469e-06 | I7: =_xlfn.COVARIANCE.P($S$5:$S$503,Q5:Q503) -> 1.066084269e-05 | J7: 1.470683173e-05 | K7: 2.573794068e-05 | L7: 1.007430504e-05 | O7: 5 | P7: =HLOOKUP(P$4,'Data(Step1)'!$AA$9:$AJ$509,$O7,FALSE) -> 0 | Q7: =HLOOKUP(Q$4,'Data(Step1)'!$AA$9:$AJ$509,$O7,FALSE) -> -0.006530867159 | R7: =HLOOKUP(R$4,'Data(Step1)'!$AA$9:$AJ$509,$O7,FALSE) -> -0.007609283004 | S7: =HLOOKUP(S$4,'Data(Step1)'!$AA$9:$AJ$509,$O7,FALSE) -> 0.003595598744 | T7: =HLOOKUP(T$4,'Data(Step1)'!$AA$9:$AJ$509,$O7,FALSE) -> -0.004963419532
B8: STEP1 : Select the cell "Sharpe Ratio" | G8: =T4 -> OML | H8: =_xlfn.COVARIANCE.P($T$5:$T$503,P5:P503) -> 1.681642864e-05 | I8: =_xlfn.COVARIANCE.P($T$5:$T$503,Q5:Q503) -> 2.559002968e-05 | J8: 1.478188891e-05 | K8: 1.007430504e-05 | L8: 6.662439156e-05 | O8: 6 | P8: =HLOOKUP(P$4,'Data(Step1)'!$AA$9:$AJ$509,$O8,FALSE) -> 0.01006132601 | Q8: =HLOOKUP(Q$4,'Data(Step1)'!$AA$9:$AJ$509,$O8,FALSE) -> 0.009759837289 | R8: =HLOOKUP(R$4,'Data(Step1)'!$AA$9:$AJ$509,$O8,FALSE) -> -0.001864928177 | S8: =HLOOKUP(S$4,'Data(Step1)'!$AA$9:$AJ$509,$O8,FALSE) -> 0.004073131679 | T8: =HLOOKUP(T$4,'Data(Step1)'!$AA$9:$AJ$509,$O8,FALSE) -> 0.009870754026
O9: 7 | P9: =HLOOKUP(P$4,'Data(Step1)'!$AA$9:$AJ$509,$O9,FALSE) -> 0 | Q9: =HLOOKUP(Q$4,'Data(Step1)'!$AA$9:$AJ$509,$O9,FALSE) -> 0.01268103176 | R9: =HLOOKUP(R$4,'Data(Step1)'!$AA$9:$AJ$509,$O9,FALSE) -> 0.007182414401 | S9: =HLOOKUP(S$4,'Data(Step1)'!$AA$9:$AJ$509,$O9,FALSE) -> 0.008530610711 | T9: =HLOOKUP(T$4,'Data(Step1)'!$AA$9:$AJ$509,$O9,FALSE) -> 0.0143978207
B10: STEP2 : Select the Solver from "Data" menu | F10: Risk-free rate | H10: Weights | M10: Weights' sum | O10: 8 | P10: =HLOOKUP(P$4,'Data(Step1)'!$AA$9:$AJ$509,$O10,FALSE) -> 0 | Q10: =HLOOKUP(Q$4,'Data(Step1)'!$AA$9:$AJ$509,$O10,FALSE) -> 0 | R10: =HLOOKUP(R$4,'Data(Step1)'!$AA$9:$AJ$509,$O10,FALSE) -> 0.001605526715 | S10: =HLOOKUP(S$4,'Data(Step1)'!$AA$9:$AJ$509,$O10,FALSE) -> -0.003492335158 | T10: =HLOOKUP(T$4,'Data(Step1)'!$AA$9:$AJ$509,$O10,FALSE) -> 0.009340026254
F11: 0.02 | H11: 0.302272433 | I11: 0 | J11: 0.697727567 | K11: 0 | L11: 0 | M11: =SUM(H11:L11) -> 1 | O11: 9 | P11: =HLOOKUP(P$4,'Data(Step1)'!$AA$9:$AJ$509,$O11,FALSE) -> 0.009833502709 | Q11: =HLOOKUP(Q$4,'Data(Step1)'!$AA$9:$AJ$509,$O11,FALSE) -> 0.006204312401 | R11: =HLOOKUP(R$4,'Data(Step1)'!$AA$9:$AJ$509,$O11,FALSE) -> -0.003909481625 | S11: =HLOOKUP(S$4,'Data(Step1)'!$AA$9:$AJ$509,$O11,FALSE) -> -0.0007520252648 | T11: =HLOOKUP(T$4,'Data(Step1)'!$AA$9:$AJ$509,$O11,FALSE) -> -0.004644905046
B12: STEP3: Define the constraints (in our case the weights must be >=0 and the sum of the weights equal to 1) | F12: Portfolio number: | H12: Standard Deviation | J12: Returns | K12: Sharpe Ratio | O12: 10 | P12: =HLOOKUP(P$4,'Data(Step1)'!$AA$9:$AJ$509,$O12,FALSE) -> -0.003253157398 | Q12: =HLOOKUP(Q$4,'Data(Step1)'!$AA$9:$AJ$509,$O12,FALSE) -> -0.009340026254 | R12: =HLOOKUP(R$4,'Data(Step1)'!$AA$9:$AJ$509,$O12,FALSE) -> 0.002074108658 | S12: =HLOOKUP(S$4,'Data(Step1)'!$AA$9:$AJ$509,$O12,FALSE) -> 0.002002514127 | T12: =HLOOKUP(T$4,'Data(Step1)'!$AA$9:$AJ$509,$O12,FALSE) -> 0.004644905046
F13: ='Sharpe_Ratios(Step2)'!N15 -> 216 | H13: =SQRT(MMULT($H$11:$L$11,MMULT($H$4:$L$8,TRANSPOSE($H$11:$L$11)))) -> 0.004208288388 | J13: =$H$11*$P$2+$I$11*$Q$2+$J$11*$R$2+$K$11*$S$2+$L$11*$T$2 -> 0.3418813733 | K13: =(J13-F11)/H13 -> 76.48747986 | O13: 11 | P13: =HLOOKUP(P$4,'Data(Step1)'!$AA$9:$AJ$509,$O13,FALSE) -> 0 | Q13: =HLOOKUP(Q$4,'Data(Step1)'!$AA$9:$AJ$509,$O13,FALSE) -> -0.003158519245 | R13: =HLOOKUP(R$4,'Data(Step1)'!$AA$9:$AJ$509,$O13,FALSE) -> -0.001612338831 | S13: =HLOOKUP(S$4,'Data(Step1)'!$AA$9:$AJ$509,$O13,FALSE) -> -0.003762320514 | T13: =HLOOKUP(T$4,'Data(Step1)'!$AA$9:$AJ$509,$O13,FALSE) -> -0.004644905046
O14: 12 | P14: =HLOOKUP(P$4,'Data(Step1)'!$AA$9:$AJ$509,$O14,FALSE) -> 0 | Q14: =HLOOKUP(Q$4,'Data(Step1)'!$AA$9:$AJ$509,$O14,FALSE) -> 0.003158519245 | R14: =HLOOKUP(R$4,'Data(Step1)'!$AA$9:$AJ$509,$O14,FALSE) -> -0.001850032539 | S14: =HLOOKUP(S$4,'Data(Step1)'!$AA$9:$AJ$509,$O14,FALSE) -> 0.00150884164 | T14: =HLOOKUP(T$4,'Data(Step1)'!$AA$9:$AJ$509,$O14,FALSE) -> 0.004644905046
O15: 13 | P15: =HLOOKUP(P$4,'Data(Step1)'!$AA$9:$AJ$509,$O15,FALSE) -> -0.003277709761 | Q15: =HLOOKUP(Q$4,'Data(Step1)'!$AA$9:$AJ$509,$O15,FALSE) -> -0.006340178031 | R15: =HLOOKUP(R$4,'Data(Step1)'!$AA$9:$AJ$509,$O15,FALSE) -> 0.00323240341 | S15: =HLOOKUP(S$4,'Data(Step1)'!$AA$9:$AJ$509,$O15,FALSE) -> -0.001760825681 | T15: =HLOOKUP(T$4,'Data(Step1)'!$AA$9:$AJ$509,$O15,FALSE) -> -0.01408646128
F16: Optimal values | H16: Weights | O16: 14 | P16: =HLOOKUP(P$4,'Data(Step1)'!$AA$9:$AJ$509,$O16,FALSE) -> -0.006630578899 | Q16: =HLOOKUP(Q$4,'Data(Step1)'!$AA$9:$AJ$509,$O16,FALSE) -> -0.01959555606 | R16: =HLOOKUP(R$4,'Data(Step1)'!$AA$9:$AJ$509,$O16,FALSE) -> 0.00639351478 | S16: =HLOOKUP(S$4,'Data(Step1)'!$AA$9:$AJ$509,$O16,FALSE) -> 0.006504532031 | T16: =HLOOKUP(T$4,'Data(Step1)'!$AA$9:$AJ$509,$O16,FALSE) -> -0.009651385676
B17: STEP4 : Select a solving method (in our case we use GRG nonlinear) and click "Solve" button | H17: =P4 -> VOD | I17: =Q4 -> BT | J17: BATS | K17: IMT | L17: OML | O17: 15 | P17: =HLOOKUP(P$4,'Data(Step1)'!$AA$9:$AJ$509,$O17,FALSE) -> 0 | Q17: =HLOOKUP(Q$4,'Data(Step1)'!$AA$9:$AJ$509,$O17,FALSE) -> -0.006733382659 | R17: =HLOOKUP(R$4,'Data(Step1)'!$AA$9:$AJ$509,$O17,FALSE) -> -0.009162670699 | S17: =HLOOKUP(S$4,'Data(Step1)'!$AA$9:$AJ$509,$O17,FALSE) -> -0.008019514318 | T17: =HLOOKUP(T$4,'Data(Step1)'!$AA$9:$AJ$509,$O17,FALSE) -> 0
H18: =H34 -> 0.3022614 | I18: =I34 -> 0 | J18: =J34 -> 0.6976536 | K18: =K34 -> 0 | L18: =L34 -> 0 | O18: 16 | P18: =HLOOKUP(P$4,'Data(Step1)'!$AA$9:$AJ$509,$O18,FALSE) -> 0.00990828866 | Q18: =HLOOKUP(Q$4,'Data(Step1)'!$AA$9:$AJ$509,$O18,FALSE) -> 0.003379740651 | R18: =HLOOKUP(R$4,'Data(Step1)'!$AA$9:$AJ$509,$O18,FALSE) -> 0.005292130694 | S18: =HLOOKUP(S$4,'Data(Step1)'!$AA$9:$AJ$509,$O18,FALSE) -> -0.001774184769 | T18: =HLOOKUP(T$4,'Data(Step1)'!$AA$9:$AJ$509,$O18,FALSE) -> 0.004852502794
F19: Standard Deviation | H19: Returns | J19: OPTIMAL SHARPE RATIO | O19: 17 | P19: =HLOOKUP(P$4,'Data(Step1)'!$AA$9:$AJ$509,$O19,FALSE) -> 0.006482127528 | Q19: =HLOOKUP(Q$4,'Data(Step1)'!$AA$9:$AJ$509,$O19,FALSE) -> 0.01326193067 | R19: =HLOOKUP(R$4,'Data(Step1)'!$AA$9:$AJ$509,$O19,FALSE) -> 0.00793150501 | S19: =HLOOKUP(S$4,'Data(Step1)'!$AA$9:$AJ$509,$O19,FALSE) -> 0.006553610448 | T19: =HLOOKUP(T$4,'Data(Step1)'!$AA$9:$AJ$509,$O19,FALSE) -> 0.01424043911
F20: =SQRT(MMULT($H$34:$L$34,MMULT($H$4:$L$8,TRANSPOSE($H$34:$L$34)))) -> 0.004207917435 | H20: =$H$34*$P$2+$I$34*$Q$2+$J$34*$R$2+$K$34*$S$2+$L$34*$T$2+$M$34*$F$11 -> 0.341853 | J20: =(H20-F11)/F20 -> 76.48747984 | O20: 18 | P20: =HLOOKUP(P$4,'Data(Step1)'!$AA$9:$AJ$509,$O20,FALSE) -> 0.006386798661 | Q20: =HLOOKUP(Q$4,'Data(Step1)'!$AA$9:$AJ$509,$O20,FALSE) -> -0.003277709761 | R20: =HLOOKUP(R$4,'Data(Step1)'!$AA$9:$AJ$509,$O20,FALSE) -> -0.005423102499 | S20: =HLOOKUP(S$4,'Data(Step1)'!$AA$9:$AJ$509,$O20,FALSE) -> -0.003264443392 | T20: =HLOOKUP(T$4,'Data(Step1)'!$AA$9:$AJ$509,$O20,FALSE) -> -0.009441556233
O21: 19 | P21: =HLOOKUP(P$4,'Data(Step1)'!$AA$9:$AJ$509,$O21,FALSE) -> 0.003158519245 | Q21: =HLOOKUP(Q$4,'Data(Step1)'!$AA$9:$AJ$509,$O21,FALSE) -> 0.006530867159 | R21: =HLOOKUP(R$4,'Data(Step1)'!$AA$9:$AJ$509,$O21,FALSE) -> 0.007215858324 | S21: =HLOOKUP(S$4,'Data(Step1)'!$AA$9:$AJ$509,$O21,FALSE) -> 0.001007060119 | T21: =HLOOKUP(T$4,'Data(Step1)'!$AA$9:$AJ$509,$O21,FALSE) -> 0.009441556233
O22: 20 | P22: =HLOOKUP(P$4,'Data(Step1)'!$AA$9:$AJ$509,$O22,FALSE) -> 0 | Q22: =HLOOKUP(Q$4,'Data(Step1)'!$AA$9:$AJ$509,$O22,FALSE) -> -0.006530867159 | R22: =HLOOKUP(R$4,'Data(Step1)'!$AA$9:$AJ$509,$O22,FALSE) -> 0.00311962488 | S22: =HLOOKUP(S$4,'Data(Step1)'!$AA$9:$AJ$509,$O22,FALSE) -> 0.006241764265 | T22: =HLOOKUP(T$4,'Data(Step1)'!$AA$9:$AJ$509,$O22,FALSE) -> 0
D23: Total amount invested (British Sterling) | H23: Prices | O23: 21 | P23: =HLOOKUP(P$4,'Data(Step1)'!$AA$9:$AJ$509,$O23,FALSE) -> 0 | Q23: =HLOOKUP(Q$4,'Data(Step1)'!$AA$9:$AJ$509,$O23,FALSE) -> -0.006630578899 | R23: =HLOOKUP(R$4,'Data(Step1)'!$AA$9:$AJ$509,$O23,FALSE) -> 0.001772632999 | S23: =HLOOKUP(S$4,'Data(Step1)'!$AA$9:$AJ$509,$O23,FALSE) -> 0.002964478964 | T23: =HLOOKUP(T$4,'Data(Step1)'!$AA$9:$AJ$509,$O23,FALSE) -> 0
H24: =HLOOKUP(P$4,'Data(Step1)'!$P$9:$Y$10,2,FALSE) -> 1.26 | I24: =HLOOKUP(Q$4,'Data(Step1)'!$P$9:$Y$10,2,FALSE) -> 1.34 | J24: =HLOOKUP(R$4,'Data(Step1)'!$P$9:$Y$10,2,FALSE) -> 19.02 | K24: =HLOOKUP(S$4,'Data(Step1)'!$P$9:$Y$10,2,FALSE) -> 17.02 | L24: =HLOOKUP(T$4,'Data(Step1)'!$P$9:$Y$10,2,FALSE) -> 0.9 | O24: 22 | P24: =HLOOKUP(P$4,'Data(Step1)'!$AA$9:$AJ$509,$O24,FALSE) -> 0.003135713853 | Q24: =HLOOKUP(Q$4,'Data(Step1)'!$AA$9:$AJ$509,$O24,FALSE) -> 0 | R24: =HLOOKUP(R$4,'Data(Step1)'!$AA$9:$AJ$509,$O24,FALSE) -> 0.0004420300452 | S24: =HLOOKUP(S$4,'Data(Step1)'!$AA$9:$AJ$509,$O24,FALSE) -> 0.001474685566 | T24: =HLOOKUP(T$4,'Data(Step1)'!$AA$9:$AJ$509,$O24,FALSE) -> -0.004695121208
D25: 100000 | H25: Weights | O25: 23 | P25: =HLOOKUP(P$4,'Data(Step1)'!$AA$9:$AJ$509,$O25,FALSE) -> 0 | Q25: =HLOOKUP(Q$4,'Data(Step1)'!$AA$9:$AJ$509,$O25,FALSE) -> 0.01959555606 | R25: =HLOOKUP(R$4,'Data(Step1)'!$AA$9:$AJ$509,$O25,FALSE) -> -0.00132744214 | S25: =HLOOKUP(S$4,'Data(Step1)'!$AA$9:$AJ$509,$O25,FALSE) -> -0.002954395624 | T25: =HLOOKUP(T$4,'Data(Step1)'!$AA$9:$AJ$509,$O25,FALSE) -> 0.004695121208
H26: =H$11 -> 0.302272433 | I26: =I$11 -> 0 | J26: 0.697727567 | K26: 0 | L26: 0 | O26: 24 | P26: =HLOOKUP(P$4,'Data(Step1)'!$AA$9:$AJ$509,$O26,FALSE) -> 0.003113235424 | Q26: =HLOOKUP(Q$4,'Data(Step1)'!$AA$9:$AJ$509,$O26,FALSE) -> 0.006340178031 | R26: =HLOOKUP(R$4,'Data(Step1)'!$AA$9:$AJ$509,$O26,FALSE) -> 0 | S26: =HLOOKUP(S$4,'Data(Step1)'!$AA$9:$AJ$509,$O26,FALSE) -> 0.001479710058 | T26: =HLOOKUP(T$4,'Data(Step1)'!$AA$9:$AJ$509,$O26,FALSE) -> 0.009240656735
D27: The arrow indicates the logical sequence of the calculation | H27: Amount invested in each stock | O27: 25 | P27: =HLOOKUP(P$4,'Data(Step1)'!$AA$9:$AJ$509,$O27,FALSE) -> 0 | Q27: =HLOOKUP(Q$4,'Data(Step1)'!$AA$9:$AJ$509,$O27,FALSE) -> 0.003135713853 | R27: =HLOOKUP(R$4,'Data(Step1)'!$AA$9:$AJ$509,$O27,FALSE) -> 0.004628404182 | S27: =HLOOKUP(S$4,'Data(Step1)'!$AA$9:$AJ$509,$O27,FALSE) -> 0.002699776595 | T27: =HLOOKUP(T$4,'Data(Step1)'!$AA$9:$AJ$509,$O27,FALSE) -> 0.004547627751
H28: =H$26*$D25 -> 30227.2433 | I28: =I$26*$D25 -> 0 | J28: =J$26*$D25 -> 69772.7567 | K28: =K$26*$D25 -> 0 | L28: =L$26*$D25 -> 0 | O28: 26 | P28: =HLOOKUP(P$4,'Data(Step1)'!$AA$9:$AJ$509,$O28,FALSE) -> 0 | Q28: =HLOOKUP(Q$4,'Data(Step1)'!$AA$9:$AJ$509,$O28,FALSE) -> 0 | R28: =HLOOKUP(R$4,'Data(Step1)'!$AA$9:$AJ$509,$O28,FALSE) -> 0.003493589332 | S28: =HLOOKUP(S$4,'Data(Step1)'!$AA$9:$AJ$509,$O28,FALSE) -> -0.001225091029 | T28: =HLOOKUP(T$4,'Data(Step1)'!$AA$9:$AJ$509,$O28,FALSE) -> 0.004500501227
H29: Number of stocks | O29: 27 | P29: =HLOOKUP(P$4,'Data(Step1)'!$AA$9:$AJ$509,$O29,FALSE) -> 0 | Q29: =HLOOKUP(Q$4,'Data(Step1)'!$AA$9:$AJ$509,$O29,FALSE) -> 0 | R29: =HLOOKUP(R$4,'Data(Step1)'!$AA$9:$AJ$509,$O29,FALSE) -> -0.005911838709 | S29: =HLOOKUP(S$4,'Data(Step1)'!$AA$9:$AJ$509,$O29,FALSE) -> -0.00443916453 | T29: =HLOOKUP(T$4,'Data(Step1)'!$AA$9:$AJ$509,$O29,FALSE) -> -0.004500501227
H30: =ROUNDDOWN(H28/H24,0) -> 23989 | I30: =ROUNDDOWN(I28/I24,0) -> 0 | J30: 3668 | K30: 0 | L30: 0 | O30: 28 | P30: =HLOOKUP(P$4,'Data(Step1)'!$AA$9:$AJ$509,$O30,FALSE) -> 0.003091076977 | Q30: =HLOOKUP(Q$4,'Data(Step1)'!$AA$9:$AJ$509,$O30,FALSE) -> 0 | R30: =HLOOKUP(R$4,'Data(Step1)'!$AA$9:$AJ$509,$O30,FALSE) -> -0.001545926562 | S30: =HLOOKUP(S$4,'Data(Step1)'!$AA$9:$AJ$509,$O30,FALSE) -> 0.001484768906 | T30: =HLOOKUP(T$4,'Data(Step1)'!$AA$9:$AJ$509,$O30,FALSE) -> 0.01336396156
H31: Rebalanced amount invested | O31: 29 | P31: =HLOOKUP(P$4,'Data(Step1)'!$AA$9:$AJ$509,$O31,FALSE) -> 0.00611692481 | Q31: =HLOOKUP(Q$4,'Data(Step1)'!$AA$9:$AJ$509,$O31,FALSE) -> -0.01268103176 | R31: =HLOOKUP(R$4,'Data(Step1)'!$AA$9:$AJ$509,$O31,FALSE) -> 0.004621368218 | S31: =HLOOKUP(S$4,'Data(Step1)'!$AA$9:$AJ$509,$O31,FALSE) -> 0.005401131571 | T31: =HLOOKUP(T$4,'Data(Step1)'!$AA$9:$AJ$509,$O31,FALSE) -> -0.004409118905
H32: =H30*H24 -> 30226.14 | I32: =I30*I24 -> 0 | J32: 69765.36 | K32: 0 | L32: 0 | O32: 30 | P32: =HLOOKUP(P$4,'Data(Step1)'!$AA$9:$AJ$509,$O32,FALSE) -> -0.003047693082 | Q32: =HLOOKUP(Q$4,'Data(Step1)'!$AA$9:$AJ$509,$O32,FALSE) -> -0.006482127528 | R32: =HLOOKUP(R$4,'Data(Step1)'!$AA$9:$AJ$509,$O32,FALSE) -> -0.005728980351 | S32: =HLOOKUP(S$4,'Data(Step1)'!$AA$9:$AJ$509,$O32,FALSE) -> 0.003644450605 | T32: =HLOOKUP(T$4,'Data(Step1)'!$AA$9:$AJ$509,$O32,FALSE) -> 0.008773924308
H33: New normalized weights | M33: Risk-Free weight | O33: 31 | P33: =HLOOKUP(P$4,'Data(Step1)'!$AA$9:$AJ$509,$O33,FALSE) -> 0 | Q33: =HLOOKUP(Q$4,'Data(Step1)'!$AA$9:$AJ$509,$O33,FALSE) -> -0.003277709761 | R33: =HLOOKUP(R$4,'Data(Step1)'!$AA$9:$AJ$509,$O33,FALSE) -> 0.0006649062007 | S33: =HLOOKUP(S$4,'Data(Step1)'!$AA$9:$AJ$509,$O33,FALSE) -> 0.0009667104312 | T33: =HLOOKUP(T$4,'Data(Step1)'!$AA$9:$AJ$509,$O33,FALSE) -> -0.01322826573
H34: =H32/$D25 -> 0.3022614 | I34: =I32/$D25 -> 0 | J34: =J32/$D25 -> 0.6976536 | K34: =K32/$D25 -> 0 | L34: =L32/$D25 -> 0 | M34: =((D25-SUM(H32:L32))/D25) -> 8.5e-05 | O34: 32 | P34: =HLOOKUP(P$4,'Data(Step1)'!$AA$9:$AJ$509,$O34,FALSE) -> 0.006074147712 | Q34: =HLOOKUP(Q$4,'Data(Step1)'!$AA$9:$AJ$509,$O34,FALSE) -> -0.00330263555 | R34: =HLOOKUP(R$4,'Data(Step1)'!$AA$9:$AJ$509,$O34,FALSE) -> 0.005282917431 | S34: =HLOOKUP(S$4,'Data(Step1)'!$AA$9:$AJ$509,$O34,FALSE) -> 0.001446042896 | T34: =HLOOKUP(T$4,'Data(Step1)'!$AA$9:$AJ$509,$O34,FALSE) -> 0.01322826573
O35: 33 | P35: =HLOOKUP(P$4,'Data(Step1)'!$AA$9:$AJ$509,$O35,FALSE) -> -0.006074147712 | Q35: =HLOOKUP(Q$4,'Data(Step1)'!$AA$9:$AJ$509,$O35,FALSE) -> 0 | R35: =HLOOKUP(R$4,'Data(Step1)'!$AA$9:$AJ$509,$O35,FALSE) -> 0 | S35: =HLOOKUP(S$4,'Data(Step1)'!$AA$9:$AJ$509,$O35,FALSE) -> -0.001929129133 | T35: =HLOOKUP(T$4,'Data(Step1)'!$AA$9:$AJ$509,$O35,FALSE) -> 0
O36: 34 | P36: =HLOOKUP(P$4,'Data(Step1)'!$AA$9:$AJ$509,$O36,FALSE) -> -0.006160308705 | Q36: =HLOOKUP(Q$4,'Data(Step1)'!$AA$9:$AJ$509,$O36,FALSE) -> -0.003327943349 | R36: =HLOOKUP(R$4,'Data(Step1)'!$AA$9:$AJ$509,$O36,FALSE) -> -0.004840211499 | S36: =HLOOKUP(S$4,'Data(Step1)'!$AA$9:$AJ$509,$O36,FALSE) -> 0.00265034903 | T36: =HLOOKUP(T$4,'Data(Step1)'!$AA$9:$AJ$509,$O36,FALSE) -> 0
O37: 35 | P37: =HLOOKUP(P$4,'Data(Step1)'!$AA$9:$AJ$509,$O37,FALSE) -> 0 | Q37: =HLOOKUP(Q$4,'Data(Step1)'!$AA$9:$AJ$509,$O37,FALSE) -> 0 | R37: =HLOOKUP(R$4,'Data(Step1)'!$AA$9:$AJ$509,$O37,FALSE) -> -0.002663030205 | S37: =HLOOKUP(S$4,'Data(Step1)'!$AA$9:$AJ$509,$O37,FALSE) -> 0.001917418046 | T37: =HLOOKUP(T$4,'Data(Step1)'!$AA$9:$AJ$509,$O37,FALSE) -> -0.008773924308
O38: 36 | P38: =HLOOKUP(P$4,'Data(Step1)'!$AA$9:$AJ$509,$O38,FALSE) -> -0.006248949277 | Q38: =HLOOKUP(Q$4,'Data(Step1)'!$AA$9:$AJ$509,$O38,FALSE) -> -0.006733382659 | R38: =HLOOKUP(R$4,'Data(Step1)'!$AA$9:$AJ$509,$O38,FALSE) -> -0.002455539464 | S38: =HLOOKUP(S$4,'Data(Step1)'!$AA$9:$AJ$509,$O38,FALSE) -> -0.001677277325 | T38: =HLOOKUP(T$4,'Data(Step1)'!$AA$9:$AJ$509,$O38,FALSE) -> -0.004454341426
O39: 37 | P39: =HLOOKUP(P$4,'Data(Step1)'!$AA$9:$AJ$509,$O39,FALSE) -> 0.006248949277 | Q39: =HLOOKUP(Q$4,'Data(Step1)'!$AA$9:$AJ$509,$O39,FALSE) -> 0.006733382659 | R39: =HLOOKUP(R$4,'Data(Step1)'!$AA$9:$AJ$509,$O39,FALSE) -> -0.0006721092111 | S39: =HLOOKUP(S$4,'Data(Step1)'!$AA$9:$AJ$509,$O39,FALSE) -> 0.001198715864 | T39: =HLOOKUP(T$4,'Data(Step1)'!$AA$9:$AJ$509,$O39,FALSE) -> 0.008863460331
O40: 38 | P40: =HLOOKUP(P$4,'Data(Step1)'!$AA$9:$AJ$509,$O40,FALSE) -> 0 | Q40: =HLOOKUP(Q$4,'Data(Step1)'!$AA$9:$AJ$509,$O40,FALSE) -> 0.003327943349 | R40: =HLOOKUP(R$4,'Data(Step1)'!$AA$9:$AJ$509,$O40,FALSE) -> 0.002682218399 | S40: =HLOOKUP(S$4,'Data(Step1)'!$AA$9:$AJ$509,$O40,FALSE) -> -0.001919536747 | T40: =HLOOKUP(T$4,'Data(Step1)'!$AA$9:$AJ$509,$O40,FALSE) -> 0.004364805402
O41: 39 | P41: =HLOOKUP(P$4,'Data(Step1)'!$AA$9:$AJ$509,$O41,FALSE) -> -0.009407468522 | Q41: =HLOOKUP(Q$4,'Data(Step1)'!$AA$9:$AJ$509,$O41,FALSE) -> 0 | R41: =HLOOKUP(R$4,'Data(Step1)'!$AA$9:$AJ$509,$O41,FALSE) -> 0.0004454302769 | S41: =HLOOKUP(S$4,'Data(Step1)'!$AA$9:$AJ$509,$O41,FALSE) -> -0.005079525529 | T41: =HLOOKUP(T$4,'Data(Step1)'!$AA$9:$AJ$509,$O41,FALSE) -> 0.008600171762
O42: 40 | P42: =HLOOKUP(P$4,'Data(Step1)'!$AA$9:$AJ$509,$O42,FALSE) -> -0.006386798661 | Q42: =HLOOKUP(Q$4,'Data(Step1)'!$AA$9:$AJ$509,$O42,FALSE) -> 0.01306247284 | R42: =HLOOKUP(R$4,'Data(Step1)'!$AA$9:$AJ$509,$O42,FALSE) -> 0.004208956767 | S42: =HLOOKUP(S$4,'Data(Step1)'!$AA$9:$AJ$509,$O42,FALSE) -> 0.003634284655 | T42: =HLOOKUP(T$4,'Data(Step1)'!$AA$9:$AJ$509,$O42,FALSE) -> 0.008433167537
O43: 41 | P43: =HLOOKUP(P$4,'Data(Step1)'!$AA$9:$AJ$509,$O43,FALSE) -> -0.009759837289 | Q43: =HLOOKUP(Q$4,'Data(Step1)'!$AA$9:$AJ$509,$O43,FALSE) -> 0.003205139875 | R43: =HLOOKUP(R$4,'Data(Step1)'!$AA$9:$AJ$509,$O43,FALSE) -> -0.002210154805 | S43: =HLOOKUP(S$4,'Data(Step1)'!$AA$9:$AJ$509,$O43,FALSE) -> 0.002406069766 | T43: =HLOOKUP(T$4,'Data(Step1)'!$AA$9:$AJ$509,$O43,FALSE) -> 0.004155959771
O44: 42 | P44: =HLOOKUP(P$4,'Data(Step1)'!$AA$9:$AJ$509,$O44,FALSE) -> 0.009759837289 | Q44: =HLOOKUP(Q$4,'Data(Step1)'!$AA$9:$AJ$509,$O44,FALSE) -> -0.003205139875 | R44: =HLOOKUP(R$4,'Data(Step1)'!$AA$9:$AJ$509,$O44,FALSE) -> -0.001109309625 | S44: =HLOOKUP(S$4,'Data(Step1)'!$AA$9:$AJ$509,$O44,FALSE) -> -0.001682848147 | T44: =HLOOKUP(T$4,'Data(Step1)'!$AA$9:$AJ$509,$O44,FALSE) -> 0.02020338609
O45: 43 | P45: =HLOOKUP(P$4,'Data(Step1)'!$AA$9:$AJ$509,$O45,FALSE) -> -0.00322897013 | Q45: =HLOOKUP(Q$4,'Data(Step1)'!$AA$9:$AJ$509,$O45,FALSE) -> 0 | R45: =HLOOKUP(R$4,'Data(Step1)'!$AA$9:$AJ$509,$O45,FALSE) -> 0.005299032475 | S45: =HLOOKUP(S$4,'Data(Step1)'!$AA$9:$AJ$509,$O45,FALSE) -> 0.0004814795193 | T45: =HLOOKUP(T$4,'Data(Step1)'!$AA$9:$AJ$509,$O45,FALSE) -> 0.003930293628
O46: 44 | P46: =HLOOKUP(P$4,'Data(Step1)'!$AA$9:$AJ$509,$O46,FALSE) -> 0.00322897013 | Q46: =HLOOKUP(Q$4,'Data(Step1)'!$AA$9:$AJ$509,$O46,FALSE) -> -0.00322897013 | R46: =HLOOKUP(R$4,'Data(Step1)'!$AA$9:$AJ$509,$O46,FALSE) -> -0.0008786942439 | S46: =HLOOKUP(S$4,'Data(Step1)'!$AA$9:$AJ$509,$O46,FALSE) -> 0.005023566957 | T46: =HLOOKUP(T$4,'Data(Step1)'!$AA$9:$AJ$509,$O46,FALSE) -> 0.007755464697
O47: 45 | P47: =HLOOKUP(P$4,'Data(Step1)'!$AA$9:$AJ$509,$O47,FALSE) -> 0.003205139875 | Q47: =HLOOKUP(Q$4,'Data(Step1)'!$AA$9:$AJ$509,$O47,FALSE) -> 0.00322897013 | R47: =HLOOKUP(R$4,'Data(Step1)'!$AA$9:$AJ$509,$O47,FALSE) -> 0.001098090299 | S47: =HLOOKUP(S$4,'Data(Step1)'!$AA$9:$AJ$509,$O47,FALSE) -> -0.003582322884 | T47: =HLOOKUP(T$4,'Data(Step1)'!$AA$9:$AJ$509,$O47,FALSE) -> -0.003860420813
O48: 46 | P48: =HLOOKUP(P$4,'Data(Step1)'!$AA$9:$AJ$509,$O48,FALSE) -> -0.009687267403 | Q48: =HLOOKUP(Q$4,'Data(Step1)'!$AA$9:$AJ$509,$O48,FALSE) -> -0.006482127528 | R48: =HLOOKUP(R$4,'Data(Step1)'!$AA$9:$AJ$509,$O48,FALSE) -> 0.001969592863 | S48: =HLOOKUP(S$4,'Data(Step1)'!$AA$9:$AJ$509,$O48,FALSE) -> 0.001197393871 | T48: =HLOOKUP(T$4,'Data(Step1)'!$AA$9:$AJ$509,$O48,FALSE) -> 0.003860420813
O49: 47 | P49: =HLOOKUP(P$4,'Data(Step1)'!$AA$9:$AJ$509,$O49,FALSE) -> 0.003253157398 | Q49: =HLOOKUP(Q$4,'Data(Step1)'!$AA$9:$AJ$509,$O49,FALSE) -> 0.003253157398 | R49: =HLOOKUP(R$4,'Data(Step1)'!$AA$9:$AJ$509,$O49,FALSE) -> 0.004020770826 | S49: =HLOOKUP(S$4,'Data(Step1)'!$AA$9:$AJ$509,$O49,FALSE) -> 0.007115852505 | T49: =HLOOKUP(T$4,'Data(Step1)'!$AA$9:$AJ$509,$O49,FALSE) -> 0.00761939687
O50: 48 | P50: =HLOOKUP(P$4,'Data(Step1)'!$AA$9:$AJ$509,$O50,FALSE) -> 0 | Q50: =HLOOKUP(Q$4,'Data(Step1)'!$AA$9:$AJ$509,$O50,FALSE) -> 0.006434110005 | R50: =HLOOKUP(R$4,'Data(Step1)'!$AA$9:$AJ$509,$O50,FALSE) -> -0.003475243205 | S50: =HLOOKUP(S$4,'Data(Step1)'!$AA$9:$AJ$509,$O50,FALSE) -> -0.002122540384 | T50: =HLOOKUP(T$4,'Data(Step1)'!$AA$9:$AJ$509,$O50,FALSE) -> -0.00761939687
O51: 49 | P51: =HLOOKUP(P$4,'Data(Step1)'!$AA$9:$AJ$509,$O51,FALSE) -> 0.00322897013 | Q51: =HLOOKUP(Q$4,'Data(Step1)'!$AA$9:$AJ$509,$O51,FALSE) -> 0.006340178031 | R51: =HLOOKUP(R$4,'Data(Step1)'!$AA$9:$AJ$509,$O51,FALSE) -> -0.0009824436355 | S51: =HLOOKUP(S$4,'Data(Step1)'!$AA$9:$AJ$509,$O51,FALSE) -> 0.0002363507443 | T51: =HLOOKUP(T$4,'Data(Step1)'!$AA$9:$AJ$509,$O51,FALSE) -> 0.003826407853
O52: 50 | P52: =HLOOKUP(P$4,'Data(Step1)'!$AA$9:$AJ$509,$O52,FALSE) -> 0.01579426718 | Q52: =HLOOKUP(Q$4,'Data(Step1)'!$AA$9:$AJ$509,$O52,FALSE) -> 0.006248949277 | R52: =HLOOKUP(R$4,'Data(Step1)'!$AA$9:$AJ$509,$O52,FALSE) -> -0.003841881965 | S52: =HLOOKUP(S$4,'Data(Step1)'!$AA$9:$AJ$509,$O52,FALSE) -> -0.00690694019 | T52: =HLOOKUP(T$4,'Data(Step1)'!$AA$9:$AJ$509,$O52,FALSE) -> -0.01551216618
O53: 51 | P53: =HLOOKUP(P$4,'Data(Step1)'!$AA$9:$AJ$509,$O53,FALSE) -> -0.006248949277 | Q53: =HLOOKUP(Q$4,'Data(Step1)'!$AA$9:$AJ$509,$O53,FALSE) -> -0.01579426718 | R53: =HLOOKUP(R$4,'Data(Step1)'!$AA$9:$AJ$509,$O53,FALSE) -> 0.001211114817 | S53: =HLOOKUP(S$4,'Data(Step1)'!$AA$9:$AJ$509,$O53,FALSE) -> 0.001916360448 | T53: =HLOOKUP(T$4,'Data(Step1)'!$AA$9:$AJ$509,$O53,FALSE) -> 0.01168575833
O54: 52 | P54: =HLOOKUP(P$4,'Data(Step1)'!$AA$9:$AJ$509,$O54,FALSE) -> -0.006340178031 | Q54: =HLOOKUP(Q$4,'Data(Step1)'!$AA$9:$AJ$509,$O54,FALSE) -> 0 | R54: =HLOOKUP(R$4,'Data(Step1)'!$AA$9:$AJ$509,$O54,FALSE) -> 0.0009884061257 | S54: =HLOOKUP(S$4,'Data(Step1)'!$AA$9:$AJ$509,$O54,FALSE) -> -0.001196733967 | T54: =HLOOKUP(T$4,'Data(Step1)'!$AA$9:$AJ$509,$O54,FALSE) -> -0.01168575833
O55: 53 | P55: =HLOOKUP(P$4,'Data(Step1)'!$AA$9:$AJ$509,$O55,FALSE) -> 0.006340178031 | Q55: =HLOOKUP(Q$4,'Data(Step1)'!$AA$9:$AJ$509,$O55,FALSE) -> -0.00322897013 | R55: =HLOOKUP(R$4,'Data(Step1)'!$AA$9:$AJ$509,$O55,FALSE) -> 0.002406675832 | S55: =HLOOKUP(S$4,'Data(Step1)'!$AA$9:$AJ$509,$O55,FALSE) -> 0.003580354012 | T55: =HLOOKUP(T$4,'Data(Step1)'!$AA$9:$AJ$509,$O55,FALSE) -> -0.003966187218
O56: 54 | P56: =HLOOKUP(P$4,'Data(Step1)'!$AA$9:$AJ$509,$O56,FALSE) -> 0 | Q56: =HLOOKUP(Q$4,'Data(Step1)'!$AA$9:$AJ$509,$O56,FALSE) -> -0.003253157398 | R56: =HLOOKUP(R$4,'Data(Step1)'!$AA$9:$AJ$509,$O56,FALSE) -> -0.007371356262 | S56: =HLOOKUP(S$4,'Data(Step1)'!$AA$9:$AJ$509,$O56,FALSE) -> -0.004780394792 | T56: =HLOOKUP(T$4,'Data(Step1)'!$AA$9:$AJ$509,$O56,FALSE) -> -0.01623719887
O57: 55 | P57: =HLOOKUP(P$4,'Data(Step1)'!$AA$9:$AJ$509,$O57,FALSE) -> 0.003135713853 | Q57: =HLOOKUP(Q$4,'Data(Step1)'!$AA$9:$AJ$509,$O57,FALSE) -> 0 | R57: =HLOOKUP(R$4,'Data(Step1)'!$AA$9:$AJ$509,$O57,FALSE) -> -0.004013016579 | S57: =HLOOKUP(S$4,'Data(Step1)'!$AA$9:$AJ$509,$O57,FALSE) -> -0.0002404065834 | T57: =HLOOKUP(T$4,'Data(Step1)'!$AA$9:$AJ$509,$O57,FALSE) -> 0.02020338609
O58: 56 | P58: =HLOOKUP(P$4,'Data(Step1)'!$AA$9:$AJ$509,$O58,FALSE) -> -0.01268103176 | Q58: =HLOOKUP(Q$4,'Data(Step1)'!$AA$9:$AJ$509,$O58,FALSE) -> -0.006580345311 | R58: =HLOOKUP(R$4,'Data(Step1)'!$AA$9:$AJ$509,$O58,FALSE) -> 0.0008949915211 | S58: =HLOOKUP(S$4,'Data(Step1)'!$AA$9:$AJ$509,$O58,FALSE) -> -0.001445240874 | T58: =HLOOKUP(T$4,'Data(Step1)'!$AA$9:$AJ$509,$O58,FALSE) -> -0.01608681989
O59: 57 | P59: =HLOOKUP(P$4,'Data(Step1)'!$AA$9:$AJ$509,$O59,FALSE) -> 0.003205139875 | Q59: =HLOOKUP(Q$4,'Data(Step1)'!$AA$9:$AJ$509,$O59,FALSE) -> 0.009833502709 | R59: =HLOOKUP(R$4,'Data(Step1)'!$AA$9:$AJ$509,$O59,FALSE) -> -0.001455299278 | S59: =HLOOKUP(S$4,'Data(Step1)'!$AA$9:$AJ$509,$O59,FALSE) -> 0 | T59: =HLOOKUP(T$4,'Data(Step1)'!$AA$9:$AJ$509,$O59,FALSE) -> 0.01608681989
O60: 58 | P60: =HLOOKUP(P$4,'Data(Step1)'!$AA$9:$AJ$509,$O60,FALSE) -> -0.006434110005 | Q60: =HLOOKUP(Q$4,'Data(Step1)'!$AA$9:$AJ$509,$O60,FALSE) -> -0.006530867159 | R60: =HLOOKUP(R$4,'Data(Step1)'!$AA$9:$AJ$509,$O60,FALSE) -> -0.005189034762 | S60: =HLOOKUP(S$4,'Data(Step1)'!$AA$9:$AJ$509,$O60,FALSE) -> -0.004852502794 | T60: =HLOOKUP(T$4,'Data(Step1)'!$AA$9:$AJ$509,$O60,FALSE) -> -0.01608681989
O61: 59 | P61: =HLOOKUP(P$4,'Data(Step1)'!$AA$9:$AJ$509,$O61,FALSE) -> 0.006434110005 | Q61: =HLOOKUP(Q$4,'Data(Step1)'!$AA$9:$AJ$509,$O61,FALSE) -> 0.006530867159 | R61: =HLOOKUP(R$4,'Data(Step1)'!$AA$9:$AJ$509,$O61,FALSE) -> 0.0007936463175 | S61: =HLOOKUP(S$4,'Data(Step1)'!$AA$9:$AJ$509,$O61,FALSE) -> 0.00267558354 | T61: =HLOOKUP(T$4,'Data(Step1)'!$AA$9:$AJ$509,$O61,FALSE) -> 0.02001711352
O62: 60 | P62: =HLOOKUP(P$4,'Data(Step1)'!$AA$9:$AJ$509,$O62,FALSE) -> 0.003181658786 | Q62: =HLOOKUP(Q$4,'Data(Step1)'!$AA$9:$AJ$509,$O62,FALSE) -> 0.009615768792 | R62: =HLOOKUP(R$4,'Data(Step1)'!$AA$9:$AJ$509,$O62,FALSE) -> 0.007635156516 | S62: =HLOOKUP(S$4,'Data(Step1)'!$AA$9:$AJ$509,$O62,FALSE) -> 0.005541696875 | T62: =HLOOKUP(T$4,'Data(Step1)'!$AA$9:$AJ$509,$O62,FALSE) -> -0.007896480846
O63: 61 | P63: =HLOOKUP(P$4,'Data(Step1)'!$AA$9:$AJ$509,$O63,FALSE) -> -0.003181658786 | Q63: =HLOOKUP(Q$4,'Data(Step1)'!$AA$9:$AJ$509,$O63,FALSE) -> 0.003158519245 | R63: =HLOOKUP(R$4,'Data(Step1)'!$AA$9:$AJ$509,$O63,FALSE) -> 0.0017771666 | S63: =HLOOKUP(S$4,'Data(Step1)'!$AA$9:$AJ$509,$O63,FALSE) -> 0.002149385931 | T63: =HLOOKUP(T$4,'Data(Step1)'!$AA$9:$AJ$509,$O63,FALSE) -> -0.01212063268
O64: 62 | P64: =HLOOKUP(P$4,'Data(Step1)'!$AA$9:$AJ$509,$O64,FALSE) -> 0.006340178031 | Q64: =HLOOKUP(Q$4,'Data(Step1)'!$AA$9:$AJ$509,$O64,FALSE) -> 0.003135713853 | R64: =HLOOKUP(R$4,'Data(Step1)'!$AA$9:$AJ$509,$O64,FALSE) -> 0.0008858636053 | S64: =HLOOKUP(S$4,'Data(Step1)'!$AA$9:$AJ$509,$O64,FALSE) -> 0.001189522743 | T64: =HLOOKUP(T$4,'Data(Step1)'!$AA$9:$AJ$509,$O64,FALSE) -> 0.01608681989
O65: 63 | P65: =HLOOKUP(P$4,'Data(Step1)'!$AA$9:$AJ$509,$O65,FALSE) -> -0.006340178031 | Q65: =HLOOKUP(Q$4,'Data(Step1)'!$AA$9:$AJ$509,$O65,FALSE) -> 0 | R65: =HLOOKUP(R$4,'Data(Step1)'!$AA$9:$AJ$509,$O65,FALSE) -> 0.001656139602 | S65: =HLOOKUP(S$4,'Data(Step1)'!$AA$9:$AJ$509,$O65,FALSE) -> 0.009865415139 | T65: =HLOOKUP(T$4,'Data(Step1)'!$AA$9:$AJ$509,$O65,FALSE) -> 0
O66: 64 | P66: =HLOOKUP(P$4,'Data(Step1)'!$AA$9:$AJ$509,$O66,FALSE) -> -0.006434110005 | Q66: =HLOOKUP(Q$4,'Data(Step1)'!$AA$9:$AJ$509,$O66,FALSE) -> 0.009273544129 | R66: =HLOOKUP(R$4,'Data(Step1)'!$AA$9:$AJ$509,$O66,FALSE) -> 0.003293452198 | S66: =HLOOKUP(S$4,'Data(Step1)'!$AA$9:$AJ$509,$O66,FALSE) -> 0.0004642378656 | T66: =HLOOKUP(T$4,'Data(Step1)'!$AA$9:$AJ$509,$O66,FALSE) -> 0.01168575833
O67: 65 | P67: =HLOOKUP(P$4,'Data(Step1)'!$AA$9:$AJ$509,$O67,FALSE) -> 0.006434110005 | Q67: =HLOOKUP(Q$4,'Data(Step1)'!$AA$9:$AJ$509,$O67,FALSE) -> 0.01502899037 | R67: =HLOOKUP(R$4,'Data(Step1)'!$AA$9:$AJ$509,$O67,FALSE) -> 0.00305151707 | S67: =HLOOKUP(S$4,'Data(Step1)'!$AA$9:$AJ$509,$O67,FALSE) -> 0.00300551014 | T67: =HLOOKUP(T$4,'Data(Step1)'!$AA$9:$AJ$509,$O67,FALSE) -> 0
O68: 66 | P68: =HLOOKUP(P$4,'Data(Step1)'!$AA$9:$AJ$509,$O68,FALSE) -> 0.003181658786 | Q68: =HLOOKUP(Q$4,'Data(Step1)'!$AA$9:$AJ$509,$O68,FALSE) -> 0 | R68: =HLOOKUP(R$4,'Data(Step1)'!$AA$9:$AJ$509,$O68,FALSE) -> -0.001959226549 | S68: =HLOOKUP(S$4,'Data(Step1)'!$AA$9:$AJ$509,$O68,FALSE) -> 0.002984853549 | T68: =HLOOKUP(T$4,'Data(Step1)'!$AA$9:$AJ$509,$O68,FALSE) -> 0.01137954574
O69: 67 | P69: =HLOOKUP(P$4,'Data(Step1)'!$AA$9:$AJ$509,$O69,FALSE) -> 0.006294233098 | Q69: =HLOOKUP(Q$4,'Data(Step1)'!$AA$9:$AJ$509,$O69,FALSE) -> 0.008773924308 | R69: =HLOOKUP(R$4,'Data(Step1)'!$AA$9:$AJ$509,$O69,FALSE) -> -0.0007643148103 | S69: =HLOOKUP(S$4,'Data(Step1)'!$AA$9:$AJ$509,$O69,FALSE) -> -0.001375076025 | T69: =HLOOKUP(T$4,'Data(Step1)'!$AA$9:$AJ$509,$O69,FALSE) -> 0.007424018079
O70: 68 | P70: =HLOOKUP(P$4,'Data(Step1)'!$AA$9:$AJ$509,$O70,FALSE) -> 0 | Q70: =HLOOKUP(Q$4,'Data(Step1)'!$AA$9:$AJ$509,$O70,FALSE) -> -0.005829543661 | R70: =HLOOKUP(R$4,'Data(Step1)'!$AA$9:$AJ$509,$O70,FALSE) -> -0.002630767147 | S70: =HLOOKUP(S$4,'Data(Step1)'!$AA$9:$AJ$509,$O70,FALSE) -> -0.001379443664 | T70: =HLOOKUP(T$4,'Data(Step1)'!$AA$9:$AJ$509,$O70,FALSE) -> -0.00369614556
O71: 69 | P71: =HLOOKUP(P$4,'Data(Step1)'!$AA$9:$AJ$509,$O71,FALSE) -> -0.01268103176 | Q71: =HLOOKUP(Q$4,'Data(Step1)'!$AA$9:$AJ$509,$O71,FALSE) -> -0.005908859611 | R71: =HLOOKUP(R$4,'Data(Step1)'!$AA$9:$AJ$509,$O71,FALSE) -> -0.005755260845 | S71: =HLOOKUP(S$4,'Data(Step1)'!$AA$9:$AJ$509,$O71,FALSE) -> -0.007900706055 | T71: =HLOOKUP(T$4,'Data(Step1)'!$AA$9:$AJ$509,$O71,FALSE) -> 0
O72: 70 | P72: =HLOOKUP(P$4,'Data(Step1)'!$AA$9:$AJ$509,$O72,FALSE) -> -0.00322897013 | Q72: =HLOOKUP(Q$4,'Data(Step1)'!$AA$9:$AJ$509,$O72,FALSE) -> -0.002984853549 | R72: =HLOOKUP(R$4,'Data(Step1)'!$AA$9:$AJ$509,$O72,FALSE) -> -0.004479611474 | S72: =HLOOKUP(S$4,'Data(Step1)'!$AA$9:$AJ$509,$O72,FALSE) -> -0.004478517384 | T72: =HLOOKUP(T$4,'Data(Step1)'!$AA$9:$AJ$509,$O72,FALSE) -> -0.003727872519
O73: 71 | P73: =HLOOKUP(P$4,'Data(Step1)'!$AA$9:$AJ$509,$O73,FALSE) -> 0.00322897013 | Q73: =HLOOKUP(Q$4,'Data(Step1)'!$AA$9:$AJ$509,$O73,FALSE) -> 0 | R73: =HLOOKUP(R$4,'Data(Step1)'!$AA$9:$AJ$509,$O73,FALSE) -> -0.003163449339 | S73: =HLOOKUP(S$4,'Data(Step1)'!$AA$9:$AJ$509,$O73,FALSE) -> 0.0002368663718 | T73: =HLOOKUP(T$4,'Data(Step1)'!$AA$9:$AJ$509,$O73,FALSE) -> 0.007424018079
O74: 72 | P74: =HLOOKUP(P$4,'Data(Step1)'!$AA$9:$AJ$509,$O74,FALSE) -> 0.003205139875 | Q74: =HLOOKUP(Q$4,'Data(Step1)'!$AA$9:$AJ$509,$O74,FALSE) -> 0.01181826618 | R74: =HLOOKUP(R$4,'Data(Step1)'!$AA$9:$AJ$509,$O74,FALSE) -> 0.003838343775 | S74: =HLOOKUP(S$4,'Data(Step1)'!$AA$9:$AJ$509,$O74,FALSE) -> 0.004241651012 | T74: =HLOOKUP(T$4,'Data(Step1)'!$AA$9:$AJ$509,$O74,FALSE) -> 0.01090336301
O75: 73 | P75: =HLOOKUP(P$4,'Data(Step1)'!$AA$9:$AJ$509,$O75,FALSE) -> 0.003181658786 | Q75: =HLOOKUP(Q$4,'Data(Step1)'!$AA$9:$AJ$509,$O75,FALSE) -> -0.002924553017 | R75: =HLOOKUP(R$4,'Data(Step1)'!$AA$9:$AJ$509,$O75,FALSE) -> -0.003611617337 | S75: =HLOOKUP(S$4,'Data(Step1)'!$AA$9:$AJ$509,$O75,FALSE) -> -0.004478517384 | T75: =HLOOKUP(T$4,'Data(Step1)'!$AA$9:$AJ$509,$O75,FALSE) -> -0.007238408924
O76: 74 | P76: =HLOOKUP(P$4,'Data(Step1)'!$AA$9:$AJ$509,$O76,FALSE) -> 0.006294233098 | Q76: =HLOOKUP(Q$4,'Data(Step1)'!$AA$9:$AJ$509,$O76,FALSE) -> 0 | R76: =HLOOKUP(R$4,'Data(Step1)'!$AA$9:$AJ$509,$O76,FALSE) -> -0.0002267264379 | S76: =HLOOKUP(S$4,'Data(Step1)'!$AA$9:$AJ$509,$O76,FALSE) -> -0.002614092325 | T76: =HLOOKUP(T$4,'Data(Step1)'!$AA$9:$AJ$509,$O76,FALSE) -> 0.007238408924
O77: 75 | P77: =HLOOKUP(P$4,'Data(Step1)'!$AA$9:$AJ$509,$O77,FALSE) -> -0.003135713853 | Q77: =HLOOKUP(Q$4,'Data(Step1)'!$AA$9:$AJ$509,$O77,FALSE) -> -0.00889371316 | R77: =HLOOKUP(R$4,'Data(Step1)'!$AA$9:$AJ$509,$O77,FALSE) -> -0.0140590485 | S77: =HLOOKUP(S$4,'Data(Step1)'!$AA$9:$AJ$509,$O77,FALSE) -> -0.01331182313 | T77: =HLOOKUP(T$4,'Data(Step1)'!$AA$9:$AJ$509,$O77,FALSE) -> -0.02208752996
O78: 76 | P78: =HLOOKUP(P$4,'Data(Step1)'!$AA$9:$AJ$509,$O78,FALSE) -> 0 | Q78: =HLOOKUP(Q$4,'Data(Step1)'!$AA$9:$AJ$509,$O78,FALSE) -> 0 | R78: =HLOOKUP(R$4,'Data(Step1)'!$AA$9:$AJ$509,$O78,FALSE) -> -0.0009380014055 | S78: =HLOOKUP(S$4,'Data(Step1)'!$AA$9:$AJ$509,$O78,FALSE) -> 0.002206411936 | T78: =HLOOKUP(T$4,'Data(Step1)'!$AA$9:$AJ$509,$O78,FALSE) -> 0
O79: 77 | P79: =HLOOKUP(P$4,'Data(Step1)'!$AA$9:$AJ$509,$O79,FALSE) -> -0.003158519245 | Q79: =HLOOKUP(Q$4,'Data(Step1)'!$AA$9:$AJ$509,$O79,FALSE) -> -0.01523996656 | R79: =HLOOKUP(R$4,'Data(Step1)'!$AA$9:$AJ$509,$O79,FALSE) -> -0.0007048329628 | S79: =HLOOKUP(S$4,'Data(Step1)'!$AA$9:$AJ$509,$O79,FALSE) -> -0.001960700766 | T79: =HLOOKUP(T$4,'Data(Step1)'!$AA$9:$AJ$509,$O79,FALSE) -> -0.003792989017
O80: 78 | P80: =HLOOKUP(P$4,'Data(Step1)'!$AA$9:$AJ$509,$O80,FALSE) -> 0.009407468522 | Q80: =HLOOKUP(Q$4,'Data(Step1)'!$AA$9:$AJ$509,$O80,FALSE) -> 0.006160308705 | R80: =HLOOKUP(R$4,'Data(Step1)'!$AA$9:$AJ$509,$O80,FALSE) -> 0.01228670551 | S80: =HLOOKUP(S$4,'Data(Step1)'!$AA$9:$AJ$509,$O80,FALSE) -> 0.01115502205 | T80: =HLOOKUP(T$4,'Data(Step1)'!$AA$9:$AJ$509,$O80,FALSE) -> 0.00755313789
O81: 79 | P81: =HLOOKUP(P$4,'Data(Step1)'!$AA$9:$AJ$509,$O81,FALSE) -> 0.009208001787 | Q81: =HLOOKUP(Q$4,'Data(Step1)'!$AA$9:$AJ$509,$O81,FALSE) -> 0.009079657852 | R81: =HLOOKUP(R$4,'Data(Step1)'!$AA$9:$AJ$509,$O81,FALSE) -> 0.001255352155 | S81: =HLOOKUP(S$4,'Data(Step1)'!$AA$9:$AJ$509,$O81,FALSE) -> 0.005235394141 | T81: =HLOOKUP(T$4,'Data(Step1)'!$AA$9:$AJ$509,$O81,FALSE) -> -0.00755313789
O82: 80 | P82: =HLOOKUP(P$4,'Data(Step1)'!$AA$9:$AJ$509,$O82,FALSE) -> -0.009208001787 | Q82: =HLOOKUP(Q$4,'Data(Step1)'!$AA$9:$AJ$509,$O82,FALSE) -> -0.00603196477 | R82: =HLOOKUP(R$4,'Data(Step1)'!$AA$9:$AJ$509,$O82,FALSE) -> 0.0004555935187 | S82: =HLOOKUP(S$4,'Data(Step1)'!$AA$9:$AJ$509,$O82,FALSE) -> 0.004939226875 | T82: =HLOOKUP(T$4,'Data(Step1)'!$AA$9:$AJ$509,$O82,FALSE) -> 0.003792989017
O83: 81 | P83: =HLOOKUP(P$4,'Data(Step1)'!$AA$9:$AJ$509,$O83,FALSE) -> 0.006160308705 | Q83: =HLOOKUP(Q$4,'Data(Step1)'!$AA$9:$AJ$509,$O83,FALSE) -> -0.003047693082 | R83: =HLOOKUP(R$4,'Data(Step1)'!$AA$9:$AJ$509,$O83,FALSE) -> 0.006889226088 | S83: =HLOOKUP(S$4,'Data(Step1)'!$AA$9:$AJ$509,$O83,FALSE) -> 0.006268994717 | T83: =HLOOKUP(T$4,'Data(Step1)'!$AA$9:$AJ$509,$O83,FALSE) -> -0.00761939687
O84: 82 | P84: =HLOOKUP(P$4,'Data(Step1)'!$AA$9:$AJ$509,$O84,FALSE) -> -0.003069231728 | Q84: =HLOOKUP(Q$4,'Data(Step1)'!$AA$9:$AJ$509,$O84,FALSE) -> 0 | R84: =HLOOKUP(R$4,'Data(Step1)'!$AA$9:$AJ$509,$O84,FALSE) -> -0.002246743148 | S84: =HLOOKUP(S$4,'Data(Step1)'!$AA$9:$AJ$509,$O84,FALSE) -> 0.001380905716 | T84: =HLOOKUP(T$4,'Data(Step1)'!$AA$9:$AJ$509,$O84,FALSE) -> 0
O85: 83 | P85: =HLOOKUP(P$4,'Data(Step1)'!$AA$9:$AJ$509,$O85,FALSE) -> -0.003091076977 | Q85: =HLOOKUP(Q$4,'Data(Step1)'!$AA$9:$AJ$509,$O85,FALSE) -> -0.006160308705 | R85: =HLOOKUP(R$4,'Data(Step1)'!$AA$9:$AJ$509,$O85,FALSE) -> -0.002484916689 | S85: =HLOOKUP(S$4,'Data(Step1)'!$AA$9:$AJ$509,$O85,FALSE) -> -0.003924026798 | T85: =HLOOKUP(T$4,'Data(Step1)'!$AA$9:$AJ$509,$O85,FALSE) -> -0.01168575833
O86: 84 | P86: =HLOOKUP(P$4,'Data(Step1)'!$AA$9:$AJ$509,$O86,FALSE) -> 0 | Q86: =HLOOKUP(Q$4,'Data(Step1)'!$AA$9:$AJ$509,$O86,FALSE) -> 0 | R86: =HLOOKUP(R$4,'Data(Step1)'!$AA$9:$AJ$509,$O86,FALSE) -> 0.001131270454 | S86: =HLOOKUP(S$4,'Data(Step1)'!$AA$9:$AJ$509,$O86,FALSE) -> 0.00323412279 | T86: =HLOOKUP(T$4,'Data(Step1)'!$AA$9:$AJ$509,$O86,FALSE) -> -0.02435934586
O87: 85 | P87: =HLOOKUP(P$4,'Data(Step1)'!$AA$9:$AJ$509,$O87,FALSE) -> 0.003091076977 | Q87: =HLOOKUP(Q$4,'Data(Step1)'!$AA$9:$AJ$509,$O87,FALSE) -> 0.009208001787 | R87: =HLOOKUP(R$4,'Data(Step1)'!$AA$9:$AJ$509,$O87,FALSE) -> 0.004048346598 | S87: =HLOOKUP(S$4,'Data(Step1)'!$AA$9:$AJ$509,$O87,FALSE) -> -0.001152281074 | T87: =HLOOKUP(T$4,'Data(Step1)'!$AA$9:$AJ$509,$O87,FALSE) -> 0.008272525966
O88: 86 | P88: =HLOOKUP(P$4,'Data(Step1)'!$AA$9:$AJ$509,$O88,FALSE) -> 0.003069231728 | Q88: =HLOOKUP(Q$4,'Data(Step1)'!$AA$9:$AJ$509,$O88,FALSE) -> -0.003047693082 | R88: =HLOOKUP(R$4,'Data(Step1)'!$AA$9:$AJ$509,$O88,FALSE) -> 0.004121845954 | S88: =HLOOKUP(S$4,'Data(Step1)'!$AA$9:$AJ$509,$O88,FALSE) -> 0.004362497774 | T88: =HLOOKUP(T$4,'Data(Step1)'!$AA$9:$AJ$509,$O88,FALSE) -> 0
O89: 87 | P89: =HLOOKUP(P$4,'Data(Step1)'!$AA$9:$AJ$509,$O89,FALSE) -> 0 | Q89: =HLOOKUP(Q$4,'Data(Step1)'!$AA$9:$AJ$509,$O89,FALSE) -> 0.003047693082 | R89: =HLOOKUP(R$4,'Data(Step1)'!$AA$9:$AJ$509,$O89,FALSE) -> 0.0005540177839 | S89: =HLOOKUP(S$4,'Data(Step1)'!$AA$9:$AJ$509,$O89,FALSE) -> 0.001368576181 | T89: =HLOOKUP(T$4,'Data(Step1)'!$AA$9:$AJ$509,$O89,FALSE) -> 0.00407791242
O90: 88 | P90: =HLOOKUP(P$4,'Data(Step1)'!$AA$9:$AJ$509,$O90,FALSE) -> -0.003069231728 | Q90: =HLOOKUP(Q$4,'Data(Step1)'!$AA$9:$AJ$509,$O90,FALSE) -> -0.00611692481 | R90: =HLOOKUP(R$4,'Data(Step1)'!$AA$9:$AJ$509,$O90,FALSE) -> -0.00266575455 | S90: =HLOOKUP(S$4,'Data(Step1)'!$AA$9:$AJ$509,$O90,FALSE) -> 0.001364276981 | T90: =HLOOKUP(T$4,'Data(Step1)'!$AA$9:$AJ$509,$O90,FALSE) -> 0
O91: 89 | P91: =HLOOKUP(P$4,'Data(Step1)'!$AA$9:$AJ$509,$O91,FALSE) -> 0.003069231728 | Q91: =HLOOKUP(Q$4,'Data(Step1)'!$AA$9:$AJ$509,$O91,FALSE) -> 0.00611692481 | R91: =HLOOKUP(R$4,'Data(Step1)'!$AA$9:$AJ$509,$O91,FALSE) -> -0.002010109187 | S91: =HLOOKUP(S$4,'Data(Step1)'!$AA$9:$AJ$509,$O91,FALSE) -> -0.00433499536 | T91: =HLOOKUP(T$4,'Data(Step1)'!$AA$9:$AJ$509,$O91,FALSE) -> 0.004039977802
O92: 90 | P92: =HLOOKUP(P$4,'Data(Step1)'!$AA$9:$AJ$509,$O92,FALSE) -> -0.006160308705 | Q92: =HLOOKUP(Q$4,'Data(Step1)'!$AA$9:$AJ$509,$O92,FALSE) -> -0.00611692481 | R92: =HLOOKUP(R$4,'Data(Step1)'!$AA$9:$AJ$509,$O92,FALSE) -> -0.003145447142 | S92: =HLOOKUP(S$4,'Data(Step1)'!$AA$9:$AJ$509,$O92,FALSE) -> -0.003222125404 | T92: =HLOOKUP(T$4,'Data(Step1)'!$AA$9:$AJ$509,$O92,FALSE) -> -0.01223445642
O93: 91 | P93: =HLOOKUP(P$4,'Data(Step1)'!$AA$9:$AJ$509,$O93,FALSE) -> 0 | Q93: =HLOOKUP(Q$4,'Data(Step1)'!$AA$9:$AJ$509,$O93,FALSE) -> -0.009340026254 | R93: =HLOOKUP(R$4,'Data(Step1)'!$AA$9:$AJ$509,$O93,FALSE) -> 0.00258542839 | S93: =HLOOKUP(S$4,'Data(Step1)'!$AA$9:$AJ$509,$O93,FALSE) -> -0.002084061764 | T93: =HLOOKUP(T$4,'Data(Step1)'!$AA$9:$AJ$509,$O93,FALSE) -> -0.008352074365
O94: 92 | P94: =HLOOKUP(P$4,'Data(Step1)'!$AA$9:$AJ$509,$O94,FALSE) -> 0.006160308705 | Q94: =HLOOKUP(Q$4,'Data(Step1)'!$AA$9:$AJ$509,$O94,FALSE) -> 0.009340026254 | R94: =HLOOKUP(R$4,'Data(Step1)'!$AA$9:$AJ$509,$O94,FALSE) -> 0.002681528346 | S94: =HLOOKUP(S$4,'Data(Step1)'!$AA$9:$AJ$509,$O94,FALSE) -> 0.008959579748 | T94: =HLOOKUP(T$4,'Data(Step1)'!$AA$9:$AJ$509,$O94,FALSE) -> 0.01654655298
O95: 93 | P95: =HLOOKUP(P$4,'Data(Step1)'!$AA$9:$AJ$509,$O95,FALSE) -> 0 | Q95: =HLOOKUP(Q$4,'Data(Step1)'!$AA$9:$AJ$509,$O95,FALSE) -> 0.003069231728 | R95: =HLOOKUP(R$4,'Data(Step1)'!$AA$9:$AJ$509,$O95,FALSE) -> 0.003881120395 | S95: =HLOOKUP(S$4,'Data(Step1)'!$AA$9:$AJ$509,$O95,FALSE) -> 0.007662893343 | T95: =HLOOKUP(T$4,'Data(Step1)'!$AA$9:$AJ$509,$O95,FALSE) -> 0
O96: 94 | P96: =HLOOKUP(P$4,'Data(Step1)'!$AA$9:$AJ$509,$O96,FALSE) -> 0.003047693082 | Q96: =HLOOKUP(Q$4,'Data(Step1)'!$AA$9:$AJ$509,$O96,FALSE) -> -0.01240925798 | R96: =HLOOKUP(R$4,'Data(Step1)'!$AA$9:$AJ$509,$O96,FALSE) -> 0.01315650296 | S96: =HLOOKUP(S$4,'Data(Step1)'!$AA$9:$AJ$509,$O96,FALSE) -> 0.0006696909298 | T96: =HLOOKUP(T$4,'Data(Step1)'!$AA$9:$AJ$509,$O96,FALSE) -> -0.00407791242
O97: 95 | P97: =HLOOKUP(P$4,'Data(Step1)'!$AA$9:$AJ$509,$O97,FALSE) -> -0.003047693082 | Q97: =HLOOKUP(Q$4,'Data(Step1)'!$AA$9:$AJ$509,$O97,FALSE) -> -0.003158519245 | R97: =HLOOKUP(R$4,'Data(Step1)'!$AA$9:$AJ$509,$O97,FALSE) -> 0.001069691383 | S97: =HLOOKUP(S$4,'Data(Step1)'!$AA$9:$AJ$509,$O97,FALSE) -> 0.0004458875976 | T97: =HLOOKUP(T$4,'Data(Step1)'!$AA$9:$AJ$509,$O97,FALSE) -> 0.008117890222
O98: 96 | P98: =HLOOKUP(P$4,'Data(Step1)'!$AA$9:$AJ$509,$O98,FALSE) -> 0.006074147712 | Q98: =HLOOKUP(Q$4,'Data(Step1)'!$AA$9:$AJ$509,$O98,FALSE) -> 0.003158519245 | R98: =HLOOKUP(R$4,'Data(Step1)'!$AA$9:$AJ$509,$O98,FALSE) -> -0.003217010872 | S98: =HLOOKUP(S$4,'Data(Step1)'!$AA$9:$AJ$509,$O98,FALSE) -> 0.00266575455 | T98: =HLOOKUP(T$4,'Data(Step1)'!$AA$9:$AJ$509,$O98,FALSE) -> 0.0118992233
O99: 97 | P99: =HLOOKUP(P$4,'Data(Step1)'!$AA$9:$AJ$509,$O99,FALSE) -> -0.00302645463 | Q99: =HLOOKUP(Q$4,'Data(Step1)'!$AA$9:$AJ$509,$O99,FALSE) -> -0.003158519245 | R99: =HLOOKUP(R$4,'Data(Step1)'!$AA$9:$AJ$509,$O99,FALSE) -> 0.0008602022756 | S99: =HLOOKUP(S$4,'Data(Step1)'!$AA$9:$AJ$509,$O99,FALSE) -> 0.0002214093761 | T99: =HLOOKUP(T$4,'Data(Step1)'!$AA$9:$AJ$509,$O99,FALSE) -> -0.007896480846
O100: 98 | P100: =HLOOKUP(P$4,'Data(Step1)'!$AA$9:$AJ$509,$O100,FALSE) -> 0.00302645463 | Q100: =HLOOKUP(Q$4,'Data(Step1)'!$AA$9:$AJ$509,$O100,FALSE) -> -0.006386798661 | R100: =HLOOKUP(R$4,'Data(Step1)'!$AA$9:$AJ$509,$O100,FALSE) -> -0.001075519326 | S100: =HLOOKUP(S$4,'Data(Step1)'!$AA$9:$AJ$509,$O100,FALSE) -> -0.0004429316875 | T100: =HLOOKUP(T$4,'Data(Step1)'!$AA$9:$AJ$509,$O100,FALSE) -> 0
O101: 99 | P101: =HLOOKUP(P$4,'Data(Step1)'!$AA$9:$AJ$509,$O101,FALSE) -> -0.00302645463 | Q101: =HLOOKUP(Q$4,'Data(Step1)'!$AA$9:$AJ$509,$O101,FALSE) -> 0.01268103176 | R101: =HLOOKUP(R$4,'Data(Step1)'!$AA$9:$AJ$509,$O101,FALSE) -> 0.003325477268 | S101: =HLOOKUP(S$4,'Data(Step1)'!$AA$9:$AJ$509,$O101,FALSE) -> -0.005575102002 | T101: =HLOOKUP(T$4,'Data(Step1)'!$AA$9:$AJ$509,$O101,FALSE) -> 0.007896480846
O102: 100 | P102: =HLOOKUP(P$4,'Data(Step1)'!$AA$9:$AJ$509,$O102,FALSE) -> 0 | Q102: =HLOOKUP(Q$4,'Data(Step1)'!$AA$9:$AJ$509,$O102,FALSE) -> 0.009273544129 | R102: =HLOOKUP(R$4,'Data(Step1)'!$AA$9:$AJ$509,$O102,FALSE) -> -0.002572334165 | S102: =HLOOKUP(S$4,'Data(Step1)'!$AA$9:$AJ$509,$O102,FALSE) -> -0.00225023551 | T102: =HLOOKUP(T$4,'Data(Step1)'!$AA$9:$AJ$509,$O102,FALSE) -> 0.01158187255
O103: 101 | P103: =HLOOKUP(P$4,'Data(Step1)'!$AA$9:$AJ$509,$O103,FALSE) -> 0 | Q103: =HLOOKUP(Q$4,'Data(Step1)'!$AA$9:$AJ$509,$O103,FALSE) -> 0.009079657852 | R103: =HLOOKUP(R$4,'Data(Step1)'!$AA$9:$AJ$509,$O103,FALSE) -> 0.002572334165 | S103: =HLOOKUP(S$4,'Data(Step1)'!$AA$9:$AJ$509,$O103,FALSE) -> 0.00225023551 | T103: =HLOOKUP(T$4,'Data(Step1)'!$AA$9:$AJ$509,$O103,FALSE) -> 0
O104: 102 | P104: =HLOOKUP(P$4,'Data(Step1)'!$AA$9:$AJ$509,$O104,FALSE) -> -0.01232123721 | Q104: =HLOOKUP(Q$4,'Data(Step1)'!$AA$9:$AJ$509,$O104,FALSE) -> -0.00603196477 | R104: =HLOOKUP(R$4,'Data(Step1)'!$AA$9:$AJ$509,$O104,FALSE) -> 0.002663411278 | S104: =HLOOKUP(S$4,'Data(Step1)'!$AA$9:$AJ$509,$O104,FALSE) -> 0.003353642008 | T104: =HLOOKUP(T$4,'Data(Step1)'!$AA$9:$AJ$509,$O104,FALSE) -> -0.003826407853
O105: 103 | P105: =HLOOKUP(P$4,'Data(Step1)'!$AA$9:$AJ$509,$O105,FALSE) -> -0.006294233098 | Q105: =HLOOKUP(Q$4,'Data(Step1)'!$AA$9:$AJ$509,$O105,FALSE) -> 0 | R105: =HLOOKUP(R$4,'Data(Step1)'!$AA$9:$AJ$509,$O105,FALSE) -> -0.002022701329 | S105: =HLOOKUP(S$4,'Data(Step1)'!$AA$9:$AJ$509,$O105,FALSE) -> 0 | T105: =HLOOKUP(T$4,'Data(Step1)'!$AA$9:$AJ$509,$O105,FALSE) -> 0
O106: 104 | P106: =HLOOKUP(P$4,'Data(Step1)'!$AA$9:$AJ$509,$O106,FALSE) -> 0.003158519245 | Q106: =HLOOKUP(Q$4,'Data(Step1)'!$AA$9:$AJ$509,$O106,FALSE) -> 0 | R106: =HLOOKUP(R$4,'Data(Step1)'!$AA$9:$AJ$509,$O106,FALSE) -> -0.002675883277 | S106: =HLOOKUP(S$4,'Data(Step1)'!$AA$9:$AJ$509,$O106,FALSE) -> -0.002680838648 | T106: =HLOOKUP(T$4,'Data(Step1)'!$AA$9:$AJ$509,$O106,FALSE) -> -0.003860420813
O107: 105 | P107: =HLOOKUP(P$4,'Data(Step1)'!$AA$9:$AJ$509,$O107,FALSE) -> 0 | Q107: =HLOOKUP(Q$4,'Data(Step1)'!$AA$9:$AJ$509,$O107,FALSE) -> 0.00302645463 | R107: =HLOOKUP(R$4,'Data(Step1)'!$AA$9:$AJ$509,$O107,FALSE) -> 0.0005364972664 | S107: =HLOOKUP(S$4,'Data(Step1)'!$AA$9:$AJ$509,$O107,FALSE) -> 0.003126040616 | T107: =HLOOKUP(T$4,'Data(Step1)'!$AA$9:$AJ$509,$O107,FALSE) -> -0.003895043884
O108: 106 | P108: =HLOOKUP(P$4,'Data(Step1)'!$AA$9:$AJ$509,$O108,FALSE) -> 0 | Q108: =HLOOKUP(Q$4,'Data(Step1)'!$AA$9:$AJ$509,$O108,FALSE) -> 0.008954842653 | R108: =HLOOKUP(R$4,'Data(Step1)'!$AA$9:$AJ$509,$O108,FALSE) -> -0.0004291447799 | S108: =HLOOKUP(S$4,'Data(Step1)'!$AA$9:$AJ$509,$O108,FALSE) -> -0.0008908607881 | T108: =HLOOKUP(T$4,'Data(Step1)'!$AA$9:$AJ$509,$O108,FALSE) -> -0.003930293628
O109: 107 | P109: =HLOOKUP(P$4,'Data(Step1)'!$AA$9:$AJ$509,$O109,FALSE) -> -0.003158519245 | Q109: =HLOOKUP(Q$4,'Data(Step1)'!$AA$9:$AJ$509,$O109,FALSE) -> 0 | R109: =HLOOKUP(R$4,'Data(Step1)'!$AA$9:$AJ$509,$O109,FALSE) -> -0.0002147315158 | S109: =HLOOKUP(S$4,'Data(Step1)'!$AA$9:$AJ$509,$O109,FALSE) -> 0.002445483452 | T109: =HLOOKUP(T$4,'Data(Step1)'!$AA$9:$AJ$509,$O109,FALSE) -> 0.01168575833
O110: 108 | P110: =HLOOKUP(P$4,'Data(Step1)'!$AA$9:$AJ$509,$O110,FALSE) -> -0.006386798661 | Q110: =HLOOKUP(Q$4,'Data(Step1)'!$AA$9:$AJ$509,$O110,FALSE) -> -0.005949332513 | R110: =HLOOKUP(R$4,'Data(Step1)'!$AA$9:$AJ$509,$O110,FALSE) -> 0.005336691408 | S110: =HLOOKUP(S$4,'Data(Step1)'!$AA$9:$AJ$509,$O110,FALSE) -> 0.008995559669 | T110: =HLOOKUP(T$4,'Data(Step1)'!$AA$9:$AJ$509,$O110,FALSE) -> -0.01565194554
O111: 109 | P111: =HLOOKUP(P$4,'Data(Step1)'!$AA$9:$AJ$509,$O111,FALSE) -> 0.003205139875 | Q111: =HLOOKUP(Q$4,'Data(Step1)'!$AA$9:$AJ$509,$O111,FALSE) -> 0.005949332513 | R111: =HLOOKUP(R$4,'Data(Step1)'!$AA$9:$AJ$509,$O111,FALSE) -> 0.004222633965 | S111: =HLOOKUP(S$4,'Data(Step1)'!$AA$9:$AJ$509,$O111,FALSE) -> 0.008387230114 | T111: =HLOOKUP(T$4,'Data(Step1)'!$AA$9:$AJ$509,$O111,FALSE) -> 0
O112: 110 | P112: =HLOOKUP(P$4,'Data(Step1)'!$AA$9:$AJ$509,$O112,FALSE) -> 0.003181658786 | Q112: =HLOOKUP(Q$4,'Data(Step1)'!$AA$9:$AJ$509,$O112,FALSE) -> -0.002964478964 | R112: =HLOOKUP(R$4,'Data(Step1)'!$AA$9:$AJ$509,$O112,FALSE) -> 0.003765582682 | S112: =HLOOKUP(S$4,'Data(Step1)'!$AA$9:$AJ$509,$O112,FALSE) -> 0.005502830214 | T112: =HLOOKUP(T$4,'Data(Step1)'!$AA$9:$AJ$509,$O112,FALSE) -> -0.004002742454
O113: 111 | P113: =HLOOKUP(P$4,'Data(Step1)'!$AA$9:$AJ$509,$O113,FALSE) -> -0.003181658786 | Q113: =HLOOKUP(Q$4,'Data(Step1)'!$AA$9:$AJ$509,$O113,FALSE) -> -0.002984853549 | R113: =HLOOKUP(R$4,'Data(Step1)'!$AA$9:$AJ$509,$O113,FALSE) -> -0.001042724347 | S113: =HLOOKUP(S$4,'Data(Step1)'!$AA$9:$AJ$509,$O113,FALSE) -> -0.01497715597 | T113: =HLOOKUP(T$4,'Data(Step1)'!$AA$9:$AJ$509,$O113,FALSE) -> -0.004039977802
O114: 112 | P114: =HLOOKUP(P$4,'Data(Step1)'!$AA$9:$AJ$509,$O114,FALSE) -> -0.003205139875 | Q114: =HLOOKUP(Q$4,'Data(Step1)'!$AA$9:$AJ$509,$O114,FALSE) -> -0.00603196477 | R114: =HLOOKUP(R$4,'Data(Step1)'!$AA$9:$AJ$509,$O114,FALSE) -> -0.00356410699 | S114: =HLOOKUP(S$4,'Data(Step1)'!$AA$9:$AJ$509,$O114,FALSE) -> 0.002604472465 | T114: =HLOOKUP(T$4,'Data(Step1)'!$AA$9:$AJ$509,$O114,FALSE) -> -0.01235043839
O115: 113 | P115: =HLOOKUP(P$4,'Data(Step1)'!$AA$9:$AJ$509,$O115,FALSE) -> 0.003205139875 | Q115: =HLOOKUP(Q$4,'Data(Step1)'!$AA$9:$AJ$509,$O115,FALSE) -> 0 | R115: =HLOOKUP(R$4,'Data(Step1)'!$AA$9:$AJ$509,$O115,FALSE) -> -0.002004520783 | S115: =HLOOKUP(S$4,'Data(Step1)'!$AA$9:$AJ$509,$O115,FALSE) -> 0.0002163359855 | T115: =HLOOKUP(T$4,'Data(Step1)'!$AA$9:$AJ$509,$O115,FALSE) -> -0.004196114594
O116: 114 | P116: =HLOOKUP(P$4,'Data(Step1)'!$AA$9:$AJ$509,$O116,FALSE) -> -0.006434110005 | Q116: =HLOOKUP(Q$4,'Data(Step1)'!$AA$9:$AJ$509,$O116,FALSE) -> -0.01232123721 | R116: =HLOOKUP(R$4,'Data(Step1)'!$AA$9:$AJ$509,$O116,FALSE) -> -0.005855266165 | S116: =HLOOKUP(S$4,'Data(Step1)'!$AA$9:$AJ$509,$O116,FALSE) -> -0.003692448446 | T116: =HLOOKUP(T$4,'Data(Step1)'!$AA$9:$AJ$509,$O116,FALSE) -> 0.004196114594
O117: 115 | P117: =HLOOKUP(P$4,'Data(Step1)'!$AA$9:$AJ$509,$O117,FALSE) -> 0.00322897013 | Q117: =HLOOKUP(Q$4,'Data(Step1)'!$AA$9:$AJ$509,$O117,FALSE) -> 0.003113235424 | R117: =HLOOKUP(R$4,'Data(Step1)'!$AA$9:$AJ$509,$O117,FALSE) -> 0.004053871319 | S117: =HLOOKUP(S$4,'Data(Step1)'!$AA$9:$AJ$509,$O117,FALSE) -> 0.008424777886 | T117: =HLOOKUP(T$4,'Data(Step1)'!$AA$9:$AJ$509,$O117,FALSE) -> 0
O118: 116 | P118: =HLOOKUP(P$4,'Data(Step1)'!$AA$9:$AJ$509,$O118,FALSE) -> 0 | Q118: =HLOOKUP(Q$4,'Data(Step1)'!$AA$9:$AJ$509,$O118,FALSE) -> -0.006248949277 | R118: =HLOOKUP(R$4,'Data(Step1)'!$AA$9:$AJ$509,$O118,FALSE) -> 0.005277033114 | S118: =HLOOKUP(S$4,'Data(Step1)'!$AA$9:$AJ$509,$O118,FALSE) -> 0.002134129513 | T118: =HLOOKUP(T$4,'Data(Step1)'!$AA$9:$AJ$509,$O118,FALSE) -> -0.008433167537
O119: 117 | P119: =HLOOKUP(P$4,'Data(Step1)'!$AA$9:$AJ$509,$O119,FALSE) -> -0.006482127528 | Q119: =HLOOKUP(Q$4,'Data(Step1)'!$AA$9:$AJ$509,$O119,FALSE) -> -0.003158519245 | R119: =HLOOKUP(R$4,'Data(Step1)'!$AA$9:$AJ$509,$O119,FALSE) -> -0.004958596476 | S119: =HLOOKUP(S$4,'Data(Step1)'!$AA$9:$AJ$509,$O119,FALSE) -> -0.00751579047 | T119: =HLOOKUP(T$4,'Data(Step1)'!$AA$9:$AJ$509,$O119,FALSE) -> 0
O120: 118 | P120: =HLOOKUP(P$4,'Data(Step1)'!$AA$9:$AJ$509,$O120,FALSE) -> 0.006482127528 | Q120: =HLOOKUP(Q$4,'Data(Step1)'!$AA$9:$AJ$509,$O120,FALSE) -> 0.003158519245 | R120: =HLOOKUP(R$4,'Data(Step1)'!$AA$9:$AJ$509,$O120,FALSE) -> 0.005063485857 | S120: =HLOOKUP(S$4,'Data(Step1)'!$AA$9:$AJ$509,$O120,FALSE) -> 0.004525064068 | T120: =HLOOKUP(T$4,'Data(Step1)'!$AA$9:$AJ$509,$O120,FALSE) -> 0.008433167537
O121: 119 | P121: =HLOOKUP(P$4,'Data(Step1)'!$AA$9:$AJ$509,$O121,FALSE) -> 0.003205139875 | Q121: =HLOOKUP(Q$4,'Data(Step1)'!$AA$9:$AJ$509,$O121,FALSE) -> -0.003158519245 | R121: =HLOOKUP(R$4,'Data(Step1)'!$AA$9:$AJ$509,$O121,FALSE) -> -0.0009449176548 | S121: =HLOOKUP(S$4,'Data(Step1)'!$AA$9:$AJ$509,$O121,FALSE) -> -0.005175367881 | T121: =HLOOKUP(T$4,'Data(Step1)'!$AA$9:$AJ$509,$O121,FALSE) -> 0
O122: 120 | P122: =HLOOKUP(P$4,'Data(Step1)'!$AA$9:$AJ$509,$O122,FALSE) -> -0.003205139875 | Q122: =HLOOKUP(Q$4,'Data(Step1)'!$AA$9:$AJ$509,$O122,FALSE) -> 0 | R122: =HLOOKUP(R$4,'Data(Step1)'!$AA$9:$AJ$509,$O122,FALSE) -> 0.002515226038 | S122: =HLOOKUP(S$4,'Data(Step1)'!$AA$9:$AJ$509,$O122,FALSE) -> 0.007740106527 | T122: =HLOOKUP(T$4,'Data(Step1)'!$AA$9:$AJ$509,$O122,FALSE) -> 0.008272525966
O123: 121 | P123: =HLOOKUP(P$4,'Data(Step1)'!$AA$9:$AJ$509,$O123,FALSE) -> 0 | Q123: =HLOOKUP(Q$4,'Data(Step1)'!$AA$9:$AJ$509,$O123,FALSE) -> -0.01286892619 | R123: =HLOOKUP(R$4,'Data(Step1)'!$AA$9:$AJ$509,$O123,FALSE) -> 0.001356356241 | S123: =HLOOKUP(S$4,'Data(Step1)'!$AA$9:$AJ$509,$O123,FALSE) -> 0.006346354751 | T123: =HLOOKUP(T$4,'Data(Step1)'!$AA$9:$AJ$509,$O123,FALSE) -> -0.004116566195
O124: 122 | P124: =HLOOKUP(P$4,'Data(Step1)'!$AA$9:$AJ$509,$O124,FALSE) -> 0.01268103176 | Q124: =HLOOKUP(Q$4,'Data(Step1)'!$AA$9:$AJ$509,$O124,FALSE) -> -0.003277709761 | R124: =HLOOKUP(R$4,'Data(Step1)'!$AA$9:$AJ$509,$O124,FALSE) -> -0.002716961828 | S124: =HLOOKUP(S$4,'Data(Step1)'!$AA$9:$AJ$509,$O124,FALSE) -> -0.00273870821 | T124: =HLOOKUP(T$4,'Data(Step1)'!$AA$9:$AJ$509,$O124,FALSE) -> -0.01686792529
O125: 123 | P125: =HLOOKUP(P$4,'Data(Step1)'!$AA$9:$AJ$509,$O125,FALSE) -> 0 | Q125: =HLOOKUP(Q$4,'Data(Step1)'!$AA$9:$AJ$509,$O125,FALSE) -> -0.009984220907 | R125: =HLOOKUP(R$4,'Data(Step1)'!$AA$9:$AJ$509,$O125,FALSE) -> -0.003684498373 | S125: =HLOOKUP(S$4,'Data(Step1)'!$AA$9:$AJ$509,$O125,FALSE) -> -0.006172385188 | T125: =HLOOKUP(T$4,'Data(Step1)'!$AA$9:$AJ$509,$O125,FALSE) -> -0.01754963952
O126: 124 | P126: =HLOOKUP(P$4,'Data(Step1)'!$AA$9:$AJ$509,$O126,FALSE) -> 0 | Q126: =HLOOKUP(Q$4,'Data(Step1)'!$AA$9:$AJ$509,$O126,FALSE) -> 0.006681585357 | R126: =HLOOKUP(R$4,'Data(Step1)'!$AA$9:$AJ$509,$O126,FALSE) -> 0.01003227243 | S126: =HLOOKUP(S$4,'Data(Step1)'!$AA$9:$AJ$509,$O126,FALSE) -> 0.007438550755 | T126: =HLOOKUP(T$4,'Data(Step1)'!$AA$9:$AJ$509,$O126,FALSE) -> 0
O127: 125 | P127: =HLOOKUP(P$4,'Data(Step1)'!$AA$9:$AJ$509,$O127,FALSE) -> -0.003135713853 | Q127: =HLOOKUP(Q$4,'Data(Step1)'!$AA$9:$AJ$509,$O127,FALSE) -> 0 | R127: =HLOOKUP(R$4,'Data(Step1)'!$AA$9:$AJ$509,$O127,FALSE) -> -0.005196215157 | S127: =HLOOKUP(S$4,'Data(Step1)'!$AA$9:$AJ$509,$O127,FALSE) -> -0.004873812109 | T127: =HLOOKUP(T$4,'Data(Step1)'!$AA$9:$AJ$509,$O127,FALSE) -> 0
O128: 126 | P128: =HLOOKUP(P$4,'Data(Step1)'!$AA$9:$AJ$509,$O128,FALSE) -> 0.003135713853 | Q128: =HLOOKUP(Q$4,'Data(Step1)'!$AA$9:$AJ$509,$O128,FALSE) -> 0 | R128: =HLOOKUP(R$4,'Data(Step1)'!$AA$9:$AJ$509,$O128,FALSE) -> 0.003747530767 | S128: =HLOOKUP(S$4,'Data(Step1)'!$AA$9:$AJ$509,$O128,FALSE) -> -0.004067860727 | T128: =HLOOKUP(T$4,'Data(Step1)'!$AA$9:$AJ$509,$O128,FALSE) -> 0.01754963952
O129: 127 | P129: =HLOOKUP(P$4,'Data(Step1)'!$AA$9:$AJ$509,$O129,FALSE) -> -0.003135713853 | Q129: =HLOOKUP(Q$4,'Data(Step1)'!$AA$9:$AJ$509,$O129,FALSE) -> -0.03809004961 | R129: =HLOOKUP(R$4,'Data(Step1)'!$AA$9:$AJ$509,$O129,FALSE) -> 0.009432639992 | S129: =HLOOKUP(S$4,'Data(Step1)'!$AA$9:$AJ$509,$O129,FALSE) -> 0.004919418807 | T129: =HLOOKUP(T$4,'Data(Step1)'!$AA$9:$AJ$509,$O129,FALSE) -> 0.004278797979
O130: 128 | P130: =HLOOKUP(P$4,'Data(Step1)'!$AA$9:$AJ$509,$O130,FALSE) -> 0.003135713853 | Q130: =HLOOKUP(Q$4,'Data(Step1)'!$AA$9:$AJ$509,$O130,FALSE) -> 0.01072386539 | R130: =HLOOKUP(R$4,'Data(Step1)'!$AA$9:$AJ$509,$O130,FALSE) -> 0.003334137093 | S130: =HLOOKUP(S$4,'Data(Step1)'!$AA$9:$AJ$509,$O130,FALSE) -> 0.003178553944 | T130: =HLOOKUP(T$4,'Data(Step1)'!$AA$9:$AJ$509,$O130,FALSE) -> -0.004278797979
O131: 129 | P131: =HLOOKUP(P$4,'Data(Step1)'!$AA$9:$AJ$509,$O131,FALSE) -> 0 | Q131: =HLOOKUP(Q$4,'Data(Step1)'!$AA$9:$AJ$509,$O131,FALSE) -> -0.01435815005 | R131: =HLOOKUP(R$4,'Data(Step1)'!$AA$9:$AJ$509,$O131,FALSE) -> -0.002118759951 | S131: =HLOOKUP(S$4,'Data(Step1)'!$AA$9:$AJ$509,$O131,FALSE) -> -0.003817065917 | T131: =HLOOKUP(T$4,'Data(Step1)'!$AA$9:$AJ$509,$O131,FALSE) -> 0.004278797979
O132: 130 | P132: =HLOOKUP(P$4,'Data(Step1)'!$AA$9:$AJ$509,$O132,FALSE) -> 0 | Q132: =HLOOKUP(Q$4,'Data(Step1)'!$AA$9:$AJ$509,$O132,FALSE) -> 0 | R132: =HLOOKUP(R$4,'Data(Step1)'!$AA$9:$AJ$509,$O132,FALSE) -> -0.003758389923 | S132: =HLOOKUP(S$4,'Data(Step1)'!$AA$9:$AJ$509,$O132,FALSE) -> -0.007519508583 | T132: =HLOOKUP(T$4,'Data(Step1)'!$AA$9:$AJ$509,$O132,FALSE) -> 0.01258912731
O133: 131 | P133: =HLOOKUP(P$4,'Data(Step1)'!$AA$9:$AJ$509,$O133,FALSE) -> 0.003113235424 | Q133: =HLOOKUP(Q$4,'Data(Step1)'!$AA$9:$AJ$509,$O133,FALSE) -> -0.007361099646 | R133: =HLOOKUP(R$4,'Data(Step1)'!$AA$9:$AJ$509,$O133,FALSE) -> 0.003049833333 | S133: =HLOOKUP(S$4,'Data(Step1)'!$AA$9:$AJ$509,$O133,FALSE) -> -0.0008677215312 | T133: =HLOOKUP(T$4,'Data(Step1)'!$AA$9:$AJ$509,$O133,FALSE) -> 0.01223445642
O134: 132 | P134: =HLOOKUP(P$4,'Data(Step1)'!$AA$9:$AJ$509,$O134,FALSE) -> 0.006160308705 | Q134: =HLOOKUP(Q$4,'Data(Step1)'!$AA$9:$AJ$509,$O134,FALSE) -> -0.003727872519 | R134: =HLOOKUP(R$4,'Data(Step1)'!$AA$9:$AJ$509,$O134,FALSE) -> 0.005336246002 | S134: =HLOOKUP(S$4,'Data(Step1)'!$AA$9:$AJ$509,$O134,FALSE) -> 0.007534417897 | T134: =HLOOKUP(T$4,'Data(Step1)'!$AA$9:$AJ$509,$O134,FALSE) -> 0
O135: 133 | P135: =HLOOKUP(P$4,'Data(Step1)'!$AA$9:$AJ$509,$O135,FALSE) -> 0 | Q135: =HLOOKUP(Q$4,'Data(Step1)'!$AA$9:$AJ$509,$O135,FALSE) -> 0.01108897217 | R135: =HLOOKUP(R$4,'Data(Step1)'!$AA$9:$AJ$509,$O135,FALSE) -> 0.01087028147 | S135: =HLOOKUP(S$4,'Data(Step1)'!$AA$9:$AJ$509,$O135,FALSE) -> 0.009498921402 | T135: =HLOOKUP(T$4,'Data(Step1)'!$AA$9:$AJ$509,$O135,FALSE) -> 0.004002742454
O136: 134 | P136: =HLOOKUP(P$4,'Data(Step1)'!$AA$9:$AJ$509,$O136,FALSE) -> -0.003069231728 | Q136: =HLOOKUP(Q$4,'Data(Step1)'!$AA$9:$AJ$509,$O136,FALSE) -> -0.003664954086 | R136: =HLOOKUP(R$4,'Data(Step1)'!$AA$9:$AJ$509,$O136,FALSE) -> -0.004907334495 | S136: =HLOOKUP(S$4,'Data(Step1)'!$AA$9:$AJ$509,$O136,FALSE) -> -0.00504022464 | T136: =HLOOKUP(T$4,'Data(Step1)'!$AA$9:$AJ$509,$O136,FALSE) -> 0.007896480846
O137: 135 | P137: =HLOOKUP(P$4,'Data(Step1)'!$AA$9:$AJ$509,$O137,FALSE) -> -0.003091076977 | Q137: =HLOOKUP(Q$4,'Data(Step1)'!$AA$9:$AJ$509,$O137,FALSE) -> -0.007424018079 | R137: =HLOOKUP(R$4,'Data(Step1)'!$AA$9:$AJ$509,$O137,FALSE) -> 0.003343012292 | S137: =HLOOKUP(S$4,'Data(Step1)'!$AA$9:$AJ$509,$O137,FALSE) -> -0.001693158019 | T137: =HLOOKUP(T$4,'Data(Step1)'!$AA$9:$AJ$509,$O137,FALSE) -> 0
O138: 136 | P138: =HLOOKUP(P$4,'Data(Step1)'!$AA$9:$AJ$509,$O138,FALSE) -> 0.003091076977 | Q138: =HLOOKUP(Q$4,'Data(Step1)'!$AA$9:$AJ$509,$O138,FALSE) -> 0 | R138: =HLOOKUP(R$4,'Data(Step1)'!$AA$9:$AJ$509,$O138,FALSE) -> 0.002733877169 | S138: =HLOOKUP(S$4,'Data(Step1)'!$AA$9:$AJ$509,$O138,FALSE) -> -0.0008490608411 | T138: =HLOOKUP(T$4,'Data(Step1)'!$AA$9:$AJ$509,$O138,FALSE) -> 0.003895043884
O139: 137 | P139: =HLOOKUP(P$4,'Data(Step1)'!$AA$9:$AJ$509,$O139,FALSE) -> 0.003069231728 | Q139: =HLOOKUP(Q$4,'Data(Step1)'!$AA$9:$AJ$509,$O139,FALSE) -> 0.007424018079 | R139: =HLOOKUP(R$4,'Data(Step1)'!$AA$9:$AJ$509,$O139,FALSE) -> -0.01014269693 | S139: =HLOOKUP(S$4,'Data(Step1)'!$AA$9:$AJ$509,$O139,FALSE) -> -0.001703117798 | T139: =HLOOKUP(T$4,'Data(Step1)'!$AA$9:$AJ$509,$O139,FALSE) -> -0.01179152473
O140: 138 | P140: =HLOOKUP(P$4,'Data(Step1)'!$AA$9:$AJ$509,$O140,FALSE) -> -0.003069231728 | Q140: =HLOOKUP(Q$4,'Data(Step1)'!$AA$9:$AJ$509,$O140,FALSE) -> -0.01118416695 | R140: =HLOOKUP(R$4,'Data(Step1)'!$AA$9:$AJ$509,$O140,FALSE) -> 0.009850603332 | S140: =HLOOKUP(S$4,'Data(Step1)'!$AA$9:$AJ$509,$O140,FALSE) -> 0.002127855711 | T140: =HLOOKUP(T$4,'Data(Step1)'!$AA$9:$AJ$509,$O140,FALSE) -> 0.01565194554
O141: 139 | P141: =HLOOKUP(P$4,'Data(Step1)'!$AA$9:$AJ$509,$O141,FALSE) -> 0.00611692481 | Q141: =HLOOKUP(Q$4,'Data(Step1)'!$AA$9:$AJ$509,$O141,FALSE) -> -0.003792989017 | R141: =HLOOKUP(R$4,'Data(Step1)'!$AA$9:$AJ$509,$O141,FALSE) -> 0.01134344008 | S141: =HLOOKUP(S$4,'Data(Step1)'!$AA$9:$AJ$509,$O141,FALSE) -> 0.01193364331 | T141: =HLOOKUP(T$4,'Data(Step1)'!$AA$9:$AJ$509,$O141,FALSE) -> 0.003826407853
O142: 140 | P142: =HLOOKUP(P$4,'Data(Step1)'!$AA$9:$AJ$509,$O142,FALSE) -> 0.009016818319 | Q142: =HLOOKUP(Q$4,'Data(Step1)'!$AA$9:$AJ$509,$O142,FALSE) -> 0.003792989017 | R142: =HLOOKUP(R$4,'Data(Step1)'!$AA$9:$AJ$509,$O142,FALSE) -> 9.487591122e-05 | S142: =HLOOKUP(S$4,'Data(Step1)'!$AA$9:$AJ$509,$O142,FALSE) -> 0.002060224366 | T142: =HLOOKUP(T$4,'Data(Step1)'!$AA$9:$AJ$509,$O142,FALSE) -> 0.00755313789
O143: 141 | P143: =HLOOKUP(P$4,'Data(Step1)'!$AA$9:$AJ$509,$O143,FALSE) -> 0.005908859611 | Q143: =HLOOKUP(Q$4,'Data(Step1)'!$AA$9:$AJ$509,$O143,FALSE) -> 0.01118416695 | R143: =HLOOKUP(R$4,'Data(Step1)'!$AA$9:$AJ$509,$O143,FALSE) -> 0.001420657079 | S143: =HLOOKUP(S$4,'Data(Step1)'!$AA$9:$AJ$509,$O143,FALSE) -> 0.00510820382 | T143: =HLOOKUP(T$4,'Data(Step1)'!$AA$9:$AJ$509,$O143,FALSE) -> 0.003727872519
O144: 142 | P144: =HLOOKUP(P$4,'Data(Step1)'!$AA$9:$AJ$509,$O144,FALSE) -> 0 | Q144: =HLOOKUP(Q$4,'Data(Step1)'!$AA$9:$AJ$509,$O144,FALSE) -> 0 | R144: =HLOOKUP(R$4,'Data(Step1)'!$AA$9:$AJ$509,$O144,FALSE) -> 0.004046981874 | S144: =HLOOKUP(S$4,'Data(Step1)'!$AA$9:$AJ$509,$O144,FALSE) -> 0.0004060724764 | T144: =HLOOKUP(T$4,'Data(Step1)'!$AA$9:$AJ$509,$O144,FALSE) -> 0
O145: 143 | P145: =HLOOKUP(P$4,'Data(Step1)'!$AA$9:$AJ$509,$O145,FALSE) -> 0 | Q145: =HLOOKUP(Q$4,'Data(Step1)'!$AA$9:$AJ$509,$O145,FALSE) -> 0.003664954086 | R145: =HLOOKUP(R$4,'Data(Step1)'!$AA$9:$AJ$509,$O145,FALSE) -> 0.001682951659 | S145: =HLOOKUP(S$4,'Data(Step1)'!$AA$9:$AJ$509,$O145,FALSE) -> 0.002831925613 | T145: =HLOOKUP(T$4,'Data(Step1)'!$AA$9:$AJ$509,$O145,FALSE) -> 0.007361099646
O146: 144 | P146: =HLOOKUP(P$4,'Data(Step1)'!$AA$9:$AJ$509,$O146,FALSE) -> 0 | Q146: =HLOOKUP(Q$4,'Data(Step1)'!$AA$9:$AJ$509,$O146,FALSE) -> 0.003634284655 | R146: =HLOOKUP(R$4,'Data(Step1)'!$AA$9:$AJ$509,$O146,FALSE) -> -0.0009341678842 | S146: =HLOOKUP(S$4,'Data(Step1)'!$AA$9:$AJ$509,$O146,FALSE) -> -0.001818402441 | T146: =HLOOKUP(T$4,'Data(Step1)'!$AA$9:$AJ$509,$O146,FALSE) -> 0
O147: 145 | P147: =HLOOKUP(P$4,'Data(Step1)'!$AA$9:$AJ$509,$O147,FALSE) -> 0 | Q147: =HLOOKUP(Q$4,'Data(Step1)'!$AA$9:$AJ$509,$O147,FALSE) -> 0 | R147: =HLOOKUP(R$4,'Data(Step1)'!$AA$9:$AJ$509,$O147,FALSE) -> -0.002908756458 | S147: =HLOOKUP(S$4,'Data(Step1)'!$AA$9:$AJ$509,$O147,FALSE) -> -0.0110732637 | T147: =HLOOKUP(T$4,'Data(Step1)'!$AA$9:$AJ$509,$O147,FALSE) -> 0.01081286928
O148: 146 | P148: =HLOOKUP(P$4,'Data(Step1)'!$AA$9:$AJ$509,$O148,FALSE) -> 0.002924553017 | Q148: =HLOOKUP(Q$4,'Data(Step1)'!$AA$9:$AJ$509,$O148,FALSE) -> -0.003634284655 | R148: =HLOOKUP(R$4,'Data(Step1)'!$AA$9:$AJ$509,$O148,FALSE) -> -0.01367593148 | S148: =HLOOKUP(S$4,'Data(Step1)'!$AA$9:$AJ$509,$O148,FALSE) -> 0.001658405765 | T148: =HLOOKUP(T$4,'Data(Step1)'!$AA$9:$AJ$509,$O148,FALSE) -> 0.007061854487
O149: 147 | P149: =HLOOKUP(P$4,'Data(Step1)'!$AA$9:$AJ$509,$O149,FALSE) -> 0.002904990643 | Q149: =HLOOKUP(Q$4,'Data(Step1)'!$AA$9:$AJ$509,$O149,FALSE) -> 0.01081286928 | R149: =HLOOKUP(R$4,'Data(Step1)'!$AA$9:$AJ$509,$O149,FALSE) -> -9.716847158e-05 | S149: =HLOOKUP(S$4,'Data(Step1)'!$AA$9:$AJ$509,$O149,FALSE) -> 0.0004136138236 | T149: =HLOOKUP(T$4,'Data(Step1)'!$AA$9:$AJ$509,$O149,FALSE) -> -0.007061854487
O150: 148 | P150: =HLOOKUP(P$4,'Data(Step1)'!$AA$9:$AJ$509,$O150,FALSE) -> 0.005752328889 | Q150: =HLOOKUP(Q$4,'Data(Step1)'!$AA$9:$AJ$509,$O150,FALSE) -> 0.003545280765 | R150: =HLOOKUP(R$4,'Data(Step1)'!$AA$9:$AJ$509,$O150,FALSE) -> -0.0001944021885 | S150: =HLOOKUP(S$4,'Data(Step1)'!$AA$9:$AJ$509,$O150,FALSE) -> -0.004780509185 | T150: =HLOOKUP(T$4,'Data(Step1)'!$AA$9:$AJ$509,$O150,FALSE) -> 0.007061854487
O151: 149 | P151: =HLOOKUP(P$4,'Data(Step1)'!$AA$9:$AJ$509,$O151,FALSE) -> -0.002866640652 | Q151: =HLOOKUP(Q$4,'Data(Step1)'!$AA$9:$AJ$509,$O151,FALSE) -> 0.007004901569 | R151: =HLOOKUP(R$4,'Data(Step1)'!$AA$9:$AJ$509,$O151,FALSE) -> -0.003416200751 | S151: =HLOOKUP(S$4,'Data(Step1)'!$AA$9:$AJ$509,$O151,FALSE) -> -0.003989196603 | T151: =HLOOKUP(T$4,'Data(Step1)'!$AA$9:$AJ$509,$O151,FALSE) -> 0
O152: 150 | P152: =HLOOKUP(P$4,'Data(Step1)'!$AA$9:$AJ$509,$O152,FALSE) -> -0.005790678881 | Q152: =HLOOKUP(Q$4,'Data(Step1)'!$AA$9:$AJ$509,$O152,FALSE) -> 0.00346053211 | R152: =HLOOKUP(R$4,'Data(Step1)'!$AA$9:$AJ$509,$O152,FALSE) -> 0.003124434209 | S152: =HLOOKUP(S$4,'Data(Step1)'!$AA$9:$AJ$509,$O152,FALSE) -> -0.0008445204059 | T152: =HLOOKUP(T$4,'Data(Step1)'!$AA$9:$AJ$509,$O152,FALSE) -> 0.003488327846
O153: 151 | P153: =HLOOKUP(P$4,'Data(Step1)'!$AA$9:$AJ$509,$O153,FALSE) -> -0.002924553017 | Q153: =HLOOKUP(Q$4,'Data(Step1)'!$AA$9:$AJ$509,$O153,FALSE) -> -0.00346053211 | R153: =HLOOKUP(R$4,'Data(Step1)'!$AA$9:$AJ$509,$O153,FALSE) -> 0.000388978514 | S153: =HLOOKUP(S$4,'Data(Step1)'!$AA$9:$AJ$509,$O153,FALSE) -> -0.0048881226 | T153: =HLOOKUP(T$4,'Data(Step1)'!$AA$9:$AJ$509,$O153,FALSE) -> 0
O154: 152 | P154: =HLOOKUP(P$4,'Data(Step1)'!$AA$9:$AJ$509,$O154,FALSE) -> -0.002944380647 | Q154: =HLOOKUP(Q$4,'Data(Step1)'!$AA$9:$AJ$509,$O154,FALSE) -> -0.003488327846 | R154: =HLOOKUP(R$4,'Data(Step1)'!$AA$9:$AJ$509,$O154,FALSE) -> 0.005697330052 | S154: =HLOOKUP(S$4,'Data(Step1)'!$AA$9:$AJ$509,$O154,FALSE) -> 0.003406248692 | T154: =HLOOKUP(T$4,'Data(Step1)'!$AA$9:$AJ$509,$O154,FALSE) -> 0
O155: 153 | P155: =HLOOKUP(P$4,'Data(Step1)'!$AA$9:$AJ$509,$O155,FALSE) -> 0.002944380647 | Q155: =HLOOKUP(Q$4,'Data(Step1)'!$AA$9:$AJ$509,$O155,FALSE) -> 0 | R155: =HLOOKUP(R$4,'Data(Step1)'!$AA$9:$AJ$509,$O155,FALSE) -> -0.005794542023 | S155: =HLOOKUP(S$4,'Data(Step1)'!$AA$9:$AJ$509,$O155,FALSE) -> -0.003620028899 | T155: =HLOOKUP(T$4,'Data(Step1)'!$AA$9:$AJ$509,$O155,FALSE) -> 0.00346053211
O156: 154 | P156: =HLOOKUP(P$4,'Data(Step1)'!$AA$9:$AJ$509,$O156,FALSE) -> 0 | Q156: =HLOOKUP(Q$4,'Data(Step1)'!$AA$9:$AJ$509,$O156,FALSE) -> -0.003516573723 | R156: =HLOOKUP(R$4,'Data(Step1)'!$AA$9:$AJ$509,$O156,FALSE) -> 0.006561338924 | S156: =HLOOKUP(S$4,'Data(Step1)'!$AA$9:$AJ$509,$O156,FALSE) -> 0.004043937651 | T156: =HLOOKUP(T$4,'Data(Step1)'!$AA$9:$AJ$509,$O156,FALSE) -> 0
O157: 155 | P157: =HLOOKUP(P$4,'Data(Step1)'!$AA$9:$AJ$509,$O157,FALSE) -> 0.002924553017 | Q157: =HLOOKUP(Q$4,'Data(Step1)'!$AA$9:$AJ$509,$O157,FALSE) -> 0.003516573723 | R157: =HLOOKUP(R$4,'Data(Step1)'!$AA$9:$AJ$509,$O157,FALSE) -> -0.002208200421 | S157: =HLOOKUP(S$4,'Data(Step1)'!$AA$9:$AJ$509,$O157,FALSE) -> -0.00191085634 | T157: =HLOOKUP(T$4,'Data(Step1)'!$AA$9:$AJ$509,$O157,FALSE) -> -0.00346053211
O158: 156 | P158: =HLOOKUP(P$4,'Data(Step1)'!$AA$9:$AJ$509,$O158,FALSE) -> 0 | Q158: =HLOOKUP(Q$4,'Data(Step1)'!$AA$9:$AJ$509,$O158,FALSE) -> 0 | R158: =HLOOKUP(R$4,'Data(Step1)'!$AA$9:$AJ$509,$O158,FALSE) -> -0.0008671440124 | S158: =HLOOKUP(S$4,'Data(Step1)'!$AA$9:$AJ$509,$O158,FALSE) -> -0.0002128372902 | T158: =HLOOKUP(T$4,'Data(Step1)'!$AA$9:$AJ$509,$O158,FALSE) -> 0
O159: 157 | P159: =HLOOKUP(P$4,'Data(Step1)'!$AA$9:$AJ$509,$O159,FALSE) -> -0.005868933664 | Q159: =HLOOKUP(Q$4,'Data(Step1)'!$AA$9:$AJ$509,$O159,FALSE) -> 0.006948859955 | R159: =HLOOKUP(R$4,'Data(Step1)'!$AA$9:$AJ$509,$O159,FALSE) -> 0.005081768444 | S159: =HLOOKUP(S$4,'Data(Step1)'!$AA$9:$AJ$509,$O159,FALSE) -> 0.004447824353 | T159: =HLOOKUP(T$4,'Data(Step1)'!$AA$9:$AJ$509,$O159,FALSE) -> -0.007004901569
O160: 158 | P160: =HLOOKUP(P$4,'Data(Step1)'!$AA$9:$AJ$509,$O160,FALSE) -> 0 | Q160: =HLOOKUP(Q$4,'Data(Step1)'!$AA$9:$AJ$509,$O160,FALSE) -> -0.00346053211 | R160: =HLOOKUP(R$4,'Data(Step1)'!$AA$9:$AJ$509,$O160,FALSE) -> -0.0001906891279 | S160: =HLOOKUP(S$4,'Data(Step1)'!$AA$9:$AJ$509,$O160,FALSE) -> -0.002112331411 | T160: =HLOOKUP(T$4,'Data(Step1)'!$AA$9:$AJ$509,$O160,FALSE) -> 0
O161: 159 | P161: =HLOOKUP(P$4,'Data(Step1)'!$AA$9:$AJ$509,$O161,FALSE) -> 0.01165961254 | Q161: =HLOOKUP(Q$4,'Data(Step1)'!$AA$9:$AJ$509,$O161,FALSE) -> 0 | R161: =HLOOKUP(R$4,'Data(Step1)'!$AA$9:$AJ$509,$O161,FALSE) -> 0.001333068959 | S161: =HLOOKUP(S$4,'Data(Step1)'!$AA$9:$AJ$509,$O161,FALSE) -> -0.001060030992 | T161: =HLOOKUP(T$4,'Data(Step1)'!$AA$9:$AJ$509,$O161,FALSE) -> 0
O162: 160 | P162: =HLOOKUP(P$4,'Data(Step1)'!$AA$9:$AJ$509,$O162,FALSE) -> 0.002866640652 | Q162: =HLOOKUP(Q$4,'Data(Step1)'!$AA$9:$AJ$509,$O162,FALSE) -> -0.003488327846 | R162: =HLOOKUP(R$4,'Data(Step1)'!$AA$9:$AJ$509,$O162,FALSE) -> -0.0002853133675 | S162: =HLOOKUP(S$4,'Data(Step1)'!$AA$9:$AJ$509,$O162,FALSE) -> -0.003409591463 | T162: =HLOOKUP(T$4,'Data(Step1)'!$AA$9:$AJ$509,$O162,FALSE) -> -0.003545280765
O163: 161 | P163: =HLOOKUP(P$4,'Data(Step1)'!$AA$9:$AJ$509,$O163,FALSE) -> 0 | Q163: =HLOOKUP(Q$4,'Data(Step1)'!$AA$9:$AJ$509,$O163,FALSE) -> 0 | R163: =HLOOKUP(R$4,'Data(Step1)'!$AA$9:$AJ$509,$O163,FALSE) -> -0.002098045056 | S163: =HLOOKUP(S$4,'Data(Step1)'!$AA$9:$AJ$509,$O163,FALSE) -> -0.004299980493 | T163: =HLOOKUP(T$4,'Data(Step1)'!$AA$9:$AJ$509,$O163,FALSE) -> 0.003545280765
O164: 162 | P164: =HLOOKUP(P$4,'Data(Step1)'!$AA$9:$AJ$509,$O164,FALSE) -> 0 | Q164: =HLOOKUP(Q$4,'Data(Step1)'!$AA$9:$AJ$509,$O164,FALSE) -> 0.003488327846 | R164: =HLOOKUP(R$4,'Data(Step1)'!$AA$9:$AJ$509,$O164,FALSE) -> 0.001336291768 | S164: =HLOOKUP(S$4,'Data(Step1)'!$AA$9:$AJ$509,$O164,FALSE) -> -0.001298340225 | T164: =HLOOKUP(T$4,'Data(Step1)'!$AA$9:$AJ$509,$O164,FALSE) -> 0.003516573723
O165: 163 | P165: =HLOOKUP(P$4,'Data(Step1)'!$AA$9:$AJ$509,$O165,FALSE) -> -0.005752328889 | Q165: =HLOOKUP(Q$4,'Data(Step1)'!$AA$9:$AJ$509,$O165,FALSE) -> -0.003488327846 | R165: =HLOOKUP(R$4,'Data(Step1)'!$AA$9:$AJ$509,$O165,FALSE) -> -0.0009540743773 | S165: =HLOOKUP(S$4,'Data(Step1)'!$AA$9:$AJ$509,$O165,FALSE) -> -0.005451922989 | T165: =HLOOKUP(T$4,'Data(Step1)'!$AA$9:$AJ$509,$O165,FALSE) -> 0.003488327846
O166: 164 | P166: =HLOOKUP(P$4,'Data(Step1)'!$AA$9:$AJ$509,$O166,FALSE) -> -0.005829543661 | Q166: =HLOOKUP(Q$4,'Data(Step1)'!$AA$9:$AJ$509,$O166,FALSE) -> 0 | R166: =HLOOKUP(R$4,'Data(Step1)'!$AA$9:$AJ$509,$O166,FALSE) -> -9.552281616e-05 | S166: =HLOOKUP(S$4,'Data(Step1)'!$AA$9:$AJ$509,$O166,FALSE) -> 0.0112641292 | T166: =HLOOKUP(T$4,'Data(Step1)'!$AA$9:$AJ$509,$O166,FALSE) -> -0.003488327846
O167: 165 | P167: =HLOOKUP(P$4,'Data(Step1)'!$AA$9:$AJ$509,$O167,FALSE) -> 0 | Q167: =HLOOKUP(Q$4,'Data(Step1)'!$AA$9:$AJ$509,$O167,FALSE) -> -0.007061854487 | R167: =HLOOKUP(R$4,'Data(Step1)'!$AA$9:$AJ$509,$O167,FALSE) -> -0.007710712654 | S167: =HLOOKUP(S$4,'Data(Step1)'!$AA$9:$AJ$509,$O167,FALSE) -> -0.004946214932 | T167: =HLOOKUP(T$4,'Data(Step1)'!$AA$9:$AJ$509,$O167,FALSE) -> -0.01063631485
O168: 166 | P168: =HLOOKUP(P$4,'Data(Step1)'!$AA$9:$AJ$509,$O168,FALSE) -> 0.002924553017 | Q168: =HLOOKUP(Q$4,'Data(Step1)'!$AA$9:$AJ$509,$O168,FALSE) -> 0.003545280765 | R168: =HLOOKUP(R$4,'Data(Step1)'!$AA$9:$AJ$509,$O168,FALSE) -> -0.0007786545912 | S168: =HLOOKUP(S$4,'Data(Step1)'!$AA$9:$AJ$509,$O168,FALSE) -> -0.001516619837 | T168: =HLOOKUP(T$4,'Data(Step1)'!$AA$9:$AJ$509,$O168,FALSE) -> 0.003574460358
O169: 167 | P169: =HLOOKUP(P$4,'Data(Step1)'!$AA$9:$AJ$509,$O169,FALSE) -> 0 | Q169: =HLOOKUP(Q$4,'Data(Step1)'!$AA$9:$AJ$509,$O169,FALSE) -> 0 | R169: =HLOOKUP(R$4,'Data(Step1)'!$AA$9:$AJ$509,$O169,FALSE) -> 0.005517690505 | S169: =HLOOKUP(S$4,'Data(Step1)'!$AA$9:$AJ$509,$O169,FALSE) -> 0.001948968784 | T169: =HLOOKUP(T$4,'Data(Step1)'!$AA$9:$AJ$509,$O169,FALSE) -> 0
O170: 168 | P170: =HLOOKUP(P$4,'Data(Step1)'!$AA$9:$AJ$509,$O170,FALSE) -> 0 | Q170: =HLOOKUP(Q$4,'Data(Step1)'!$AA$9:$AJ$509,$O170,FALSE) -> 0.003516573723 | R170: =HLOOKUP(R$4,'Data(Step1)'!$AA$9:$AJ$509,$O170,FALSE) -> -0.001445240874 | S170: =HLOOKUP(S$4,'Data(Step1)'!$AA$9:$AJ$509,$O170,FALSE) -> -0.0008651287361 | T170: =HLOOKUP(T$4,'Data(Step1)'!$AA$9:$AJ$509,$O170,FALSE) -> -0.003574460358
O171: 169 | P171: =HLOOKUP(P$4,'Data(Step1)'!$AA$9:$AJ$509,$O171,FALSE) -> 0.002904990643 | Q171: =HLOOKUP(Q$4,'Data(Step1)'!$AA$9:$AJ$509,$O171,FALSE) -> 0.01716802514 | R171: =HLOOKUP(R$4,'Data(Step1)'!$AA$9:$AJ$509,$O171,FALSE) -> -0.005047735201 | S171: =HLOOKUP(S$4,'Data(Step1)'!$AA$9:$AJ$509,$O171,FALSE) -> 0.0004327797886 | T171: =HLOOKUP(T$4,'Data(Step1)'!$AA$9:$AJ$509,$O171,FALSE) -> 0.007119741123
O172: 170 | P172: =HLOOKUP(P$4,'Data(Step1)'!$AA$9:$AJ$509,$O172,FALSE) -> 0.008600171762 | Q172: =HLOOKUP(Q$4,'Data(Step1)'!$AA$9:$AJ$509,$O172,FALSE) -> 0.009984220907 | R172: =HLOOKUP(R$4,'Data(Step1)'!$AA$9:$AJ$509,$O172,FALSE) -> -0.007583972084 | S172: =HLOOKUP(S$4,'Data(Step1)'!$AA$9:$AJ$509,$O172,FALSE) -> -0.004565841363 | T172: =HLOOKUP(T$4,'Data(Step1)'!$AA$9:$AJ$509,$O172,FALSE) -> -0.003545280765
O173: 171 | P173: =HLOOKUP(P$4,'Data(Step1)'!$AA$9:$AJ$509,$O173,FALSE) -> -0.002847842873 | Q173: =HLOOKUP(Q$4,'Data(Step1)'!$AA$9:$AJ$509,$O173,FALSE) -> -0.00330263555 | R173: =HLOOKUP(R$4,'Data(Step1)'!$AA$9:$AJ$509,$O173,FALSE) -> -0.00711235091 | S173: =HLOOKUP(S$4,'Data(Step1)'!$AA$9:$AJ$509,$O173,FALSE) -> -0.007940597715 | T173: =HLOOKUP(T$4,'Data(Step1)'!$AA$9:$AJ$509,$O173,FALSE) -> -0.003574460358
O174: 172 | P174: =HLOOKUP(P$4,'Data(Step1)'!$AA$9:$AJ$509,$O174,FALSE) -> -0.005752328889 | Q174: =HLOOKUP(Q$4,'Data(Step1)'!$AA$9:$AJ$509,$O174,FALSE) -> 0.00330263555 | R174: =HLOOKUP(R$4,'Data(Step1)'!$AA$9:$AJ$509,$O174,FALSE) -> 0.004121330259 | S174: =HLOOKUP(S$4,'Data(Step1)'!$AA$9:$AJ$509,$O174,FALSE) -> -0.0008913178745 | T174: =HLOOKUP(T$4,'Data(Step1)'!$AA$9:$AJ$509,$O174,FALSE) -> -0.01090336301
O175: 173 | P175: =HLOOKUP(P$4,'Data(Step1)'!$AA$9:$AJ$509,$O175,FALSE) -> 0 | Q175: =HLOOKUP(Q$4,'Data(Step1)'!$AA$9:$AJ$509,$O175,FALSE) -> 0.006530867159 | R175: =HLOOKUP(R$4,'Data(Step1)'!$AA$9:$AJ$509,$O175,FALSE) -> 0.00920590294 | S175: =HLOOKUP(S$4,'Data(Step1)'!$AA$9:$AJ$509,$O175,FALSE) -> 0.005320672759 | T175: =HLOOKUP(T$4,'Data(Step1)'!$AA$9:$AJ$509,$O175,FALSE) -> 0.007299238741
O176: 174 | P176: =HLOOKUP(P$4,'Data(Step1)'!$AA$9:$AJ$509,$O176,FALSE) -> 0 | Q176: =HLOOKUP(Q$4,'Data(Step1)'!$AA$9:$AJ$509,$O176,FALSE) -> 0 | R176: =HLOOKUP(R$4,'Data(Step1)'!$AA$9:$AJ$509,$O176,FALSE) -> -0.005123315554 | S176: =HLOOKUP(S$4,'Data(Step1)'!$AA$9:$AJ$509,$O176,FALSE) -> -0.005543788347 | T176: =HLOOKUP(T$4,'Data(Step1)'!$AA$9:$AJ$509,$O176,FALSE) -> -0.007299238741
O177: 175 | P177: =HLOOKUP(P$4,'Data(Step1)'!$AA$9:$AJ$509,$O177,FALSE) -> -0.005829543661 | Q177: =HLOOKUP(Q$4,'Data(Step1)'!$AA$9:$AJ$509,$O177,FALSE) -> -0.006530867159 | R177: =HLOOKUP(R$4,'Data(Step1)'!$AA$9:$AJ$509,$O177,FALSE) -> -0.00488368419 | S177: =HLOOKUP(S$4,'Data(Step1)'!$AA$9:$AJ$509,$O177,FALSE) -> -0.003810608288 | T177: =HLOOKUP(T$4,'Data(Step1)'!$AA$9:$AJ$509,$O177,FALSE) -> -0.00369614556
O178: 176 | P178: =HLOOKUP(P$4,'Data(Step1)'!$AA$9:$AJ$509,$O178,FALSE) -> 0 | Q178: =HLOOKUP(Q$4,'Data(Step1)'!$AA$9:$AJ$509,$O178,FALSE) -> 0 | R178: =HLOOKUP(R$4,'Data(Step1)'!$AA$9:$AJ$509,$O178,FALSE) -> 0.004189368324 | S178: =HLOOKUP(S$4,'Data(Step1)'!$AA$9:$AJ$509,$O178,FALSE) -> 0.005370015644 | T178: =HLOOKUP(T$4,'Data(Step1)'!$AA$9:$AJ$509,$O178,FALSE) -> 0.00369614556
O179: 177 | P179: =HLOOKUP(P$4,'Data(Step1)'!$AA$9:$AJ$509,$O179,FALSE) -> 0 | Q179: =HLOOKUP(Q$4,'Data(Step1)'!$AA$9:$AJ$509,$O179,FALSE) -> -0.00330263555 | R179: =HLOOKUP(R$4,'Data(Step1)'!$AA$9:$AJ$509,$O179,FALSE) -> 0.001387523487 | S179: =HLOOKUP(S$4,'Data(Step1)'!$AA$9:$AJ$509,$O179,FALSE) -> -0.001336291768 | T179: =HLOOKUP(T$4,'Data(Step1)'!$AA$9:$AJ$509,$O179,FALSE) -> 0.003664954086
O180: 178 | P180: =HLOOKUP(P$4,'Data(Step1)'!$AA$9:$AJ$509,$O180,FALSE) -> -0.01492567793 | Q180: =HLOOKUP(Q$4,'Data(Step1)'!$AA$9:$AJ$509,$O180,FALSE) -> -0.0134675747 | R180: =HLOOKUP(R$4,'Data(Step1)'!$AA$9:$AJ$509,$O180,FALSE) -> -0.01092181183 | S180: =HLOOKUP(S$4,'Data(Step1)'!$AA$9:$AJ$509,$O180,FALSE) -> 0.001336291768 | T180: =HLOOKUP(T$4,'Data(Step1)'!$AA$9:$AJ$509,$O180,FALSE) -> -0.02246851791
O181: 179 | P181: =HLOOKUP(P$4,'Data(Step1)'!$AA$9:$AJ$509,$O181,FALSE) -> 0 | Q181: =HLOOKUP(Q$4,'Data(Step1)'!$AA$9:$AJ$509,$O181,FALSE) -> -0.006893707948 | R181: =HLOOKUP(R$4,'Data(Step1)'!$AA$9:$AJ$509,$O181,FALSE) -> -0.006646190052 | S181: =HLOOKUP(S$4,'Data(Step1)'!$AA$9:$AJ$509,$O181,FALSE) -> -0.001782637626 | T181: =HLOOKUP(T$4,'Data(Step1)'!$AA$9:$AJ$509,$O181,FALSE) -> 0.01137954574
O182: 180 | P182: =HLOOKUP(P$4,'Data(Step1)'!$AA$9:$AJ$509,$O182,FALSE) -> 0.00603196477 | Q182: =HLOOKUP(Q$4,'Data(Step1)'!$AA$9:$AJ$509,$O182,FALSE) -> 0.00346053211 | R182: =HLOOKUP(R$4,'Data(Step1)'!$AA$9:$AJ$509,$O182,FALSE) -> -0.004661523987 | S182: =HLOOKUP(S$4,'Data(Step1)'!$AA$9:$AJ$509,$O182,FALSE) -> -0.008796709359 | T182: =HLOOKUP(T$4,'Data(Step1)'!$AA$9:$AJ$509,$O182,FALSE) -> 0.007424018079
